Workbook

Sheet 02-06
AK4: B/S | AL4: Strat | AM4: M2 | AN4: Erreur
AK5: B | AL5: IC40 30S | AM5: Même sens | AN5: Oui
AK6: S | AL6: IC40S 30S | AM6: Flat | AN6: Non
AL7: IC40 30S inverse MM | AM7: Opposé
AL8: Contretendance impulsion
AL9: Trading de Niveau 30S
AL10: Trading de Niveau M2
AL11: Sur chiffres
AL12: Range
AL13: IC40 M2
AL14: IC40 S M2
AL15: IC40 M2 inverse MM
AL16: Cassure S/R H1
AL17: Cassure S/R D
C25: Underlying | D25: Quantity | E25: Contract | F25: Price | G25: Time | H25: Date | I25: Commission | J25: Realized P&L | L25: Cumul P&L | M25: Strat | N25: Sell/Buy | O25: TDCE M2 | P25: Nbre de contrats | Q25: Pts | R25: Erreur
C26: IBDE30 | D26: 1 | E26: SLD | F26: 10151.89 | G26: 0.3911805556 | H26: 20160602 | I26: 1 | J26: 0 | L26: 0 | M26: Cassure S/R H1 | N26: BUY | Q26: 0
C27: IBDE30 | D27: 1 | E27: SLD | F27: 10152.58 | G27: 0.39125 | H27: 20160602 | I27: 1 | J27: 0 | L27: 0 | M27: Cassure S/R H1 | N27: BUY | Q27: 0
C28: IBDE30 | D28: 1 | E28: SLD | F28: 10162.17 | G28: 0.3915856481 | H28: 20160602 | I28: 1 | J28: 0 | L28: 0 | M28: Cassure S/R H1 | N28: BUY | Q28: 0
C29: IBDE30 | D29: 1 | E29: SLD | F29: 10162.67 | G29: 0.3919444444 | H29: 20160602 | I29: 1 | J29: 0 | L29: 0 | M29: Cassure S/R H1 | N29: BUY | Q29: 0
C30: IBDE30 | D30: 1 | E30: SLD | F30: 10162.67 | G30: 0.3921064815 | H30: 20160602 | I30: 1 | J30: 0 | L30: 0 | M30: Cassure S/R H1 | N30: BUY | Q30: 0
C31: IBDE30 | D31: 1 | E31: BOT | F31: 10171.17 | G31: 09:27:49 | H31: 20160602 | I31: 1 | J31: -14.77 | L31: -14.77 | M31: Cassure S/R H1 | N31: SLD | O31: Même sens | P31: 6 | Q31: -14.77
C32: IBDE30 | D32: 1 | E32: BOT | F32: 10172.16 | G32: 09:27:54 | H32: 20160602 | I32: 1 | J32: -15.76 | L32: -30.53 | M32: Cassure S/R H1 | N32: SLD | O32: Même sens | Q32: -15.76
C33: IBDE30 | D33: 1 | E33: BOT | F33: 10173.16 | G33: 09:28:01 | H33: 20160602 | I33: 1 | J33: -16.76 | L33: -47.29 | M33: Cassure S/R H1 | N33: SLD | O33: Même sens | Q33: -16.76
C34: IBDE30 | D34: 1 | E34: BOT | F34: 10180.16 | G34: 09:30:54 | H34: 20160602 | I34: 1 | J34: -23.76 | L34: -71.05 | M34: Cassure S/R H1 | N34: SLD | O34: Même sens | Q34: -23.76
C35: IBDE30 | D35: 1 | E35: BOT | F35: 10180.66 | G35: 09:30:55 | H35: 20160602 | I35: 1 | J35: -24.26 | L35: -95.31 | M35: Cassure S/R H1 | N35: SLD | O35: Même sens | Q35: -24.26
C36: IBDE30 | D36: 1 | E36: BOT | F36: 10220.15 | G36: 0.4493634259 | H36: 20160602 | I36: 1 | J36: 0 | L36: -95.31 | N36: SLD | Q36: 0
C37: IBDE30 | D37: 1 | E37: BOT | F37: 10219.66 | G37: 0.4494444444 | H37: 20160602 | I37: 1 | J37: 0 | L37: -95.31 | N37: SLD | Q37: 0
C38: IBDE30 | D38: 1 | E38: SLD | F38: 10217.18 | G38: 10:58:25 | H38: 20160602 | I38: 1 | J38: -4.72 | L38: -100.03 | N38: BUY | Q38: -4.72
C39: IBDE30 | D39: 1 | E39: SLD | F39: 10221.68 | G39: 11:05:38 | H39: 20160602 | I39: 1 | J39: -0.23 | L39: -100.26 | N39: BUY | Q39: -0.23
C40: 0 | D40: 0 | E40: 0 | F40: 0 | G40: 0 | H40: 0 | I40: 0 | J40: 0 | L40: -100.26
C41: 0 | D41: 0 | E41: 0 | F41: 0 | G41: 0 | H41: 0 | I41: 0 | J41: 0 | L41: -100.26
C42: 0 | D42: 0 | E42: 0 | F42: 0 | G42: 0 | H42: 0 | I42: 0 | J42: 0 | L42: -100.26
C43: 0 | D43: 0 | E43: 0 | F43: 0 | G43: 0 | H43: 0 | I43: 0 | J43: 0 | L43: -100.26
C44: 0 | D44: 0 | E44: 0 | F44: 0 | G44: 0 | H44: 0 | I44: 0 | J44: 0 | L44: -100.26
C45: 0 | D45: 0 | E45: 0 | F45: 0 | G45: 0 | H45: 0 | I45: 0 | J45: 0 | L45: -100.26
C46: 0 | D46: 0 | E46: 0 | F46: 0 | G46: 0 | H46: 0 | I46: 0 | J46: 0 | L46: -100.26
C47: 0 | D47: 0 | E47: 0 | F47: 0 | G47: 0 | H47: 0 | I47: 0 | J47: 0 | L47: -100.26
C48: 0 | D48: 0 | E48: 0 | F48: 0 | G48: 0 | H48: 0 | I48: 0 | J48: 0 | L48: -100.26
C49: 0 | D49: 0 | E49: 0 | F49: 0 | G49: 0 | H49: 0 | I49: 0 | J49: 0 | L49: -100.26
C50: 0 | D50: 0 | E50: 0 | F50: 0 | G50: 0 | H50: 0 | I50: 0 | J50: 0 | L50: -100.26
C51: 0 | D51: 0 | E51: 0 | F51: 0 | G51: 0 | H51: 0 | I51: 0 | J51: 0 | L51: -100.26
C52: 0 | D52: 0 | E52: 0 | F52: 0 | G52: 0 | H52: 0 | I52: 0 | J52: 0 | L52: -100.26
C53: 0 | D53: 0 | E53: 0 | F53: 0 | G53: 0 | H53: 0 | I53: 0 | J53: 0 | L53: -100.26
C54: 0 | D54: 0 | E54: 0 | F54: 0 | G54: 0 | H54: 0 | I54: 0 | J54: 0 | L54: -100.26
C55: 0 | D55: 0 | E55: 0 | F55: 0 | G55: 0 | H55: 0 | I55: 0 | J55: 0 | L55: -100.26
C56: 0 | D56: 0 | E56: 0 | F56: 0 | G56: 0 | H56: 0 | I56: 0 | J56: 0 | L56: -100.26
C57: 0 | D57: 0 | E57: 0 | F57: 0 | G57: 0 | H57: 0 | I57: 0 | J57: 0 | L57: -100.26
C58: 0 | D58: 0 | E58: 0 | F58: 0 | G58: 0 | H58: 0 | I58: 0 | J58: 0 | L58: -100.26
C59: 0 | D59: 0 | E59: 0 | F59: 0 | G59: 0 | H59: 0 | I59: 0 | J59: 0 | L59: -100.26
C60: 0 | D60: 0 | E60: 0 | F60: 0 | G60: 0 | H60: 0 | I60: 0 | J60: 0 | L60: -100.26
C61: 0 | D61: 0 | E61: 0 | F61: 0 | G61: 0 | H61: 0 | I61: 0 | J61: 0 | L61: -100.26
C62: 0 | D62: 0 | E62: 0 | F62: 0 | G62: 0 | H62: 0 | I62: 0 | J62: 0 | L62: -100.26
C63: 0 | D63: 0 | E63: 0 | F63: 0 | G63: 0 | H63: 0 | I63: 0 | J63: 0 | L63: -100.26
C64: 0 | D64: 0 | E64: 0 | F64: 0 | G64: 0 | H64: 0 | I64: 0 | J64: 0 | L64: -100.26
C65: 0 | D65: 0 | E65: 0 | F65: 0 | G65: 0 | H65: 0 | I65: 0 | J65: 0 | L65: -100.26
C66: 0 | D66: 0 | E66: 0 | F66: 0 | G66: 0 | H66: 0 | I66: 0 | J66: 0 | L66: -100.26
C67: 0 | D67: 0 | E67: 0 | F67: 0 | G67: 0 | H67: 0 | I67: 0 | J67: 0 | L67: -100.26
C68: 0 | D68: 0 | E68: 0 | F68: 0 | G68: 0 | H68: 0 | I68: 0 | J68: 0 | L68: -100.26
C69: 0 | D69: 0 | E69: 0 | F69: 0 | G69: 0 | H69: 0 | I69: 0 | J69: 0 | L69: -100.26
C70: 0 | D70: 0 | E70: 0 | F70: 0 | G70: 0 | H70: 0 | I70: 0 | J70: 0 | L70: -100.26
C71: 0 | D71: 0 | E71: 0 | F71: 0 | G71: 0 | H71: 0 | I71: 0 | J71: 0 | L71: -100.26
C72: 0 | D72: 0 | E72: 0 | F72: 0 | G72: 0 | H72: 0 | I72: 0 | J72: 0 | L72: -100.26
C73: 0 | D73: 0 | E73: 0 | F73: 0 | G73: 0 | H73: 0 | I73: 0 | J73: 0 | L73: -100.26
C74: 0 | D74: 0 | E74: 0 | F74: 0 | G74: 0 | H74: 0 | I74: 0 | J74: 0 | L74: -100.26
C75: 0 | D75: 0 | E75: 0 | F75: 0 | G75: 0 | H75: 0 | I75: 0 | J75: 0 | L75: -100.26
C76: 0 | D76: 0 | E76: 0 | F76: 0 | G76: 0 | H76: 0 | I76: 0 | J76: 0 | L76: -100.26
C77: 0 | D77: 0 | E77: 0 | F77: 0 | G77: 0 | H77: 0 | I77: 0 | J77: 0 | L77: -100.26
C78: 0 | D78: 0 | E78: 0 | F78: 0 | G78: 0 | H78: 0 | I78: 0 | J78: 0 | L78: -100.26
C79: 0 | D79: 0 | E79: 0 | F79: 0 | G79: 0 | H79: 0 | I79: 0 | J79: 0 | L79: -100.26
C80: 0 | D80: 0 | E80: 0 | F80: 0 | G80: 0 | H80: 0 | I80: 0 | J80: 0 | L80: -100.26
C81: 0 | D81: 0 | E81: 0 | F81: 0 | G81: 0 | H81: 0 | I81: 0 | J81: 0 | L81: -100.26
C82: 0 | D82: 0 | E82: 0 | F82: 0 | G82: 0 | H82: 0 | I82: 0 | J82: 0 | L82: -100.26
C83: 0 | D83: 0 | E83: 0 | F83: 0 | G83: 0 | H83: 0 | I83: 0 | J83: 0 | L83: -100.26
C84: 0 | D84: 0 | E84: 0 | F84: 0 | G84: 0 | H84: 0 | I84: 0 | J84: 0 | L84: -100.26
C85: 0 | D85: 0 | E85: 0 | F85: 0 | G85: 0 | H85: 0 | I85: 0 | J85: 0 | L85: -100.26
C86: 0 | D86: 0 | E86: 0 | F86: 0 | G86: 0 | H86: 0 | I86: 0 | J86: 0 | L86: -100.26
C87: 0 | D87: 0 | E87: 0 | F87: 0 | G87: 0 | H87: 0 | I87: 0 | J87: 0 | L87: -100.26
C88: 0 | D88: 0 | E88: 0 | F88: 0 | G88: 0 | H88: 0 | I88: 0 | J88: 0 | L88: -100.26
C89: 0 | D89: 0 | E89: 0 | F89: 0 | G89: 0 | H89: 0 | I89: 0 | J89: 0 | L89: -100.26
C90: 0 | D90: 0 | E90: 0 | F90: 0 | G90: 0 | H90: 0 | I90: 0 | J90: 0 | L90: -100.26
C91: 0 | D91: 0 | E91: 0 | F91: 0 | G91: 0 | H91: 0 | I91: 0 | J91: 0 | L91: -100.26
C92: 0 | D92: 0 | E92: 0 | F92: 0 | G92: 0 | H92: 0 | I92: 0 | J92: 0 | L92: -100.26
C93: 0 | D93: 0 | E93: 0 | F93: 0 | G93: 0 | H93: 0 | I93: 0 | J93: 0 | L93: -100.26
C94: 0 | D94: 0 | E94: 0 | F94: 0 | G94: 0 | H94: 0 | I94: 0 | J94: 0 | L94: -100.26
C95: 0 | D95: 0 | E95: 0 | F95: 0 | G95: 0 | H95: 0 | I95: 0 | J95: 0 | L95: -100.26
C96: 0 | D96: 0 | E96: 0 | F96: 0 | G96: 0 | H96: 0 | I96: 0 | J96: 0 | L96: -100.26
C97: 0 | D97: 0 | E97: 0 | F97: 0 | G97: 0 | H97: 0 | I97: 0 | J97: 0 | L97: -100.26
C98: 0 | D98: 0 | E98: 0 | F98: 0 | G98: 0 | H98: 0 | I98: 0 | J98: 0 | L98: -100.26
C99: 0 | D99: 0 | E99: 0 | F99: 0 | G99: 0 | H99: 0 | I99: 0 | J99: 0 | L99: -100.26
C100: 0 | D100: 0 | E100: 0 | F100: 0 | G100: 0 | H100: 0 | I100: 0 | J100: 0 | L100: -100.26
C101: 0 | D101: 0 | E101: 0 | F101: 0 | G101: 0 | H101: 0 | I101: 0 | J101: 0 | L101: -100.26
C102: 0 | D102: 0 | E102: 0 | F102: 0 | G102: 0 | H102: 0 | I102: 0 | J102: 0 | L102: -100.26
C103: 0 | D103: 0 | E103: 0 | F103: 0 | G103: 0 | H103: 0 | I103: 0 | J103: 0 | L103: -100.26
C104: 0 | D104: 0 | E104: 0 | F104: 0 | G104: 0 | H104: 0 | I104: 0 | J104: 0 | L104: -100.26
C105: 0 | D105: 0 | E105: 0 | F105: 0 | G105: 0 | H105: 0 | I105: 0 | J105: 0 | L105: -100.26
C106: 0 | D106: 0 | E106: 0 | F106: 0 | G106: 0 | H106: 0 | I106: 0 | J106: 0 | L106: -100.26
C107: 0 | D107: 0 | E107: 0 | F107: 0 | G107: 0 | H107: 0 | I107: 0 | J107: 0 | L107: -100.26
C108: 0 | D108: 0 | E108: 0 | F108: 0 | G108: 0 | H108: 0 | I108: 0 | J108: 0 | L108: -100.26
C109: 0 | D109: 0 | E109: 0 | F109: 0 | G109: 0 | H109: 0 | I109: 0 | J109: 0 | L109: -100.26
C110: 0 | D110: 0 | E110: 0 | F110: 0 | G110: 0 | H110: 0 | I110: 0 | J110: 0 | L110: -100.26
C111: 0 | D111: 0 | E111: 0 | F111: 0 | G111: 0 | H111: 0 | I111: 0 | J111: 0 | L111: -100.26
C112: 0 | D112: 0 | E112: 0 | F112: 0 | G112: 0 | H112: 0 | I112: 0 | J112: 0 | L112: -100.26
C113: 0 | D113: 0 | E113: 0 | F113: 0 | G113: 0 | H113: 0 | I113: 0 | J113: 0 | L113: -100.26
C114: 0 | D114: 0 | E114: 0 | F114: 0 | G114: 0 | H114: 0 | I114: 0 | J114: 0 | L114: -100.26
C115: 0 | D115: 0 | E115: 0 | F115: 0 | G115: 0 | H115: 0 | I115: 0 | J115: 0 | L115: -100.26
C116: 0 | D116: 0 | E116: 0 | F116: 0 | G116: 0 | H116: 0 | I116: 0 | J116: 0 | L116: -100.26
C117: 0 | D117: 0 | E117: 0 | F117: 0 | G117: 0 | H117: 0 | I117: 0 | J117: 0 | L117: -100.26
C118: 0 | D118: 0 | E118: 0 | F118: 0 | G118: 0 | H118: 0 | I118: 0 | J118: 0 | L118: -100.26
C119: 0 | D119: 0 | E119: 0 | F119: 0 | G119: 0 | H119: 0 | I119: 0 | J119: 0 | L119: -100.26
C120: 0 | D120: 0 | E120: 0 | F120: 0 | G120: 0 | H120: 0 | I120: 0 | J120: 0 | L120: -100.26
C121: 0 | D121: 0 | E121: 0 | F121: 0 | G121: 0 | H121: 0 | I121: 0 | J121: 0 | L121: -100.26
C122: 0 | D122: 0 | E122: 0 | F122: 0 | G122: 0 | H122: 0 | I122: 0 | J122: 0 | L122: -100.26
C123: 0 | D123: 0 | E123: 0 | F123: 0 | G123: 0 | H123: 0 | I123: 0 | J123: 0 | L123: -100.26
C124: 0 | D124: 0 | E124: 0 | F124: 0 | G124: 0 | H124: 0 | I124: 0 | J124: 0 | L124: -100.26
C125: 0 | D125: 0 | E125: 0 | F125: 0 | G125: 0 | H125: 0 | I125: 0 | J125: 0 | L125: -100.26
C126: 0 | D126: 0 | E126: 0 | F126: 0 | G126: 0 | H126: 0 | I126: 0 | J126: 0 | L126: -100.26
C127: 0 | D127: 0 | E127: 0 | F127: 0 | G127: 0 | H127: 0 | I127: 0 | J127: 0 | L127: -100.26
C128: 0 | D128: 0 | E128: 0 | F128: 0 | G128: 0 | H128: 0 | I128: 0 | J128: 0 | L128: -100.26
C129: 0 | D129: 0 | E129: 0 | F129: 0 | G129: 0 | H129: 0 | I129: 0 | J129: 0 | L129: -100.26
C130: 0 | D130: 0 | E130: 0 | F130: 0 | G130: 0 | H130: 0 | I130: 0 | J130: 0 | L130: -100.26
C131: 0 | D131: 0 | E131: 0 | F131: 0 | G131: 0 | H131: 0 | I131: 0 | J131: 0 | L131: -100.26
C132: 0 | D132: 0 | E132: 0 | F132: 0 | G132: 0 | H132: 0 | I132: 0 | J132: 0 | L132: -100.26
C133: 0 | D133: 0 | E133: 0 | F133: 0 | G133: 0 | H133: 0 | I133: 0 | J133: 0 | L133: -100.26
C134: 0 | D134: 0 | E134: 0 | F134: 0 | G134: 0 | H134: 0 | I134: 0 | J134: 0 | L134: -100.26
C135: 0 | D135: 0 | E135: 0 | F135: 0 | G135: 0 | H135: 0 | I135: 0 | J135: 0 | L135: -100.26
C136: 0 | D136: 0 | E136: 0 | F136: 0 | G136: 0 | H136: 0 | I136: 0 | J136: 0 | L136: -100.26
C137: 0 | D137: 0 | E137: 0 | F137: 0 | G137: 0 | H137: 0 | I137: 0 | J137: 0 | L137: -100.26
C138: 0 | D138: 0 | E138: 0 | F138: 0 | G138: 0 | H138: 0 | I138: 0 | J138: 0 | L138: -100.26
C139: 0 | D139: 0 | E139: 0 | F139: 0 | G139: 0 | H139: 0 | I139: 0 | J139: 0 | L139: -100.26
C140: 0 | D140: 0 | E140: 0 | F140: 0 | G140: 0 | H140: 0 | I140: 0 | J140: 0 | L140: -100.26
C141: 0 | D141: 0 | E141: 0 | F141: 0 | G141: 0 | H141: 0 | I141: 0 | J141: 0 | L141: -100.26
C142: 0 | D142: 0 | E142: 0 | F142: 0 | G142: 0 | H142: 0 | I142: 0 | J142: 0 | L142: -100.26
C143: 0 | D143: 0 | E143: 0 | F143: 0 | G143: 0 | H143: 0 | I143: 0 | J143: 0 | L143: -100.26
C144: 0 | D144: 0 | E144: 0 | F144: 0 | G144: 0 | H144: 0 | I144: 0 | J144: 0 | L144: -100.26
C145: 0 | D145: 0 | E145: 0 | F145: 0 | G145: 0 | H145: 0 | I145: 0 | J145: 0 | L145: -100.26
C146: 0 | D146: 0 | E146: 0 | F146: 0 | G146: 0 | H146: 0 | I146: 0 | J146: 0 | L146: -100.26
C147: 0 | D147: 0 | E147: 0 | F147: 0 | G147: 0 | H147: 0 | I147: 0 | J147: 0 | L147: -100.26
C148: 0 | D148: 0 | E148: 0 | F148: 0 | G148: 0 | H148: 0 | I148: 0 | J148: 0 | L148: -100.26
C149: 0 | D149: 0 | E149: 0 | F149: 0 | G149: 0 | H149: 0 | I149: 0 | J149: 0 | L149: -100.26
C150: 0 | D150: 0 | E150: 0 | F150: 0 | G150: 0 | H150: 0 | I150: 0 | J150: 0 | L150: -100.26
C151: 0 | D151: 0 | E151: 0 | F151: 0 | G151: 0 | H151: 0 | I151: 0 | J151: 0 | L151: -100.26
C152: 0 | D152: 0 | E152: 0 | F152: 0 | G152: 0 | H152: 0 | I152: 0 | J152: 0 | L152: -100.26
C153: 0 | D153: 0 | E153: 0 | F153: 0 | G153: 0 | H153: 0 | I153: 0 | J153: 0 | L153: -100.26
C154: 0 | D154: 0 | E154: 0 | F154: 0 | G154: 0 | H154: 0 | I154: 0 | J154: 0 | L154: -100.26
C155: 0 | D155: 0 | E155: 0 | F155: 0 | G155: 0 | H155: 0 | I155: 0 | J155: 0 | L155: -100.26
C156: 0 | D156: 0 | E156: 0 | F156: 0 | G156: 0 | H156: 0 | I156: 0 | J156: 0 | L156: -100.26
C157: 0 | D157: 0 | E157: 0 | F157: 0 | G157: 0 | H157: 0 | I157: 0 | J157: 0 | L157: -100.26
C158: 0 | D158: 0 | E158: 0 | F158: 0 | G158: 0 | H158: 0 | I158: 0 | J158: 0 | L158: -100.26
C159: 0 | D159: 0 | E159: 0 | F159: 0 | G159: 0 | H159: 0 | I159: 0 | J159: 0 | L159: -100.26
C160: 0 | D160: 0 | E160: 0 | F160: 0 | G160: 0 | H160: 0 | I160: 0 | J160: 0 | L160: -100.26
C161: 0 | D161: 0 | E161: 0 | F161: 0 | G161: 0 | H161: 0 | I161: 0 | J161: 0 | L161: -100.26
C162: 0 | D162: 0 | E162: 0 | F162: 0 | G162: 0 | H162: 0 | I162: 0 | J162: 0 | L162: -100.26
C163: 0 | D163: 0 | E163: 0 | F163: 0 | G163: 0 | H163: 0 | I163: 0 | J163: 0 | L163: -100.26
C164: 0 | D164: 0 | E164: 0 | F164: 0 | G164: 0 | H164: 0 | I164: 0 | J164: 0 | L164: -100.26
C165: 0 | D165: 0 | E165: 0 | F165: 0 | G165: 0 | H165: 0 | I165: 0 | J165: 0 | L165: -100.26
C166: 0 | D166: 0 | E166: 0 | F166: 0 | G166: 0 | H166: 0 | I166: 0 | J166: 0 | L166: -100.26
C167: 0 | D167: 0 | E167: 0 | F167: 0 | G167: 0 | H167: 0 | I167: 0 | J167: 0 | L167: -100.26
C168: 0 | D168: 0 | E168: 0 | F168: 0 | G168: 0 | H168: 0 | I168: 0 | J168: 0 | L168: -100.26
C169: 0 | D169: 0 | E169: 0 | F169: 0 | G169: 0 | H169: 0 | I169: 0 | J169: 0 | L169: -100.26
C170: 0 | D170: 0 | E170: 0 | F170: 0 | G170: 0 | H170: 0 | I170: 0 | J170: 0 | L170: -100.26
C171: 0 | D171: 0 | E171: 0 | F171: 0 | G171: 0 | H171: 0 | I171: 0 | J171: 0 | L171: -100.26
C172: 0 | D172: 0 | E172: 0 | F172: 0 | G172: 0 | H172: 0 | I172: 0 | J172: 0 | L172: -100.26
C173: 0 | D173: 0 | E173: 0 | F173: 0 | G173: 0 | H173: 0 | I173: 0 | J173: 0 | L173: -100.26
C174: 0 | D174: 0 | E174: 0 | F174: 0 | G174: 0 | H174: 0 | I174: 0 | J174: 0 | L174: -100.26
C175: 0 | D175: 0 | E175: 0 | F175: 0 | G175: 0 | H175: 0 | I175: 0 | J175: 0 | L175: -100.26
C176: 0 | D176: 0 | E176: 0 | F176: 0 | G176: 0 | H176: 0 | I176: 0 | J176: 0 | L176: -100.26
C177: 0 | D177: 0 | E177: 0 | F177: 0 | G177: 0 | H177: 0 | I177: 0 | J177: 0 | L177: -100.26
C178: 0 | D178: 0 | E178: 0 | F178: 0 | G178: 0 | H178: 0 | I178: 0 | J178: 0 | L178: -100.26
C179: 0 | D179: 0 | E179: 0 | F179: 0 | G179: 0 | H179: 0 | I179: 0 | J179: 0 | L179: -100.26
C180: 0 | D180: 0 | E180: 0 | F180: 0 | G180: 0 | H180: 0 | I180: 0 | J180: 0 | L180: -100.26
C181: 0 | D181: 0 | E181: 0 | F181: 0 | G181: 0 | H181: 0 | I181: 0 | J181: 0 | L181: -100.26
C182: 0 | D182: 0 | E182: 0 | F182: 0 | G182: 0 | H182: 0 | I182: 0 | J182: 0 | L182: -100.26
C183: 0 | D183: 0 | E183: 0 | F183: 0 | G183: 0 | H183: 0 | I183: 0 | J183: 0 | L183: -100.26
C184: 0 | D184: 0 | E184: 0 | F184: 0 | G184: 0 | H184: 0 | I184: 0 | J184: 0 | L184: -100.26
C185: 0 | D185: 0 | E185: 0 | F185: 0 | G185: 0 | H185: 0 | I185: 0 | J185: 0 | L185: -100.26
C186: 0 | D186: 0 | E186: 0 | F186: 0 | G186: 0 | H186: 0 | I186: 0 | J186: 0 | L186: -100.26
C187: 0 | D187: 0 | E187: 0 | F187: 0 | G187: 0 | H187: 0 | I187: 0 | J187: 0 | L187: -100.26
C188: 0 | D188: 0 | E188: 0 | F188: 0 | G188: 0 | H188: 0 | I188: 0 | J188: 0 | L188: -100.26
C189: 0 | D189: 0 | E189: 0 | F189: 0 | G189: 0 | H189: 0 | I189: 0 | J189: 0 | L189: -100.26
C190: 0 | D190: 0 | E190: 0 | F190: 0 | G190: 0 | H190: 0 | I190: 0 | J190: 0 | L190: -100.26
C191: 0 | D191: 0 | E191: 0 | F191: 0 | G191: 0 | H191: 0 | I191: 0 | J191: 0 | L191: -100.26
C192: 0 | D192: 0 | E192: 0 | F192: 0 | G192: 0 | H192: 0 | I192: 0 | J192: 0 | L192: -100.26
C193: 0 | D193: 0 | E193: 0 | F193: 0 | G193: 0 | H193: 0 | I193: 0 | J193: 0 | L193: -100.26
C194: 0 | D194: 0 | E194: 0 | F194: 0 | G194: 0 | H194: 0 | I194: 0 | J194: 0 | L194: -100.26
C195: 0 | D195: 0 | E195: 0 | F195: 0 | G195: 0 | H195: 0 | I195: 0 | J195: 0 | L195: -100.26
C196: 0 | D196: 0 | E196: 0 | F196: 0 | G196: 0 | H196: 0 | I196: 0 | J196: 0 | L196: -100.26
C197: 0 | D197: 0 | E197: 0 | F197: 0 | G197: 0 | H197: 0 | I197: 0 | J197: 0 | L197: -100.26
C198: 0 | D198: 0 | E198: 0 | F198: 0 | G198: 0 | H198: 0 | I198: 0 | J198: 0 | L198: -100.26
C199: 0 | D199: 0 | E199: 0 | F199: 0 | G199: 0 | H199: 0 | I199: 0 | J199: 0 | L199: -100.26
C200: 0 | D200: 0 | E200: 0 | F200: 0 | G200: 0 | H200: 0 | I200: 0 | J200: 0 | L200: -100.26
C201: 0 | D201: 0 | E201: 0 | F201: 0 | G201: 0 | H201: 0 | I201: 0 | J201: 0 | L201: -100.26
C202: 0 | D202: 0 | E202: 0 | F202: 0 | G202: 0 | H202: 0 | I202: 0 | J202: 0 | L202: -100.26
C203: 0 | D203: 0 | E203: 0 | F203: 0 | G203: 0 | H203: 0 | I203: 0 | J203: 0 | L203: -100.26
C204: 0 | D204: 0 | E204: 0 | F204: 0 | G204: 0 | H204: 0 | I204: 0 | J204: 0 | L204: -100.26
C205: 0 | D205: 0 | E205: 0 | F205: 0 | G205: 0 | H205: 0 | I205: 0 | J205: 0 | L205: -100.26
C206: 0 | D206: 0 | E206: 0 | F206: 0 | G206: 0 | H206: 0 | I206: 0 | J206: 0 | L206: -100.26
C207: 0 | D207: 0 | E207: 0 | F207: 0 | G207: 0 | H207: 0 | I207: 0 | J207: 0 | L207: -100.26
C208: 0 | D208: 0 | E208: 0 | F208: 0 | G208: 0 | H208: 0 | I208: 0 | J208: 0 | L208: -100.26
C209: 0 | D209: 0 | E209: 0 | F209: 0 | G209: 0 | H209: 0 | I209: 0 | J209: 0 | L209: -100.26
C210: 0 | D210: 0 | E210: 0 | F210: 0 | G210: 0 | H210: 0 | I210: 0 | J210: 0 | L210: -100.26
... 297 more rows

Sheet 03-06
K3: JOURNEE NFP
AK4: B/S | AL4: Strat | AM4: M2 | AN4: Erreur
AK5: B | AL5: IC40 30S | AM5: Même sens | AN5: Oui
AK6: S | AL6: IC40S 30S | AM6: Flat | AN6: Non
AL7: IC40 30S inverse MM | AM7: Opposé
AL8: Contretendance impulsion
AL9: Trading de Niveau 30S
AL10: Trading de Niveau M2
AL11: Trading de Niveau D
AL12: Sur chiffres
AL13: Range
AL14: IC40 M2
AL15: IC40 S M2
AL16: IC40 M2 inverse MM
AL17: Cassure S/R H1
AL18: Cassure S/R D
C25: Underlying | D25: Quantity | E25: Contract | F25: Price | G25: Time | H25: Date | I25: Commission | J25: Realized P&L | L25: Cumul P&L | M25: Strat | N25: Sell/Buy | O25: TDCE M2 | P25: Nbre de contrats | Q25: Pts | R25: Erreur
C26: IBDE30 | D26: 4 | E26: BOT | F26: 10232.75 | G26: 09:00:04 | H26: 20160603 | I26: 2.05 | J26: 0 | L26: =+J26 -> 0 | N26: =IF(E26=0,"",IF(E26="SLD","BUY","SLD")) -> SLD | Q26: =IF(C26=0,"",IF(ISERROR(J26/D26),"",(J26/D26))/IF(C26="DAX",25,IF(C26="CAC40",10,1))) -> 0
C27: IBDE30 | D27: 1 | E27: SLD | F27: 10244.25 | G27: 09:03:20 | H27: 20160603 | I27: 1 | J27: 9.99 | L27: =+J27+L26 -> 9.99 | M27: Trading de Niveau D | N27: BUY | Q27: 9.99
C28: IBDE30 | D28: 1 | E28: SLD | F28: 10233.25 | G28: 09:05:55 | H28: 20160603 | I28: 1 | J28: -1.01 | L28: =+J28+L27 -> 8.98 | M28: Trading de Niveau D | N28: BUY | Q28: -1.01
C29: IBDE30 | D29: 1 | E29: SLD | F29: 10232.75 | G29: 09:05:59 | H29: 20160603 | I29: 1 | J29: -1.51 | L29: 7.47 | M29: Trading de Niveau D | N29: BUY | Q29: -1.51
C30: IBDE30 | D30: 1 | E30: SLD | F30: 10232.75 | G30: 09:05:59 | H30: 20160603 | I30: 1 | J30: -1.51 | L30: =+J30+L29 -> 5.96 | M30: Trading de Niveau D | N30: BUY | Q30: -1.51
C31: DAX | D31: 1 | E31: SLD | F31: 10228.5 | G31: 09:06:47 | H31: 20160603 | I31: 1.41 | J31: 0 | L31: 5.96 | N31: BUY | Q31: 0
C32: IBDE30 | D32: 1 | E32: SLD | F32: 10231.74 | G32: 09:07:32 | H32: 20160603 | I32: 1 | J32: 0 | L32: 5.96 | N32: BUY | Q32: 0
C33: IBDE30 | D33: 1 | E33: BOT | F33: 10230.24 | G33: 09:11:04 | H33: 20160603 | I33: 1 | J33: -0.5 | L33: 5.46 | M33: IC40 30S | N33: SLD | O33: Même sens | Q33: -0.5
C34: DAX | D34: 1 | E34: BOT | F34: 10226.5 | G34: 09:13:20 | H34: 20160603 | I34: 1.41 | J34: 47.18 | L34: 52.64 | M34: IC40 30S | N34: SLD | O34: Même sens | Q34: 1.8872
C35: CAC40 | D35: 1 | E35: BOT | F35: 4459 | G35: 09:15:22 | H35: 20160603 | I35: 1.18 | J35: 0 | L35: 52.64 | N35: SLD | Q35: 0
C36: CAC40 | D36: 1 | E36: SLD | F36: 4468 | G36: 09:27:44 | H36: 20160603 | I36: 1.18 | J36: 87.64 | L36: 140.28 | M36: Trading de Niveau D | N36: BUY | Q36: 8.764
C37: IBDE30 | D37: 1 | E37: SLD | F37: 10237.82 | G37: 10:07:27 | H37: 20160603 | I37: 1 | J37: 0 | L37: 140.28 | N37: BUY | Q37: 0
C38: IBDE30 | D38: 1 | E38: SLD | F38: 10237.32 | G38: 10:08:41 | H38: 20160603 | I38: 1 | J38: 0 | L38: 140.28 | N38: BUY | Q38: 0
C39: IBDE30 | D39: 1 | E39: BOT | F39: 10228.82 | G39: 10:09:47 | H39: 20160603 | I39: 1 | J39: 6.75 | L39: 147.03 | M39: IC40 30S | N39: SLD | O39: Flat | Q39: 6.75
C40: IBDE30 | D40: 1 | E40: BOT | F40: 10225.82 | G40: 10:10:23 | H40: 20160603 | I40: 1 | J40: 9.75 | L40: 156.78 | M40: IC40 30S | N40: SLD | O40: Flat | Q40: 9.75
C41: IBDE30 | D41: 15 | E41: SLD | F41: 10222.25 | G41: 14:30:09 | H41: 20160603 | I41: 7.67 | J41: 0 | L41: 156.78 | N41: BUY | Q41: =IF(C41=0,"",IF(ISERROR(J41/D41),"",(J41/D41))/IF(C41="DAX",25,IF(C41="CAC40",10,1))) -> 0
C42: IBDE30 | D42: 15 | E42: BOT | F42: 10186.75 | G42: 14:30:17 | H42: 20160603 | I42: 7.64 | J42: 517.19 | L42: 673.97 | M42: Sur chiffres | N42: SLD | Q42: =IF(C42=0,"",IF(ISERROR(J42/D42),"",(J42/D42))/IF(C42="DAX",25,IF(C42="CAC40",10,1))) -> 34.47933333
C43: IBDE30 | D43: 3 | E43: SLD | F43: 10181.72 | G43: 14:30:35 | H43: 20160603 | I43: 1.53 | J43: 0 | L43: 673.97 | N43: BUY | Q43: 0
C44: IBDE30 | D44: 1 | E44: BOT | F44: 10176.78 | G44: 14:31:39 | H44: 20160603 | I44: 1 | J44: 3.43 | L44: 677.4 | M44: Sur chiffres | N44: SLD | Q44: 3.43
C45: IBDE30 | D45: 1 | E45: BOT | F45: 10175.78 | G45: 14:32:09 | H45: 20160603 | I45: 1 | J45: 4.43 | L45: 681.83 | M45: Sur chiffres | N45: SLD | Q45: 4.43
C46: IBDE30 | D46: 1 | E46: SLD | F46: 10190.23 | G46: 14:44:16 | H46: 20160603 | I46: 1 | J46: 0 | L46: 681.83 | N46: BUY | Q46: 0
C47: IBDE30 | D47: 1 | E47: SLD | F47: 10185.73 | G47: 14:45:10 | H47: 20160603 | I47: 1 | J47: 0 | L47: 681.83 | N47: BUY | Q47: 0
C48: IBDE30 | D48: 1 | E48: BOT | F48: 10174.23 | G48: 14:45:53 | H48: 20160603 | I48: 1 | J48: 9.83 | L48: 691.66 | M48: IC40S 30S | N48: SLD | O48: Même sens | Q48: 9.83
C49: IBDE30 | D49: 1 | E49: BOT | F49: 10161.7 | G49: 14:47:32 | H49: 20160603 | I49: 1 | J49: 22.36 | L49: 714.02 | M49: IC40S 30S | N49: SLD | O49: Même sens | Q49: 22.36
C50: IBDE30 | D50: 1 | E50: BOT | F50: 10145.71 | G50: 14:52:01 | H50: 20160603 | I50: 1 | J50: 38.35 | L50: 752.37 | M50: IC40S 30S | N50: SLD | O50: Même sens | Q50: 38.35
C51: IBDE30 | D51: 2 | E51: SLD | F51: 10147.77 | G51: 15:10:58 | H51: 20160603 | I51: 1.01 | J51: 0 | L51: 752.37 | M51: IC40 30S | N51: BUY | O51: Même sens | Q51: 0
C52: IBDE30 | D52: 1 | E52: BOT | F52: 10138.77 | G52: 15:15:30 | H52: 20160603 | I52: 1 | J52: 7.49 | L52: 759.86 | M52: IC40 30S | N52: SLD | O52: Même sens | Q52: 7.49
C53: IBDE30 | D53: 1 | E53: BOT | F53: 10130.05 | G53: 15:15:51 | H53: 20160603 | I53: 1 | J53: 16.21 | L53: 776.07 | M53: IC40 30S | N53: SLD | O53: Même sens | Q53: 16.21
C54: IBDE30 | D54: 1 | E54: SLD | F54: 10131.15 | G54: 15:31:19 | H54: 20160603 | I54: 1 | J54: 0 | L54: 776.07 | M54: IC40S 30S | N54: BUY | O54: Même sens | Q54: 0
C55: IBDE30 | D55: 1 | E55: BOT | F55: 10125.15 | G55: 15:32:57 | H55: 20160603 | I55: 1 | J55: 4 | L55: 780.07 | M55: IC40S 30S | N55: SLD | O55: Même sens | Q55: 4
C56: IBDE30 | D56: 2 | E56: SLD | F56: 10102.2 | G56: 15:37:48 | H56: 20160603 | I56: 1.01 | J56: 0 | L56: 780.07 | N56: BUY | O56: Même sens | Q56: 0
C57: IBDE30 | D57: 1 | E57: BOT | F57: 10091.2 | G57: 15:38:33 | H57: 20160603 | I57: 1 | J57: 9.49 | L57: 789.56 | M57: Cassure S/R H1 | N57: SLD | O57: Même sens | Q57: 9.49
C58: IBDE30 | D58: 1 | E58: BOT | F58: 10093.11 | G58: 15:41:12 | H58: 20160603 | I58: 1 | J58: 7.58 | L58: 797.14 | M58: Cassure S/R H1 | N58: SLD | O58: Même sens | Q58: 7.58
C59: IBDE30 | D59: 1 | E59: SLD | F59: 10103.61 | G59: 15:46:52 | H59: 20160603 | I59: 1 | J59: 0 | L59: 797.14 | N59: BUY | O59: Même sens | Q59: 0
C60: IBDE30 | D60: 1 | E60: SLD | F60: 10099.61 | G60: 15:46:56 | H60: 20160603 | I60: 1 | J60: 0 | L60: 797.14 | N60: BUY | O60: Même sens | Q60: 0
C61: IBDE30 | D61: 1 | E61: BOT | F61: 10089.11 | G61: 15:50:51 | H61: 20160603 | I61: 1 | J61: 10.5 | L61: 807.64 | M61: IC40S 30S | N61: SLD | O61: Même sens | Q61: 10.5
C62: IBDE30 | D62: 1 | E62: BOT | F62: 10092.13 | G62: 15:52:26 | H62: 20160603 | I62: 1 | J62: 7.48 | L62: 815.12 | M62: IC40S 30S | N62: SLD | O62: Même sens | Q62: 7.48
C63: DAX | D63: 1 | E63: BOT | F63: 10096.5 | G63: 15:52:33 | H63: 20160603 | I63: 1.41 | J63: 0 | L63: 815.12 | N63: SLD | O63: Même sens | Q63: 0
C64: DAX | D64: 1 | E64: SLD | F64: 10097.5 | G64: 15:53:03 | H64: 20160603 | I64: 1.41 | J64: 22.18 | L64: 837.3 | N64: BUY | O64: Même sens | Q64: 0.8872
C65: IBDE30 | D65: 2 | E65: SLD | F65: 10066.61 | G65: 16:04:14 | H65: 20160603 | I65: 1.01 | J65: 0 | L65: 837.3 | N65: BUY | O65: Même sens | Q65: 0
C66: IBDE30 | D66: 1 | E66: BOT | F66: 10061.11 | G66: 16:10:26 | H66: 20160603 | I66: 1 | J66: 4 | L66: 841.3 | M66: IC40S 30S | N66: SLD | O66: Même sens | Q66: 4
C67: IBDE30 | D67: 1 | E67: BOT | F67: 10053.64 | G67: 16:13:19 | H67: 20160603 | I67: 1 | J67: 11.47 | L67: 852.77 | M67: IC40S 30S | N67: SLD | O67: Même sens | Q67: 11.47
C68: IBDE30 | D68: 1 | E68: SLD | F68: 10056.14 | G68: 16:16:17 | H68: 20160603 | I68: 1 | J68: 0 | L68: 852.77 | N68: BUY | O68: Même sens | Q68: 0
C69: IBDE30 | D69: 1 | E69: BOT | F69: 10047.64 | G69: 16:19:55 | H69: 20160603 | I69: 1 | J69: 6.5 | L69: 859.27 | M69: IC40S 30S | N69: SLD | O69: Même sens | Q69: 6.5
C70: IBDE30 | D70: 1 | E70: SLD | F70: 10073.12 | G70: 16:44:14 | H70: 20160603 | I70: 1 | J70: 0 | L70: 859.27 | N70: BUY | Q70: 0
C71: IBDE30 | D71: 1 | E71: BOT | F71: 10085.62 | G71: 16:46:53 | H71: 20160603 | I71: 1 | J71: -14.5 | L71: 844.77 | M71: IC40S 30S | N71: SLD | Q71: -14.5
C72: IBDE30 | D72: 1 | E72: BOT | F72: 10087.12 | G72: 16:46:54 | H72: 20160603 | I72: 1 | J72: 0 | L72: 844.77 | M72: IC40 30S | N72: SLD | O72: Opposé | Q72: 0
C73: IBDE30 | D73: 1 | E73: SLD | F73: 10097.12 | G73: 16:47:38 | H73: 20160603 | I73: 1 | J73: 8 | L73: 852.77 | M73: IC40 30S | N73: BUY | O73: Opposé | Q73: 8
C74: IBDE30 | D74: 1 | E74: SLD | F74: 10101.12 | G74: 16:47:42 | H74: 20160603 | I74: 1 | J74: 0 | L74: 852.77 | M74: IC40 30S | N74: BUY | O74: Opposé | Q74: 0
C75: IBDE30 | D75: 1 | E75: BOT | F75: 10102.12 | G75: 16:48:26 | H75: 20160603 | I75: 1 | J75: -3 | L75: 849.77 | M75: IC40 30S | N75: SLD | O75: Opposé | Q75: -3
C76: DAX | D76: 1 | E76: SLD | F76: 10087.5 | G76: 17:09:48 | H76: 20160603 | I76: 1.41 | J76: 0 | L76: 849.77 | N76: BUY | Q76: 0
C77: DAX | D77: 1 | E77: BOT | F77: 10088 | G77: 17:10:27 | H77: 20160603 | I77: 1.41 | J77: -15.32 | L77: 834.45 | N77: SLD | Q77: -0.6128
C78: IBDE30 | D78: 1 | E78: SLD | F78: 10086.28 | G78: 17:10:50 | H78: 20160603 | I78: 1 | J78: 0 | L78: 834.45 | N78: BUY | Q78: 0
C79: IBDE30 | D79: 1 | E79: SLD | F79: 10084.28 | G79: 17:11:32 | H79: 20160603 | I79: 1 | J79: 0 | L79: 834.45 | N79: BUY | Q79: 0
C80: IBDE30 | D80: 1 | E80: SLD | F80: 10095.27 | G80: 17:18:26 | H80: 20160603 | I80: 1 | J80: 0 | L80: 834.45 | N80: BUY | Q80: 0
C81: 0 | D81: 0 | E81: 0 | F81: 0 | G81: 00:00:00 | H81: 0 | I81: 0 | J81: 0 | L81: 834.45
C82: 0 | D82: 0 | E82: 0 | F82: 0 | G82: 00:00:00 | H82: 0 | I82: 0 | J82: 0 | L82: 834.45
C83: 0 | D83: 0 | E83: 0 | F83: 0 | G83: 00:00:00 | H83: 0 | I83: 0 | J83: 0 | L83: 834.45
C84: 0 | D84: 0 | E84: 0 | F84: 0 | G84: 00:00:00 | H84: 0 | I84: 0 | J84: 0 | L84: 834.45
C85: 0 | D85: 0 | E85: 0 | F85: 0 | G85: 00:00:00 | H85: 0 | I85: 0 | J85: 0 | L85: 834.45
C86: 0 | D86: 0 | E86: 0 | F86: 0 | G86: 00:00:00 | H86: 0 | I86: 0 | J86: 0 | L86: 834.45
C87: 0 | D87: 0 | E87: 0 | F87: 0 | G87: 00:00:00 | H87: 0 | I87: 0 | J87: 0 | L87: 834.45
C88: 0 | D88: 0 | E88: 0 | F88: 0 | G88: 00:00:00 | H88: 0 | I88: 0 | J88: 0 | L88: 834.45
C89: 0 | D89: 0 | E89: 0 | F89: 0 | G89: 00:00:00 | H89: 0 | I89: 0 | J89: 0 | L89: 834.45
C90: 0 | D90: 0 | E90: 0 | F90: 0 | G90: 00:00:00 | H90: 0 | I90: 0 | J90: 0 | L90: 834.45 | N90: =IF(E90=0,"",IF(E90="SLD","BUY","SLD")) -> 
C91: 0 | D91: 0 | E91: 0 | F91: 0 | G91: 00:00:00 | H91: 0 | I91: 0 | J91: 0 | L91: 834.45
C92: 0 | D92: 0 | E92: 0 | F92: 0 | G92: 00:00:00 | H92: 0 | I92: 0 | J92: 0 | L92: =+J92+L91 -> 834.45
C93: 0 | D93: 0 | E93: 0 | F93: 0 | G93: 00:00:00 | H93: 0 | I93: 0 | J93: 0 | L93: 834.45
C94: 0 | D94: 0 | E94: 0 | F94: 0 | G94: 00:00:00 | H94: 0 | I94: 0 | J94: 0 | L94: 834.45
C95: 0 | D95: 0 | E95: 0 | F95: 0 | G95: 00:00:00 | H95: 0 | I95: 0 | J95: 0 | L95: 834.45
C96: 0 | D96: 0 | E96: 0 | F96: 0 | G96: 00:00:00 | H96: 0 | I96: 0 | J96: 0 | L96: 834.45
C97: 0 | D97: 0 | E97: 0 | F97: 0 | G97: 00:00:00 | H97: 0 | I97: 0 | J97: 0 | L97: 834.45
C98: 0 | D98: 0 | E98: 0 | F98: 0 | G98: 00:00:00 | H98: 0 | I98: 0 | J98: 0 | L98: 834.45
C99: 0 | D99: 0 | E99: 0 | F99: 0 | G99: 00:00:00 | H99: 0 | I99: 0 | J99: 0 | L99: 834.45
C100: 0 | D100: 0 | E100: 0 | F100: 0 | G100: 00:00:00 | H100: 0 | I100: 0 | J100: 0 | L100: 834.45
C101: 0 | D101: 0 | E101: 0 | F101: 0 | G101: 00:00:00 | H101: 0 | I101: 0 | J101: 0 | L101: 834.45
C102: 0 | D102: 0 | E102: 0 | F102: 0 | G102: 00:00:00 | H102: 0 | I102: 0 | J102: 0 | L102: 834.45
C103: 0 | D103: 0 | E103: 0 | F103: 0 | G103: 00:00:00 | H103: 0 | I103: 0 | J103: 0 | L103: 834.45
C104: 0 | D104: 0 | E104: 0 | F104: 0 | G104: 00:00:00 | H104: 0 | I104: 0 | J104: 0 | L104: 834.45
C105: 0 | D105: 0 | E105: 0 | F105: 0 | G105: 00:00:00 | H105: 0 | I105: 0 | J105: 0 | L105: 834.45
C106: 0 | D106: 0 | E106: 0 | F106: 0 | G106: 00:00:00 | H106: 0 | I106: 0 | J106: 0 | L106: 834.45 | Q106: =IF(C106=0,"",IF(ISERROR(J106/D106),"",(J106/D106))/IF(C106="DAX",25,IF(C106="CAC40",10,1))) -> 
C107: 0 | D107: 0 | E107: 0 | F107: 0 | G107: 00:00:00 | H107: 0 | I107: 0 | J107: 0 | L107: 834.45
C108: 0 | D108: 0 | E108: 0 | F108: 0 | G108: 00:00:00 | H108: 0 | I108: 0 | J108: 0 | L108: 834.45
C109: 0 | D109: 0 | E109: 0 | F109: 0 | G109: 00:00:00 | H109: 0 | I109: 0 | J109: 0 | L109: 834.45
C110: 0 | D110: 0 | E110: 0 | F110: 0 | G110: 00:00:00 | H110: 0 | I110: 0 | J110: 0 | L110: 834.45
C111: 0 | D111: 0 | E111: 0 | F111: 0 | G111: 00:00:00 | H111: 0 | I111: 0 | J111: 0 | L111: 834.45
C112: 0 | D112: 0 | E112: 0 | F112: 0 | G112: 00:00:00 | H112: 0 | I112: 0 | J112: 0 | L112: 834.45
C113: 0 | D113: 0 | E113: 0 | F113: 0 | G113: 00:00:00 | H113: 0 | I113: 0 | J113: 0 | L113: 834.45
C114: 0 | D114: 0 | E114: 0 | F114: 0 | G114: 00:00:00 | H114: 0 | I114: 0 | J114: 0 | L114: 834.45
C115: 0 | D115: 0 | E115: 0 | F115: 0 | G115: 00:00:00 | H115: 0 | I115: 0 | J115: 0 | L115: 834.45
C116: 0 | D116: 0 | E116: 0 | F116: 0 | G116: 00:00:00 | H116: 0 | I116: 0 | J116: 0 | L116: 834.45
C117: 0 | D117: 0 | E117: 0 | F117: 0 | G117: 00:00:00 | H117: 0 | I117: 0 | J117: 0 | L117: 834.45
C118: 0 | D118: 0 | E118: 0 | F118: 0 | G118: 00:00:00 | H118: 0 | I118: 0 | J118: 0 | L118: 834.45
C119: 0 | D119: 0 | E119: 0 | F119: 0 | G119: 00:00:00 | H119: 0 | I119: 0 | J119: 0 | L119: 834.45
C120: 0 | D120: 0 | E120: 0 | F120: 0 | G120: 00:00:00 | H120: 0 | I120: 0 | J120: 0 | L120: 834.45
C121: 0 | D121: 0 | E121: 0 | F121: 0 | G121: 00:00:00 | H121: 0 | I121: 0 | J121: 0 | L121: 834.45
C122: 0 | D122: 0 | E122: 0 | F122: 0 | G122: 00:00:00 | H122: 0 | I122: 0 | J122: 0 | L122: 834.45
C123: 0 | D123: 0 | E123: 0 | F123: 0 | G123: 00:00:00 | H123: 0 | I123: 0 | J123: 0 | L123: 834.45
C124: 0 | D124: 0 | E124: 0 | F124: 0 | G124: 00:00:00 | H124: 0 | I124: 0 | J124: 0 | L124: 834.45
C125: 0 | D125: 0 | E125: 0 | F125: 0 | G125: 00:00:00 | H125: 0 | I125: 0 | J125: 0 | L125: 834.45
C126: 0 | D126: 0 | E126: 0 | F126: 0 | G126: 00:00:00 | H126: 0 | I126: 0 | J126: 0 | L126: 834.45
C127: 0 | D127: 0 | E127: 0 | F127: 0 | G127: 00:00:00 | H127: 0 | I127: 0 | J127: 0 | L127: 834.45
C128: 0 | D128: 0 | E128: 0 | F128: 0 | G128: 00:00:00 | H128: 0 | I128: 0 | J128: 0 | L128: 834.45
C129: 0 | D129: 0 | E129: 0 | F129: 0 | G129: 00:00:00 | H129: 0 | I129: 0 | J129: 0 | L129: 834.45
C130: 0 | D130: 0 | E130: 0 | F130: 0 | G130: 00:00:00 | H130: 0 | I130: 0 | J130: 0 | L130: 834.45
C131: 0 | D131: 0 | E131: 0 | F131: 0 | G131: 00:00:00 | H131: 0 | I131: 0 | J131: 0 | L131: 834.45
C132: 0 | D132: 0 | E132: 0 | F132: 0 | G132: 00:00:00 | H132: 0 | I132: 0 | J132: 0 | L132: 834.45
C133: 0 | D133: 0 | E133: 0 | F133: 0 | G133: 00:00:00 | H133: 0 | I133: 0 | J133: 0 | L133: 834.45
C134: 0 | D134: 0 | E134: 0 | F134: 0 | G134: 00:00:00 | H134: 0 | I134: 0 | J134: 0 | L134: 834.45
C135: 0 | D135: 0 | E135: 0 | F135: 0 | G135: 00:00:00 | H135: 0 | I135: 0 | J135: 0 | L135: 834.45
C136: 0 | D136: 0 | E136: 0 | F136: 0 | G136: 00:00:00 | H136: 0 | I136: 0 | J136: 0 | L136: 834.45
C137: 0 | D137: 0 | E137: 0 | F137: 0 | G137: 00:00:00 | H137: 0 | I137: 0 | J137: 0 | L137: 834.45
C138: 0 | D138: 0 | E138: 0 | F138: 0 | G138: 00:00:00 | H138: 0 | I138: 0 | J138: 0 | L138: 834.45
C139: 0 | D139: 0 | E139: 0 | F139: 0 | G139: 00:00:00 | H139: 0 | I139: 0 | J139: 0 | L139: 834.45
C140: 0 | D140: 0 | E140: 0 | F140: 0 | G140: 00:00:00 | H140: 0 | I140: 0 | J140: 0 | L140: 834.45
C141: 0 | D141: 0 | E141: 0 | F141: 0 | G141: 00:00:00 | H141: 0 | I141: 0 | J141: 0 | L141: 834.45
C142: 0 | D142: 0 | E142: 0 | F142: 0 | G142: 00:00:00 | H142: 0 | I142: 0 | J142: 0 | L142: 834.45
C143: 0 | D143: 0 | E143: 0 | F143: 0 | G143: 00:00:00 | H143: 0 | I143: 0 | J143: 0 | L143: 834.45
C144: 0 | D144: 0 | E144: 0 | F144: 0 | G144: 00:00:00 | H144: 0 | I144: 0 | J144: 0 | L144: 834.45
C145: 0 | D145: 0 | E145: 0 | F145: 0 | G145: 00:00:00 | H145: 0 | I145: 0 | J145: 0 | L145: 834.45
C146: 0 | D146: 0 | E146: 0 | F146: 0 | G146: 00:00:00 | H146: 0 | I146: 0 | J146: 0 | L146: 834.45
C147: 0 | D147: 0 | E147: 0 | F147: 0 | G147: 00:00:00 | H147: 0 | I147: 0 | J147: 0 | L147: 834.45
C148: 0 | D148: 0 | E148: 0 | F148: 0 | G148: 00:00:00 | H148: 0 | I148: 0 | J148: 0 | L148: 834.45
C149: 0 | D149: 0 | E149: 0 | F149: 0 | G149: 00:00:00 | H149: 0 | I149: 0 | J149: 0 | L149: 834.45
C150: 0 | D150: 0 | E150: 0 | F150: 0 | G150: 00:00:00 | H150: 0 | I150: 0 | J150: 0 | L150: 834.45
C151: 0 | D151: 0 | E151: 0 | F151: 0 | G151: 00:00:00 | H151: 0 | I151: 0 | J151: 0 | L151: 834.45
C152: 0 | D152: 0 | E152: 0 | F152: 0 | G152: 00:00:00 | H152: 0 | I152: 0 | J152: 0 | L152: 834.45
C153: 0 | D153: 0 | E153: 0 | F153: 0 | G153: 00:00:00 | H153: 0 | I153: 0 | J153: 0 | L153: 834.45
C154: 0 | D154: 0 | E154: 0 | F154: 0 | G154: 00:00:00 | H154: 0 | I154: 0 | J154: 0 | L154: 834.45 | N154: =IF(E154=0,"",IF(E154="SLD","BUY","SLD")) -> 
C155: 0 | D155: 0 | E155: 0 | F155: 0 | G155: 00:00:00 | H155: 0 | I155: 0 | J155: 0 | L155: 834.45
C156: 0 | D156: 0 | E156: 0 | F156: 0 | G156: 00:00:00 | H156: 0 | I156: 0 | J156: 0 | L156: =+J156+L155 -> 834.45
C157: 0 | D157: 0 | E157: 0 | F157: 0 | G157: 00:00:00 | H157: 0 | I157: 0 | J157: 0 | L157: 834.45
C158: 0 | D158: 0 | E158: 0 | F158: 0 | G158: 00:00:00 | H158: 0 | I158: 0 | J158: 0 | L158: 834.45
C159: 0 | D159: 0 | E159: 0 | F159: 0 | G159: 00:00:00 | H159: 0 | I159: 0 | J159: 0 | L159: 834.45
C160: 0 | D160: 0 | E160: 0 | F160: 0 | G160: 00:00:00 | H160: 0 | I160: 0 | J160: 0 | L160: 834.45
C161: 0 | D161: 0 | E161: 0 | F161: 0 | G161: 00:00:00 | H161: 0 | I161: 0 | J161: 0 | L161: 834.45
C162: 0 | D162: 0 | E162: 0 | F162: 0 | G162: 00:00:00 | H162: 0 | I162: 0 | J162: 0 | L162: 834.45
C163: 0 | D163: 0 | E163: 0 | F163: 0 | G163: 00:00:00 | H163: 0 | I163: 0 | J163: 0 | L163: 834.45
C164: 0 | D164: 0 | E164: 0 | F164: 0 | G164: 00:00:00 | H164: 0 | I164: 0 | J164: 0 | L164: 834.45
C165: 0 | D165: 0 | E165: 0 | F165: 0 | G165: 00:00:00 | H165: 0 | I165: 0 | J165: 0 | L165: 834.45
C166: 0 | D166: 0 | E166: 0 | F166: 0 | G166: 00:00:00 | H166: 0 | I166: 0 | J166: 0 | L166: 834.45
C167: 0 | D167: 0 | E167: 0 | F167: 0 | G167: 00:00:00 | H167: 0 | I167: 0 | J167: 0 | L167: 834.45
C168: 0 | D168: 0 | E168: 0 | F168: 0 | G168: 00:00:00 | H168: 0 | I168: 0 | J168: 0 | L168: 834.45
C169: 0 | D169: 0 | E169: 0 | F169: 0 | G169: 00:00:00 | H169: 0 | I169: 0 | J169: 0 | L169: 834.45
C170: 0 | D170: 0 | E170: 0 | F170: 0 | G170: 00:00:00 | H170: 0 | I170: 0 | J170: 0 | L170: 834.45 | Q170: =IF(C170=0,"",IF(ISERROR(J170/D170),"",(J170/D170))/IF(C170="DAX",25,IF(C170="CAC40",10,1))) -> 
C171: 0 | D171: 0 | E171: 0 | F171: 0 | G171: 00:00:00 | H171: 0 | I171: 0 | J171: 0 | L171: 834.45
C172: 0 | D172: 0 | E172: 0 | F172: 0 | G172: 00:00:00 | H172: 0 | I172: 0 | J172: 0 | L172: 834.45
C173: 0 | D173: 0 | E173: 0 | F173: 0 | G173: 00:00:00 | H173: 0 | I173: 0 | J173: 0 | L173: 834.45
C174: 0 | D174: 0 | E174: 0 | F174: 0 | G174: 00:00:00 | H174: 0 | I174: 0 | J174: 0 | L174: 834.45
C175: 0 | D175: 0 | E175: 0 | F175: 0 | G175: 00:00:00 | H175: 0 | I175: 0 | J175: 0 | L175: 834.45
C176: 0 | D176: 0 | E176: 0 | F176: 0 | G176: 00:00:00 | H176: 0 | I176: 0 | J176: 0 | L176: 834.45
C177: 0 | D177: 0 | E177: 0 | F177: 0 | G177: 00:00:00 | H177: 0 | I177: 0 | J177: 0 | L177: 834.45
C178: 0 | D178: 0 | E178: 0 | F178: 0 | G178: 00:00:00 | H178: 0 | I178: 0 | J178: 0 | L178: 834.45
C179: 0 | D179: 0 | E179: 0 | F179: 0 | G179: 00:00:00 | H179: 0 | I179: 0 | J179: 0 | L179: 834.45
C180: 0 | D180: 0 | E180: 0 | F180: 0 | G180: 00:00:00 | H180: 0 | I180: 0 | J180: 0 | L180: 834.45
C181: 0 | D181: 0 | E181: 0 | F181: 0 | G181: 00:00:00 | H181: 0 | I181: 0 | J181: 0 | L181: 834.45
C182: 0 | D182: 0 | E182: 0 | F182: 0 | G182: 00:00:00 | H182: 0 | I182: 0 | J182: 0 | L182: 834.45
C183: 0 | D183: 0 | E183: 0 | F183: 0 | G183: 00:00:00 | H183: 0 | I183: 0 | J183: 0 | L183: 834.45
C184: 0 | D184: 0 | E184: 0 | F184: 0 | G184: 00:00:00 | H184: 0 | I184: 0 | J184: 0 | L184: 834.45
C185: 0 | D185: 0 | E185: 0 | F185: 0 | G185: 00:00:00 | H185: 0 | I185: 0 | J185: 0 | L185: 834.45
C186: 0 | D186: 0 | E186: 0 | F186: 0 | G186: 00:00:00 | H186: 0 | I186: 0 | J186: 0 | L186: 834.45
C187: 0 | D187: 0 | E187: 0 | F187: 0 | G187: 00:00:00 | H187: 0 | I187: 0 | J187: 0 | L187: 834.45
C188: 0 | D188: 0 | E188: 0 | F188: 0 | G188: 00:00:00 | H188: 0 | I188: 0 | J188: 0 | L188: 834.45
C189: 0 | D189: 0 | E189: 0 | F189: 0 | G189: 00:00:00 | H189: 0 | I189: 0 | J189: 0 | L189: 834.45
C190: 0 | D190: 0 | E190: 0 | F190: 0 | G190: 00:00:00 | H190: 0 | I190: 0 | J190: 0 | L190: 834.45
C191: 0 | D191: 0 | E191: 0 | F191: 0 | G191: 00:00:00 | H191: 0 | I191: 0 | J191: 0 | L191: 834.45
C192: 0 | D192: 0 | E192: 0 | F192: 0 | G192: 00:00:00 | H192: 0 | I192: 0 | J192: 0 | L192: 834.45
C193: 0 | D193: 0 | E193: 0 | F193: 0 | G193: 00:00:00 | H193: 0 | I193: 0 | J193: 0 | L193: 834.45
C194: 0 | D194: 0 | E194: 0 | F194: 0 | G194: 00:00:00 | H194: 0 | I194: 0 | J194: 0 | L194: 834.45
C195: 0 | D195: 0 | E195: 0 | F195: 0 | G195: 00:00:00 | H195: 0 | I195: 0 | J195: 0 | L195: 834.45
C196: 0 | D196: 0 | E196: 0 | F196: 0 | G196: 00:00:00 | H196: 0 | I196: 0 | J196: 0 | L196: 834.45
C197: 0 | D197: 0 | E197: 0 | F197: 0 | G197: 00:00:00 | H197: 0 | I197: 0 | J197: 0 | L197: 834.45
C198: 0 | D198: 0 | E198: 0 | F198: 0 | G198: 00:00:00 | H198: 0 | I198: 0 | J198: 0 | L198: 834.45
C199: 0 | D199: 0 | E199: 0 | F199: 0 | G199: 00:00:00 | H199: 0 | I199: 0 | J199: 0 | L199: 834.45
C200: 0 | D200: 0 | E200: 0 | F200: 0 | G200: 00:00:00 | H200: 0 | I200: 0 | J200: 0 | L200: 834.45
C201: 0 | D201: 0 | E201: 0 | F201: 0 | G201: 00:00:00 | H201: 0 | I201: 0 | J201: 0 | L201: 834.45
C202: 0 | D202: 0 | E202: 0 | F202: 0 | G202: 00:00:00 | H202: 0 | I202: 0 | J202: 0 | L202: 834.45
C203: 0 | D203: 0 | E203: 0 | F203: 0 | G203: 00:00:00 | H203: 0 | I203: 0 | J203: 0 | L203: 834.45
C204: 0 | D204: 0 | E204: 0 | F204: 0 | G204: 00:00:00 | H204: 0 | I204: 0 | J204: 0 | L204: 834.45
C205: 0 | D205: 0 | E205: 0 | F205: 0 | G205: 00:00:00 | H205: 0 | I205: 0 | J205: 0 | L205: 834.45
C206: 0 | D206: 0 | E206: 0 | F206: 0 | G206: 00:00:00 | H206: 0 | I206: 0 | J206: 0 | L206: 834.45
C207: 0 | D207: 0 | E207: 0 | F207: 0 | G207: 00:00:00 | H207: 0 | I207: 0 | J207: 0 | L207: 834.45
C208: 0 | D208: 0 | E208: 0 | F208: 0 | G208: 00:00:00 | H208: 0 | I208: 0 | J208: 0 | L208: 834.45
... 299 more rows

Sheet 06-06
K3: JOURNEE NFP
AK4: B/S | AL4: Strat | AM4: M2 | AN4: Erreur
AK5: B | AL5: IC40 30S | AM5: Même sens | AN5: Oui
AK6: S | AL6: IC40S 30S | AM6: Flat | AN6: Non
AL7: IC40 30S inverse MM | AM7: Opposé
AL8: Contretendance impulsion
AL9: Trading de Niveau 30S
AL10: Trading de Niveau M2
AL11: Trading de Niveau D
AL12: Sur chiffres
AL13: Range
AL14: IC40 M2
AL15: IC40 S M2
AL16: IC40 M2 inverse MM
AL17: Cassure S/R H1
AL18: Cassure S/R D
C25: Underlying | D25: Quantity | E25: Contract | F25: Price | G25: Time | H25: Date | I25: Commission | J25: Realized P&L | L25: Cumul P&L | M25: Strat | N25: Sell/Buy | O25: TDCE M2 | P25: Nbre de contrats | Q25: Pts | R25: Erreur
C26: CAC40 | D26: 2 | E26: SLD | F26: 4427 | G26: 09:40:16 | H26: 20160606 | I26: 2.36 | J26: 0 | L26: =+J26 -> 0 | N26: =IF(E26=0,"",IF(E26="SLD","BUY","SLD")) -> BUY | Q26: =IF(C26=0,"",IF(ISERROR(J26/D26),"",(J26/D26))/IF(C26="DAX",25,IF(C26="CAC40",10,1))) -> 0
C27: CAC40 | D27: 1 | E27: BOT | F27: 4415 | G27: 10:22:01 | H27: 20160606 | I27: 1.18 | J27: 117.64 | L27: =+J27+L26 -> 117.64 | M27: Trading de Niveau D | N27: SLD | Q27: 11.764
C28: CAC40 | D28: 1 | E28: BOT | F28: 4424.5 | G28: 11:49:40 | H28: 20160606 | I28: 1.18 | J28: 22.64 | L28: =+J28+L27 -> 140.28 | M28: Trading de Niveau D | N28: SLD | Q28: 2.264
C29: 0 | D29: 0 | E29: 0 | F29: 0 | G29: 00:00:00 | H29: 0 | I29: 0 | J29: 0 | L29: 140.28 | M29: Trading de Niveau D
C30: 0 | D30: 0 | E30: 0 | F30: 0 | G30: 00:00:00 | H30: 0 | I30: 0 | J30: 0 | L30: =+J30+L29 -> 140.28 | M30: Trading de Niveau D
C31: 0 | D31: 0 | E31: 0 | F31: 0 | G31: 00:00:00 | H31: 0 | I31: 0 | J31: 0 | L31: 140.28
C32: 0 | D32: 0 | E32: 0 | F32: 0 | G32: 00:00:00 | H32: 0 | I32: 0 | J32: 0 | L32: 140.28
C33: 0 | D33: 0 | E33: 0 | F33: 0 | G33: 00:00:00 | H33: 0 | I33: 0 | J33: 0 | L33: 140.28 | M33: IC40 30S | O33: Même sens
C34: 0 | D34: 0 | E34: 0 | F34: 0 | G34: 00:00:00 | H34: 0 | I34: 0 | J34: 0 | L34: 140.28 | M34: IC40 30S | O34: Même sens
C35: 0 | D35: 0 | E35: 0 | F35: 0 | G35: 00:00:00 | H35: 0 | I35: 0 | J35: 0 | L35: 140.28
C36: 0 | D36: 0 | E36: 0 | F36: 0 | G36: 00:00:00 | H36: 0 | I36: 0 | J36: 0 | L36: 140.28 | M36: Trading de Niveau D
C37: 0 | D37: 0 | E37: 0 | F37: 0 | G37: 00:00:00 | H37: 0 | I37: 0 | J37: 0 | L37: 140.28
C38: 0 | D38: 0 | E38: 0 | F38: 0 | G38: 00:00:00 | H38: 0 | I38: 0 | J38: 0 | L38: 140.28
C39: 0 | D39: 0 | E39: 0 | F39: 0 | G39: 00:00:00 | H39: 0 | I39: 0 | J39: 0 | L39: 140.28 | M39: IC40 30S | O39: Flat
C40: 0 | D40: 0 | E40: 0 | F40: 0 | G40: 00:00:00 | H40: 0 | I40: 0 | J40: 0 | L40: 140.28 | M40: IC40 30S | O40: Flat
C41: 0 | D41: 0 | E41: 0 | F41: 0 | G41: 00:00:00 | H41: 0 | I41: 0 | J41: 0 | L41: 140.28 | Q41: =IF(C41=0,"",IF(ISERROR(J41/D41),"",(J41/D41))/IF(C41="DAX",25,IF(C41="CAC40",10,1))) -> 
C42: 0 | D42: 0 | E42: 0 | F42: 0 | G42: 00:00:00 | H42: 0 | I42: 0 | J42: 0 | L42: 140.28 | M42: Sur chiffres | Q42: =IF(C42=0,"",IF(ISERROR(J42/D42),"",(J42/D42))/IF(C42="DAX",25,IF(C42="CAC40",10,1))) -> 
C43: 0 | D43: 0 | E43: 0 | F43: 0 | G43: 00:00:00 | H43: 0 | I43: 0 | J43: 0 | L43: 140.28
C44: 0 | D44: 0 | E44: 0 | F44: 0 | G44: 00:00:00 | H44: 0 | I44: 0 | J44: 0 | L44: 140.28
C45: 0 | D45: 0 | E45: 0 | F45: 0 | G45: 00:00:00 | H45: 0 | I45: 0 | J45: 0 | L45: 140.28
C46: 0 | D46: 0 | E46: 0 | F46: 0 | G46: 00:00:00 | H46: 0 | I46: 0 | J46: 0 | L46: 140.28
C47: 0 | D47: 0 | E47: 0 | F47: 0 | G47: 00:00:00 | H47: 0 | I47: 0 | J47: 0 | L47: 140.28
C48: 0 | D48: 0 | E48: 0 | F48: 0 | G48: 00:00:00 | H48: 0 | I48: 0 | J48: 0 | L48: 140.28
C49: 0 | D49: 0 | E49: 0 | F49: 0 | G49: 00:00:00 | H49: 0 | I49: 0 | J49: 0 | L49: 140.28
C50: 0 | D50: 0 | E50: 0 | F50: 0 | G50: 00:00:00 | H50: 0 | I50: 0 | J50: 0 | L50: 140.28
C51: 0 | D51: 0 | E51: 0 | F51: 0 | G51: 00:00:00 | H51: 0 | I51: 0 | J51: 0 | L51: 140.28
C52: 0 | D52: 0 | E52: 0 | F52: 0 | G52: 00:00:00 | H52: 0 | I52: 0 | J52: 0 | L52: 140.28
C53: 0 | D53: 0 | E53: 0 | F53: 0 | G53: 00:00:00 | H53: 0 | I53: 0 | J53: 0 | L53: 140.28
C54: 0 | D54: 0 | E54: 0 | F54: 0 | G54: 00:00:00 | H54: 0 | I54: 0 | J54: 0 | L54: 140.28
C55: 0 | D55: 0 | E55: 0 | F55: 0 | G55: 00:00:00 | H55: 0 | I55: 0 | J55: 0 | L55: 140.28
C56: 0 | D56: 0 | E56: 0 | F56: 0 | G56: 00:00:00 | H56: 0 | I56: 0 | J56: 0 | L56: 140.28
C57: 0 | D57: 0 | E57: 0 | F57: 0 | G57: 00:00:00 | H57: 0 | I57: 0 | J57: 0 | L57: 140.28
C58: 0 | D58: 0 | E58: 0 | F58: 0 | G58: 00:00:00 | H58: 0 | I58: 0 | J58: 0 | L58: 140.28
C59: 0 | D59: 0 | E59: 0 | F59: 0 | G59: 00:00:00 | H59: 0 | I59: 0 | J59: 0 | L59: 140.28
C60: 0 | D60: 0 | E60: 0 | F60: 0 | G60: 00:00:00 | H60: 0 | I60: 0 | J60: 0 | L60: 140.28
C61: 0 | D61: 0 | E61: 0 | F61: 0 | G61: 00:00:00 | H61: 0 | I61: 0 | J61: 0 | L61: 140.28
C62: 0 | D62: 0 | E62: 0 | F62: 0 | G62: 00:00:00 | H62: 0 | I62: 0 | J62: 0 | L62: 140.28
C63: 0 | D63: 0 | E63: 0 | F63: 0 | G63: 00:00:00 | H63: 0 | I63: 0 | J63: 0 | L63: 140.28
C64: 0 | D64: 0 | E64: 0 | F64: 0 | G64: 00:00:00 | H64: 0 | I64: 0 | J64: 0 | L64: 140.28
C65: 0 | D65: 0 | E65: 0 | F65: 0 | G65: 00:00:00 | H65: 0 | I65: 0 | J65: 0 | L65: 140.28
C66: 0 | D66: 0 | E66: 0 | F66: 0 | G66: 00:00:00 | H66: 0 | I66: 0 | J66: 0 | L66: 140.28
C67: 0 | D67: 0 | E67: 0 | F67: 0 | G67: 00:00:00 | H67: 0 | I67: 0 | J67: 0 | L67: 140.28
C68: 0 | D68: 0 | E68: 0 | F68: 0 | G68: 00:00:00 | H68: 0 | I68: 0 | J68: 0 | L68: 140.28
C69: 0 | D69: 0 | E69: 0 | F69: 0 | G69: 00:00:00 | H69: 0 | I69: 0 | J69: 0 | L69: 140.28
C70: 0 | D70: 0 | E70: 0 | F70: 0 | G70: 00:00:00 | H70: 0 | I70: 0 | J70: 0 | L70: 140.28
C71: 0 | D71: 0 | E71: 0 | F71: 0 | G71: 00:00:00 | H71: 0 | I71: 0 | J71: 0 | L71: 140.28
C72: 0 | D72: 0 | E72: 0 | F72: 0 | G72: 00:00:00 | H72: 0 | I72: 0 | J72: 0 | L72: 140.28
C73: 0 | D73: 0 | E73: 0 | F73: 0 | G73: 00:00:00 | H73: 0 | I73: 0 | J73: 0 | L73: 140.28
C74: 0 | D74: 0 | E74: 0 | F74: 0 | G74: 00:00:00 | H74: 0 | I74: 0 | J74: 0 | L74: 140.28
C75: 0 | D75: 0 | E75: 0 | F75: 0 | G75: 00:00:00 | H75: 0 | I75: 0 | J75: 0 | L75: 140.28
C76: 0 | D76: 0 | E76: 0 | F76: 0 | G76: 00:00:00 | H76: 0 | I76: 0 | J76: 0 | L76: 140.28
C77: 0 | D77: 0 | E77: 0 | F77: 0 | G77: 00:00:00 | H77: 0 | I77: 0 | J77: 0 | L77: 140.28
C78: 0 | D78: 0 | E78: 0 | F78: 0 | G78: 00:00:00 | H78: 0 | I78: 0 | J78: 0 | L78: 140.28
C79: 0 | D79: 0 | E79: 0 | F79: 0 | G79: 00:00:00 | H79: 0 | I79: 0 | J79: 0 | L79: 140.28
C80: 0 | D80: 0 | E80: 0 | F80: 0 | G80: 00:00:00 | H80: 0 | I80: 0 | J80: 0 | L80: 140.28
C81: 0 | D81: 0 | E81: 0 | F81: 0 | G81: 00:00:00 | H81: 0 | I81: 0 | J81: 0 | L81: 140.28
C82: 0 | D82: 0 | E82: 0 | F82: 0 | G82: 00:00:00 | H82: 0 | I82: 0 | J82: 0 | L82: 140.28
C83: 0 | D83: 0 | E83: 0 | F83: 0 | G83: 00:00:00 | H83: 0 | I83: 0 | J83: 0 | L83: 140.28
C84: 0 | D84: 0 | E84: 0 | F84: 0 | G84: 00:00:00 | H84: 0 | I84: 0 | J84: 0 | L84: 140.28
C85: 0 | D85: 0 | E85: 0 | F85: 0 | G85: 00:00:00 | H85: 0 | I85: 0 | J85: 0 | L85: 140.28
C86: 0 | D86: 0 | E86: 0 | F86: 0 | G86: 00:00:00 | H86: 0 | I86: 0 | J86: 0 | L86: 140.28
C87: 0 | D87: 0 | E87: 0 | F87: 0 | G87: 00:00:00 | H87: 0 | I87: 0 | J87: 0 | L87: 140.28
C88: 0 | D88: 0 | E88: 0 | F88: 0 | G88: 00:00:00 | H88: 0 | I88: 0 | J88: 0 | L88: 140.28
C89: 0 | D89: 0 | E89: 0 | F89: 0 | G89: 00:00:00 | H89: 0 | I89: 0 | J89: 0 | L89: 140.28
C90: 0 | D90: 0 | E90: 0 | F90: 0 | G90: 00:00:00 | H90: 0 | I90: 0 | J90: 0 | L90: 140.28 | N90: =IF(E90=0,"",IF(E90="SLD","BUY","SLD")) -> 
C91: 0 | D91: 0 | E91: 0 | F91: 0 | G91: 00:00:00 | H91: 0 | I91: 0 | J91: 0 | L91: 140.28
C92: 0 | D92: 0 | E92: 0 | F92: 0 | G92: 00:00:00 | H92: 0 | I92: 0 | J92: 0 | L92: =+J92+L91 -> 140.28
C93: 0 | D93: 0 | E93: 0 | F93: 0 | G93: 00:00:00 | H93: 0 | I93: 0 | J93: 0 | L93: 140.28
C94: 0 | D94: 0 | E94: 0 | F94: 0 | G94: 00:00:00 | H94: 0 | I94: 0 | J94: 0 | L94: 140.28
C95: 0 | D95: 0 | E95: 0 | F95: 0 | G95: 00:00:00 | H95: 0 | I95: 0 | J95: 0 | L95: 140.28
C96: 0 | D96: 0 | E96: 0 | F96: 0 | G96: 00:00:00 | H96: 0 | I96: 0 | J96: 0 | L96: 140.28
C97: 0 | D97: 0 | E97: 0 | F97: 0 | G97: 00:00:00 | H97: 0 | I97: 0 | J97: 0 | L97: 140.28
C98: 0 | D98: 0 | E98: 0 | F98: 0 | G98: 00:00:00 | H98: 0 | I98: 0 | J98: 0 | L98: 140.28
C99: 0 | D99: 0 | E99: 0 | F99: 0 | G99: 00:00:00 | H99: 0 | I99: 0 | J99: 0 | L99: 140.28
C100: 0 | D100: 0 | E100: 0 | F100: 0 | G100: 00:00:00 | H100: 0 | I100: 0 | J100: 0 | L100: 140.28
C101: 0 | D101: 0 | E101: 0 | F101: 0 | G101: 00:00:00 | H101: 0 | I101: 0 | J101: 0 | L101: 140.28
C102: 0 | D102: 0 | E102: 0 | F102: 0 | G102: 00:00:00 | H102: 0 | I102: 0 | J102: 0 | L102: 140.28
C103: 0 | D103: 0 | E103: 0 | F103: 0 | G103: 00:00:00 | H103: 0 | I103: 0 | J103: 0 | L103: 140.28
C104: 0 | D104: 0 | E104: 0 | F104: 0 | G104: 00:00:00 | H104: 0 | I104: 0 | J104: 0 | L104: 140.28
C105: 0 | D105: 0 | E105: 0 | F105: 0 | G105: 00:00:00 | H105: 0 | I105: 0 | J105: 0 | L105: 140.28
C106: 0 | D106: 0 | E106: 0 | F106: 0 | G106: 00:00:00 | H106: 0 | I106: 0 | J106: 0 | L106: 140.28 | Q106: =IF(C106=0,"",IF(ISERROR(J106/D106),"",(J106/D106))/IF(C106="DAX",25,IF(C106="CAC40",10,1))) -> 
C107: 0 | D107: 0 | E107: 0 | F107: 0 | G107: 00:00:00 | H107: 0 | I107: 0 | J107: 0 | L107: 140.28
C108: 0 | D108: 0 | E108: 0 | F108: 0 | G108: 00:00:00 | H108: 0 | I108: 0 | J108: 0 | L108: 140.28
C109: 0 | D109: 0 | E109: 0 | F109: 0 | G109: 00:00:00 | H109: 0 | I109: 0 | J109: 0 | L109: 140.28
C110: 0 | D110: 0 | E110: 0 | F110: 0 | G110: 00:00:00 | H110: 0 | I110: 0 | J110: 0 | L110: 140.28
C111: 0 | D111: 0 | E111: 0 | F111: 0 | G111: 00:00:00 | H111: 0 | I111: 0 | J111: 0 | L111: 140.28
C112: 0 | D112: 0 | E112: 0 | F112: 0 | G112: 00:00:00 | H112: 0 | I112: 0 | J112: 0 | L112: 140.28
C113: 0 | D113: 0 | E113: 0 | F113: 0 | G113: 00:00:00 | H113: 0 | I113: 0 | J113: 0 | L113: 140.28
C114: 0 | D114: 0 | E114: 0 | F114: 0 | G114: 00:00:00 | H114: 0 | I114: 0 | J114: 0 | L114: 140.28
C115: 0 | D115: 0 | E115: 0 | F115: 0 | G115: 00:00:00 | H115: 0 | I115: 0 | J115: 0 | L115: 140.28
C116: 0 | D116: 0 | E116: 0 | F116: 0 | G116: 00:00:00 | H116: 0 | I116: 0 | J116: 0 | L116: 140.28
C117: 0 | D117: 0 | E117: 0 | F117: 0 | G117: 00:00:00 | H117: 0 | I117: 0 | J117: 0 | L117: 140.28
C118: 0 | D118: 0 | E118: 0 | F118: 0 | G118: 00:00:00 | H118: 0 | I118: 0 | J118: 0 | L118: 140.28
C119: 0 | D119: 0 | E119: 0 | F119: 0 | G119: 00:00:00 | H119: 0 | I119: 0 | J119: 0 | L119: 140.28
C120: 0 | D120: 0 | E120: 0 | F120: 0 | G120: 00:00:00 | H120: 0 | I120: 0 | J120: 0 | L120: 140.28
C121: 0 | D121: 0 | E121: 0 | F121: 0 | G121: 00:00:00 | H121: 0 | I121: 0 | J121: 0 | L121: 140.28
C122: 0 | D122: 0 | E122: 0 | F122: 0 | G122: 00:00:00 | H122: 0 | I122: 0 | J122: 0 | L122: 140.28
C123: 0 | D123: 0 | E123: 0 | F123: 0 | G123: 00:00:00 | H123: 0 | I123: 0 | J123: 0 | L123: 140.28
C124: 0 | D124: 0 | E124: 0 | F124: 0 | G124: 00:00:00 | H124: 0 | I124: 0 | J124: 0 | L124: 140.28
C125: 0 | D125: 0 | E125: 0 | F125: 0 | G125: 00:00:00 | H125: 0 | I125: 0 | J125: 0 | L125: 140.28
C126: 0 | D126: 0 | E126: 0 | F126: 0 | G126: 00:00:00 | H126: 0 | I126: 0 | J126: 0 | L126: 140.28
C127: 0 | D127: 0 | E127: 0 | F127: 0 | G127: 00:00:00 | H127: 0 | I127: 0 | J127: 0 | L127: 140.28
C128: 0 | D128: 0 | E128: 0 | F128: 0 | G128: 00:00:00 | H128: 0 | I128: 0 | J128: 0 | L128: 140.28
C129: 0 | D129: 0 | E129: 0 | F129: 0 | G129: 00:00:00 | H129: 0 | I129: 0 | J129: 0 | L129: 140.28
C130: 0 | D130: 0 | E130: 0 | F130: 0 | G130: 00:00:00 | H130: 0 | I130: 0 | J130: 0 | L130: 140.28
C131: 0 | D131: 0 | E131: 0 | F131: 0 | G131: 00:00:00 | H131: 0 | I131: 0 | J131: 0 | L131: 140.28
C132: 0 | D132: 0 | E132: 0 | F132: 0 | G132: 00:00:00 | H132: 0 | I132: 0 | J132: 0 | L132: 140.28
C133: 0 | D133: 0 | E133: 0 | F133: 0 | G133: 00:00:00 | H133: 0 | I133: 0 | J133: 0 | L133: 140.28
C134: 0 | D134: 0 | E134: 0 | F134: 0 | G134: 00:00:00 | H134: 0 | I134: 0 | J134: 0 | L134: 140.28
C135: 0 | D135: 0 | E135: 0 | F135: 0 | G135: 00:00:00 | H135: 0 | I135: 0 | J135: 0 | L135: 140.28
C136: 0 | D136: 0 | E136: 0 | F136: 0 | G136: 00:00:00 | H136: 0 | I136: 0 | J136: 0 | L136: 140.28
C137: 0 | D137: 0 | E137: 0 | F137: 0 | G137: 00:00:00 | H137: 0 | I137: 0 | J137: 0 | L137: 140.28
C138: 0 | D138: 0 | E138: 0 | F138: 0 | G138: 00:00:00 | H138: 0 | I138: 0 | J138: 0 | L138: 140.28
C139: 0 | D139: 0 | E139: 0 | F139: 0 | G139: 00:00:00 | H139: 0 | I139: 0 | J139: 0 | L139: 140.28
C140: 0 | D140: 0 | E140: 0 | F140: 0 | G140: 00:00:00 | H140: 0 | I140: 0 | J140: 0 | L140: 140.28
C141: 0 | D141: 0 | E141: 0 | F141: 0 | G141: 00:00:00 | H141: 0 | I141: 0 | J141: 0 | L141: 140.28
C142: 0 | D142: 0 | E142: 0 | F142: 0 | G142: 00:00:00 | H142: 0 | I142: 0 | J142: 0 | L142: 140.28
C143: 0 | D143: 0 | E143: 0 | F143: 0 | G143: 00:00:00 | H143: 0 | I143: 0 | J143: 0 | L143: 140.28
C144: 0 | D144: 0 | E144: 0 | F144: 0 | G144: 00:00:00 | H144: 0 | I144: 0 | J144: 0 | L144: 140.28
C145: 0 | D145: 0 | E145: 0 | F145: 0 | G145: 00:00:00 | H145: 0 | I145: 0 | J145: 0 | L145: 140.28
C146: 0 | D146: 0 | E146: 0 | F146: 0 | G146: 00:00:00 | H146: 0 | I146: 0 | J146: 0 | L146: 140.28
C147: 0 | D147: 0 | E147: 0 | F147: 0 | G147: 00:00:00 | H147: 0 | I147: 0 | J147: 0 | L147: 140.28
C148: 0 | D148: 0 | E148: 0 | F148: 0 | G148: 00:00:00 | H148: 0 | I148: 0 | J148: 0 | L148: 140.28
C149: 0 | D149: 0 | E149: 0 | F149: 0 | G149: 00:00:00 | H149: 0 | I149: 0 | J149: 0 | L149: 140.28
C150: 0 | D150: 0 | E150: 0 | F150: 0 | G150: 00:00:00 | H150: 0 | I150: 0 | J150: 0 | L150: 140.28
C151: 0 | D151: 0 | E151: 0 | F151: 0 | G151: 00:00:00 | H151: 0 | I151: 0 | J151: 0 | L151: 140.28
C152: 0 | D152: 0 | E152: 0 | F152: 0 | G152: 00:00:00 | H152: 0 | I152: 0 | J152: 0 | L152: 140.28
C153: 0 | D153: 0 | E153: 0 | F153: 0 | G153: 00:00:00 | H153: 0 | I153: 0 | J153: 0 | L153: 140.28
C154: 0 | D154: 0 | E154: 0 | F154: 0 | G154: 00:00:00 | H154: 0 | I154: 0 | J154: 0 | L154: 140.28 | N154: =IF(E154=0,"",IF(E154="SLD","BUY","SLD")) -> 
C155: 0 | D155: 0 | E155: 0 | F155: 0 | G155: 00:00:00 | H155: 0 | I155: 0 | J155: 0 | L155: 140.28
C156: 0 | D156: 0 | E156: 0 | F156: 0 | G156: 00:00:00 | H156: 0 | I156: 0 | J156: 0 | L156: =+J156+L155 -> 140.28
C157: 0 | D157: 0 | E157: 0 | F157: 0 | G157: 00:00:00 | H157: 0 | I157: 0 | J157: 0 | L157: 140.28
C158: 0 | D158: 0 | E158: 0 | F158: 0 | G158: 00:00:00 | H158: 0 | I158: 0 | J158: 0 | L158: 140.28
C159: 0 | D159: 0 | E159: 0 | F159: 0 | G159: 00:00:00 | H159: 0 | I159: 0 | J159: 0 | L159: 140.28
C160: 0 | D160: 0 | E160: 0 | F160: 0 | G160: 00:00:00 | H160: 0 | I160: 0 | J160: 0 | L160: 140.28
C161: 0 | D161: 0 | E161: 0 | F161: 0 | G161: 00:00:00 | H161: 0 | I161: 0 | J161: 0 | L161: 140.28
C162: 0 | D162: 0 | E162: 0 | F162: 0 | G162: 00:00:00 | H162: 0 | I162: 0 | J162: 0 | L162: 140.28
C163: 0 | D163: 0 | E163: 0 | F163: 0 | G163: 00:00:00 | H163: 0 | I163: 0 | J163: 0 | L163: 140.28
C164: 0 | D164: 0 | E164: 0 | F164: 0 | G164: 00:00:00 | H164: 0 | I164: 0 | J164: 0 | L164: 140.28
C165: 0 | D165: 0 | E165: 0 | F165: 0 | G165: 00:00:00 | H165: 0 | I165: 0 | J165: 0 | L165: 140.28
C166: 0 | D166: 0 | E166: 0 | F166: 0 | G166: 00:00:00 | H166: 0 | I166: 0 | J166: 0 | L166: 140.28
C167: 0 | D167: 0 | E167: 0 | F167: 0 | G167: 00:00:00 | H167: 0 | I167: 0 | J167: 0 | L167: 140.28
C168: 0 | D168: 0 | E168: 0 | F168: 0 | G168: 00:00:00 | H168: 0 | I168: 0 | J168: 0 | L168: 140.28
C169: 0 | D169: 0 | E169: 0 | F169: 0 | G169: 00:00:00 | H169: 0 | I169: 0 | J169: 0 | L169: 140.28
C170: 0 | D170: 0 | E170: 0 | F170: 0 | G170: 00:00:00 | H170: 0 | I170: 0 | J170: 0 | L170: 140.28 | Q170: =IF(C170=0,"",IF(ISERROR(J170/D170),"",(J170/D170))/IF(C170="DAX",25,IF(C170="CAC40",10,1))) -> 
C171: 0 | D171: 0 | E171: 0 | F171: 0 | G171: 00:00:00 | H171: 0 | I171: 0 | J171: 0 | L171: 140.28
C172: 0 | D172: 0 | E172: 0 | F172: 0 | G172: 00:00:00 | H172: 0 | I172: 0 | J172: 0 | L172: 140.28
C173: 0 | D173: 0 | E173: 0 | F173: 0 | G173: 00:00:00 | H173: 0 | I173: 0 | J173: 0 | L173: 140.28
C174: 0 | D174: 0 | E174: 0 | F174: 0 | G174: 00:00:00 | H174: 0 | I174: 0 | J174: 0 | L174: 140.28
C175: 0 | D175: 0 | E175: 0 | F175: 0 | G175: 00:00:00 | H175: 0 | I175: 0 | J175: 0 | L175: 140.28
C176: 0 | D176: 0 | E176: 0 | F176: 0 | G176: 00:00:00 | H176: 0 | I176: 0 | J176: 0 | L176: 140.28
C177: 0 | D177: 0 | E177: 0 | F177: 0 | G177: 00:00:00 | H177: 0 | I177: 0 | J177: 0 | L177: 140.28
C178: 0 | D178: 0 | E178: 0 | F178: 0 | G178: 00:00:00 | H178: 0 | I178: 0 | J178: 0 | L178: 140.28
C179: 0 | D179: 0 | E179: 0 | F179: 0 | G179: 00:00:00 | H179: 0 | I179: 0 | J179: 0 | L179: 140.28
C180: 0 | D180: 0 | E180: 0 | F180: 0 | G180: 00:00:00 | H180: 0 | I180: 0 | J180: 0 | L180: 140.28
C181: 0 | D181: 0 | E181: 0 | F181: 0 | G181: 00:00:00 | H181: 0 | I181: 0 | J181: 0 | L181: 140.28
C182: 0 | D182: 0 | E182: 0 | F182: 0 | G182: 00:00:00 | H182: 0 | I182: 0 | J182: 0 | L182: 140.28
C183: 0 | D183: 0 | E183: 0 | F183: 0 | G183: 00:00:00 | H183: 0 | I183: 0 | J183: 0 | L183: 140.28
C184: 0 | D184: 0 | E184: 0 | F184: 0 | G184: 00:00:00 | H184: 0 | I184: 0 | J184: 0 | L184: 140.28
C185: 0 | D185: 0 | E185: 0 | F185: 0 | G185: 00:00:00 | H185: 0 | I185: 0 | J185: 0 | L185: 140.28
C186: 0 | D186: 0 | E186: 0 | F186: 0 | G186: 00:00:00 | H186: 0 | I186: 0 | J186: 0 | L186: 140.28
C187: 0 | D187: 0 | E187: 0 | F187: 0 | G187: 00:00:00 | H187: 0 | I187: 0 | J187: 0 | L187: 140.28
C188: 0 | D188: 0 | E188: 0 | F188: 0 | G188: 00:00:00 | H188: 0 | I188: 0 | J188: 0 | L188: 140.28
C189: 0 | D189: 0 | E189: 0 | F189: 0 | G189: 00:00:00 | H189: 0 | I189: 0 | J189: 0 | L189: 140.28
C190: 0 | D190: 0 | E190: 0 | F190: 0 | G190: 00:00:00 | H190: 0 | I190: 0 | J190: 0 | L190: 140.28
C191: 0 | D191: 0 | E191: 0 | F191: 0 | G191: 00:00:00 | H191: 0 | I191: 0 | J191: 0 | L191: 140.28
C192: 0 | D192: 0 | E192: 0 | F192: 0 | G192: 00:00:00 | H192: 0 | I192: 0 | J192: 0 | L192: 140.28
C193: 0 | D193: 0 | E193: 0 | F193: 0 | G193: 00:00:00 | H193: 0 | I193: 0 | J193: 0 | L193: 140.28
C194: 0 | D194: 0 | E194: 0 | F194: 0 | G194: 00:00:00 | H194: 0 | I194: 0 | J194: 0 | L194: 140.28
C195: 0 | D195: 0 | E195: 0 | F195: 0 | G195: 00:00:00 | H195: 0 | I195: 0 | J195: 0 | L195: 140.28
C196: 0 | D196: 0 | E196: 0 | F196: 0 | G196: 00:00:00 | H196: 0 | I196: 0 | J196: 0 | L196: 140.28
C197: 0 | D197: 0 | E197: 0 | F197: 0 | G197: 00:00:00 | H197: 0 | I197: 0 | J197: 0 | L197: 140.28
C198: 0 | D198: 0 | E198: 0 | F198: 0 | G198: 00:00:00 | H198: 0 | I198: 0 | J198: 0 | L198: 140.28
C199: 0 | D199: 0 | E199: 0 | F199: 0 | G199: 00:00:00 | H199: 0 | I199: 0 | J199: 0 | L199: 140.28
C200: 0 | D200: 0 | E200: 0 | F200: 0 | G200: 00:00:00 | H200: 0 | I200: 0 | J200: 0 | L200: 140.28
C201: 0 | D201: 0 | E201: 0 | F201: 0 | G201: 00:00:00 | H201: 0 | I201: 0 | J201: 0 | L201: 140.28
C202: 0 | D202: 0 | E202: 0 | F202: 0 | G202: 00:00:00 | H202: 0 | I202: 0 | J202: 0 | L202: 140.28
C203: 0 | D203: 0 | E203: 0 | F203: 0 | G203: 00:00:00 | H203: 0 | I203: 0 | J203: 0 | L203: 140.28
C204: 0 | D204: 0 | E204: 0 | F204: 0 | G204: 00:00:00 | H204: 0 | I204: 0 | J204: 0 | L204: 140.28
C205: 0 | D205: 0 | E205: 0 | F205: 0 | G205: 00:00:00 | H205: 0 | I205: 0 | J205: 0 | L205: 140.28
C206: 0 | D206: 0 | E206: 0 | F206: 0 | G206: 00:00:00 | H206: 0 | I206: 0 | J206: 0 | L206: 140.28
C207: 0 | D207: 0 | E207: 0 | F207: 0 | G207: 00:00:00 | H207: 0 | I207: 0 | J207: 0 | L207: 140.28
C208: 0 | D208: 0 | E208: 0 | F208: 0 | G208: 00:00:00 | H208: 0 | I208: 0 | J208: 0 | L208: 140.28
... 299 more rows

Sheet 07-06
AK4: B/S | AL4: Strat | AM4: M2 | AN4: Erreur
AK5: B | AL5: IC40 30S | AM5: Même sens | AN5: Oui
AK6: S | AL6: IC40S 30S | AM6: Flat | AN6: Non
AL7: IC40 30S inverse MM | AM7: Opposé
AL8: Contretendance impulsion
AL9: Trading de Niveau 30S
AL10: Trading de Niveau M2
AL11: Trading de Niveau D
AL12: Sur chiffres
AL13: Range
AL14: IC40 M2
AL15: IC40 S M2
AL16: IC40 M2 inverse MM
AL17: Cassure S/R H1
AL18: Cassure S/R D
C25: Underlying | D25: Quantity | E25: Contract | F25: Price | G25: Time | H25: Date | I25: Commission | J25: Realized P&L | L25: Cumul P&L | M25: Strat | N25: Sell/Buy | O25: TDCE M2 | P25: Nbre de contrats | Q25: Pts | R25: Erreur
C26: IBDE30 | D26: 1 | E26: BOT | F26: 10195.19 | G26: 0.375625 | H26: 20160607 | I26: 1 | J26: 0 | L26: =+J26 -> 0 | N26: =IF(E26=0,"",IF(E26="SLD","BUY","SLD")) -> SLD | Q26: =IF(C26=0,"",IF(ISERROR(J26/D26),"",(J26/D26))/IF(C26="DAX",25,IF(C26="CAC40",10,1))) -> 0
C27: IBDE30 | D27: 1 | E27: BOT | F27: 10192.19 | G27: 0.375775463 | H27: 20160607 | I27: 1 | J27: 0 | L27: =+J27+L26 -> 0 | M27: Trading de Niveau D | N27: SLD | Q27: 0
C28: IBDE30 | D28: 1 | E28: BOT | F28: 10188.19 | G28: 0.3762731481 | H28: 20160607 | I28: 1 | J28: 0 | L28: =+J28+L27 -> 0 | M28: Trading de Niveau D | N28: SLD | Q28: 0
C29: IBDE30 | D29: 1 | E29: SLD | F29: 10212.19 | G29: 09:06:07 | H29: 20160607 | I29: 1 | J29: 18.33 | L29: 18.33 | M29: IC40 M2 | N29: BUY | O29: Même sens | P29: 3 | Q29: 18.33
C30: IBDE30 | D30: 1 | E30: SLD | F30: 10218.19 | G30: 09:07:22 | H30: 20160607 | I30: 1 | J30: 24.33 | L30: =+J30+L29 -> 42.66 | M30: IC40 M2 | N30: BUY | O30: Même sens | Q30: 24.33
C31: IBDE30 | D31: 1 | E31: SLD | F31: 10245.62 | G31: 09:12:28 | H31: 20160607 | I31: 1 | J31: 51.76 | L31: 94.42 | M31: IC40 M2 | N31: BUY | O31: Même sens | Q31: 51.76
C32: IBDE30 | D32: 1 | E32: BOT | F32: 10276.19 | G32: 0.396400463 | H32: 20160607 | I32: 1 | J32: 0 | L32: 94.42 | M32: IC40 30S | N32: SLD | Q32: 0
C33: IBDE30 | D33: 1 | E33: SLD | F33: 10267.61 | G33: 09:53:21 | H33: 20160607 | I33: 1 | J33: -10.58 | L33: 83.84 | M33: IC40 30S | N33: BUY | O33: Même sens | Q33: -10.58
C34: IBDE30 | D34: 1 | E34: SLD | F34: 10303.64 | G34: 0.4781365741 | H34: 20160607 | I34: 1 | J34: 0 | L34: 83.84 | M34: Contretendance impulsion | N34: BUY | O34: Même sens | Q34: 0
C35: IBDE30 | D35: 1 | E35: BOT | F35: 10304.12 | G35: 11:37:36 | H35: 20160607 | I35: 1 | J35: -2.48 | L35: 81.36 | M35: Contretendance impulsion | N35: SLD | Q35: -2.48
C36: DAX | D36: 1 | E36: BOT | F36: 10298 | G36: 0.5013194444 | H36: 20160607 | I36: 1.41 | J36: 0 | L36: 81.36 | N36: SLD | Q36: 0
C37: IBDE30 | D37: 1 | E37: BOT | F37: 10298.11 | G37: 0.5016666667 | H37: 20160607 | I37: 1 | J37: 0 | L37: 81.36 | N37: SLD | Q37: 0
C38: IBDE30 | D38: 1 | E38: BOT | F38: 10297.11 | G38: 0.5024421296 | H38: 20160607 | I38: 1 | J38: 0 | L38: 81.36 | N38: SLD | Q38: 0
C39: DAX | D39: 1 | E39: SLD | F39: 10298 | G39: 12:09:14 | H39: 20160607 | I39: 1.41 | J39: -2.82 | L39: 78.54 | N39: BUY | Q39: -0.1128
C40: IBDE30 | D40: 1 | E40: BOT | F40: 10296.1 | G40: 0.5440162037 | H40: 20160607 | I40: 1 | J40: 0 | L40: 78.54 | N40: SLD | O40: Flat | Q40: 0
C41: IBDE30 | D41: 1 | E41: SLD | F41: 10306.24 | G41: 13:20:20 | H41: 20160607 | I41: 1 | J41: 7.13 | L41: 85.67 | M41: Trading de Niveau M2 | N41: BUY | O41: Même sens | Q41: =IF(C41=0,"",IF(ISERROR(J41/D41),"",(J41/D41))/IF(C41="DAX",25,IF(C41="CAC40",10,1))) -> 7.13
C42: IBDE30 | D42: 1 | E42: SLD | F42: 10309.24 | G42: 13:21:29 | H42: 20160607 | I42: 1 | J42: 10.13 | L42: 95.8 | M42: Trading de Niveau M2 | N42: BUY | O42: Même sens | Q42: =IF(C42=0,"",IF(ISERROR(J42/D42),"",(J42/D42))/IF(C42="DAX",25,IF(C42="CAC40",10,1))) -> 10.13
C43: IBDE30 | D43: 1 | E43: SLD | F43: 10303.14 | G43: 13:36:42 | H43: 20160607 | I43: 1 | J43: 4.03 | L43: 99.83 | M43: Trading de Niveau M2 | N43: BUY | O43: Même sens | Q43: 4.03
C44: CAC40 | D44: 1 | E44: SLD | F44: 4474 | G44: 0.5985763889 | H44: 20160607 | I44: 1.18 | J44: 0 | L44: 99.83 | N44: BUY | Q44: 0
C45: IBDE30 | D45: 1 | E45: SLD | F45: 10279.1 | G45: 0.6078240741 | H45: 20160607 | I45: 1 | J45: 0 | L45: 99.83 | N45: BUY | Q45: 0
C46: IBDE30 | D46: 1 | E46: BOT | F46: 10272.55 | G46: 14:35:54 | H46: 20160607 | I46: 1 | J46: 4.55 | L46: 104.38 | M46: IC40 M2 | N46: SLD | Q46: 4.55
C47: IBDE30 | D47: 1 | E47: SLD | F47: 10273.64 | G47: 0.6169791667 | H47: 20160607 | I47: 1 | J47: 0 | L47: 104.38 | N47: BUY | Q47: 0
C48: IBDE30 | D48: 1 | E48: SLD | F48: 10272.14 | G48: 0.6191550926 | H48: 20160607 | I48: 1 | J48: 0 | L48: 104.38 | N48: BUY | Q48: 0
C49: IBDE30 | D49: 1 | E49: BOT | F49: 10272.64 | G49: 14:51:55 | H49: 20160607 | I49: 1 | J49: -1.75 | L49: 102.63 | N49: SLD | Q49: -1.75
C50: IBDE30 | D50: 1 | E50: SLD | F50: 10271.96 | G50: 0.620162037 | H50: 20160607 | I50: 1 | J50: 0 | L50: 102.63 | N50: BUY | Q50: 0
C51: IBDE30 | D51: 1 | E51: SLD | F51: 10273.14 | G51: 0.6202546296 | H51: 20160607 | I51: 1 | J51: 0 | L51: 102.63 | N51: BUY | Q51: 0
C52: IBDE30 | D52: 1 | E52: BOT | F52: 10264.15 | G52: 14:58:41 | H52: 20160607 | I52: 1 | J52: 6.51 | L52: 109.14 | M52: IC40 M2 | N52: SLD | O52: Même sens | Q52: 6.51
C53: IBDE30 | D53: 1 | E53: BOT | F53: 10261.15 | G53: 15:01:00 | H53: 20160607 | I53: 1 | J53: 9.51 | L53: 118.65 | M53: IC40S 30S | N53: SLD | O53: Même sens | Q53: 9.51
C54: IBDE30 | D54: 1 | E54: BOT | F54: 10261.65 | G54: 15:18:17 | H54: 20160607 | I54: 1 | J54: 9.01 | L54: 127.66 | M54: IC40S 30S | N54: SLD | O54: Même sens | Q54: 9.01
C55: CAC40 | D55: 1 | E55: BOT | F55: 4459 | G55: 15:18:19 | H55: 20160607 | I55: 1.18 | J55: 147.64 | L55: 275.3 | M55: Trading de Niveau D | N55: SLD | Q55: 14.764
C56: IBDE30 | D56: 1 | E56: SLD | F56: 10281.15 | G56: 0.6545717593 | H56: 20160607 | I56: 1 | J56: 0 | L56: 275.3 | N56: BUY | Q56: 0
C57: IBDE30 | D57: 1 | E57: BOT | F57: 10285.64 | G57: 15:45:27 | H57: 20160607 | I57: 1 | J57: -6.49 | L57: 268.81 | M57: IC40 S M2 | N57: SLD | O57: Même sens | Q57: -6.49
C58: IBDE30 | D58: 1 | E58: SLD | F58: 10271.15 | G58: 0.6580671296 | H58: 20160607 | I58: 1 | J58: 0 | L58: 268.81 | N58: BUY | Q58: 0
C59: IBDE30 | D59: 1 | E59: SLD | F59: 10277.6 | G59: 0.6601851852 | H59: 20160607 | I59: 1 | J59: 0 | L59: 268.81 | N59: BUY | Q59: 0
C60: IBDE30 | D60: 1 | E60: BOT | F60: 10269.1 | G60: 15:53:20 | H60: 20160607 | I60: 1 | J60: 3.27 | L60: 272.08 | M60: IC40 S M2 | N60: SLD | O60: Même sens | Q60: 3.27
C61: IBDE30 | D61: 1 | E61: BOT | F61: 10275 | G61: 15:59:53 | H61: 20160607 | I61: 1 | J61: -2.62 | L61: 269.46 | M61: IC40 S M2 | N61: SLD | O61: Même sens | Q61: -2.62
C62: CAC40 | D62: 1 | E62: SLD | F62: 4468.5 | G62: 0.6690046296 | H62: 20160607 | I62: 1.18 | J62: 0 | L62: 269.46 | N62: BUY | Q62: 0
C63: CAC40 | D63: 1 | E63: SLD | F63: 4476 | G63: 0.7250462963 | H63: 20160607 | I63: 1.18 | J63: 0 | L63: 269.46 | N63: BUY | Q63: 0
C64: CAC40 | D64: 1 | E64: BOT | F64: 4465.5 | G64: 0.8748611111 | H64: 20160607 | I64: 1.18 | J64: 65.14 | L64: 334.6 | M64: Trading de Niveau D | N64: SLD | Q64: 6.514
C65: CAC40 | D65: 1 | E65: BOT | F65: 4457 | G65: 0.9105555556 | H65: 20160607 | I65: 1.18 | J65: 150.14 | L65: 484.74 | M65: Trading de Niveau D | N65: SLD | Q65: 15.014
C66: 0 | D66: 0 | E66: 0 | F66: 0 | G66: 0 | H66: 0 | I66: 0 | J66: 0 | L66: 484.74
C67: 0 | D67: 0 | E67: 0 | F67: 0 | G67: 0 | H67: 0 | I67: 0 | J67: 0 | L67: 484.74
C68: 0 | D68: 0 | E68: 0 | F68: 0 | G68: 0 | H68: 0 | I68: 0 | J68: 0 | L68: 484.74
C69: 0 | D69: 0 | E69: 0 | F69: 0 | G69: 0 | H69: 0 | I69: 0 | J69: 0 | L69: 484.74
C70: 0 | D70: 0 | E70: 0 | F70: 0 | G70: 0 | H70: 0 | I70: 0 | J70: 0 | L70: 484.74
C71: 0 | D71: 0 | E71: 0 | F71: 0 | G71: 0 | H71: 0 | I71: 0 | J71: 0 | L71: 484.74
C72: 0 | D72: 0 | E72: 0 | F72: 0 | G72: 0 | H72: 0 | I72: 0 | J72: 0 | L72: 484.74
C73: 0 | D73: 0 | E73: 0 | F73: 0 | G73: 0 | H73: 0 | I73: 0 | J73: 0 | L73: 484.74
C74: 0 | D74: 0 | E74: 0 | F74: 0 | G74: 0 | H74: 0 | I74: 0 | J74: 0 | L74: 484.74
C75: 0 | D75: 0 | E75: 0 | F75: 0 | G75: 0 | H75: 0 | I75: 0 | J75: 0 | L75: 484.74
C76: 0 | D76: 0 | E76: 0 | F76: 0 | G76: 0 | H76: 0 | I76: 0 | J76: 0 | L76: 484.74
C77: 0 | D77: 0 | E77: 0 | F77: 0 | G77: 0 | H77: 0 | I77: 0 | J77: 0 | L77: 484.74
C78: 0 | D78: 0 | E78: 0 | F78: 0 | G78: 0 | H78: 0 | I78: 0 | J78: 0 | L78: 484.74
C79: 0 | D79: 0 | E79: 0 | F79: 0 | G79: 0 | H79: 0 | I79: 0 | J79: 0 | L79: 484.74
C80: 0 | D80: 0 | E80: 0 | F80: 0 | G80: 0 | H80: 0 | I80: 0 | J80: 0 | L80: 484.74
C81: 0 | D81: 0 | E81: 0 | F81: 0 | G81: 0 | H81: 0 | I81: 0 | J81: 0 | L81: 484.74
C82: 0 | D82: 0 | E82: 0 | F82: 0 | G82: 0 | H82: 0 | I82: 0 | J82: 0 | L82: 484.74
C83: 0 | D83: 0 | E83: 0 | F83: 0 | G83: 0 | H83: 0 | I83: 0 | J83: 0 | L83: 484.74
C84: 0 | D84: 0 | E84: 0 | F84: 0 | G84: 0 | H84: 0 | I84: 0 | J84: 0 | L84: 484.74
C85: 0 | D85: 0 | E85: 0 | F85: 0 | G85: 0 | H85: 0 | I85: 0 | J85: 0 | L85: 484.74
C86: 0 | D86: 0 | E86: 0 | F86: 0 | G86: 0 | H86: 0 | I86: 0 | J86: 0 | L86: 484.74
C87: 0 | D87: 0 | E87: 0 | F87: 0 | G87: 0 | H87: 0 | I87: 0 | J87: 0 | L87: 484.74
C88: 0 | D88: 0 | E88: 0 | F88: 0 | G88: 0 | H88: 0 | I88: 0 | J88: 0 | L88: 484.74
C89: 0 | D89: 0 | E89: 0 | F89: 0 | G89: 0 | H89: 0 | I89: 0 | J89: 0 | L89: 484.74
C90: 0 | D90: 0 | E90: 0 | F90: 0 | G90: 0 | H90: 0 | I90: 0 | J90: 0 | L90: 484.74 | N90: =IF(E90=0,"",IF(E90="SLD","BUY","SLD")) -> 
C91: 0 | D91: 0 | E91: 0 | F91: 0 | G91: 0 | H91: 0 | I91: 0 | J91: 0 | L91: 484.74
C92: 0 | D92: 0 | E92: 0 | F92: 0 | G92: 0 | H92: 0 | I92: 0 | J92: 0 | L92: =+J92+L91 -> 484.74
C93: 0 | D93: 0 | E93: 0 | F93: 0 | G93: 0 | H93: 0 | I93: 0 | J93: 0 | L93: 484.74
C94: 0 | D94: 0 | E94: 0 | F94: 0 | G94: 0 | H94: 0 | I94: 0 | J94: 0 | L94: 484.74
C95: 0 | D95: 0 | E95: 0 | F95: 0 | G95: 0 | H95: 0 | I95: 0 | J95: 0 | L95: 484.74
C96: 0 | D96: 0 | E96: 0 | F96: 0 | G96: 0 | H96: 0 | I96: 0 | J96: 0 | L96: 484.74
C97: 0 | D97: 0 | E97: 0 | F97: 0 | G97: 0 | H97: 0 | I97: 0 | J97: 0 | L97: 484.74
C98: 0 | D98: 0 | E98: 0 | F98: 0 | G98: 0 | H98: 0 | I98: 0 | J98: 0 | L98: 484.74
C99: 0 | D99: 0 | E99: 0 | F99: 0 | G99: 0 | H99: 0 | I99: 0 | J99: 0 | L99: 484.74
C100: 0 | D100: 0 | E100: 0 | F100: 0 | G100: 0 | H100: 0 | I100: 0 | J100: 0 | L100: 484.74
C101: 0 | D101: 0 | E101: 0 | F101: 0 | G101: 0 | H101: 0 | I101: 0 | J101: 0 | L101: 484.74
C102: 0 | D102: 0 | E102: 0 | F102: 0 | G102: 0 | H102: 0 | I102: 0 | J102: 0 | L102: 484.74
C103: 0 | D103: 0 | E103: 0 | F103: 0 | G103: 0 | H103: 0 | I103: 0 | J103: 0 | L103: 484.74
C104: 0 | D104: 0 | E104: 0 | F104: 0 | G104: 0 | H104: 0 | I104: 0 | J104: 0 | L104: 484.74
C105: 0 | D105: 0 | E105: 0 | F105: 0 | G105: 0 | H105: 0 | I105: 0 | J105: 0 | L105: 484.74
C106: 0 | D106: 0 | E106: 0 | F106: 0 | G106: 0 | H106: 0 | I106: 0 | J106: 0 | L106: 484.74 | Q106: =IF(C106=0,"",IF(ISERROR(J106/D106),"",(J106/D106))/IF(C106="DAX",25,IF(C106="CAC40",10,1))) -> 
C107: 0 | D107: 0 | E107: 0 | F107: 0 | G107: 0 | H107: 0 | I107: 0 | J107: 0 | L107: 484.74
C108: 0 | D108: 0 | E108: 0 | F108: 0 | G108: 0 | H108: 0 | I108: 0 | J108: 0 | L108: 484.74
C109: 0 | D109: 0 | E109: 0 | F109: 0 | G109: 0 | H109: 0 | I109: 0 | J109: 0 | L109: 484.74
C110: 0 | D110: 0 | E110: 0 | F110: 0 | G110: 0 | H110: 0 | I110: 0 | J110: 0 | L110: 484.74
C111: 0 | D111: 0 | E111: 0 | F111: 0 | G111: 0 | H111: 0 | I111: 0 | J111: 0 | L111: 484.74
C112: 0 | D112: 0 | E112: 0 | F112: 0 | G112: 0 | H112: 0 | I112: 0 | J112: 0 | L112: 484.74
C113: 0 | D113: 0 | E113: 0 | F113: 0 | G113: 0 | H113: 0 | I113: 0 | J113: 0 | L113: 484.74
C114: 0 | D114: 0 | E114: 0 | F114: 0 | G114: 0 | H114: 0 | I114: 0 | J114: 0 | L114: 484.74
C115: 0 | D115: 0 | E115: 0 | F115: 0 | G115: 0 | H115: 0 | I115: 0 | J115: 0 | L115: 484.74
C116: 0 | D116: 0 | E116: 0 | F116: 0 | G116: 0 | H116: 0 | I116: 0 | J116: 0 | L116: 484.74
C117: 0 | D117: 0 | E117: 0 | F117: 0 | G117: 0 | H117: 0 | I117: 0 | J117: 0 | L117: 484.74
C118: 0 | D118: 0 | E118: 0 | F118: 0 | G118: 0 | H118: 0 | I118: 0 | J118: 0 | L118: 484.74
C119: 0 | D119: 0 | E119: 0 | F119: 0 | G119: 0 | H119: 0 | I119: 0 | J119: 0 | L119: 484.74
C120: 0 | D120: 0 | E120: 0 | F120: 0 | G120: 0 | H120: 0 | I120: 0 | J120: 0 | L120: 484.74
C121: 0 | D121: 0 | E121: 0 | F121: 0 | G121: 0 | H121: 0 | I121: 0 | J121: 0 | L121: 484.74
C122: 0 | D122: 0 | E122: 0 | F122: 0 | G122: 0 | H122: 0 | I122: 0 | J122: 0 | L122: 484.74
C123: 0 | D123: 0 | E123: 0 | F123: 0 | G123: 0 | H123: 0 | I123: 0 | J123: 0 | L123: 484.74
C124: 0 | D124: 0 | E124: 0 | F124: 0 | G124: 0 | H124: 0 | I124: 0 | J124: 0 | L124: 484.74
C125: 0 | D125: 0 | E125: 0 | F125: 0 | G125: 0 | H125: 0 | I125: 0 | J125: 0 | L125: 484.74
C126: 0 | D126: 0 | E126: 0 | F126: 0 | G126: 0 | H126: 0 | I126: 0 | J126: 0 | L126: 484.74
C127: 0 | D127: 0 | E127: 0 | F127: 0 | G127: 0 | H127: 0 | I127: 0 | J127: 0 | L127: 484.74
C128: 0 | D128: 0 | E128: 0 | F128: 0 | G128: 0 | H128: 0 | I128: 0 | J128: 0 | L128: 484.74
C129: 0 | D129: 0 | E129: 0 | F129: 0 | G129: 0 | H129: 0 | I129: 0 | J129: 0 | L129: 484.74
C130: 0 | D130: 0 | E130: 0 | F130: 0 | G130: 0 | H130: 0 | I130: 0 | J130: 0 | L130: 484.74
C131: 0 | D131: 0 | E131: 0 | F131: 0 | G131: 0 | H131: 0 | I131: 0 | J131: 0 | L131: 484.74
C132: 0 | D132: 0 | E132: 0 | F132: 0 | G132: 0 | H132: 0 | I132: 0 | J132: 0 | L132: 484.74
C133: 0 | D133: 0 | E133: 0 | F133: 0 | G133: 0 | H133: 0 | I133: 0 | J133: 0 | L133: 484.74
C134: 0 | D134: 0 | E134: 0 | F134: 0 | G134: 0 | H134: 0 | I134: 0 | J134: 0 | L134: 484.74
C135: 0 | D135: 0 | E135: 0 | F135: 0 | G135: 0 | H135: 0 | I135: 0 | J135: 0 | L135: 484.74
C136: 0 | D136: 0 | E136: 0 | F136: 0 | G136: 0 | H136: 0 | I136: 0 | J136: 0 | L136: 484.74
C137: 0 | D137: 0 | E137: 0 | F137: 0 | G137: 0 | H137: 0 | I137: 0 | J137: 0 | L137: 484.74
C138: 0 | D138: 0 | E138: 0 | F138: 0 | G138: 0 | H138: 0 | I138: 0 | J138: 0 | L138: 484.74
C139: 0 | D139: 0 | E139: 0 | F139: 0 | G139: 0 | H139: 0 | I139: 0 | J139: 0 | L139: 484.74
C140: 0 | D140: 0 | E140: 0 | F140: 0 | G140: 0 | H140: 0 | I140: 0 | J140: 0 | L140: 484.74
C141: 0 | D141: 0 | E141: 0 | F141: 0 | G141: 0 | H141: 0 | I141: 0 | J141: 0 | L141: 484.74
C142: 0 | D142: 0 | E142: 0 | F142: 0 | G142: 0 | H142: 0 | I142: 0 | J142: 0 | L142: 484.74
C143: 0 | D143: 0 | E143: 0 | F143: 0 | G143: 0 | H143: 0 | I143: 0 | J143: 0 | L143: 484.74
C144: 0 | D144: 0 | E144: 0 | F144: 0 | G144: 0 | H144: 0 | I144: 0 | J144: 0 | L144: 484.74
C145: 0 | D145: 0 | E145: 0 | F145: 0 | G145: 0 | H145: 0 | I145: 0 | J145: 0 | L145: 484.74
C146: 0 | D146: 0 | E146: 0 | F146: 0 | G146: 0 | H146: 0 | I146: 0 | J146: 0 | L146: 484.74
C147: 0 | D147: 0 | E147: 0 | F147: 0 | G147: 0 | H147: 0 | I147: 0 | J147: 0 | L147: 484.74
C148: 0 | D148: 0 | E148: 0 | F148: 0 | G148: 0 | H148: 0 | I148: 0 | J148: 0 | L148: 484.74
C149: 0 | D149: 0 | E149: 0 | F149: 0 | G149: 0 | H149: 0 | I149: 0 | J149: 0 | L149: 484.74
C150: 0 | D150: 0 | E150: 0 | F150: 0 | G150: 0 | H150: 0 | I150: 0 | J150: 0 | L150: 484.74
C151: 0 | D151: 0 | E151: 0 | F151: 0 | G151: 0 | H151: 0 | I151: 0 | J151: 0 | L151: 484.74
C152: 0 | D152: 0 | E152: 0 | F152: 0 | G152: 0 | H152: 0 | I152: 0 | J152: 0 | L152: 484.74
C153: 0 | D153: 0 | E153: 0 | F153: 0 | G153: 0 | H153: 0 | I153: 0 | J153: 0 | L153: 484.74
C154: 0 | D154: 0 | E154: 0 | F154: 0 | G154: 0 | H154: 0 | I154: 0 | J154: 0 | L154: 484.74 | N154: =IF(E154=0,"",IF(E154="SLD","BUY","SLD")) -> 
C155: 0 | D155: 0 | E155: 0 | F155: 0 | G155: 0 | H155: 0 | I155: 0 | J155: 0 | L155: 484.74
C156: 0 | D156: 0 | E156: 0 | F156: 0 | G156: 0 | H156: 0 | I156: 0 | J156: 0 | L156: =+J156+L155 -> 484.74
C157: 0 | D157: 0 | E157: 0 | F157: 0 | G157: 0 | H157: 0 | I157: 0 | J157: 0 | L157: 484.74
C158: 0 | D158: 0 | E158: 0 | F158: 0 | G158: 0 | H158: 0 | I158: 0 | J158: 0 | L158: 484.74
C159: 0 | D159: 0 | E159: 0 | F159: 0 | G159: 0 | H159: 0 | I159: 0 | J159: 0 | L159: 484.74
C160: 0 | D160: 0 | E160: 0 | F160: 0 | G160: 0 | H160: 0 | I160: 0 | J160: 0 | L160: 484.74
C161: 0 | D161: 0 | E161: 0 | F161: 0 | G161: 0 | H161: 0 | I161: 0 | J161: 0 | L161: 484.74
C162: 0 | D162: 0 | E162: 0 | F162: 0 | G162: 0 | H162: 0 | I162: 0 | J162: 0 | L162: 484.74
C163: 0 | D163: 0 | E163: 0 | F163: 0 | G163: 0 | H163: 0 | I163: 0 | J163: 0 | L163: 484.74
C164: 0 | D164: 0 | E164: 0 | F164: 0 | G164: 0 | H164: 0 | I164: 0 | J164: 0 | L164: 484.74
C165: 0 | D165: 0 | E165: 0 | F165: 0 | G165: 0 | H165: 0 | I165: 0 | J165: 0 | L165: 484.74
C166: 0 | D166: 0 | E166: 0 | F166: 0 | G166: 0 | H166: 0 | I166: 0 | J166: 0 | L166: 484.74
C167: 0 | D167: 0 | E167: 0 | F167: 0 | G167: 0 | H167: 0 | I167: 0 | J167: 0 | L167: 484.74
C168: 0 | D168: 0 | E168: 0 | F168: 0 | G168: 0 | H168: 0 | I168: 0 | J168: 0 | L168: 484.74
C169: 0 | D169: 0 | E169: 0 | F169: 0 | G169: 0 | H169: 0 | I169: 0 | J169: 0 | L169: 484.74
C170: 0 | D170: 0 | E170: 0 | F170: 0 | G170: 0 | H170: 0 | I170: 0 | J170: 0 | L170: 484.74 | Q170: =IF(C170=0,"",IF(ISERROR(J170/D170),"",(J170/D170))/IF(C170="DAX",25,IF(C170="CAC40",10,1))) -> 
C171: 0 | D171: 0 | E171: 0 | F171: 0 | G171: 0 | H171: 0 | I171: 0 | J171: 0 | L171: 484.74
C172: 0 | D172: 0 | E172: 0 | F172: 0 | G172: 0 | H172: 0 | I172: 0 | J172: 0 | L172: 484.74
C173: 0 | D173: 0 | E173: 0 | F173: 0 | G173: 0 | H173: 0 | I173: 0 | J173: 0 | L173: 484.74
C174: 0 | D174: 0 | E174: 0 | F174: 0 | G174: 0 | H174: 0 | I174: 0 | J174: 0 | L174: 484.74
C175: 0 | D175: 0 | E175: 0 | F175: 0 | G175: 0 | H175: 0 | I175: 0 | J175: 0 | L175: 484.74
C176: 0 | D176: 0 | E176: 0 | F176: 0 | G176: 0 | H176: 0 | I176: 0 | J176: 0 | L176: 484.74
C177: 0 | D177: 0 | E177: 0 | F177: 0 | G177: 0 | H177: 0 | I177: 0 | J177: 0 | L177: 484.74
C178: 0 | D178: 0 | E178: 0 | F178: 0 | G178: 0 | H178: 0 | I178: 0 | J178: 0 | L178: 484.74
C179: 0 | D179: 0 | E179: 0 | F179: 0 | G179: 0 | H179: 0 | I179: 0 | J179: 0 | L179: 484.74
C180: 0 | D180: 0 | E180: 0 | F180: 0 | G180: 0 | H180: 0 | I180: 0 | J180: 0 | L180: 484.74
C181: 0 | D181: 0 | E181: 0 | F181: 0 | G181: 0 | H181: 0 | I181: 0 | J181: 0 | L181: 484.74
C182: 0 | D182: 0 | E182: 0 | F182: 0 | G182: 0 | H182: 0 | I182: 0 | J182: 0 | L182: 484.74
C183: 0 | D183: 0 | E183: 0 | F183: 0 | G183: 0 | H183: 0 | I183: 0 | J183: 0 | L183: 484.74
C184: 0 | D184: 0 | E184: 0 | F184: 0 | G184: 0 | H184: 0 | I184: 0 | J184: 0 | L184: 484.74
C185: 0 | D185: 0 | E185: 0 | F185: 0 | G185: 0 | H185: 0 | I185: 0 | J185: 0 | L185: 484.74
C186: 0 | D186: 0 | E186: 0 | F186: 0 | G186: 0 | H186: 0 | I186: 0 | J186: 0 | L186: 484.74
C187: 0 | D187: 0 | E187: 0 | F187: 0 | G187: 0 | H187: 0 | I187: 0 | J187: 0 | L187: 484.74
C188: 0 | D188: 0 | E188: 0 | F188: 0 | G188: 0 | H188: 0 | I188: 0 | J188: 0 | L188: 484.74
C189: 0 | D189: 0 | E189: 0 | F189: 0 | G189: 0 | H189: 0 | I189: 0 | J189: 0 | L189: 484.74
C190: 0 | D190: 0 | E190: 0 | F190: 0 | G190: 0 | H190: 0 | I190: 0 | J190: 0 | L190: 484.74
C191: 0 | D191: 0 | E191: 0 | F191: 0 | G191: 0 | H191: 0 | I191: 0 | J191: 0 | L191: 484.74
C192: 0 | D192: 0 | E192: 0 | F192: 0 | G192: 0 | H192: 0 | I192: 0 | J192: 0 | L192: 484.74
C193: 0 | D193: 0 | E193: 0 | F193: 0 | G193: 0 | H193: 0 | I193: 0 | J193: 0 | L193: 484.74
C194: 0 | D194: 0 | E194: 0 | F194: 0 | G194: 0 | H194: 0 | I194: 0 | J194: 0 | L194: 484.74
C195: 0 | D195: 0 | E195: 0 | F195: 0 | G195: 0 | H195: 0 | I195: 0 | J195: 0 | L195: 484.74
C196: 0 | D196: 0 | E196: 0 | F196: 0 | G196: 0 | H196: 0 | I196: 0 | J196: 0 | L196: 484.74
C197: 0 | D197: 0 | E197: 0 | F197: 0 | G197: 0 | H197: 0 | I197: 0 | J197: 0 | L197: 484.74
C198: 0 | D198: 0 | E198: 0 | F198: 0 | G198: 0 | H198: 0 | I198: 0 | J198: 0 | L198: 484.74
C199: 0 | D199: 0 | E199: 0 | F199: 0 | G199: 0 | H199: 0 | I199: 0 | J199: 0 | L199: 484.74
C200: 0 | D200: 0 | E200: 0 | F200: 0 | G200: 0 | H200: 0 | I200: 0 | J200: 0 | L200: 484.74
C201: 0 | D201: 0 | E201: 0 | F201: 0 | G201: 0 | H201: 0 | I201: 0 | J201: 0 | L201: 484.74
C202: 0 | D202: 0 | E202: 0 | F202: 0 | G202: 0 | H202: 0 | I202: 0 | J202: 0 | L202: 484.74
C203: 0 | D203: 0 | E203: 0 | F203: 0 | G203: 0 | H203: 0 | I203: 0 | J203: 0 | L203: 484.74
C204: 0 | D204: 0 | E204: 0 | F204: 0 | G204: 0 | H204: 0 | I204: 0 | J204: 0 | L204: 484.74
C205: 0 | D205: 0 | E205: 0 | F205: 0 | G205: 0 | H205: 0 | I205: 0 | J205: 0 | L205: 484.74
C206: 0 | D206: 0 | E206: 0 | F206: 0 | G206: 0 | H206: 0 | I206: 0 | J206: 0 | L206: 484.74
C207: 0 | D207: 0 | E207: 0 | F207: 0 | G207: 0 | H207: 0 | I207: 0 | J207: 0 | L207: 484.74
C208: 0 | D208: 0 | E208: 0 | F208: 0 | G208: 0 | H208: 0 | I208: 0 | J208: 0 | L208: 484.74
C209: 0 | D209: 0 | E209: 0 | F209: 0 | G209: 0 | H209: 0 | I209: 0 | J209: 0 | L209: 484.74
... 298 more rows

Sheet 08-06
AK4: B/S | AL4: Strat | AM4: M2 | AN4: Erreur
AK5: B | AL5: IC40 30S | AM5: Même sens | AN5: Oui
AK6: S | AL6: IC40S 30S | AM6: Flat | AN6: Non
AL7: IC40 30S inverse MM | AM7: Opposé
AL8: Contretendance impulsion
AL9: Trading de Niveau 30S
AL10: Trading de Niveau M2
AL11: Trading de Niveau D
AL12: Sur chiffres
AL13: Range
AL14: IC40 M2
AL15: IC40 S M2
AL16: IC40 M2 inverse MM
AL17: Cassure S/R M2
AL18: Cassure S/R H1
AL19: Cassure S/R D
C25: Underlying | D25: Quantity | E25: Contract | F25: Price | G25: Time | H25: Date | I25: Commission | J25: Realized P&L | L25: Cumul P&L | M25: Strat | N25: Sell/Buy | O25: TDCE M2 | P25: Conviction sur le marché | Q25: Pts | R25: Erreur
C26: IBDE30 | D26: 2 | E26: SLD | F26: 10237.9 | G26: 09:01:10 | H26: 20160608 | I26: 1.02 | J26: 0 | L26: =+J26 -> 0 | Q26: =IF(C26=0,"",IF(ISERROR(J26/D26),"",(J26/D26))/IF(C26="DAX",25,IF(C26="CAC40",10,1))) -> 0
C27: IBDE30 | D27: 1 | E27: SLD | F27: 10244.62 | G27: 09:03:50 | H27: 20160608 | I27: 1 | J27: 0 | L27: =+J27+L26 -> 0 | Q27: 0
C28: IBDE30 | D28: 1 | E28: BOT | F28: 10239.62 | G28: 09:11:23 | H28: 20160608 | I28: 1 | J28: -1.15 | L28: =+J28+L27 -> -1.15 | M28: IC40 30S | N28: =IF(E28=0,"",IF(E28="SLD","BUY","SLD")) -> SLD | O28: Même sens | P28: o | Q28: -1.15
C29: IBDE30 | D29: 1 | E29: BOT | F29: 10229.62 | G29: 09:12:33 | H29: 20160608 | I29: 1 | J29: 8.85 | L29: 7.7 | M29: IC40 30S | N29: =IF(E29=0,"",IF(E29="SLD","BUY","SLD")) -> SLD | O29: Même sens | P29: o | Q29: 8.85
C30: IBDE30 | D30: 1 | E30: BOT | F30: 10229.12 | G30: 09:17:46 | H30: 20160608 | I30: 1 | J30: 9.35 | L30: =+J30+L29 -> 17.05 | M30: IC40 30S | N30: SLD | O30: Même sens | P30: o | Q30: 9.35
C31: IBDE30 | D31: 1 | E31: SLD | F31: 10232.62 | G31: 09:34:48 | H31: 20160608 | I31: 1 | J31: 0 | L31: 17.05 | Q31: 0
C32: IBDE30 | D32: 1 | E32: SLD | F32: 10250.62 | G32: 09:36:54 | H32: 20160608 | I32: 1 | J32: 0 | L32: 17.05 | Q32: 0
C33: IBDE30 | D33: 1 | E33: SLD | F33: 10249.12 | G33: 09:37:43 | H33: 20160608 | I33: 1 | J33: 0 | L33: 17.05 | Q33: 0
C34: IBDE30 | D34: 1 | E34: BOT | F34: 10240.62 | G34: 09:42:32 | H34: 20160608 | I34: 1 | J34: 1.5 | L34: 18.55 | M34: Trading de Niveau 30S | N34: =IF(E34=0,"",IF(E34="SLD","BUY","SLD")) -> SLD | P34: o | Q34: 1.5
C35: IBDE30 | D35: 1 | E35: BOT | F35: 10238.62 | G35: 09:45:00 | H35: 20160608 | I35: 1 | J35: 3.5 | L35: 22.05 | M35: Trading de Niveau 30S | N35: SLD | P35: o | Q35: 3.5
C36: IBDE30 | D36: 1 | E36: SLD | F36: 10237.62 | G36: 09:47:02 | H36: 20160608 | I36: 1 | J36: 0 | L36: 22.05 | Q36: 0
C37: IBDE30 | D37: 1 | E37: BOT | F37: 10239.12 | G37: 09:47:05 | H37: 20160608 | I37: 1 | J37: -0.25 | L37: 21.8 | M37: Trading de Niveau 30S | N37: =IF(E37=0,"",IF(E37="SLD","BUY","SLD")) -> SLD | P37: o | Q37: -0.25
C38: IBDE30 | D38: 1 | E38: BOT | F38: 10239.62 | G38: 09:47:11 | H38: 20160608 | I38: 1 | J38: -0.75 | L38: 21.05 | M38: Trading de Niveau 30S | N38: SLD | P38: o | Q38: -0.75
C39: IBDE30 | D39: 1 | E39: SLD | F39: 10212.12 | G39: 09:50:39 | H39: 20160608 | I39: 1 | J39: 0 | L39: 21.05 | Q39: 0
C40: IBDE30 | D40: 1 | E40: SLD | F40: 10214.12 | G40: 09:50:52 | H40: 20160608 | I40: 1 | J40: 0 | L40: 21.05 | Q40: 0
C41: IBDE30 | D41: 1 | E41: SLD | F41: 10217.12 | G41: 09:54:45 | H41: 20160608 | I41: 1 | J41: 0 | L41: 21.05 | Q41: =IF(C41=0,"",IF(ISERROR(J41/D41),"",(J41/D41))/IF(C41="DAX",25,IF(C41="CAC40",10,1))) -> 0
C42: IBDE30 | D42: 1 | E42: BOT | F42: 10223.19 | G42: 09:55:04 | H42: 20160608 | I42: 1 | J42: -10.74 | L42: 10.31 | M42: Trading de Niveau 30S | N42: =IF(E42=0,"",IF(E42="SLD","BUY","SLD")) -> SLD | P42: o | Q42: =IF(C42=0,"",IF(ISERROR(J42/D42),"",(J42/D42))/IF(C42="DAX",25,IF(C42="CAC40",10,1))) -> -10.74
C43: IBDE30 | D43: 1 | E43: SLD | F43: 10236.62 | G43: 10:00:54 | H43: 20160608 | I43: 1 | J43: 0 | L43: 10.31 | Q43: 0
C44: IBDE30 | D44: 1 | E44: BOT | F44: 10221.62 | G44: 10:03:48 | H44: 20160608 | I44: 1 | J44: -1.78 | L44: 8.53 | M44: Cassure S/R M2 | N44: =IF(E44=0,"",IF(E44="SLD","BUY","SLD")) -> SLD | O44: Même sens | P44: o | Q44: -1.78
C45: IBDE30 | D45: 1 | E45: BOT | F45: 10222.51 | G45: 10:04:36 | H45: 20160608 | I45: 1 | J45: -2.67 | L45: 5.86 | M45: Cassure S/R M2 | N45: SLD | O45: Même sens | P45: o | Q45: -2.67
C46: IBDE30 | D46: 1 | E46: BOT | F46: 10244.12 | G46: 10:13:02 | H46: 20160608 | I46: 1 | J46: -24.28 | L46: -18.42 | M46: Cassure S/R M2 | N46: SLD | O46: Même sens | P46: o | Q46: -24.28
C47: IBDE30 | D47: 2 | E47: BOT | F47: 10254.62 | G47: 14:15:12 | H47: 20160608 | I47: 1.03 | J47: 0 | L47: -18.42 | M47: Trading de Niveau 30S | Q47: 0
C48: IBDE30 | D48: 1 | E48: BOT | F48: 10252.12 | G48: 14:15:38 | H48: 20160608 | I48: 1 | J48: 0 | L48: -18.42 | M48: Trading de Niveau 30S | Q48: 0
C49: IBDE30 | D49: 1 | E49: SLD | F49: 10244.13 | G49: 14:25:48 | H49: 20160608 | I49: 1 | J49: -11.33 | L49: -29.75 | M49: Trading de Niveau 30S | N49: =IF(E49=0,"",IF(E49="SLD","BUY","SLD")) -> BUY | P49: o | Q49: -11.33
C50: IBDE30 | D50: 1 | E50: SLD | F50: 10243.13 | G50: 14:25:56 | H50: 20160608 | I50: 1 | J50: -12.33 | L50: -42.08 | M50: Trading de Niveau 30S | N50: BUY | P50: o | Q50: -12.33
C51: IBDE30 | D51: 1 | E51: SLD | F51: 10242.63 | G51: 14:28:23 | H51: 20160608 | I51: 1 | J51: -12.83 | L51: -54.91 | M51: Trading de Niveau 30S | N51: BUY | P51: o | Q51: -12.83
C52: IBDE30 | D52: 1 | E52: SLD | F52: 10194.63 | G52: 16:22:52 | H52: 20160608 | I52: 1 | J52: 0 | L52: -54.91 | Q52: 0
C53: IBDE30 | D53: 1 | E53: SLD | F53: 10206.13 | G53: 16:26:18 | H53: 20160608 | I53: 1 | J53: 0 | L53: -54.91 | Q53: 0
C54: IBDE30 | D54: 1 | E54: SLD | F54: 10207.13 | G54: 16:26:19 | H54: 20160608 | I54: 1 | J54: 0 | L54: -54.91 | Q54: 0
C55: IBDE30 | D55: 1 | E55: SLD | F55: 10208.13 | G55: 16:26:21 | H55: 20160608 | I55: 1 | J55: 0 | L55: -54.91 | Q55: 0
C56: IBDE30 | D56: 1 | E56: SLD | F56: 10209.13 | G56: 16:27:15 | H56: 20160608 | I56: 1 | J56: 0 | L56: -54.91 | Q56: 0
C57: IBDE30 | D57: 1 | E57: SLD | F57: 10210.63 | G57: 16:27:41 | H57: 20160608 | I57: 1 | J57: 0 | L57: -54.91 | Q57: 0
C58: IBDE30 | D58: 1 | E58: SLD | F58: 10207.63 | G58: 16:28:30 | H58: 20160608 | I58: 1 | J58: 0 | L58: -54.91 | Q58: 0
C59: IBDE30 | D59: 1 | E59: SLD | F59: 10207.63 | G59: 16:28:30 | H59: 20160608 | I59: 1 | J59: 0 | L59: -54.91 | Q59: 0
C60: IBDE30 | D60: 1 | E60: SLD | F60: 10207.13 | G60: 16:28:53 | H60: 20160608 | I60: 1 | J60: 0 | L60: -54.91 | Q60: 0
C61: IBDE30 | D61: 3 | E61: BOT | F61: 10215.13 | G61: 16:33:04 | H61: 20160608 | I61: 1.53 | J61: -30.53 | L61: -85.44 | M61: IC40 30S | N61: =IF(E61=0,"",IF(E61="SLD","BUY","SLD")) -> SLD | O61: Même sens | P61: o | Q61: -10.17666667
C62: IBDE30 | D62: 1 | E62: SLD | F62: 10211.13 | G62: 16:35:42 | H62: 20160608 | I62: 1 | J62: 0 | L62: -85.44 | Q62: 0
C63: IBDE30 | D63: 2 | E63: BOT | F63: 10199.13 | G63: 17:07:18 | H63: 20160608 | I63: 1.02 | J63: 12.98 | L63: -72.46 | M63: IC40 S M2 | N63: =IF(E63=0,"",IF(E63="SLD","BUY","SLD")) -> SLD | O63: Même sens | P63: o | Q63: 6.49
C64: IBDE30 | D64: 2 | E64: BOT | F64: 10205 | G64: 17:10:02 | H64: 20160608 | I64: 1.02 | J64: 1.24 | L64: -71.22 | M64: IC40 S M2 | N64: SLD | O64: Même sens | P64: o | Q64: 0.62
C65: IBDE30 | D65: 2 | E65: BOT | F65: 10205.63 | G65: 17:10:08 | H65: 20160608 | I65: 1.02 | J65: -0.02 | L65: -71.24 | M65: IC40 S M2 | N65: SLD | O65: Même sens | P65: o | Q65: -0.01
C66: IBDE30 | D66: 1 | E66: BOT | F66: 10206.13 | G66: 17:21:41 | H66: 20160608 | I66: 1 | J66: -1 | L66: -72.24 | Q66: -1
C67: 0 | D67: 0 | E67: 0 | F67: 0 | G67: 00:00:00 | H67: 0 | I67: 0 | J67: 0 | L67: -72.24
C68: 0 | D68: 0 | E68: 0 | F68: 0 | G68: 00:00:00 | H68: 0 | I68: 0 | J68: 0 | L68: -72.24
C69: 0 | D69: 0 | E69: 0 | F69: 0 | G69: 00:00:00 | H69: 0 | I69: 0 | J69: 0 | L69: -72.24
C70: 0 | D70: 0 | E70: 0 | F70: 0 | G70: 00:00:00 | H70: 0 | I70: 0 | J70: 0 | L70: -72.24
C71: 0 | D71: 0 | E71: 0 | F71: 0 | G71: 00:00:00 | H71: 0 | I71: 0 | J71: 0 | L71: -72.24
C72: 0 | D72: 0 | E72: 0 | F72: 0 | G72: 00:00:00 | H72: 0 | I72: 0 | J72: 0 | L72: -72.24
C73: 0 | D73: 0 | E73: 0 | F73: 0 | G73: 00:00:00 | H73: 0 | I73: 0 | J73: 0 | L73: -72.24
C74: 0 | D74: 0 | E74: 0 | F74: 0 | G74: 00:00:00 | H74: 0 | I74: 0 | J74: 0 | L74: -72.24
C75: 0 | D75: 0 | E75: 0 | F75: 0 | G75: 00:00:00 | H75: 0 | I75: 0 | J75: 0 | L75: -72.24
C76: 0 | D76: 0 | E76: 0 | F76: 0 | G76: 00:00:00 | H76: 0 | I76: 0 | J76: 0 | L76: -72.24
C77: 0 | D77: 0 | E77: 0 | F77: 0 | G77: 00:00:00 | H77: 0 | I77: 0 | J77: 0 | L77: -72.24 | N77: =IF(E77=0,"",IF(E77="SLD","BUY","SLD")) -> 
C78: 0 | D78: 0 | E78: 0 | F78: 0 | G78: 00:00:00 | H78: 0 | I78: 0 | J78: 0 | L78: -72.24
C79: 0 | D79: 0 | E79: 0 | F79: 0 | G79: 00:00:00 | H79: 0 | I79: 0 | J79: 0 | L79: -72.24
C80: 0 | D80: 0 | E80: 0 | F80: 0 | G80: 00:00:00 | H80: 0 | I80: 0 | J80: 0 | L80: -72.24
C81: 0 | D81: 0 | E81: 0 | F81: 0 | G81: 00:00:00 | H81: 0 | I81: 0 | J81: 0 | L81: -72.24
C82: 0 | D82: 0 | E82: 0 | F82: 0 | G82: 00:00:00 | H82: 0 | I82: 0 | J82: 0 | L82: -72.24
C83: 0 | D83: 0 | E83: 0 | F83: 0 | G83: 00:00:00 | H83: 0 | I83: 0 | J83: 0 | L83: -72.24
C84: 0 | D84: 0 | E84: 0 | F84: 0 | G84: 00:00:00 | H84: 0 | I84: 0 | J84: 0 | L84: -72.24
C85: 0 | D85: 0 | E85: 0 | F85: 0 | G85: 00:00:00 | H85: 0 | I85: 0 | J85: 0 | L85: -72.24
C86: 0 | D86: 0 | E86: 0 | F86: 0 | G86: 00:00:00 | H86: 0 | I86: 0 | J86: 0 | L86: -72.24
C87: 0 | D87: 0 | E87: 0 | F87: 0 | G87: 00:00:00 | H87: 0 | I87: 0 | J87: 0 | L87: -72.24
C88: 0 | D88: 0 | E88: 0 | F88: 0 | G88: 00:00:00 | H88: 0 | I88: 0 | J88: 0 | L88: -72.24
C89: 0 | D89: 0 | E89: 0 | F89: 0 | G89: 00:00:00 | H89: 0 | I89: 0 | J89: 0 | L89: -72.24
C90: 0 | D90: 0 | E90: 0 | F90: 0 | G90: 00:00:00 | H90: 0 | I90: 0 | J90: 0 | L90: -72.24 | N90: =IF(E90=0,"",IF(E90="SLD","BUY","SLD")) -> 
C91: 0 | D91: 0 | E91: 0 | F91: 0 | G91: 00:00:00 | H91: 0 | I91: 0 | J91: 0 | L91: -72.24
C92: 0 | D92: 0 | E92: 0 | F92: 0 | G92: 00:00:00 | H92: 0 | I92: 0 | J92: 0 | L92: =+J92+L91 -> -72.24
C93: 0 | D93: 0 | E93: 0 | F93: 0 | G93: 00:00:00 | H93: 0 | I93: 0 | J93: 0 | L93: -72.24
C94: 0 | D94: 0 | E94: 0 | F94: 0 | G94: 00:00:00 | H94: 0 | I94: 0 | J94: 0 | L94: -72.24
C95: 0 | D95: 0 | E95: 0 | F95: 0 | G95: 00:00:00 | H95: 0 | I95: 0 | J95: 0 | L95: -72.24
C96: 0 | D96: 0 | E96: 0 | F96: 0 | G96: 00:00:00 | H96: 0 | I96: 0 | J96: 0 | L96: -72.24
C97: 0 | D97: 0 | E97: 0 | F97: 0 | G97: 00:00:00 | H97: 0 | I97: 0 | J97: 0 | L97: -72.24
C98: 0 | D98: 0 | E98: 0 | F98: 0 | G98: 00:00:00 | H98: 0 | I98: 0 | J98: 0 | L98: -72.24
C99: 0 | D99: 0 | E99: 0 | F99: 0 | G99: 00:00:00 | H99: 0 | I99: 0 | J99: 0 | L99: -72.24
C100: 0 | D100: 0 | E100: 0 | F100: 0 | G100: 00:00:00 | H100: 0 | I100: 0 | J100: 0 | L100: -72.24
C101: 0 | D101: 0 | E101: 0 | F101: 0 | G101: 00:00:00 | H101: 0 | I101: 0 | J101: 0 | L101: -72.24
C102: 0 | D102: 0 | E102: 0 | F102: 0 | G102: 00:00:00 | H102: 0 | I102: 0 | J102: 0 | L102: -72.24
C103: 0 | D103: 0 | E103: 0 | F103: 0 | G103: 00:00:00 | H103: 0 | I103: 0 | J103: 0 | L103: -72.24
C104: 0 | D104: 0 | E104: 0 | F104: 0 | G104: 00:00:00 | H104: 0 | I104: 0 | J104: 0 | L104: -72.24
C105: 0 | D105: 0 | E105: 0 | F105: 0 | G105: 00:00:00 | H105: 0 | I105: 0 | J105: 0 | L105: -72.24
C106: 0 | D106: 0 | E106: 0 | F106: 0 | G106: 00:00:00 | H106: 0 | I106: 0 | J106: 0 | L106: -72.24 | Q106: =IF(C106=0,"",IF(ISERROR(J106/D106),"",(J106/D106))/IF(C106="DAX",25,IF(C106="CAC40",10,1))) -> 
C107: 0 | D107: 0 | E107: 0 | F107: 0 | G107: 00:00:00 | H107: 0 | I107: 0 | J107: 0 | L107: -72.24
C108: 0 | D108: 0 | E108: 0 | F108: 0 | G108: 00:00:00 | H108: 0 | I108: 0 | J108: 0 | L108: -72.24
C109: 0 | D109: 0 | E109: 0 | F109: 0 | G109: 00:00:00 | H109: 0 | I109: 0 | J109: 0 | L109: -72.24
C110: 0 | D110: 0 | E110: 0 | F110: 0 | G110: 00:00:00 | H110: 0 | I110: 0 | J110: 0 | L110: -72.24
C111: 0 | D111: 0 | E111: 0 | F111: 0 | G111: 00:00:00 | H111: 0 | I111: 0 | J111: 0 | L111: -72.24
C112: 0 | D112: 0 | E112: 0 | F112: 0 | G112: 00:00:00 | H112: 0 | I112: 0 | J112: 0 | L112: -72.24
C113: 0 | D113: 0 | E113: 0 | F113: 0 | G113: 00:00:00 | H113: 0 | I113: 0 | J113: 0 | L113: -72.24
C114: 0 | D114: 0 | E114: 0 | F114: 0 | G114: 00:00:00 | H114: 0 | I114: 0 | J114: 0 | L114: -72.24
C115: 0 | D115: 0 | E115: 0 | F115: 0 | G115: 00:00:00 | H115: 0 | I115: 0 | J115: 0 | L115: -72.24
C116: 0 | D116: 0 | E116: 0 | F116: 0 | G116: 00:00:00 | H116: 0 | I116: 0 | J116: 0 | L116: -72.24
C117: 0 | D117: 0 | E117: 0 | F117: 0 | G117: 00:00:00 | H117: 0 | I117: 0 | J117: 0 | L117: -72.24
C118: 0 | D118: 0 | E118: 0 | F118: 0 | G118: 00:00:00 | H118: 0 | I118: 0 | J118: 0 | L118: -72.24
C119: 0 | D119: 0 | E119: 0 | F119: 0 | G119: 00:00:00 | H119: 0 | I119: 0 | J119: 0 | L119: -72.24
C120: 0 | D120: 0 | E120: 0 | F120: 0 | G120: 00:00:00 | H120: 0 | I120: 0 | J120: 0 | L120: -72.24
C121: 0 | D121: 0 | E121: 0 | F121: 0 | G121: 00:00:00 | H121: 0 | I121: 0 | J121: 0 | L121: -72.24
C122: 0 | D122: 0 | E122: 0 | F122: 0 | G122: 00:00:00 | H122: 0 | I122: 0 | J122: 0 | L122: -72.24
C123: 0 | D123: 0 | E123: 0 | F123: 0 | G123: 00:00:00 | H123: 0 | I123: 0 | J123: 0 | L123: -72.24
C124: 0 | D124: 0 | E124: 0 | F124: 0 | G124: 00:00:00 | H124: 0 | I124: 0 | J124: 0 | L124: -72.24
C125: 0 | D125: 0 | E125: 0 | F125: 0 | G125: 00:00:00 | H125: 0 | I125: 0 | J125: 0 | L125: -72.24
C126: 0 | D126: 0 | E126: 0 | F126: 0 | G126: 00:00:00 | H126: 0 | I126: 0 | J126: 0 | L126: -72.24
C127: 0 | D127: 0 | E127: 0 | F127: 0 | G127: 00:00:00 | H127: 0 | I127: 0 | J127: 0 | L127: -72.24
C128: 0 | D128: 0 | E128: 0 | F128: 0 | G128: 00:00:00 | H128: 0 | I128: 0 | J128: 0 | L128: -72.24
C129: 0 | D129: 0 | E129: 0 | F129: 0 | G129: 00:00:00 | H129: 0 | I129: 0 | J129: 0 | L129: -72.24
C130: 0 | D130: 0 | E130: 0 | F130: 0 | G130: 00:00:00 | H130: 0 | I130: 0 | J130: 0 | L130: -72.24
C131: 0 | D131: 0 | E131: 0 | F131: 0 | G131: 00:00:00 | H131: 0 | I131: 0 | J131: 0 | L131: -72.24
C132: 0 | D132: 0 | E132: 0 | F132: 0 | G132: 00:00:00 | H132: 0 | I132: 0 | J132: 0 | L132: -72.24
C133: 0 | D133: 0 | E133: 0 | F133: 0 | G133: 00:00:00 | H133: 0 | I133: 0 | J133: 0 | L133: -72.24
C134: 0 | D134: 0 | E134: 0 | F134: 0 | G134: 00:00:00 | H134: 0 | I134: 0 | J134: 0 | L134: -72.24
C135: 0 | D135: 0 | E135: 0 | F135: 0 | G135: 00:00:00 | H135: 0 | I135: 0 | J135: 0 | L135: -72.24
C136: 0 | D136: 0 | E136: 0 | F136: 0 | G136: 00:00:00 | H136: 0 | I136: 0 | J136: 0 | L136: -72.24
C137: 0 | D137: 0 | E137: 0 | F137: 0 | G137: 00:00:00 | H137: 0 | I137: 0 | J137: 0 | L137: -72.24
C138: 0 | D138: 0 | E138: 0 | F138: 0 | G138: 00:00:00 | H138: 0 | I138: 0 | J138: 0 | L138: -72.24
C139: 0 | D139: 0 | E139: 0 | F139: 0 | G139: 00:00:00 | H139: 0 | I139: 0 | J139: 0 | L139: -72.24
C140: 0 | D140: 0 | E140: 0 | F140: 0 | G140: 00:00:00 | H140: 0 | I140: 0 | J140: 0 | L140: -72.24
C141: 0 | D141: 0 | E141: 0 | F141: 0 | G141: 00:00:00 | H141: 0 | I141: 0 | J141: 0 | L141: -72.24
C142: 0 | D142: 0 | E142: 0 | F142: 0 | G142: 00:00:00 | H142: 0 | I142: 0 | J142: 0 | L142: -72.24
C143: 0 | D143: 0 | E143: 0 | F143: 0 | G143: 00:00:00 | H143: 0 | I143: 0 | J143: 0 | L143: -72.24
C144: 0 | D144: 0 | E144: 0 | F144: 0 | G144: 00:00:00 | H144: 0 | I144: 0 | J144: 0 | L144: -72.24
C145: 0 | D145: 0 | E145: 0 | F145: 0 | G145: 00:00:00 | H145: 0 | I145: 0 | J145: 0 | L145: -72.24
C146: 0 | D146: 0 | E146: 0 | F146: 0 | G146: 00:00:00 | H146: 0 | I146: 0 | J146: 0 | L146: -72.24
C147: 0 | D147: 0 | E147: 0 | F147: 0 | G147: 00:00:00 | H147: 0 | I147: 0 | J147: 0 | L147: -72.24
C148: 0 | D148: 0 | E148: 0 | F148: 0 | G148: 00:00:00 | H148: 0 | I148: 0 | J148: 0 | L148: -72.24
C149: 0 | D149: 0 | E149: 0 | F149: 0 | G149: 00:00:00 | H149: 0 | I149: 0 | J149: 0 | L149: -72.24
C150: 0 | D150: 0 | E150: 0 | F150: 0 | G150: 00:00:00 | H150: 0 | I150: 0 | J150: 0 | L150: -72.24
C151: 0 | D151: 0 | E151: 0 | F151: 0 | G151: 00:00:00 | H151: 0 | I151: 0 | J151: 0 | L151: -72.24
C152: 0 | D152: 0 | E152: 0 | F152: 0 | G152: 00:00:00 | H152: 0 | I152: 0 | J152: 0 | L152: -72.24
C153: 0 | D153: 0 | E153: 0 | F153: 0 | G153: 00:00:00 | H153: 0 | I153: 0 | J153: 0 | L153: -72.24
C154: 0 | D154: 0 | E154: 0 | F154: 0 | G154: 00:00:00 | H154: 0 | I154: 0 | J154: 0 | L154: -72.24 | N154: =IF(E154=0,"",IF(E154="SLD","BUY","SLD")) -> 
C155: 0 | D155: 0 | E155: 0 | F155: 0 | G155: 00:00:00 | H155: 0 | I155: 0 | J155: 0 | L155: -72.24
C156: 0 | D156: 0 | E156: 0 | F156: 0 | G156: 00:00:00 | H156: 0 | I156: 0 | J156: 0 | L156: =+J156+L155 -> -72.24
C157: 0 | D157: 0 | E157: 0 | F157: 0 | G157: 00:00:00 | H157: 0 | I157: 0 | J157: 0 | L157: -72.24
C158: 0 | D158: 0 | E158: 0 | F158: 0 | G158: 00:00:00 | H158: 0 | I158: 0 | J158: 0 | L158: -72.24
C159: 0 | D159: 0 | E159: 0 | F159: 0 | G159: 00:00:00 | H159: 0 | I159: 0 | J159: 0 | L159: -72.24
C160: 0 | D160: 0 | E160: 0 | F160: 0 | G160: 00:00:00 | H160: 0 | I160: 0 | J160: 0 | L160: -72.24
C161: 0 | D161: 0 | E161: 0 | F161: 0 | G161: 00:00:00 | H161: 0 | I161: 0 | J161: 0 | L161: -72.24
C162: 0 | D162: 0 | E162: 0 | F162: 0 | G162: 00:00:00 | H162: 0 | I162: 0 | J162: 0 | L162: -72.24
C163: 0 | D163: 0 | E163: 0 | F163: 0 | G163: 00:00:00 | H163: 0 | I163: 0 | J163: 0 | L163: -72.24
C164: 0 | D164: 0 | E164: 0 | F164: 0 | G164: 00:00:00 | H164: 0 | I164: 0 | J164: 0 | L164: -72.24
C165: 0 | D165: 0 | E165: 0 | F165: 0 | G165: 00:00:00 | H165: 0 | I165: 0 | J165: 0 | L165: -72.24
C166: 0 | D166: 0 | E166: 0 | F166: 0 | G166: 00:00:00 | H166: 0 | I166: 0 | J166: 0 | L166: -72.24
C167: 0 | D167: 0 | E167: 0 | F167: 0 | G167: 00:00:00 | H167: 0 | I167: 0 | J167: 0 | L167: -72.24
C168: 0 | D168: 0 | E168: 0 | F168: 0 | G168: 00:00:00 | H168: 0 | I168: 0 | J168: 0 | L168: -72.24
C169: 0 | D169: 0 | E169: 0 | F169: 0 | G169: 00:00:00 | H169: 0 | I169: 0 | J169: 0 | L169: -72.24
C170: 0 | D170: 0 | E170: 0 | F170: 0 | G170: 00:00:00 | H170: 0 | I170: 0 | J170: 0 | L170: -72.24 | Q170: =IF(C170=0,"",IF(ISERROR(J170/D170),"",(J170/D170))/IF(C170="DAX",25,IF(C170="CAC40",10,1))) -> 
C171: 0 | D171: 0 | E171: 0 | F171: 0 | G171: 00:00:00 | H171: 0 | I171: 0 | J171: 0 | L171: -72.24
C172: 0 | D172: 0 | E172: 0 | F172: 0 | G172: 00:00:00 | H172: 0 | I172: 0 | J172: 0 | L172: -72.24
C173: 0 | D173: 0 | E173: 0 | F173: 0 | G173: 00:00:00 | H173: 0 | I173: 0 | J173: 0 | L173: -72.24
C174: 0 | D174: 0 | E174: 0 | F174: 0 | G174: 00:00:00 | H174: 0 | I174: 0 | J174: 0 | L174: -72.24
C175: 0 | D175: 0 | E175: 0 | F175: 0 | G175: 00:00:00 | H175: 0 | I175: 0 | J175: 0 | L175: -72.24
C176: 0 | D176: 0 | E176: 0 | F176: 0 | G176: 00:00:00 | H176: 0 | I176: 0 | J176: 0 | L176: -72.24
C177: 0 | D177: 0 | E177: 0 | F177: 0 | G177: 00:00:00 | H177: 0 | I177: 0 | J177: 0 | L177: -72.24
C178: 0 | D178: 0 | E178: 0 | F178: 0 | G178: 00:00:00 | H178: 0 | I178: 0 | J178: 0 | L178: -72.24
C179: 0 | D179: 0 | E179: 0 | F179: 0 | G179: 00:00:00 | H179: 0 | I179: 0 | J179: 0 | L179: -72.24
C180: 0 | D180: 0 | E180: 0 | F180: 0 | G180: 00:00:00 | H180: 0 | I180: 0 | J180: 0 | L180: -72.24
C181: 0 | D181: 0 | E181: 0 | F181: 0 | G181: 00:00:00 | H181: 0 | I181: 0 | J181: 0 | L181: -72.24
C182: 0 | D182: 0 | E182: 0 | F182: 0 | G182: 00:00:00 | H182: 0 | I182: 0 | J182: 0 | L182: -72.24
C183: 0 | D183: 0 | E183: 0 | F183: 0 | G183: 00:00:00 | H183: 0 | I183: 0 | J183: 0 | L183: -72.24
C184: 0 | D184: 0 | E184: 0 | F184: 0 | G184: 00:00:00 | H184: 0 | I184: 0 | J184: 0 | L184: -72.24
C185: 0 | D185: 0 | E185: 0 | F185: 0 | G185: 00:00:00 | H185: 0 | I185: 0 | J185: 0 | L185: -72.24
C186: 0 | D186: 0 | E186: 0 | F186: 0 | G186: 00:00:00 | H186: 0 | I186: 0 | J186: 0 | L186: -72.24
C187: 0 | D187: 0 | E187: 0 | F187: 0 | G187: 00:00:00 | H187: 0 | I187: 0 | J187: 0 | L187: -72.24
C188: 0 | D188: 0 | E188: 0 | F188: 0 | G188: 00:00:00 | H188: 0 | I188: 0 | J188: 0 | L188: -72.24
C189: 0 | D189: 0 | E189: 0 | F189: 0 | G189: 00:00:00 | H189: 0 | I189: 0 | J189: 0 | L189: -72.24
C190: 0 | D190: 0 | E190: 0 | F190: 0 | G190: 00:00:00 | H190: 0 | I190: 0 | J190: 0 | L190: -72.24
C191: 0 | D191: 0 | E191: 0 | F191: 0 | G191: 00:00:00 | H191: 0 | I191: 0 | J191: 0 | L191: -72.24
C192: 0 | D192: 0 | E192: 0 | F192: 0 | G192: 00:00:00 | H192: 0 | I192: 0 | J192: 0 | L192: -72.24
C193: 0 | D193: 0 | E193: 0 | F193: 0 | G193: 00:00:00 | H193: 0 | I193: 0 | J193: 0 | L193: -72.24
C194: 0 | D194: 0 | E194: 0 | F194: 0 | G194: 00:00:00 | H194: 0 | I194: 0 | J194: 0 | L194: -72.24
C195: 0 | D195: 0 | E195: 0 | F195: 0 | G195: 00:00:00 | H195: 0 | I195: 0 | J195: 0 | L195: -72.24
C196: 0 | D196: 0 | E196: 0 | F196: 0 | G196: 00:00:00 | H196: 0 | I196: 0 | J196: 0 | L196: -72.24
C197: 0 | D197: 0 | E197: 0 | F197: 0 | G197: 00:00:00 | H197: 0 | I197: 0 | J197: 0 | L197: -72.24
C198: 0 | D198: 0 | E198: 0 | F198: 0 | G198: 00:00:00 | H198: 0 | I198: 0 | J198: 0 | L198: -72.24
C199: 0 | D199: 0 | E199: 0 | F199: 0 | G199: 00:00:00 | H199: 0 | I199: 0 | J199: 0 | L199: -72.24
C200: 0 | D200: 0 | E200: 0 | F200: 0 | G200: 00:00:00 | H200: 0 | I200: 0 | J200: 0 | L200: -72.24
C201: 0 | D201: 0 | E201: 0 | F201: 0 | G201: 00:00:00 | H201: 0 | I201: 0 | J201: 0 | L201: -72.24
C202: 0 | D202: 0 | E202: 0 | F202: 0 | G202: 00:00:00 | H202: 0 | I202: 0 | J202: 0 | L202: -72.24
C203: 0 | D203: 0 | E203: 0 | F203: 0 | G203: 00:00:00 | H203: 0 | I203: 0 | J203: 0 | L203: -72.24
C204: 0 | D204: 0 | E204: 0 | F204: 0 | G204: 00:00:00 | H204: 0 | I204: 0 | J204: 0 | L204: -72.24
C205: 0 | D205: 0 | E205: 0 | F205: 0 | G205: 00:00:00 | H205: 0 | I205: 0 | J205: 0 | L205: -72.24
C206: 0 | D206: 0 | E206: 0 | F206: 0 | G206: 00:00:00 | H206: 0 | I206: 0 | J206: 0 | L206: -72.24
C207: 0 | D207: 0 | E207: 0 | F207: 0 | G207: 00:00:00 | H207: 0 | I207: 0 | J207: 0 | L207: -72.24
C208: 0 | D208: 0 | E208: 0 | F208: 0 | G208: 00:00:00 | H208: 0 | I208: 0 | J208: 0 | L208: -72.24
... 299 more rows

Sheet 09-06
AK4: B/S | AL4: Strat | AM4: M2 | AN4: Erreur
AK5: B | AL5: IC40 30S | AM5: Même sens | AN5: Oui
AK6: S | AL6: IC40S 30S | AM6: Flat | AN6: Non
AL7: IC40 30S inverse MM | AM7: Opposé
AL8: Contretendance impulsion
AL9: Trading de Niveau 30S
AL10: Trading de Niveau M2
AL11: Trading de Niveau H1
AL12: Trading de Niveau D
AL13: Sur chiffres
AL14: Range
AL15: IC40 M2
AL16: IC40 S M2
AL17: IC40 M2 inverse MM
AL18: Cassure S/R M2
AL19: Cassure S/R H1
AL20: Cassure S/R D
C25: Underlying | D25: Quantity | E25: Contract | F25: Price | G25: Time | H25: Date | I25: Commission | J25: Realized P&L | L25: Cumul P&L | M25: Strat | N25: Sell/Buy | O25: TDCE M2 | P25: Conviction sur le marché | Q25: Pts | R25: Erreur
C26: IBDE30 | D26: 3 | E26: SLD | F26: 10125.09 | G26: 0.3925810185 | H26: 20160609 | I26: 1.52 | J26: 0 | L26: =+J26 -> 0 | Q26: =IF(C26=0,"",IF(ISERROR(J26/D26),"",(J26/D26))/IF(C26="DAX",25,IF(C26="CAC40",10,1))) -> 0
C27: IBDE30 | D27: 1 | E27: BOT | F27: 10117.81 | G27: 09:25:22 | H27: 20160609 | I27: 1 | J27: 5.77 | L27: =+J27+L26 -> 5.77 | M27: IC40 30S | N27: =IF(E27=0,"",IF(E27="SLD","BUY","SLD")) -> SLD | O27: Même sens | P27: o | Q27: 5.77
C28: IBDE30 | D28: 1 | E28: BOT | F28: 10126.75 | G28: 09:27:11 | H28: 20160609 | I28: 1 | J28: -3.17 | L28: =+J28+L27 -> 2.6 | M28: IC40 30S | N28: =IF(E28=0,"",IF(E28="SLD","BUY","SLD")) -> SLD | O28: Même sens | P28: o | Q28: -3.17
C29: IBDE30 | D29: 1 | E29: BOT | F29: 10127.25 | G29: 09:27:24 | H29: 20160609 | I29: 1 | J29: -3.67 | L29: -1.07 | M29: IC40 30S | N29: SLD | O29: Même sens | P29: o | Q29: -3.67
C30: IBDE30 | D30: 1 | E30: SLD | F30: 10111.76 | G30: 0.3968402778 | H30: 20160609 | I30: 1 | J30: 0 | L30: =+J30+L29 -> -1.07 | N30: BUY | P30: o | Q30: 0
C31: IBDE30 | D31: 1 | E31: SLD | F31: 10112.26 | G31: 0.3969097222 | H31: 20160609 | I31: 1 | J31: 0 | L31: -1.07 | N31: BUY | Q31: 0
C32: IBDE30 | D32: 1 | E32: BOT | F32: 10106.26 | G32: 09:32:07 | H32: 20160609 | I32: 1 | J32: 3.75 | L32: 2.68 | M32: IC40 30S | N32: SLD | O32: Même sens | P32: o | Q32: 3.75
C33: IBDE30 | D33: 1 | E33: BOT | F33: 10116.76 | G33: 09:43:58 | H33: 20160609 | I33: 1 | J33: -6.75 | L33: -4.07 | M33: IC40 30S | N33: SLD | O33: Même sens | P33: o | Q33: -6.75
C34: IBDE30 | D34: 1 | E34: SLD | F34: 10096.26 | G34: 0.4103819444 | H34: 20160609 | I34: 1 | J34: 0 | L34: -4.07 | N34: BUY | P34: o | Q34: 0
C35: IBDE30 | D35: 1 | E35: BOT | F35: 10087.26 | G35: 09:51:18 | H35: 20160609 | I35: 1 | J35: 7 | L35: 2.93 | M35: IC40 30S | N35: SLD | O35: Même sens | P35: o | Q35: 7
C36: IBDE30 | D36: 1 | E36: BOT | F36: 10090.76 | G36: 0.4529861111 | H36: 20160609 | I36: 1 | J36: 0 | L36: 2.93 | N36: SLD | Q36: 0
C37: IBDE30 | D37: 1 | E37: BOT | F37: 10090.26 | G37: 0.4530671296 | H37: 20160609 | I37: 1 | J37: 0 | L37: 2.93 | N37: SLD | P37: o | Q37: 0
C38: IBDE30 | D38: 1 | E38: SLD | F38: 10093.26 | G38: 10:56:07 | H38: 20160609 | I38: 1 | J38: 0.75 | L38: 3.68 | M38: IC40 30S inverse MM | N38: BUY | O38: Opposé | P38: o | Q38: 0.75
C39: IBDE30 | D39: 1 | E39: SLD | F39: 10102.26 | G39: 11:00:00 | H39: 20160609 | I39: 1 | J39: 9.75 | L39: 13.43 | M39: IC40 30S inverse MM | N39: BUY | O39: Opposé | P39: o | Q39: 9.75
C40: IBDE30 | D40: 4 | E40: BOT | F40: 10079.75 | G40: 0.5224074074 | H40: 20160609 | I40: 2.02 | J40: 0 | L40: 13.43 | N40: SLD | Q40: 0
C41: IBDE30 | D41: 2 | E41: BOT | F41: 10077.75 | G41: 0.5226736111 | H41: 20160609 | I41: 1.01 | J41: 0 | L41: 13.43 | N41: SLD | Q41: =IF(C41=0,"",IF(ISERROR(J41/D41),"",(J41/D41))/IF(C41="DAX",25,IF(C41="CAC40",10,1))) -> 0
C42: IBDE30 | D42: 3 | E42: SLD | F42: 10094.75 | G42: 12:52:55 | H42: 20160609 | I42: 1.51 | J42: 43.97 | L42: 57.4 | M42: Cassure S/R H1 | N42: BUY | O42: Flat | P42: o | Q42: =IF(C42=0,"",IF(ISERROR(J42/D42),"",(J42/D42))/IF(C42="DAX",25,IF(C42="CAC40",10,1))) -> 14.65666667
C43: IBDE30 | D43: 1 | E43: SLD | F43: 10095.25 | G43: 12:53:43 | H43: 20160609 | I43: 1 | J43: 14.66 | L43: 72.06 | M43: Cassure S/R H1 | N43: BUY | O43: Flat | P43: o | Q43: 14.66
C44: IBDE30 | D44: 1 | E44: SLD | F44: 10094.75 | G44: 12:54:07 | H44: 20160609 | I44: 1 | J44: 14.16 | L44: 86.22 | M44: Cassure S/R H1 | N44: BUY | O44: Flat | P44: o | Q44: 14.16
C45: IBDE30 | D45: 1 | E45: SLD | F45: 10096.25 | G45: 12:54:21 | H45: 20160609 | I45: 1 | J45: 15.66 | L45: 101.88 | M45: Cassure S/R H1 | N45: BUY | O45: Flat | P45: o | Q45: 15.66
C46: IBDE30 | D46: 1 | E46: SLD | F46: 10080.75 | G46: 0.5772916667 | H46: 20160609 | I46: 1 | J46: 0 | L46: 101.88 | N46: BUY | P46: o | Q46: 0
C47: IBDE30 | D47: 1 | E47: BOT | F47: 10081.75 | G47: 13:51:21 | H47: 20160609 | I47: 1 | J47: -3 | L47: 98.88 | N47: SLD | Q47: -3
C48: IBDE30 | D48: 2 | E48: SLD | F48: 10068.26 | G48: 0.6004398148 | H48: 20160609 | I48: 1.01 | J48: 0 | L48: 98.88 | N48: BUY | Q48: 0
C49: IBDE30 | D49: 3 | E49: SLD | F49: 10061.75 | G49: 0.6005208333 | H49: 20160609 | I49: 1.51 | J49: 0 | L49: 98.88 | N49: BUY | P49: o | Q49: 0
C50: IBDE30 | D50: 1 | E50: BOT | F50: 10057.75 | G50: 14:24:46 | H50: 20160609 | I50: 1 | J50: 5.1 | L50: 103.98 | M50: Cassure S/R H1 | N50: SLD | O50: Flat | P50: o | Q50: 5.1
C51: IBDE30 | D51: 2 | E51: SLD | F51: 10056.25 | G51: 0.6005439815 | H51: 20160609 | I51: 1.01 | J51: 0 | L51: 103.98 | N51: BUY | P51: o | Q51: 0
C52: IBDE30 | D52: 1 | E52: BOT | F52: 10055.24 | G52: 14:24:52 | H52: 20160609 | I52: 1 | J52: 4.91 | L52: 108.89 | M52: Cassure S/R H1 | N52: SLD | O52: Flat | Q52: 4.91
C53: IBDE30 | D53: 1 | E53: BOT | F53: 10055.74 | G53: 14:24:55 | H53: 20160609 | I53: 1 | J53: 4.41 | L53: 113.3 | M53: Cassure S/R H1 | N53: SLD | O53: Flat | Q53: 4.41
C54: IBDE30 | D54: 1 | E54: BOT | F54: 10054.24 | G54: 14:25:01 | H54: 20160609 | I54: 1 | J54: 5.91 | L54: 119.21 | M54: Cassure S/R H1 | N54: SLD | O54: Flat | Q54: 5.91
C55: IBDE30 | D55: 1 | E55: BOT | F55: 10056.26 | G55: 14:26:08 | H55: 20160609 | I55: 1 | J55: 3.89 | L55: 123.1 | M55: Cassure S/R H1 | N55: SLD | O55: Flat | Q55: 3.89
C56: IBDE30 | D56: 1 | E56: BOT | F56: 10046.26 | G56: 14:26:23 | H56: 20160609 | I56: 1 | J56: 13.89 | L56: 136.99 | M56: Cassure S/R H1 | N56: SLD | O56: Flat | Q56: 13.89
C57: IBDE30 | D57: 1 | E57: BOT | F57: 10052.76 | G57: 14:27:12 | H57: 20160609 | I57: 1 | J57: 7.39 | L57: 144.38 | M57: Cassure S/R H1 | N57: SLD | O57: Flat | Q57: 7.39
C58: IBDE30 | D58: 1 | E58: SLD | F58: 10069.76 | G58: 14:41:06 | H58: 20160609 | I58: 1 | J58: 0 | L58: 144.38 | N58: BUY | Q58: 0
C59: IBDE30 | D59: 1 | E59: SLD | F59: 10068.75 | G59: 14:41:10 | H59: 20160609 | I59: 1 | J59: 0 | L59: 144.38 | N59: BUY | Q59: 0
C60: IBDE30 | D60: 1 | E60: SLD | F60: 10068.25 | G60: 14:41:30 | H60: 20160609 | I60: 1 | J60: 0 | L60: 144.38 | N60: BUY | Q60: 0
C61: IBDE30 | D61: 1 | E61: SLD | F61: 10069.25 | G61: 14:41:35 | H61: 20160609 | I61: 1 | J61: 0 | L61: 144.38 | N61: BUY | P61: o | Q61: 0
C62: IBDE30 | D62: 1 | E62: BOT | F62: 10071.25 | G62: 14:46:22 | H62: 20160609 | I62: 1 | J62: -4.25 | L62: 140.13 | M62: IC40 S M2 | N62: SLD | O62: Flat | Q62: -4.25
C63: IBDE30 | D63: 1 | E63: BOT | F63: 10065.25 | G63: 14:47:47 | H63: 20160609 | I63: 1 | J63: 1.75 | L63: 141.88 | M63: IC40 S M2 | N63: SLD | O63: Flat | P63: o | Q63: 1.75
C64: IBDE30 | D64: 1 | E64: BOT | F64: 10068.25 | G64: 14:48:48 | H64: 20160609 | I64: 1 | J64: -1.25 | L64: 140.63 | M64: IC40 S M2 | N64: SLD | O64: Flat | P64: o | Q64: -1.25
C65: IBDE30 | D65: 1 | E65: BOT | F65: 10061.25 | G65: 14:51:41 | H65: 20160609 | I65: 1 | J65: 5.75 | L65: 146.38 | M65: IC40 S M2 | N65: SLD | O65: Flat | P65: o | Q65: 5.75
C66: IBDE30 | D66: 1 | E66: SLD | F66: 10069.75 | G66: 14:58:40 | H66: 20160609 | I66: 1 | J66: 0 | L66: 146.38 | N66: BUY | Q66: 0
C67: IBDE30 | D67: 1 | E67: SLD | F67: 10070.75 | G67: 14:58:52 | H67: 20160609 | I67: 1 | J67: 0 | L67: 146.38 | N67: BUY | Q67: 0
C68: IBDE30 | D68: 1 | E68: SLD | F68: 10071.26 | G68: 14:59:00 | H68: 20160609 | I68: 1 | J68: 0 | L68: 146.38 | N68: BUY | Q68: 0
C69: IBDE30 | D69: 1 | E69: BOT | F69: 10071.26 | G69: 15:03:15 | H69: 20160609 | I69: 1 | J69: -2.67 | L69: 143.71 | M69: Trading de Niveau M2 | N69: SLD | O69: Flat | Q69: -2.67
C70: IBDE30 | D70: 2 | E70: BOT | F70: 10076.25 | G70: 15:05:28 | H70: 20160609 | I70: 1.01 | J70: -14.33 | L70: 129.38 | M70: Trading de Niveau M2 | N70: SLD | O70: Flat | Q70: -7.165
C71: IBFR40 | D71: 1 | E71: BOT | F71: 4407.86 | G71: 15:09:00 | H71: 20160609 | I71: 1 | J71: 0 | L71: 129.38 | Q71: 0
C72: IBFR40 | D72: 2 | E72: BOT | F72: 4408.36 | G72: 15:09:12 | H72: 20160609 | I72: 1 | J72: 0 | L72: 129.38 | Q72: 0
C73: IBFR40 | D73: 1 | E73: BOT | F73: 4408.36 | G73: 15:11:26 | H73: 20160609 | I73: 1 | J73: 0 | L73: 129.38 | Q73: 0
C74: IBFR40 | D74: 2 | E74: BOT | F74: 4410.86 | G74: 15:14:55 | H74: 20160609 | I74: 1 | J74: 0 | L74: 129.38 | Q74: 0
C75: IBFR40 | D75: 2 | E75: BOT | F75: 4410.86 | G75: 15:15:01 | H75: 20160609 | I75: 1 | J75: 0 | L75: 129.38 | Q75: 0
C76: IBFR40 | D76: 1 | E76: SLD | F76: 4416.36 | G76: 15:40:27 | H76: 20160609 | I76: 1 | J76: 5.19 | L76: 134.57 | M76: Trading de Niveau H1 | N76: =IF(E76=0,"",IF(E76="SLD","BUY","SLD")) -> BUY | O76: Flat | Q76: 5.19
C77: IBFR40 | D77: 3 | E77: SLD | F77: 4422.86 | G77: 15:42:29 | H77: 20160609 | I77: 1.33 | J77: 36.74 | L77: 171.31 | M77: Trading de Niveau H1 | N77: BUY | O77: Flat | Q77: 12.24666667
C78: IBDE30 | D78: 1 | E78: SLD | F78: 10106.25 | G78: 15:43:50 | H78: 20160609 | I78: 1 | J78: 0 | L78: 171.31 | M78: Trading de Niveau H1 | N78: =IF(E78=0,"",IF(E78="SLD","BUY","SLD")) -> BUY | Q78: 0
C79: IBDE30 | D79: 1 | E79: BOT | F79: 10098.25 | G79: 15:44:31 | H79: 20160609 | I79: 1 | J79: 6 | L79: 177.31 | M79: Trading de Niveau M2 | N79: SLD | O79: Flat | Q79: 6
C80: IBDE30 | D80: 1 | E80: BOT | F80: 10097.25 | G80: 15:47:21 | H80: 20160609 | I80: 1 | J80: 0 | L80: 177.31 | N80: SLD | Q80: 0
C81: IBDE30 | D81: 1 | E81: SLD | F81: 10102.25 | G81: 15:48:34 | H81: 20160609 | I81: 1 | J81: 3 | L81: 180.31 | M81: Trading de Niveau M2 | N81: BUY | O81: Flat | Q81: 3
C82: IBFR40 | D82: 1 | E82: SLD | F82: 4424.36 | G82: 15:52:21 | H82: 20160609 | I82: 1 | J82: 13.19 | L82: 193.5 | M82: Trading de Niveau H1 | N82: BUY | O82: Flat | Q82: 13.19
C83: IBFR40 | D83: 1 | E83: SLD | F83: 4429.36 | G83: 15:55:31 | H83: 20160609 | I83: 1 | J83: 18.19 | L83: 211.69 | M83: Trading de Niveau H1 | N83: BUY | O83: Flat | Q83: 18.19
C84: IBDE30 | D84: 1 | E84: SLD | F84: 10103.75 | G84: 16:02:59 | H84: 20160609 | I84: 1 | J84: 0 | L84: 211.69 | N84: BUY | Q84: 0
C85: IBDE30 | D85: 1 | E85: BOT | F85: 10106.25 | G85: 16:03:36 | H85: 20160609 | I85: 1 | J85: -4.5 | L85: 207.19 | M85: Trading de Niveau M2 | N85: SLD | O85: Flat | Q85: -4.5
C86: IBDE30 | D86: 1 | E86: BOT | F86: 10103.75 | G86: 16:07:46 | H86: 20160609 | I86: 1 | J86: 0 | L86: 207.19 | N86: SLD | Q86: 0
C87: IBDE30 | D87: 1 | E87: BOT | F87: 10101.62 | G87: 16:09:21 | H87: 20160609 | I87: 1 | J87: 0 | L87: 207.19 | N87: SLD | Q87: 0
C88: IBDE30 | D88: 1 | E88: SLD | F88: 10103.75 | G88: 16:11:25 | H88: 20160609 | I88: 1 | J88: -0.94 | L88: 206.25 | M88: Trading de Niveau M2 | N88: BUY | O88: Flat | Q88: -0.94
C89: IBDE30 | D89: 1 | E89: SLD | F89: 10091.25 | G89: 16:15:28 | H89: 20160609 | I89: 1 | J89: -13.44 | L89: 192.81 | M89: Trading de Niveau M2 | N89: BUY | O89: Flat | Q89: -13.44
C90: IBFR40 | D90: 2 | E90: SLD | F90: 4410.36 | G90: 16:28:43 | H90: 20160609 | I90: 1 | J90: -0.62 | L90: 192.19 | M90: IC40 30S | N90: BUY | O90: Flat | Q90: -0.31
C91: IBDE30 | D91: 1 | E91: SLD | F91: 10084.25 | G91: 16:30:36 | H91: 20160609 | I91: 1 | J91: 0 | L91: 192.19 | N91: BUY | Q91: 0
C92: IBDE30 | D92: 1 | E92: SLD | F92: 10083.25 | G92: 16:30:41 | H92: 20160609 | I92: 1 | J92: 0 | L92: =+J92+L91 -> 192.19 | N92: BUY | Q92: 0
C93: IBDE30 | D93: 1 | E93: BOT | F93: 10078.25 | G93: 16:31:08 | H93: 20160609 | I93: 1 | J93: 3.5 | L93: 195.69 | M93: IC40 30S | N93: SLD | O93: Flat | Q93: 3.5
C94: IBDE30 | D94: 1 | E94: BOT | F94: 10077.25 | G94: 16:31:15 | H94: 20160609 | I94: 1 | J94: 4.5 | L94: 200.19 | M94: IC40 30S | N94: SLD | O94: Flat | Q94: 4.5
C95: CAC40 | D95: 3 | E95: BOT | F95: 4406 | G95: 16:43:16 | H95: 20160609 | I95: 3.54 | J95: 0 | L95: 200.19 | N95: SLD | Q95: 0
C96: CAC40 | D96: 1 | E96: SLD | F96: 4408 | G96: 16:44:29 | H96: 20160609 | I96: 1.18 | J96: 17.64 | L96: 217.83 | M96: Trading de Niveau H1 | N96: BUY | Q96: 1.764
C97: CAC40 | D97: 1 | E97: SLD | F97: 4409 | G97: 16:53:15 | H97: 20160609 | I97: 1.18 | J97: 27.64 | L97: 245.47 | M97: Trading de Niveau H1 | N97: BUY | Q97: 2.764
C98: CAC40 | D98: 1 | E98: SLD | F98: 4408 | G98: 17:04:02 | H98: 20160609 | I98: 1.18 | J98: 17.64 | L98: 263.11 | M98: Trading de Niveau H1 | N98: BUY | Q98: 1.764
C99: 0 | D99: 0 | E99: 0 | F99: 0 | G99: 0 | H99: 0 | I99: 0 | J99: 0 | L99: 263.11
C100: 0 | D100: 0 | E100: 0 | F100: 0 | G100: 0 | H100: 0 | I100: 0 | J100: 0 | L100: 263.11
C101: 0 | D101: 0 | E101: 0 | F101: 0 | G101: 0 | H101: 0 | I101: 0 | J101: 0 | L101: 263.11
C102: 0 | D102: 0 | E102: 0 | F102: 0 | G102: 0 | H102: 0 | I102: 0 | J102: 0 | L102: 263.11
C103: 0 | D103: 0 | E103: 0 | F103: 0 | G103: 0 | H103: 0 | I103: 0 | J103: 0 | L103: 263.11
C104: 0 | D104: 0 | E104: 0 | F104: 0 | G104: 0 | H104: 0 | I104: 0 | J104: 0 | L104: 263.11
C105: 0 | D105: 0 | E105: 0 | F105: 0 | G105: 0 | H105: 0 | I105: 0 | J105: 0 | L105: 263.11
C106: 0 | D106: 0 | E106: 0 | F106: 0 | G106: 0 | H106: 0 | I106: 0 | J106: 0 | L106: 263.11 | Q106: =IF(C106=0,"",IF(ISERROR(J106/D106),"",(J106/D106))/IF(C106="DAX",25,IF(C106="CAC40",10,1))) -> 
C107: 0 | D107: 0 | E107: 0 | F107: 0 | G107: 0 | H107: 0 | I107: 0 | J107: 0 | L107: 263.11
C108: 0 | D108: 0 | E108: 0 | F108: 0 | G108: 0 | H108: 0 | I108: 0 | J108: 0 | L108: 263.11
C109: 0 | D109: 0 | E109: 0 | F109: 0 | G109: 0 | H109: 0 | I109: 0 | J109: 0 | L109: 263.11
C110: 0 | D110: 0 | E110: 0 | F110: 0 | G110: 0 | H110: 0 | I110: 0 | J110: 0 | L110: 263.11
C111: 0 | D111: 0 | E111: 0 | F111: 0 | G111: 0 | H111: 0 | I111: 0 | J111: 0 | L111: 263.11
C112: 0 | D112: 0 | E112: 0 | F112: 0 | G112: 0 | H112: 0 | I112: 0 | J112: 0 | L112: 263.11
C113: 0 | D113: 0 | E113: 0 | F113: 0 | G113: 0 | H113: 0 | I113: 0 | J113: 0 | L113: 263.11
C114: 0 | D114: 0 | E114: 0 | F114: 0 | G114: 0 | H114: 0 | I114: 0 | J114: 0 | L114: 263.11
C115: 0 | D115: 0 | E115: 0 | F115: 0 | G115: 0 | H115: 0 | I115: 0 | J115: 0 | L115: 263.11
C116: 0 | D116: 0 | E116: 0 | F116: 0 | G116: 0 | H116: 0 | I116: 0 | J116: 0 | L116: 263.11
C117: 0 | D117: 0 | E117: 0 | F117: 0 | G117: 0 | H117: 0 | I117: 0 | J117: 0 | L117: 263.11
C118: 0 | D118: 0 | E118: 0 | F118: 0 | G118: 0 | H118: 0 | I118: 0 | J118: 0 | L118: 263.11
C119: 0 | D119: 0 | E119: 0 | F119: 0 | G119: 0 | H119: 0 | I119: 0 | J119: 0 | L119: 263.11
C120: 0 | D120: 0 | E120: 0 | F120: 0 | G120: 0 | H120: 0 | I120: 0 | J120: 0 | L120: 263.11
C121: 0 | D121: 0 | E121: 0 | F121: 0 | G121: 0 | H121: 0 | I121: 0 | J121: 0 | L121: 263.11
C122: 0 | D122: 0 | E122: 0 | F122: 0 | G122: 0 | H122: 0 | I122: 0 | J122: 0 | L122: 263.11
C123: 0 | D123: 0 | E123: 0 | F123: 0 | G123: 0 | H123: 0 | I123: 0 | J123: 0 | L123: 263.11
C124: 0 | D124: 0 | E124: 0 | F124: 0 | G124: 0 | H124: 0 | I124: 0 | J124: 0 | L124: 263.11
C125: 0 | D125: 0 | E125: 0 | F125: 0 | G125: 0 | H125: 0 | I125: 0 | J125: 0 | L125: 263.11
C126: 0 | D126: 0 | E126: 0 | F126: 0 | G126: 0 | H126: 0 | I126: 0 | J126: 0 | L126: 263.11
C127: 0 | D127: 0 | E127: 0 | F127: 0 | G127: 0 | H127: 0 | I127: 0 | J127: 0 | L127: 263.11
C128: 0 | D128: 0 | E128: 0 | F128: 0 | G128: 0 | H128: 0 | I128: 0 | J128: 0 | L128: 263.11
C129: 0 | D129: 0 | E129: 0 | F129: 0 | G129: 0 | H129: 0 | I129: 0 | J129: 0 | L129: 263.11
C130: 0 | D130: 0 | E130: 0 | F130: 0 | G130: 0 | H130: 0 | I130: 0 | J130: 0 | L130: 263.11
C131: 0 | D131: 0 | E131: 0 | F131: 0 | G131: 0 | H131: 0 | I131: 0 | J131: 0 | L131: 263.11
C132: 0 | D132: 0 | E132: 0 | F132: 0 | G132: 0 | H132: 0 | I132: 0 | J132: 0 | L132: 263.11
C133: 0 | D133: 0 | E133: 0 | F133: 0 | G133: 0 | H133: 0 | I133: 0 | J133: 0 | L133: 263.11
C134: 0 | D134: 0 | E134: 0 | F134: 0 | G134: 0 | H134: 0 | I134: 0 | J134: 0 | L134: 263.11
C135: 0 | D135: 0 | E135: 0 | F135: 0 | G135: 0 | H135: 0 | I135: 0 | J135: 0 | L135: 263.11
C136: 0 | D136: 0 | E136: 0 | F136: 0 | G136: 0 | H136: 0 | I136: 0 | J136: 0 | L136: 263.11
C137: 0 | D137: 0 | E137: 0 | F137: 0 | G137: 0 | H137: 0 | I137: 0 | J137: 0 | L137: 263.11
C138: 0 | D138: 0 | E138: 0 | F138: 0 | G138: 0 | H138: 0 | I138: 0 | J138: 0 | L138: 263.11
C139: 0 | D139: 0 | E139: 0 | F139: 0 | G139: 0 | H139: 0 | I139: 0 | J139: 0 | L139: 263.11
C140: 0 | D140: 0 | E140: 0 | F140: 0 | G140: 0 | H140: 0 | I140: 0 | J140: 0 | L140: 263.11
C141: 0 | D141: 0 | E141: 0 | F141: 0 | G141: 0 | H141: 0 | I141: 0 | J141: 0 | L141: 263.11 | N141: =IF(E141=0,"",IF(E141="SLD","BUY","SLD")) -> 
C142: 0 | D142: 0 | E142: 0 | F142: 0 | G142: 0 | H142: 0 | I142: 0 | J142: 0 | L142: 263.11
C143: 0 | D143: 0 | E143: 0 | F143: 0 | G143: 0 | H143: 0 | I143: 0 | J143: 0 | L143: 263.11
C144: 0 | D144: 0 | E144: 0 | F144: 0 | G144: 0 | H144: 0 | I144: 0 | J144: 0 | L144: 263.11
C145: 0 | D145: 0 | E145: 0 | F145: 0 | G145: 0 | H145: 0 | I145: 0 | J145: 0 | L145: 263.11
C146: 0 | D146: 0 | E146: 0 | F146: 0 | G146: 0 | H146: 0 | I146: 0 | J146: 0 | L146: 263.11
C147: 0 | D147: 0 | E147: 0 | F147: 0 | G147: 0 | H147: 0 | I147: 0 | J147: 0 | L147: 263.11
C148: 0 | D148: 0 | E148: 0 | F148: 0 | G148: 0 | H148: 0 | I148: 0 | J148: 0 | L148: 263.11
C149: 0 | D149: 0 | E149: 0 | F149: 0 | G149: 0 | H149: 0 | I149: 0 | J149: 0 | L149: 263.11
C150: 0 | D150: 0 | E150: 0 | F150: 0 | G150: 0 | H150: 0 | I150: 0 | J150: 0 | L150: 263.11
C151: 0 | D151: 0 | E151: 0 | F151: 0 | G151: 0 | H151: 0 | I151: 0 | J151: 0 | L151: 263.11
C152: 0 | D152: 0 | E152: 0 | F152: 0 | G152: 0 | H152: 0 | I152: 0 | J152: 0 | L152: 263.11
C153: 0 | D153: 0 | E153: 0 | F153: 0 | G153: 0 | H153: 0 | I153: 0 | J153: 0 | L153: 263.11
C154: 0 | D154: 0 | E154: 0 | F154: 0 | G154: 0 | H154: 0 | I154: 0 | J154: 0 | L154: 263.11
C155: 0 | D155: 0 | E155: 0 | F155: 0 | G155: 0 | H155: 0 | I155: 0 | J155: 0 | L155: 263.11
C156: 0 | D156: 0 | E156: 0 | F156: 0 | G156: 0 | H156: 0 | I156: 0 | J156: 0 | L156: =+J156+L155 -> 263.11
C157: 0 | D157: 0 | E157: 0 | F157: 0 | G157: 0 | H157: 0 | I157: 0 | J157: 0 | L157: 263.11
C158: 0 | D158: 0 | E158: 0 | F158: 0 | G158: 0 | H158: 0 | I158: 0 | J158: 0 | L158: 263.11
C159: 0 | D159: 0 | E159: 0 | F159: 0 | G159: 0 | H159: 0 | I159: 0 | J159: 0 | L159: 263.11
C160: 0 | D160: 0 | E160: 0 | F160: 0 | G160: 0 | H160: 0 | I160: 0 | J160: 0 | L160: 263.11
C161: 0 | D161: 0 | E161: 0 | F161: 0 | G161: 0 | H161: 0 | I161: 0 | J161: 0 | L161: 263.11
C162: 0 | D162: 0 | E162: 0 | F162: 0 | G162: 0 | H162: 0 | I162: 0 | J162: 0 | L162: 263.11
C163: 0 | D163: 0 | E163: 0 | F163: 0 | G163: 0 | H163: 0 | I163: 0 | J163: 0 | L163: 263.11
C164: 0 | D164: 0 | E164: 0 | F164: 0 | G164: 0 | H164: 0 | I164: 0 | J164: 0 | L164: 263.11
C165: 0 | D165: 0 | E165: 0 | F165: 0 | G165: 0 | H165: 0 | I165: 0 | J165: 0 | L165: 263.11
C166: 0 | D166: 0 | E166: 0 | F166: 0 | G166: 0 | H166: 0 | I166: 0 | J166: 0 | L166: 263.11
C167: 0 | D167: 0 | E167: 0 | F167: 0 | G167: 0 | H167: 0 | I167: 0 | J167: 0 | L167: 263.11
C168: 0 | D168: 0 | E168: 0 | F168: 0 | G168: 0 | H168: 0 | I168: 0 | J168: 0 | L168: 263.11
C169: 0 | D169: 0 | E169: 0 | F169: 0 | G169: 0 | H169: 0 | I169: 0 | J169: 0 | L169: 263.11
C170: 0 | D170: 0 | E170: 0 | F170: 0 | G170: 0 | H170: 0 | I170: 0 | J170: 0 | L170: 263.11 | Q170: =IF(C170=0,"",IF(ISERROR(J170/D170),"",(J170/D170))/IF(C170="DAX",25,IF(C170="CAC40",10,1))) -> 
C171: 0 | D171: 0 | E171: 0 | F171: 0 | G171: 0 | H171: 0 | I171: 0 | J171: 0 | L171: 263.11
C172: 0 | D172: 0 | E172: 0 | F172: 0 | G172: 0 | H172: 0 | I172: 0 | J172: 0 | L172: 263.11
C173: 0 | D173: 0 | E173: 0 | F173: 0 | G173: 0 | H173: 0 | I173: 0 | J173: 0 | L173: 263.11
C174: 0 | D174: 0 | E174: 0 | F174: 0 | G174: 0 | H174: 0 | I174: 0 | J174: 0 | L174: 263.11
C175: 0 | D175: 0 | E175: 0 | F175: 0 | G175: 0 | H175: 0 | I175: 0 | J175: 0 | L175: 263.11
C176: 0 | D176: 0 | E176: 0 | F176: 0 | G176: 0 | H176: 0 | I176: 0 | J176: 0 | L176: 263.11
C177: 0 | D177: 0 | E177: 0 | F177: 0 | G177: 0 | H177: 0 | I177: 0 | J177: 0 | L177: 263.11
C178: 0 | D178: 0 | E178: 0 | F178: 0 | G178: 0 | H178: 0 | I178: 0 | J178: 0 | L178: 263.11
C179: 0 | D179: 0 | E179: 0 | F179: 0 | G179: 0 | H179: 0 | I179: 0 | J179: 0 | L179: 263.11
C180: 0 | D180: 0 | E180: 0 | F180: 0 | G180: 0 | H180: 0 | I180: 0 | J180: 0 | L180: 263.11
C181: 0 | D181: 0 | E181: 0 | F181: 0 | G181: 0 | H181: 0 | I181: 0 | J181: 0 | L181: 263.11
C182: 0 | D182: 0 | E182: 0 | F182: 0 | G182: 0 | H182: 0 | I182: 0 | J182: 0 | L182: 263.11
C183: 0 | D183: 0 | E183: 0 | F183: 0 | G183: 0 | H183: 0 | I183: 0 | J183: 0 | L183: 263.11
C184: 0 | D184: 0 | E184: 0 | F184: 0 | G184: 0 | H184: 0 | I184: 0 | J184: 0 | L184: 263.11
C185: 0 | D185: 0 | E185: 0 | F185: 0 | G185: 0 | H185: 0 | I185: 0 | J185: 0 | L185: 263.11
C186: 0 | D186: 0 | E186: 0 | F186: 0 | G186: 0 | H186: 0 | I186: 0 | J186: 0 | L186: 263.11
C187: 0 | D187: 0 | E187: 0 | F187: 0 | G187: 0 | H187: 0 | I187: 0 | J187: 0 | L187: 263.11
C188: 0 | D188: 0 | E188: 0 | F188: 0 | G188: 0 | H188: 0 | I188: 0 | J188: 0 | L188: 263.11
C189: 0 | D189: 0 | E189: 0 | F189: 0 | G189: 0 | H189: 0 | I189: 0 | J189: 0 | L189: 263.11
C190: 0 | D190: 0 | E190: 0 | F190: 0 | G190: 0 | H190: 0 | I190: 0 | J190: 0 | L190: 263.11
C191: 0 | D191: 0 | E191: 0 | F191: 0 | G191: 0 | H191: 0 | I191: 0 | J191: 0 | L191: 263.11
C192: 0 | D192: 0 | E192: 0 | F192: 0 | G192: 0 | H192: 0 | I192: 0 | J192: 0 | L192: 263.11
C193: 0 | D193: 0 | E193: 0 | F193: 0 | G193: 0 | H193: 0 | I193: 0 | J193: 0 | L193: 263.11
C194: 0 | D194: 0 | E194: 0 | F194: 0 | G194: 0 | H194: 0 | I194: 0 | J194: 0 | L194: 263.11
C195: 0 | D195: 0 | E195: 0 | F195: 0 | G195: 0 | H195: 0 | I195: 0 | J195: 0 | L195: 263.11
C196: 0 | D196: 0 | E196: 0 | F196: 0 | G196: 0 | H196: 0 | I196: 0 | J196: 0 | L196: 263.11
C197: 0 | D197: 0 | E197: 0 | F197: 0 | G197: 0 | H197: 0 | I197: 0 | J197: 0 | L197: 263.11
C198: 0 | D198: 0 | E198: 0 | F198: 0 | G198: 0 | H198: 0 | I198: 0 | J198: 0 | L198: 263.11
C199: 0 | D199: 0 | E199: 0 | F199: 0 | G199: 0 | H199: 0 | I199: 0 | J199: 0 | L199: 263.11
C200: 0 | D200: 0 | E200: 0 | F200: 0 | G200: 0 | H200: 0 | I200: 0 | J200: 0 | L200: 263.11
C201: 0 | D201: 0 | E201: 0 | F201: 0 | G201: 0 | H201: 0 | I201: 0 | J201: 0 | L201: 263.11
C202: 0 | D202: 0 | E202: 0 | F202: 0 | G202: 0 | H202: 0 | I202: 0 | J202: 0 | L202: 263.11
C203: 0 | D203: 0 | E203: 0 | F203: 0 | G203: 0 | H203: 0 | I203: 0 | J203: 0 | L203: 263.11
C204: 0 | D204: 0 | E204: 0 | F204: 0 | G204: 0 | H204: 0 | I204: 0 | J204: 0 | L204: 263.11
C205: 0 | D205: 0 | E205: 0 | F205: 0 | G205: 0 | H205: 0 | I205: 0 | J205: 0 | L205: 263.11 | N205: =IF(E205=0,"",IF(E205="SLD","BUY","SLD")) -> 
C206: 0 | D206: 0 | E206: 0 | F206: 0 | G206: 0 | H206: 0 | I206: 0 | J206: 0 | L206: 263.11
C207: 0 | D207: 0 | E207: 0 | F207: 0 | G207: 0 | H207: 0 | I207: 0 | J207: 0 | L207: 263.11
... 300 more rows

Sheet 10-06
AK4: B/S | AL4: Strat | AM4: M2 | AN4: Erreur
AK5: B | AL5: IC40 30S | AM5: Même sens | AN5: Oui
AK6: S | AL6: IC40S 30S | AM6: Flat | AN6: Non
AL7: IC40 30S inverse MM | AM7: Opposé
AL8: Contretendance impulsion
AL9: Trading de Niveau 30S
AL10: Trading de Niveau M2
AL11: Trading de Niveau H1
AL12: Trading de Niveau D
AL13: Sur chiffres
AL14: Range
AL15: IC40 M2
AL16: IC40 S M2
AL17: IC40 M2 inverse MM
AL18: Cassure S/R M2
AL19: Cassure S/R H1
AL20: Cassure S/R D
C25: Underlying | D25: Quantity | E25: Contract | F25: Price | G25: Time | H25: Date | I25: Commission | J25: Realized P&L | L25: Cumul P&L | M25: Strat | N25: Sell/Buy | O25: TDCE M2 | P25: Conviction sur le marché | Q25: Pts | R25: Erreur
C26: IBDE30 | D26: 3 | E26: SLD | F26: 10026.07 | G26: 0.3754050926 | H26: 20160610 | I26: 1.5 | J26: 0 | L26: =+J26 -> 0 | Q26: =IF(C26=0,"",IF(ISERROR(J26/D26),"",(J26/D26))/IF(C26="DAX",25,IF(C26="CAC40",10,1))) -> 0
C27: IBDE30 | D27: 1 | E27: BOT | F27: 10024.07 | G27: 09:03:27 | H27: 20160610 | I27: 1 | J27: 0.5 | L27: =+J27+L26 -> 0.5 | M27: Cassure S/R D | N27: =IF(E27=0,"",IF(E27="SLD","BUY","SLD")) -> SLD | Q27: 0.5
C28: CAC40 | D28: 1 | E28: SLD | F28: 4376.5 | G28: 0.3776273148 | H28: 20160610 | I28: 1.18 | J28: 0 | L28: =+J28+L27 -> 0.5 | N28: =IF(E28=0,"",IF(E28="SLD","BUY","SLD")) -> BUY | Q28: 0
C29: IBDE30 | D29: 1 | E29: BOT | F29: 10008.07 | G29: 09:05:34 | H29: 20160610 | I29: 1 | J29: 16.5 | L29: 17 | M29: Cassure S/R D | N29: SLD | Q29: 16.5
C30: IBDE30 | D30: 1 | E30: SLD | F30: 10018.07 | G30: 0.3823263889 | H30: 20160610 | I30: 1 | J30: 0 | L30: =+J30+L29 -> 17 | N30: BUY | Q30: 0
C31: IBDE30 | D31: 1 | E31: BOT | F31: 10009.57 | G31: 09:11:10 | H31: 20160610 | I31: 1 | J31: 10.75 | L31: 27.75 | M31: Cassure S/R D | N31: SLD | Q31: 10.75
C32: IBDE30 | D32: 1 | E32: BOT | F32: 9949.56 | G32: 09:19:20 | H32: 20160610 | I32: 1 | J32: 70.76 | L32: 98.51 | M32: Cassure S/R D | N32: SLD | Q32: 70.76
C33: IBDE30 | D33: 1 | E33: SLD | F33: 9943.56 | G33: 0.3896180556 | H33: 20160610 | I33: 1 | J33: 0 | L33: 98.51 | N33: BUY | Q33: 0
C34: IBDE30 | D34: 1 | E34: SLD | F34: 9950.56 | G34: 0.3899189815 | H34: 20160610 | I34: 1 | J34: 0 | L34: 98.51 | N34: BUY | Q34: 0
C35: IBDE30 | D35: 1 | E35: BOT | F35: 9960.56 | G35: 09:22:24 | H35: 20160610 | I35: 1 | J35: -15.5 | L35: 83.01 | M35: IC40S 30S | N35: SLD | Q35: -15.5
C36: IBDE30 | D36: 1 | E36: BOT | F36: 9963.56 | G36: 09:22:59 | H36: 20160610 | I36: 1 | J36: -18.5 | L36: 64.51 | M36: IC40S 30S | N36: SLD | Q36: -18.5
C37: IBDE30 | D37: 1 | E37: SLD | F37: 9962.07 | G37: 0.3914814815 | H37: 20160610 | I37: 1 | J37: 0 | L37: 64.51 | N37: BUY | Q37: 0
C38: IBDE30 | D38: 1 | E38: BOT | F38: 9967.07 | G38: 09:25:17 | H38: 20160610 | I38: 1 | J38: -7 | L38: 57.51 | M38: IC40S 30S | N38: SLD | Q38: -7
C39: IBDE30 | D39: 1 | E39: SLD | F39: 9959.07 | G39: 0.3928587963 | H39: 20160610 | I39: 1 | J39: 0 | L39: 57.51 | N39: BUY | Q39: 0
C40: IBDE30 | D40: 1 | E40: SLD | F40: 9959.06 | G40: 0.3936805556 | H40: 20160610 | I40: 1 | J40: 0 | L40: 57.51 | N40: BUY | Q40: 0
C41: IBDE30 | D41: 1 | E41: BOT | F41: 9958.57 | G41: 09:27:16 | H41: 20160610 | I41: 1 | J41: -1.5 | L41: 56.01 | M41: IC40S 30S | N41: SLD | Q41: =IF(C41=0,"",IF(ISERROR(J41/D41),"",(J41/D41))/IF(C41="DAX",25,IF(C41="CAC40",10,1))) -> -1.5
C42: IBDE30 | D42: 1 | E42: BOT | F42: 9948.56 | G42: 09:30:12 | H42: 20160610 | I42: 1 | J42: 8.51 | L42: 64.52 | M42: IC40S 30S | N42: SLD | Q42: =IF(C42=0,"",IF(ISERROR(J42/D42),"",(J42/D42))/IF(C42="DAX",25,IF(C42="CAC40",10,1))) -> 8.51
C43: CAC40 | D43: 1 | E43: BOT | F43: 4356 | G43: 09:31:53 | H43: 20160610 | I43: 1.18 | J43: 202.64 | L43: 267.16 | M43: Cassure S/R D | N43: SLD | Q43: 20.264
C44: IBDE30 | D44: 1 | E44: SLD | F44: 9968.57 | G44: 0.4046990741 | H44: 20160610 | I44: 1 | J44: 0 | L44: 267.16 | N44: BUY | Q44: 0
C45: IBDE30 | D45: 1 | E45: BOT | F45: 9960.56 | G45: 09:46:06 | H45: 20160610 | I45: 1 | J45: 6.01 | L45: 273.17 | M45: IC40S 30S | N45: SLD | Q45: 6.01
C46: IBDE30 | D46: 1 | E46: SLD | F46: 9947.06 | G46: 0.4132291667 | H46: 20160610 | I46: 1 | J46: 0 | L46: 273.17 | N46: BUY | Q46: 0
C47: IBDE30 | D47: 1 | E47: SLD | F47: 9948.56 | G47: 0.4133564815 | H47: 20160610 | I47: 1 | J47: 0 | L47: 273.17 | N47: BUY | Q47: 0
C48: IBDE30 | D48: 1 | E48: BOT | F48: 9935.06 | G48: 09:55:44 | H48: 20160610 | I48: 1 | J48: 10.75 | L48: 283.92 | M48: IC40 30S | N48: SLD | Q48: 10.75
C49: IBDE30 | D49: 1 | E49: BOT | F49: 9947.06 | G49: 09:56:42 | H49: 20160610 | I49: 1 | J49: -1.25 | L49: 282.67 | M49: IC40 30S | N49: SLD | Q49: -1.25
C50: IBDE30 | D50: 1 | E50: SLD | F50: 9932.56 | G50: 0.416400463 | H50: 20160610 | I50: 1 | J50: 0 | L50: 282.67 | N50: BUY | Q50: 0
C51: IBDE30 | D51: 1 | E51: BOT | F51: 9939.56 | G51: 10:06:08 | H51: 20160610 | I51: 1 | J51: -9 | L51: 273.67 | M51: Cassure S/R M2 | N51: SLD | Q51: -9
C52: IBDE30 | D52: 1 | E52: BOT | F52: 9903.83 | G52: 0.4231828704 | H52: 20160610 | I52: 1 | J52: 0 | L52: 273.67 | N52: SLD | Q52: 0
C53: IBDE30 | D53: 1 | E53: SLD | F53: 9914.06 | G53: 10:11:51 | H53: 20160610 | I53: 1 | J53: 8.23 | L53: 281.9 | M53: Contretendance impulsion | N53: BUY | Q53: 8.23
C54: IBDE30 | D54: 1 | E54: SLD | F54: 9915.06 | G54: 0.4391550926 | H54: 20160610 | I54: 1 | J54: 0 | L54: 281.9 | N54: BUY | Q54: 0
C55: IBDE30 | D55: 1 | E55: SLD | F55: 9916.06 | G55: 0.4393171296 | H55: 20160610 | I55: 1 | J55: 0 | L55: 281.9 | N55: BUY | Q55: 0
C56: IBDE30 | D56: 1 | E56: BOT | F56: 9922.06 | G56: 10:39:46 | H56: 20160610 | I56: 1 | J56: -8.5 | L56: 273.4 | N56: SLD | Q56: -8.5
C57: CAC40 | D57: 1 | E57: BOT | F57: 4353 | G57: 0.4444444444 | H57: 20160610 | I57: 1.18 | J57: 0 | L57: 273.4 | N57: SLD | Q57: 0
C58: IBDE30 | D58: 1 | E58: BOT | F58: 9931.06 | G58: 10:41:10 | H58: 20160610 | I58: 1 | J58: -17.5 | L58: 255.9 | N58: SLD | Q58: -17.5
C59: IBDE30 | D59: 1 | E59: BOT | F59: 9932.56 | G59: 0.4456018519 | H59: 20160610 | I59: 1 | J59: 0 | L59: 255.9 | N59: SLD | Q59: 0
C60: IBDE30 | D60: 1 | E60: BOT | F60: 9932.56 | G60: 0.4456365741 | H60: 20160610 | I60: 1 | J60: 0 | L60: 255.9 | N60: SLD | Q60: 0
C61: IBDE30 | D61: 1 | E61: BOT | F61: 9932.56 | G61: 0.4456828704 | H61: 20160610 | I61: 1 | J61: 0 | L61: 255.9 | N61: SLD | Q61: 0
C62: IBDE30 | D62: 1 | E62: BOT | F62: 9931.06 | G62: 0.4458680556 | H62: 20160610 | I62: 1 | J62: 0 | L62: 255.9 | N62: SLD | Q62: 0
C63: IBDE30 | D63: 1 | E63: BOT | F63: 9927.56 | G63: 0.4466550926 | H63: 20160610 | I63: 1 | J63: 0 | L63: 255.9 | N63: SLD | Q63: 0
C64: IBDE30 | D64: 1 | E64: BOT | F64: 9924.06 | G64: 0.4486458333 | H64: 20160610 | I64: 1 | J64: 0 | L64: 255.9 | N64: SLD | Q64: 0
C65: IBDE30 | D65: 1 | E65: BOT | F65: 9923.56 | G65: 0.4524884259 | H65: 20160610 | I65: 1 | J65: 0 | L65: 255.9 | N65: SLD | Q65: 0
C66: IBDE30 | D66: 1 | E66: BOT | F66: 9918.06 | G66: 0.4549537037 | H66: 20160610 | I66: 1 | J66: 0 | L66: 255.9 | N66: SLD | Q66: 0
C67: IBDE30 | D67: 1 | E67: SLD | F67: 9912.56 | G67: 10:58:34 | H67: 20160610 | I67: 1 | J67: -17.19 | L67: 238.71 | M67: IC40 M2 inverse MM | N67: BUY | Q67: -17.19
C68: CAC40 | D68: 1 | E68: SLD | F68: 4341 | G68: 11:06:44 | H68: 20160610 | I68: 1.18 | J68: -122.36 | L68: 116.35 | N68: BUY | Q68: -12.236
C69: IBDE30 | D69: 5 | E69: SLD | F69: 9897.06 | G69: 11:06:51 | H69: 20160610 | I69: 2.47 | J69: -160.91 | L69: -44.56 | N69: BUY | Q69: -32.182
C70: IBDE30 | D70: 2 | E70: SLD | F70: 9891.61 | G70: 11:07:15 | H70: 20160610 | I70: 1 | J70: -75.28 | L70: -119.84 | N70: BUY | Q70: -37.64
C71: IBDE30 | D71: 1 | E71: BOT | F71: 9877.56 | G71: 0.4668634259 | H71: 20160610 | I71: 1 | J71: 0 | L71: -119.84 | Q71: 0
C72: IBDE30 | D72: 1 | E72: SLD | F72: 9888.06 | G72: 11:15:39 | H72: 20160610 | I72: 1 | J72: 8.5 | L72: -111.34 | N72: BUY | Q72: 8.5
C73: IBDE30 | D73: 1 | E73: SLD | F73: 9880.56 | G73: 0.4701388889 | H73: 20160610 | I73: 1 | J73: 0 | L73: -111.34 | Q73: 0
C74: IBDE30 | D74: 1 | E74: BOT | F74: 9876.56 | G74: 11:21:53 | H74: 20160610 | I74: 1 | J74: 2 | L74: -109.34 | N74: SLD | Q74: 2
C75: IBDE30 | D75: 1 | E75: SLD | F75: 9845.56 | G75: 0.5855671296 | H75: 20160610 | I75: 1 | J75: 0 | L75: -109.34 | Q75: 0
C76: IBDE30 | D76: 1 | E76: SLD | F76: 9849.56 | G76: 0.5857523148 | H76: 20160610 | I76: 1 | J76: 0 | L76: -109.34 | N76: =IF(E76=0,"",IF(E76="SLD","BUY","SLD")) -> BUY | Q76: 0
C77: IBDE30 | D77: 1 | E77: SLD | F77: 9860.06 | G77: 0.5895717593 | H77: 20160610 | I77: 1 | J77: 0 | L77: -109.34 | N77: BUY | Q77: 0
C78: IBDE30 | D78: 1 | E78: SLD | F78: 9858.06 | G78: 0.5900231481 | H78: 20160610 | I78: 1 | J78: 0 | L78: -109.34 | N78: BUY | Q78: 0
C79: IBDE30 | D79: 1 | E79: SLD | F79: 9864.56 | G79: 0.5911574074 | H79: 20160610 | I79: 1 | J79: 0 | L79: -109.34 | N79: BUY | Q79: 0
C80: IBDE30 | D80: 1 | E80: BOT | F80: 9856.06 | G80: 0.5971875 | H80: 20160610 | I80: 1 | J80: -2.5 | L80: -111.84 | N80: SLD | Q80: -2.5
C81: IBDE30 | D81: 1 | E81: BOT | F81: 9855.56 | G81: 0.5972685185 | H81: 20160610 | I81: 1 | J81: -2 | L81: -113.84 | N81: SLD | Q81: -2
C82: IBDE30 | D82: 1 | E82: BOT | F82: 9854.06 | G82: 0.5999189815 | H82: 20160610 | I82: 1 | J82: -0.5 | L82: -114.34 | N82: SLD | Q82: -0.5
C83: IBDE30 | D83: 1 | E83: BOT | F83: 9854.56 | G83: 0.6013888889 | H83: 20160610 | I83: 1 | J83: -1 | L83: -115.34 | N83: SLD | Q83: -1
C84: IBDE30 | D84: 1 | E84: BOT | F84: 9854.06 | G84: 0.6015740741 | H84: 20160610 | I84: 1 | J84: -0.5 | L84: -115.84 | N84: SLD | Q84: -0.5
C85: 0 | D85: 0 | E85: 0 | F85: 0 | G85: 0 | H85: 0 | I85: 0 | J85: 0 | L85: -115.84
C86: 0 | D86: 0 | E86: 0 | F86: 0 | G86: 0 | H86: 0 | I86: 0 | J86: 0 | L86: -115.84
C87: 0 | D87: 0 | E87: 0 | F87: 0 | G87: 0 | H87: 0 | I87: 0 | J87: 0 | L87: -115.84
C88: 0 | D88: 0 | E88: 0 | F88: 0 | G88: 0 | H88: 0 | I88: 0 | J88: 0 | L88: -115.84
C89: 0 | D89: 0 | E89: 0 | F89: 0 | G89: 0 | H89: 0 | I89: 0 | J89: 0 | L89: -115.84
C90: 0 | D90: 0 | E90: 0 | F90: 0 | G90: 0 | H90: 0 | I90: 0 | J90: 0 | L90: -115.84
C91: 0 | D91: 0 | E91: 0 | F91: 0 | G91: 0 | H91: 0 | I91: 0 | J91: 0 | L91: -115.84
C92: 0 | D92: 0 | E92: 0 | F92: 0 | G92: 0 | H92: 0 | I92: 0 | J92: 0 | L92: =+J92+L91 -> -115.84
C93: 0 | D93: 0 | E93: 0 | F93: 0 | G93: 0 | H93: 0 | I93: 0 | J93: 0 | L93: -115.84
C94: 0 | D94: 0 | E94: 0 | F94: 0 | G94: 0 | H94: 0 | I94: 0 | J94: 0 | L94: -115.84
C95: 0 | D95: 0 | E95: 0 | F95: 0 | G95: 0 | H95: 0 | I95: 0 | J95: 0 | L95: -115.84
C96: 0 | D96: 0 | E96: 0 | F96: 0 | G96: 0 | H96: 0 | I96: 0 | J96: 0 | L96: -115.84
C97: 0 | D97: 0 | E97: 0 | F97: 0 | G97: 0 | H97: 0 | I97: 0 | J97: 0 | L97: -115.84
C98: 0 | D98: 0 | E98: 0 | F98: 0 | G98: 0 | H98: 0 | I98: 0 | J98: 0 | L98: -115.84
C99: 0 | D99: 0 | E99: 0 | F99: 0 | G99: 0 | H99: 0 | I99: 0 | J99: 0 | L99: -115.84
C100: 0 | D100: 0 | E100: 0 | F100: 0 | G100: 0 | H100: 0 | I100: 0 | J100: 0 | L100: -115.84
C101: 0 | D101: 0 | E101: 0 | F101: 0 | G101: 0 | H101: 0 | I101: 0 | J101: 0 | L101: -115.84
C102: 0 | D102: 0 | E102: 0 | F102: 0 | G102: 0 | H102: 0 | I102: 0 | J102: 0 | L102: -115.84
C103: 0 | D103: 0 | E103: 0 | F103: 0 | G103: 0 | H103: 0 | I103: 0 | J103: 0 | L103: -115.84
C104: 0 | D104: 0 | E104: 0 | F104: 0 | G104: 0 | H104: 0 | I104: 0 | J104: 0 | L104: -115.84
C105: 0 | D105: 0 | E105: 0 | F105: 0 | G105: 0 | H105: 0 | I105: 0 | J105: 0 | L105: -115.84
C106: 0 | D106: 0 | E106: 0 | F106: 0 | G106: 0 | H106: 0 | I106: 0 | J106: 0 | L106: -115.84 | Q106: =IF(C106=0,"",IF(ISERROR(J106/D106),"",(J106/D106))/IF(C106="DAX",25,IF(C106="CAC40",10,1))) -> 
C107: 0 | D107: 0 | E107: 0 | F107: 0 | G107: 0 | H107: 0 | I107: 0 | J107: 0 | L107: -115.84
C108: 0 | D108: 0 | E108: 0 | F108: 0 | G108: 0 | H108: 0 | I108: 0 | J108: 0 | L108: -115.84
C109: 0 | D109: 0 | E109: 0 | F109: 0 | G109: 0 | H109: 0 | I109: 0 | J109: 0 | L109: -115.84
C110: 0 | D110: 0 | E110: 0 | F110: 0 | G110: 0 | H110: 0 | I110: 0 | J110: 0 | L110: -115.84
C111: 0 | D111: 0 | E111: 0 | F111: 0 | G111: 0 | H111: 0 | I111: 0 | J111: 0 | L111: -115.84
C112: 0 | D112: 0 | E112: 0 | F112: 0 | G112: 0 | H112: 0 | I112: 0 | J112: 0 | L112: -115.84
C113: 0 | D113: 0 | E113: 0 | F113: 0 | G113: 0 | H113: 0 | I113: 0 | J113: 0 | L113: -115.84
C114: 0 | D114: 0 | E114: 0 | F114: 0 | G114: 0 | H114: 0 | I114: 0 | J114: 0 | L114: -115.84
C115: 0 | D115: 0 | E115: 0 | F115: 0 | G115: 0 | H115: 0 | I115: 0 | J115: 0 | L115: -115.84
C116: 0 | D116: 0 | E116: 0 | F116: 0 | G116: 0 | H116: 0 | I116: 0 | J116: 0 | L116: -115.84
C117: 0 | D117: 0 | E117: 0 | F117: 0 | G117: 0 | H117: 0 | I117: 0 | J117: 0 | L117: -115.84
C118: 0 | D118: 0 | E118: 0 | F118: 0 | G118: 0 | H118: 0 | I118: 0 | J118: 0 | L118: -115.84
C119: 0 | D119: 0 | E119: 0 | F119: 0 | G119: 0 | H119: 0 | I119: 0 | J119: 0 | L119: -115.84
C120: 0 | D120: 0 | E120: 0 | F120: 0 | G120: 0 | H120: 0 | I120: 0 | J120: 0 | L120: -115.84
C121: 0 | D121: 0 | E121: 0 | F121: 0 | G121: 0 | H121: 0 | I121: 0 | J121: 0 | L121: -115.84
C122: 0 | D122: 0 | E122: 0 | F122: 0 | G122: 0 | H122: 0 | I122: 0 | J122: 0 | L122: -115.84
C123: 0 | D123: 0 | E123: 0 | F123: 0 | G123: 0 | H123: 0 | I123: 0 | J123: 0 | L123: -115.84
C124: 0 | D124: 0 | E124: 0 | F124: 0 | G124: 0 | H124: 0 | I124: 0 | J124: 0 | L124: -115.84
C125: 0 | D125: 0 | E125: 0 | F125: 0 | G125: 0 | H125: 0 | I125: 0 | J125: 0 | L125: -115.84
C126: 0 | D126: 0 | E126: 0 | F126: 0 | G126: 0 | H126: 0 | I126: 0 | J126: 0 | L126: -115.84
C127: 0 | D127: 0 | E127: 0 | F127: 0 | G127: 0 | H127: 0 | I127: 0 | J127: 0 | L127: -115.84
C128: 0 | D128: 0 | E128: 0 | F128: 0 | G128: 0 | H128: 0 | I128: 0 | J128: 0 | L128: -115.84
C129: 0 | D129: 0 | E129: 0 | F129: 0 | G129: 0 | H129: 0 | I129: 0 | J129: 0 | L129: -115.84
C130: 0 | D130: 0 | E130: 0 | F130: 0 | G130: 0 | H130: 0 | I130: 0 | J130: 0 | L130: -115.84
C131: 0 | D131: 0 | E131: 0 | F131: 0 | G131: 0 | H131: 0 | I131: 0 | J131: 0 | L131: -115.84
C132: 0 | D132: 0 | E132: 0 | F132: 0 | G132: 0 | H132: 0 | I132: 0 | J132: 0 | L132: -115.84
C133: 0 | D133: 0 | E133: 0 | F133: 0 | G133: 0 | H133: 0 | I133: 0 | J133: 0 | L133: -115.84
C134: 0 | D134: 0 | E134: 0 | F134: 0 | G134: 0 | H134: 0 | I134: 0 | J134: 0 | L134: -115.84
C135: 0 | D135: 0 | E135: 0 | F135: 0 | G135: 0 | H135: 0 | I135: 0 | J135: 0 | L135: -115.84
C136: 0 | D136: 0 | E136: 0 | F136: 0 | G136: 0 | H136: 0 | I136: 0 | J136: 0 | L136: -115.84
C137: 0 | D137: 0 | E137: 0 | F137: 0 | G137: 0 | H137: 0 | I137: 0 | J137: 0 | L137: -115.84
C138: 0 | D138: 0 | E138: 0 | F138: 0 | G138: 0 | H138: 0 | I138: 0 | J138: 0 | L138: -115.84
C139: 0 | D139: 0 | E139: 0 | F139: 0 | G139: 0 | H139: 0 | I139: 0 | J139: 0 | L139: -115.84
C140: 0 | D140: 0 | E140: 0 | F140: 0 | G140: 0 | H140: 0 | I140: 0 | J140: 0 | L140: -115.84 | N140: =IF(E140=0,"",IF(E140="SLD","BUY","SLD")) -> 
C141: 0 | D141: 0 | E141: 0 | F141: 0 | G141: 0 | H141: 0 | I141: 0 | J141: 0 | L141: -115.84
C142: 0 | D142: 0 | E142: 0 | F142: 0 | G142: 0 | H142: 0 | I142: 0 | J142: 0 | L142: -115.84
C143: 0 | D143: 0 | E143: 0 | F143: 0 | G143: 0 | H143: 0 | I143: 0 | J143: 0 | L143: -115.84
C144: 0 | D144: 0 | E144: 0 | F144: 0 | G144: 0 | H144: 0 | I144: 0 | J144: 0 | L144: -115.84
C145: 0 | D145: 0 | E145: 0 | F145: 0 | G145: 0 | H145: 0 | I145: 0 | J145: 0 | L145: -115.84
C146: 0 | D146: 0 | E146: 0 | F146: 0 | G146: 0 | H146: 0 | I146: 0 | J146: 0 | L146: -115.84
C147: 0 | D147: 0 | E147: 0 | F147: 0 | G147: 0 | H147: 0 | I147: 0 | J147: 0 | L147: -115.84
C148: 0 | D148: 0 | E148: 0 | F148: 0 | G148: 0 | H148: 0 | I148: 0 | J148: 0 | L148: -115.84
C149: 0 | D149: 0 | E149: 0 | F149: 0 | G149: 0 | H149: 0 | I149: 0 | J149: 0 | L149: -115.84
C150: 0 | D150: 0 | E150: 0 | F150: 0 | G150: 0 | H150: 0 | I150: 0 | J150: 0 | L150: -115.84
C151: 0 | D151: 0 | E151: 0 | F151: 0 | G151: 0 | H151: 0 | I151: 0 | J151: 0 | L151: -115.84
C152: 0 | D152: 0 | E152: 0 | F152: 0 | G152: 0 | H152: 0 | I152: 0 | J152: 0 | L152: -115.84
C153: 0 | D153: 0 | E153: 0 | F153: 0 | G153: 0 | H153: 0 | I153: 0 | J153: 0 | L153: -115.84
C154: 0 | D154: 0 | E154: 0 | F154: 0 | G154: 0 | H154: 0 | I154: 0 | J154: 0 | L154: -115.84
C155: 0 | D155: 0 | E155: 0 | F155: 0 | G155: 0 | H155: 0 | I155: 0 | J155: 0 | L155: -115.84
C156: 0 | D156: 0 | E156: 0 | F156: 0 | G156: 0 | H156: 0 | I156: 0 | J156: 0 | L156: =+J156+L155 -> -115.84
C157: 0 | D157: 0 | E157: 0 | F157: 0 | G157: 0 | H157: 0 | I157: 0 | J157: 0 | L157: -115.84
C158: 0 | D158: 0 | E158: 0 | F158: 0 | G158: 0 | H158: 0 | I158: 0 | J158: 0 | L158: -115.84
C159: 0 | D159: 0 | E159: 0 | F159: 0 | G159: 0 | H159: 0 | I159: 0 | J159: 0 | L159: -115.84
C160: 0 | D160: 0 | E160: 0 | F160: 0 | G160: 0 | H160: 0 | I160: 0 | J160: 0 | L160: -115.84
C161: 0 | D161: 0 | E161: 0 | F161: 0 | G161: 0 | H161: 0 | I161: 0 | J161: 0 | L161: -115.84
C162: 0 | D162: 0 | E162: 0 | F162: 0 | G162: 0 | H162: 0 | I162: 0 | J162: 0 | L162: -115.84
C163: 0 | D163: 0 | E163: 0 | F163: 0 | G163: 0 | H163: 0 | I163: 0 | J163: 0 | L163: -115.84
C164: 0 | D164: 0 | E164: 0 | F164: 0 | G164: 0 | H164: 0 | I164: 0 | J164: 0 | L164: -115.84
C165: 0 | D165: 0 | E165: 0 | F165: 0 | G165: 0 | H165: 0 | I165: 0 | J165: 0 | L165: -115.84
C166: 0 | D166: 0 | E166: 0 | F166: 0 | G166: 0 | H166: 0 | I166: 0 | J166: 0 | L166: -115.84
C167: 0 | D167: 0 | E167: 0 | F167: 0 | G167: 0 | H167: 0 | I167: 0 | J167: 0 | L167: -115.84
C168: 0 | D168: 0 | E168: 0 | F168: 0 | G168: 0 | H168: 0 | I168: 0 | J168: 0 | L168: -115.84
C169: 0 | D169: 0 | E169: 0 | F169: 0 | G169: 0 | H169: 0 | I169: 0 | J169: 0 | L169: -115.84
C170: 0 | D170: 0 | E170: 0 | F170: 0 | G170: 0 | H170: 0 | I170: 0 | J170: 0 | L170: -115.84 | Q170: =IF(C170=0,"",IF(ISERROR(J170/D170),"",(J170/D170))/IF(C170="DAX",25,IF(C170="CAC40",10,1))) -> 
C171: 0 | D171: 0 | E171: 0 | F171: 0 | G171: 0 | H171: 0 | I171: 0 | J171: 0 | L171: -115.84
C172: 0 | D172: 0 | E172: 0 | F172: 0 | G172: 0 | H172: 0 | I172: 0 | J172: 0 | L172: -115.84
C173: 0 | D173: 0 | E173: 0 | F173: 0 | G173: 0 | H173: 0 | I173: 0 | J173: 0 | L173: -115.84
C174: 0 | D174: 0 | E174: 0 | F174: 0 | G174: 0 | H174: 0 | I174: 0 | J174: 0 | L174: -115.84
C175: 0 | D175: 0 | E175: 0 | F175: 0 | G175: 0 | H175: 0 | I175: 0 | J175: 0 | L175: -115.84
C176: 0 | D176: 0 | E176: 0 | F176: 0 | G176: 0 | H176: 0 | I176: 0 | J176: 0 | L176: -115.84
C177: 0 | D177: 0 | E177: 0 | F177: 0 | G177: 0 | H177: 0 | I177: 0 | J177: 0 | L177: -115.84
C178: 0 | D178: 0 | E178: 0 | F178: 0 | G178: 0 | H178: 0 | I178: 0 | J178: 0 | L178: -115.84
C179: 0 | D179: 0 | E179: 0 | F179: 0 | G179: 0 | H179: 0 | I179: 0 | J179: 0 | L179: -115.84
C180: 0 | D180: 0 | E180: 0 | F180: 0 | G180: 0 | H180: 0 | I180: 0 | J180: 0 | L180: -115.84
C181: 0 | D181: 0 | E181: 0 | F181: 0 | G181: 0 | H181: 0 | I181: 0 | J181: 0 | L181: -115.84
C182: 0 | D182: 0 | E182: 0 | F182: 0 | G182: 0 | H182: 0 | I182: 0 | J182: 0 | L182: -115.84
C183: 0 | D183: 0 | E183: 0 | F183: 0 | G183: 0 | H183: 0 | I183: 0 | J183: 0 | L183: -115.84
C184: 0 | D184: 0 | E184: 0 | F184: 0 | G184: 0 | H184: 0 | I184: 0 | J184: 0 | L184: -115.84
C185: 0 | D185: 0 | E185: 0 | F185: 0 | G185: 0 | H185: 0 | I185: 0 | J185: 0 | L185: -115.84
C186: 0 | D186: 0 | E186: 0 | F186: 0 | G186: 0 | H186: 0 | I186: 0 | J186: 0 | L186: -115.84
C187: 0 | D187: 0 | E187: 0 | F187: 0 | G187: 0 | H187: 0 | I187: 0 | J187: 0 | L187: -115.84
C188: 0 | D188: 0 | E188: 0 | F188: 0 | G188: 0 | H188: 0 | I188: 0 | J188: 0 | L188: -115.84
C189: 0 | D189: 0 | E189: 0 | F189: 0 | G189: 0 | H189: 0 | I189: 0 | J189: 0 | L189: -115.84
C190: 0 | D190: 0 | E190: 0 | F190: 0 | G190: 0 | H190: 0 | I190: 0 | J190: 0 | L190: -115.84
C191: 0 | D191: 0 | E191: 0 | F191: 0 | G191: 0 | H191: 0 | I191: 0 | J191: 0 | L191: -115.84
C192: 0 | D192: 0 | E192: 0 | F192: 0 | G192: 0 | H192: 0 | I192: 0 | J192: 0 | L192: -115.84
C193: 0 | D193: 0 | E193: 0 | F193: 0 | G193: 0 | H193: 0 | I193: 0 | J193: 0 | L193: -115.84
C194: 0 | D194: 0 | E194: 0 | F194: 0 | G194: 0 | H194: 0 | I194: 0 | J194: 0 | L194: -115.84
C195: 0 | D195: 0 | E195: 0 | F195: 0 | G195: 0 | H195: 0 | I195: 0 | J195: 0 | L195: -115.84
C196: 0 | D196: 0 | E196: 0 | F196: 0 | G196: 0 | H196: 0 | I196: 0 | J196: 0 | L196: -115.84
C197: 0 | D197: 0 | E197: 0 | F197: 0 | G197: 0 | H197: 0 | I197: 0 | J197: 0 | L197: -115.84
C198: 0 | D198: 0 | E198: 0 | F198: 0 | G198: 0 | H198: 0 | I198: 0 | J198: 0 | L198: -115.84
C199: 0 | D199: 0 | E199: 0 | F199: 0 | G199: 0 | H199: 0 | I199: 0 | J199: 0 | L199: -115.84
C200: 0 | D200: 0 | E200: 0 | F200: 0 | G200: 0 | H200: 0 | I200: 0 | J200: 0 | L200: -115.84
C201: 0 | D201: 0 | E201: 0 | F201: 0 | G201: 0 | H201: 0 | I201: 0 | J201: 0 | L201: -115.84
C202: 0 | D202: 0 | E202: 0 | F202: 0 | G202: 0 | H202: 0 | I202: 0 | J202: 0 | L202: -115.84
C203: 0 | D203: 0 | E203: 0 | F203: 0 | G203: 0 | H203: 0 | I203: 0 | J203: 0 | L203: -115.84
C204: 0 | D204: 0 | E204: 0 | F204: 0 | G204: 0 | H204: 0 | I204: 0 | J204: 0 | L204: -115.84 | N204: =IF(E204=0,"",IF(E204="SLD","BUY","SLD")) -> 
C205: 0 | D205: 0 | E205: 0 | F205: 0 | G205: 0 | H205: 0 | I205: 0 | J205: 0 | L205: -115.84
C206: 0 | D206: 0 | E206: 0 | F206: 0 | G206: 0 | H206: 0 | I206: 0 | J206: 0 | L206: -115.84
C207: 0 | D207: 0 | E207: 0 | F207: 0 | G207: 0 | H207: 0 | I207: 0 | J207: 0 | L207: -115.84
... 300 more rows

Sheet 13-06
AK4: B/S | AL4: Strat | AM4: M2 | AN4: Erreur
AK5: B | AL5: IC40 30S | AM5: Même sens | AN5: Oui
AK6: S | AL6: IC40S 30S | AM6: Flat | AN6: Non
AL7: IC40 30S inverse MM | AM7: Opposé
AL8: Contretendance impulsion
AL9: Trading de Niveau 30S
AL10: Trading de Niveau M2
AL11: Trading de Niveau H1
AL12: Trading de Niveau D
AL13: Sur chiffres
AL14: Range
AL15: IC40 M2
AL16: IC40 S M2
AL17: IC40 M2 inverse MM
AL18: Cassure S/R M2
AL19: Cassure S/R H1
AL20: Cassure S/R D
C25: Underlying | D25: Quantity | E25: Contract | F25: Price | G25: Time | H25: Date | I25: Commission | J25: Realized P&L | L25: Cumul P&L | M25: Strat | N25: Sell/Buy | O25: TDCE M2 | P25: Conviction sur le marché | Q25: Pts | R25: Erreur
C26: CAC40 | D26: 1 | E26: SLD | F26: 4251.5 | G26: 0.3453935185 | H26: 20160613 | I26: 1.18 | J26: 0 | L26: =+J26 -> 0 | Q26: =IF(C26=0,"",IF(ISERROR(J26/D26),"",(J26/D26))/IF(C26="DAX",25,IF(C26="CAC40",10,1))) -> 0
C27: CAC40 | D27: 1 | E27: BOT | F27: 4252 | G27: 08:17:39 | H27: 20160613 | I27: 1.18 | J27: -7.36 | L27: =+J27+L26 -> -7.36 | N27: =IF(E27=0,"",IF(E27="SLD","BUY","SLD")) -> SLD | Q27: -0.736
C28: IBDE30 | D28: 1 | E28: SLD | F28: 9725.42 | G28: 0.3796180556 | H28: 20160613 | I28: 1 | J28: 0 | L28: =+J28+L27 -> -7.36 | N28: =IF(E28=0,"",IF(E28="SLD","BUY","SLD")) -> BUY | Q28: 0
C29: IBDE30 | D29: 1 | E29: BOT | F29: 9714.42 | G29: 09:07:10 | H29: 20160613 | I29: 1 | J29: 9 | L29: 1.64 | M29: IC40S 30S | N29: SLD | O29: Même sens | Q29: 9
C30: IBDE30 | D30: 1 | E30: SLD | F30: 9726.92 | G30: 0.3919675926 | H30: 20160613 | I30: 1 | J30: 0 | L30: =+J30+L29 -> 1.64 | N30: BUY | Q30: 0
C31: IBDE30 | D31: 1 | E31: BOT | F31: 9727.92 | G31: 09:29:26 | H31: 20160613 | I31: 1 | J31: -3 | L31: -1.36 | N31: SLD | O31: Même sens | Q31: -3
C32: IBDE30 | D32: 1 | E32: SLD | F32: 9725.92 | G32: 0.4143287037 | H32: 20160613 | I32: 1 | J32: 0 | L32: -1.36 | N32: BUY | Q32: 0
C33: IBDE30 | D33: 1 | E33: SLD | F33: 9728.42 | G33: 0.4150347222 | H33: 20160613 | I33: 1 | J33: 0 | L33: -1.36 | N33: BUY | Q33: 0
C34: IBDE30 | D34: 1 | E34: SLD | F34: 9735.92 | G34: 0.4185532407 | H34: 20160613 | I34: 1 | J34: 0 | L34: -1.36 | N34: BUY | Q34: 0
C35: IBDE30 | D35: 2 | E35: BOT | F35: 9728.92 | G35: 10:02:53 | H35: 20160613 | I35: 1 | J35: -0.67 | L35: -2.03 | N35: SLD | Q35: -0.335
C36: IBDE30 | D36: 1 | E36: BOT | F36: 9727.92 | G36: 10:03:00 | H36: 20160613 | I36: 1 | J36: 0.17 | L36: -1.86 | N36: SLD | Q36: 0.17
C37: IBFR40 | D37: 1 | E37: BOT | F37: 4247.34 | G37: 0.6580439815 | H37: 20160613 | I37: 1 | J37: 0 | L37: -1.86 | N37: SLD | Q37: 0
C38: IBFR40 | D38: 1 | E38: BOT | F38: 4247.84 | G38: 0.6584143519 | H38: 20160613 | I38: 1 | J38: 0 | L38: -1.86 | N38: SLD | Q38: 0
C39: IBFR40 | D39: 1 | E39: BOT | F39: 4245.34 | G39: 0.6656828704 | H39: 20160613 | I39: 1 | J39: 0 | L39: -1.86 | N39: SLD | Q39: 0
C40: IBFR40 | D40: 1 | E40: SLD | F40: 4255.34 | G40: 0.6875347222 | H40: 20160613 | I40: 1 | J40: 6.5 | L40: 4.64 | N40: BUY | Q40: 6.5
C41: IBFR40 | D41: 1 | E41: SLD | F41: 4249.34 | G41: 0.7086805556 | H41: 20160613 | I41: 1 | J41: 0.5 | L41: 5.14 | N41: BUY | Q41: =IF(C41=0,"",IF(ISERROR(J41/D41),"",(J41/D41))/IF(C41="DAX",25,IF(C41="CAC40",10,1))) -> 0.5
C42: IBFR40 | D42: 1 | E42: SLD | F42: 4246.84 | G42: 0.7089930556 | H42: 20160613 | I42: 1 | J42: -2 | L42: 3.14 | N42: BUY | Q42: =IF(C42=0,"",IF(ISERROR(J42/D42),"",(J42/D42))/IF(C42="DAX",25,IF(C42="CAC40",10,1))) -> -2
C43: 0 | D43: 0 | E43: 0 | F43: 0 | G43: 0 | H43: 0 | I43: 0 | J43: 0 | L43: 3.14
C44: 0 | D44: 0 | E44: 0 | F44: 0 | G44: 0 | H44: 0 | I44: 0 | J44: 0 | L44: 3.14
C45: 0 | D45: 0 | E45: 0 | F45: 0 | G45: 0 | H45: 0 | I45: 0 | J45: 0 | L45: 3.14
C46: 0 | D46: 0 | E46: 0 | F46: 0 | G46: 0 | H46: 0 | I46: 0 | J46: 0 | L46: 3.14
C47: 0 | D47: 0 | E47: 0 | F47: 0 | G47: 0 | H47: 0 | I47: 0 | J47: 0 | L47: 3.14
C48: 0 | D48: 0 | E48: 0 | F48: 0 | G48: 0 | H48: 0 | I48: 0 | J48: 0 | L48: 3.14
C49: 0 | D49: 0 | E49: 0 | F49: 0 | G49: 0 | H49: 0 | I49: 0 | J49: 0 | L49: 3.14
C50: 0 | D50: 0 | E50: 0 | F50: 0 | G50: 0 | H50: 0 | I50: 0 | J50: 0 | L50: 3.14
C51: 0 | D51: 0 | E51: 0 | F51: 0 | G51: 0 | H51: 0 | I51: 0 | J51: 0 | L51: 3.14
C52: 0 | D52: 0 | E52: 0 | F52: 0 | G52: 0 | H52: 0 | I52: 0 | J52: 0 | L52: 3.14
C53: 0 | D53: 0 | E53: 0 | F53: 0 | G53: 0 | H53: 0 | I53: 0 | J53: 0 | L53: 3.14
C54: 0 | D54: 0 | E54: 0 | F54: 0 | G54: 0 | H54: 0 | I54: 0 | J54: 0 | L54: 3.14
C55: 0 | D55: 0 | E55: 0 | F55: 0 | G55: 0 | H55: 0 | I55: 0 | J55: 0 | L55: 3.14
C56: 0 | D56: 0 | E56: 0 | F56: 0 | G56: 0 | H56: 0 | I56: 0 | J56: 0 | L56: 3.14
C57: 0 | D57: 0 | E57: 0 | F57: 0 | G57: 0 | H57: 0 | I57: 0 | J57: 0 | L57: 3.14
C58: 0 | D58: 0 | E58: 0 | F58: 0 | G58: 0 | H58: 0 | I58: 0 | J58: 0 | L58: 3.14
C59: 0 | D59: 0 | E59: 0 | F59: 0 | G59: 0 | H59: 0 | I59: 0 | J59: 0 | L59: 3.14
C60: 0 | D60: 0 | E60: 0 | F60: 0 | G60: 0 | H60: 0 | I60: 0 | J60: 0 | L60: 3.14
C61: 0 | D61: 0 | E61: 0 | F61: 0 | G61: 0 | H61: 0 | I61: 0 | J61: 0 | L61: 3.14
C62: 0 | D62: 0 | E62: 0 | F62: 0 | G62: 0 | H62: 0 | I62: 0 | J62: 0 | L62: 3.14
C63: 0 | D63: 0 | E63: 0 | F63: 0 | G63: 0 | H63: 0 | I63: 0 | J63: 0 | L63: 3.14
C64: 0 | D64: 0 | E64: 0 | F64: 0 | G64: 0 | H64: 0 | I64: 0 | J64: 0 | L64: 3.14
C65: 0 | D65: 0 | E65: 0 | F65: 0 | G65: 0 | H65: 0 | I65: 0 | J65: 0 | L65: 3.14
C66: 0 | D66: 0 | E66: 0 | F66: 0 | G66: 0 | H66: 0 | I66: 0 | J66: 0 | L66: 3.14
C67: 0 | D67: 0 | E67: 0 | F67: 0 | G67: 0 | H67: 0 | I67: 0 | J67: 0 | L67: 3.14
C68: 0 | D68: 0 | E68: 0 | F68: 0 | G68: 0 | H68: 0 | I68: 0 | J68: 0 | L68: 3.14
C69: 0 | D69: 0 | E69: 0 | F69: 0 | G69: 0 | H69: 0 | I69: 0 | J69: 0 | L69: 3.14
C70: 0 | D70: 0 | E70: 0 | F70: 0 | G70: 0 | H70: 0 | I70: 0 | J70: 0 | L70: 3.14
C71: 0 | D71: 0 | E71: 0 | F71: 0 | G71: 0 | H71: 0 | I71: 0 | J71: 0 | L71: 3.14
C72: 0 | D72: 0 | E72: 0 | F72: 0 | G72: 0 | H72: 0 | I72: 0 | J72: 0 | L72: 3.14
C73: 0 | D73: 0 | E73: 0 | F73: 0 | G73: 0 | H73: 0 | I73: 0 | J73: 0 | L73: 3.14
C74: 0 | D74: 0 | E74: 0 | F74: 0 | G74: 0 | H74: 0 | I74: 0 | J74: 0 | L74: 3.14
C75: 0 | D75: 0 | E75: 0 | F75: 0 | G75: 0 | H75: 0 | I75: 0 | J75: 0 | L75: 3.14
C76: 0 | D76: 0 | E76: 0 | F76: 0 | G76: 0 | H76: 0 | I76: 0 | J76: 0 | L76: 3.14 | N76: =IF(E76=0,"",IF(E76="SLD","BUY","SLD")) -> 
C77: 0 | D77: 0 | E77: 0 | F77: 0 | G77: 0 | H77: 0 | I77: 0 | J77: 0 | L77: 3.14
C78: 0 | D78: 0 | E78: 0 | F78: 0 | G78: 0 | H78: 0 | I78: 0 | J78: 0 | L78: 3.14
C79: 0 | D79: 0 | E79: 0 | F79: 0 | G79: 0 | H79: 0 | I79: 0 | J79: 0 | L79: 3.14
C80: 0 | D80: 0 | E80: 0 | F80: 0 | G80: 0 | H80: 0 | I80: 0 | J80: 0 | L80: 3.14
C81: 0 | D81: 0 | E81: 0 | F81: 0 | G81: 0 | H81: 0 | I81: 0 | J81: 0 | L81: 3.14
C82: 0 | D82: 0 | E82: 0 | F82: 0 | G82: 0 | H82: 0 | I82: 0 | J82: 0 | L82: 3.14
C83: 0 | D83: 0 | E83: 0 | F83: 0 | G83: 0 | H83: 0 | I83: 0 | J83: 0 | L83: 3.14
C84: 0 | D84: 0 | E84: 0 | F84: 0 | G84: 0 | H84: 0 | I84: 0 | J84: 0 | L84: 3.14
C85: 0 | D85: 0 | E85: 0 | F85: 0 | G85: 0 | H85: 0 | I85: 0 | J85: 0 | L85: 3.14
C86: 0 | D86: 0 | E86: 0 | F86: 0 | G86: 0 | H86: 0 | I86: 0 | J86: 0 | L86: 3.14
C87: 0 | D87: 0 | E87: 0 | F87: 0 | G87: 0 | H87: 0 | I87: 0 | J87: 0 | L87: 3.14
C88: 0 | D88: 0 | E88: 0 | F88: 0 | G88: 0 | H88: 0 | I88: 0 | J88: 0 | L88: 3.14
C89: 0 | D89: 0 | E89: 0 | F89: 0 | G89: 0 | H89: 0 | I89: 0 | J89: 0 | L89: 3.14
C90: 0 | D90: 0 | E90: 0 | F90: 0 | G90: 0 | H90: 0 | I90: 0 | J90: 0 | L90: 3.14
C91: 0 | D91: 0 | E91: 0 | F91: 0 | G91: 0 | H91: 0 | I91: 0 | J91: 0 | L91: 3.14
C92: 0 | D92: 0 | E92: 0 | F92: 0 | G92: 0 | H92: 0 | I92: 0 | J92: 0 | L92: =+J92+L91 -> 3.14
C93: 0 | D93: 0 | E93: 0 | F93: 0 | G93: 0 | H93: 0 | I93: 0 | J93: 0 | L93: 3.14
C94: 0 | D94: 0 | E94: 0 | F94: 0 | G94: 0 | H94: 0 | I94: 0 | J94: 0 | L94: 3.14
C95: 0 | D95: 0 | E95: 0 | F95: 0 | G95: 0 | H95: 0 | I95: 0 | J95: 0 | L95: 3.14
C96: 0 | D96: 0 | E96: 0 | F96: 0 | G96: 0 | H96: 0 | I96: 0 | J96: 0 | L96: 3.14
C97: 0 | D97: 0 | E97: 0 | F97: 0 | G97: 0 | H97: 0 | I97: 0 | J97: 0 | L97: 3.14
C98: 0 | D98: 0 | E98: 0 | F98: 0 | G98: 0 | H98: 0 | I98: 0 | J98: 0 | L98: 3.14
C99: 0 | D99: 0 | E99: 0 | F99: 0 | G99: 0 | H99: 0 | I99: 0 | J99: 0 | L99: 3.14
C100: 0 | D100: 0 | E100: 0 | F100: 0 | G100: 0 | H100: 0 | I100: 0 | J100: 0 | L100: 3.14
C101: 0 | D101: 0 | E101: 0 | F101: 0 | G101: 0 | H101: 0 | I101: 0 | J101: 0 | L101: 3.14
C102: 0 | D102: 0 | E102: 0 | F102: 0 | G102: 0 | H102: 0 | I102: 0 | J102: 0 | L102: 3.14
C103: 0 | D103: 0 | E103: 0 | F103: 0 | G103: 0 | H103: 0 | I103: 0 | J103: 0 | L103: 3.14
C104: 0 | D104: 0 | E104: 0 | F104: 0 | G104: 0 | H104: 0 | I104: 0 | J104: 0 | L104: 3.14
C105: 0 | D105: 0 | E105: 0 | F105: 0 | G105: 0 | H105: 0 | I105: 0 | J105: 0 | L105: 3.14
C106: 0 | D106: 0 | E106: 0 | F106: 0 | G106: 0 | H106: 0 | I106: 0 | J106: 0 | L106: 3.14 | Q106: =IF(C106=0,"",IF(ISERROR(J106/D106),"",(J106/D106))/IF(C106="DAX",25,IF(C106="CAC40",10,1))) -> 
C107: 0 | D107: 0 | E107: 0 | F107: 0 | G107: 0 | H107: 0 | I107: 0 | J107: 0 | L107: 3.14
C108: 0 | D108: 0 | E108: 0 | F108: 0 | G108: 0 | H108: 0 | I108: 0 | J108: 0 | L108: 3.14
C109: 0 | D109: 0 | E109: 0 | F109: 0 | G109: 0 | H109: 0 | I109: 0 | J109: 0 | L109: 3.14
C110: 0 | D110: 0 | E110: 0 | F110: 0 | G110: 0 | H110: 0 | I110: 0 | J110: 0 | L110: 3.14
C111: 0 | D111: 0 | E111: 0 | F111: 0 | G111: 0 | H111: 0 | I111: 0 | J111: 0 | L111: 3.14
C112: 0 | D112: 0 | E112: 0 | F112: 0 | G112: 0 | H112: 0 | I112: 0 | J112: 0 | L112: 3.14
C113: 0 | D113: 0 | E113: 0 | F113: 0 | G113: 0 | H113: 0 | I113: 0 | J113: 0 | L113: 3.14
C114: 0 | D114: 0 | E114: 0 | F114: 0 | G114: 0 | H114: 0 | I114: 0 | J114: 0 | L114: 3.14
C115: 0 | D115: 0 | E115: 0 | F115: 0 | G115: 0 | H115: 0 | I115: 0 | J115: 0 | L115: 3.14
C116: 0 | D116: 0 | E116: 0 | F116: 0 | G116: 0 | H116: 0 | I116: 0 | J116: 0 | L116: 3.14
C117: 0 | D117: 0 | E117: 0 | F117: 0 | G117: 0 | H117: 0 | I117: 0 | J117: 0 | L117: 3.14
C118: 0 | D118: 0 | E118: 0 | F118: 0 | G118: 0 | H118: 0 | I118: 0 | J118: 0 | L118: 3.14
C119: 0 | D119: 0 | E119: 0 | F119: 0 | G119: 0 | H119: 0 | I119: 0 | J119: 0 | L119: 3.14
C120: 0 | D120: 0 | E120: 0 | F120: 0 | G120: 0 | H120: 0 | I120: 0 | J120: 0 | L120: 3.14
C121: 0 | D121: 0 | E121: 0 | F121: 0 | G121: 0 | H121: 0 | I121: 0 | J121: 0 | L121: 3.14
C122: 0 | D122: 0 | E122: 0 | F122: 0 | G122: 0 | H122: 0 | I122: 0 | J122: 0 | L122: 3.14
C123: 0 | D123: 0 | E123: 0 | F123: 0 | G123: 0 | H123: 0 | I123: 0 | J123: 0 | L123: 3.14
C124: 0 | D124: 0 | E124: 0 | F124: 0 | G124: 0 | H124: 0 | I124: 0 | J124: 0 | L124: 3.14
C125: 0 | D125: 0 | E125: 0 | F125: 0 | G125: 0 | H125: 0 | I125: 0 | J125: 0 | L125: 3.14
C126: 0 | D126: 0 | E126: 0 | F126: 0 | G126: 0 | H126: 0 | I126: 0 | J126: 0 | L126: 3.14
C127: 0 | D127: 0 | E127: 0 | F127: 0 | G127: 0 | H127: 0 | I127: 0 | J127: 0 | L127: 3.14
C128: 0 | D128: 0 | E128: 0 | F128: 0 | G128: 0 | H128: 0 | I128: 0 | J128: 0 | L128: 3.14
C129: 0 | D129: 0 | E129: 0 | F129: 0 | G129: 0 | H129: 0 | I129: 0 | J129: 0 | L129: 3.14
C130: 0 | D130: 0 | E130: 0 | F130: 0 | G130: 0 | H130: 0 | I130: 0 | J130: 0 | L130: 3.14
C131: 0 | D131: 0 | E131: 0 | F131: 0 | G131: 0 | H131: 0 | I131: 0 | J131: 0 | L131: 3.14
C132: 0 | D132: 0 | E132: 0 | F132: 0 | G132: 0 | H132: 0 | I132: 0 | J132: 0 | L132: 3.14
C133: 0 | D133: 0 | E133: 0 | F133: 0 | G133: 0 | H133: 0 | I133: 0 | J133: 0 | L133: 3.14
C134: 0 | D134: 0 | E134: 0 | F134: 0 | G134: 0 | H134: 0 | I134: 0 | J134: 0 | L134: 3.14
C135: 0 | D135: 0 | E135: 0 | F135: 0 | G135: 0 | H135: 0 | I135: 0 | J135: 0 | L135: 3.14
C136: 0 | D136: 0 | E136: 0 | F136: 0 | G136: 0 | H136: 0 | I136: 0 | J136: 0 | L136: 3.14
C137: 0 | D137: 0 | E137: 0 | F137: 0 | G137: 0 | H137: 0 | I137: 0 | J137: 0 | L137: 3.14
C138: 0 | D138: 0 | E138: 0 | F138: 0 | G138: 0 | H138: 0 | I138: 0 | J138: 0 | L138: 3.14
C139: 0 | D139: 0 | E139: 0 | F139: 0 | G139: 0 | H139: 0 | I139: 0 | J139: 0 | L139: 3.14
C140: 0 | D140: 0 | E140: 0 | F140: 0 | G140: 0 | H140: 0 | I140: 0 | J140: 0 | L140: 3.14 | N140: =IF(E140=0,"",IF(E140="SLD","BUY","SLD")) -> 
C141: 0 | D141: 0 | E141: 0 | F141: 0 | G141: 0 | H141: 0 | I141: 0 | J141: 0 | L141: 3.14
C142: 0 | D142: 0 | E142: 0 | F142: 0 | G142: 0 | H142: 0 | I142: 0 | J142: 0 | L142: 3.14
C143: 0 | D143: 0 | E143: 0 | F143: 0 | G143: 0 | H143: 0 | I143: 0 | J143: 0 | L143: 3.14
C144: 0 | D144: 0 | E144: 0 | F144: 0 | G144: 0 | H144: 0 | I144: 0 | J144: 0 | L144: 3.14
C145: 0 | D145: 0 | E145: 0 | F145: 0 | G145: 0 | H145: 0 | I145: 0 | J145: 0 | L145: 3.14
C146: 0 | D146: 0 | E146: 0 | F146: 0 | G146: 0 | H146: 0 | I146: 0 | J146: 0 | L146: 3.14
C147: 0 | D147: 0 | E147: 0 | F147: 0 | G147: 0 | H147: 0 | I147: 0 | J147: 0 | L147: 3.14
C148: 0 | D148: 0 | E148: 0 | F148: 0 | G148: 0 | H148: 0 | I148: 0 | J148: 0 | L148: 3.14
C149: 0 | D149: 0 | E149: 0 | F149: 0 | G149: 0 | H149: 0 | I149: 0 | J149: 0 | L149: 3.14
C150: 0 | D150: 0 | E150: 0 | F150: 0 | G150: 0 | H150: 0 | I150: 0 | J150: 0 | L150: 3.14
C151: 0 | D151: 0 | E151: 0 | F151: 0 | G151: 0 | H151: 0 | I151: 0 | J151: 0 | L151: 3.14
C152: 0 | D152: 0 | E152: 0 | F152: 0 | G152: 0 | H152: 0 | I152: 0 | J152: 0 | L152: 3.14
C153: 0 | D153: 0 | E153: 0 | F153: 0 | G153: 0 | H153: 0 | I153: 0 | J153: 0 | L153: 3.14
C154: 0 | D154: 0 | E154: 0 | F154: 0 | G154: 0 | H154: 0 | I154: 0 | J154: 0 | L154: 3.14
C155: 0 | D155: 0 | E155: 0 | F155: 0 | G155: 0 | H155: 0 | I155: 0 | J155: 0 | L155: 3.14
C156: 0 | D156: 0 | E156: 0 | F156: 0 | G156: 0 | H156: 0 | I156: 0 | J156: 0 | L156: =+J156+L155 -> 3.14
C157: 0 | D157: 0 | E157: 0 | F157: 0 | G157: 0 | H157: 0 | I157: 0 | J157: 0 | L157: 3.14
C158: 0 | D158: 0 | E158: 0 | F158: 0 | G158: 0 | H158: 0 | I158: 0 | J158: 0 | L158: 3.14
C159: 0 | D159: 0 | E159: 0 | F159: 0 | G159: 0 | H159: 0 | I159: 0 | J159: 0 | L159: 3.14
C160: 0 | D160: 0 | E160: 0 | F160: 0 | G160: 0 | H160: 0 | I160: 0 | J160: 0 | L160: 3.14
C161: 0 | D161: 0 | E161: 0 | F161: 0 | G161: 0 | H161: 0 | I161: 0 | J161: 0 | L161: 3.14
C162: 0 | D162: 0 | E162: 0 | F162: 0 | G162: 0 | H162: 0 | I162: 0 | J162: 0 | L162: 3.14
C163: 0 | D163: 0 | E163: 0 | F163: 0 | G163: 0 | H163: 0 | I163: 0 | J163: 0 | L163: 3.14
C164: 0 | D164: 0 | E164: 0 | F164: 0 | G164: 0 | H164: 0 | I164: 0 | J164: 0 | L164: 3.14
C165: 0 | D165: 0 | E165: 0 | F165: 0 | G165: 0 | H165: 0 | I165: 0 | J165: 0 | L165: 3.14
C166: 0 | D166: 0 | E166: 0 | F166: 0 | G166: 0 | H166: 0 | I166: 0 | J166: 0 | L166: 3.14
C167: 0 | D167: 0 | E167: 0 | F167: 0 | G167: 0 | H167: 0 | I167: 0 | J167: 0 | L167: 3.14
C168: 0 | D168: 0 | E168: 0 | F168: 0 | G168: 0 | H168: 0 | I168: 0 | J168: 0 | L168: 3.14
C169: 0 | D169: 0 | E169: 0 | F169: 0 | G169: 0 | H169: 0 | I169: 0 | J169: 0 | L169: 3.14
C170: 0 | D170: 0 | E170: 0 | F170: 0 | G170: 0 | H170: 0 | I170: 0 | J170: 0 | L170: 3.14 | Q170: =IF(C170=0,"",IF(ISERROR(J170/D170),"",(J170/D170))/IF(C170="DAX",25,IF(C170="CAC40",10,1))) -> 
C171: 0 | D171: 0 | E171: 0 | F171: 0 | G171: 0 | H171: 0 | I171: 0 | J171: 0 | L171: 3.14
C172: 0 | D172: 0 | E172: 0 | F172: 0 | G172: 0 | H172: 0 | I172: 0 | J172: 0 | L172: 3.14
C173: 0 | D173: 0 | E173: 0 | F173: 0 | G173: 0 | H173: 0 | I173: 0 | J173: 0 | L173: 3.14
C174: 0 | D174: 0 | E174: 0 | F174: 0 | G174: 0 | H174: 0 | I174: 0 | J174: 0 | L174: 3.14
C175: 0 | D175: 0 | E175: 0 | F175: 0 | G175: 0 | H175: 0 | I175: 0 | J175: 0 | L175: 3.14
C176: 0 | D176: 0 | E176: 0 | F176: 0 | G176: 0 | H176: 0 | I176: 0 | J176: 0 | L176: 3.14
C177: 0 | D177: 0 | E177: 0 | F177: 0 | G177: 0 | H177: 0 | I177: 0 | J177: 0 | L177: 3.14
C178: 0 | D178: 0 | E178: 0 | F178: 0 | G178: 0 | H178: 0 | I178: 0 | J178: 0 | L178: 3.14
C179: 0 | D179: 0 | E179: 0 | F179: 0 | G179: 0 | H179: 0 | I179: 0 | J179: 0 | L179: 3.14
C180: 0 | D180: 0 | E180: 0 | F180: 0 | G180: 0 | H180: 0 | I180: 0 | J180: 0 | L180: 3.14
C181: 0 | D181: 0 | E181: 0 | F181: 0 | G181: 0 | H181: 0 | I181: 0 | J181: 0 | L181: 3.14
C182: 0 | D182: 0 | E182: 0 | F182: 0 | G182: 0 | H182: 0 | I182: 0 | J182: 0 | L182: 3.14
C183: 0 | D183: 0 | E183: 0 | F183: 0 | G183: 0 | H183: 0 | I183: 0 | J183: 0 | L183: 3.14
C184: 0 | D184: 0 | E184: 0 | F184: 0 | G184: 0 | H184: 0 | I184: 0 | J184: 0 | L184: 3.14
C185: 0 | D185: 0 | E185: 0 | F185: 0 | G185: 0 | H185: 0 | I185: 0 | J185: 0 | L185: 3.14
C186: 0 | D186: 0 | E186: 0 | F186: 0 | G186: 0 | H186: 0 | I186: 0 | J186: 0 | L186: 3.14
C187: 0 | D187: 0 | E187: 0 | F187: 0 | G187: 0 | H187: 0 | I187: 0 | J187: 0 | L187: 3.14
C188: 0 | D188: 0 | E188: 0 | F188: 0 | G188: 0 | H188: 0 | I188: 0 | J188: 0 | L188: 3.14
C189: 0 | D189: 0 | E189: 0 | F189: 0 | G189: 0 | H189: 0 | I189: 0 | J189: 0 | L189: 3.14
C190: 0 | D190: 0 | E190: 0 | F190: 0 | G190: 0 | H190: 0 | I190: 0 | J190: 0 | L190: 3.14
C191: 0 | D191: 0 | E191: 0 | F191: 0 | G191: 0 | H191: 0 | I191: 0 | J191: 0 | L191: 3.14
C192: 0 | D192: 0 | E192: 0 | F192: 0 | G192: 0 | H192: 0 | I192: 0 | J192: 0 | L192: 3.14
C193: 0 | D193: 0 | E193: 0 | F193: 0 | G193: 0 | H193: 0 | I193: 0 | J193: 0 | L193: 3.14
C194: 0 | D194: 0 | E194: 0 | F194: 0 | G194: 0 | H194: 0 | I194: 0 | J194: 0 | L194: 3.14
C195: 0 | D195: 0 | E195: 0 | F195: 0 | G195: 0 | H195: 0 | I195: 0 | J195: 0 | L195: 3.14
C196: 0 | D196: 0 | E196: 0 | F196: 0 | G196: 0 | H196: 0 | I196: 0 | J196: 0 | L196: 3.14
C197: 0 | D197: 0 | E197: 0 | F197: 0 | G197: 0 | H197: 0 | I197: 0 | J197: 0 | L197: 3.14
C198: 0 | D198: 0 | E198: 0 | F198: 0 | G198: 0 | H198: 0 | I198: 0 | J198: 0 | L198: 3.14
C199: 0 | D199: 0 | E199: 0 | F199: 0 | G199: 0 | H199: 0 | I199: 0 | J199: 0 | L199: 3.14
C200: 0 | D200: 0 | E200: 0 | F200: 0 | G200: 0 | H200: 0 | I200: 0 | J200: 0 | L200: 3.14
C201: 0 | D201: 0 | E201: 0 | F201: 0 | G201: 0 | H201: 0 | I201: 0 | J201: 0 | L201: 3.14
C202: 0 | D202: 0 | E202: 0 | F202: 0 | G202: 0 | H202: 0 | I202: 0 | J202: 0 | L202: 3.14
C203: 0 | D203: 0 | E203: 0 | F203: 0 | G203: 0 | H203: 0 | I203: 0 | J203: 0 | L203: 3.14
C204: 0 | D204: 0 | E204: 0 | F204: 0 | G204: 0 | H204: 0 | I204: 0 | J204: 0 | L204: 3.14 | N204: =IF(E204=0,"",IF(E204="SLD","BUY","SLD")) -> 
C205: 0 | D205: 0 | E205: 0 | F205: 0 | G205: 0 | H205: 0 | I205: 0 | J205: 0 | L205: 3.14
C206: 0 | D206: 0 | E206: 0 | F206: 0 | G206: 0 | H206: 0 | I206: 0 | J206: 0 | L206: 3.14
C207: 0 | D207: 0 | E207: 0 | F207: 0 | G207: 0 | H207: 0 | I207: 0 | J207: 0 | L207: 3.14
... 300 more rows

Sheet 14-06
AK4: B/S | AL4: Strat | AM4: M2 | AN4: Erreur
AK5: B | AL5: IC40 30S | AM5: Même sens | AN5: Oui
AK6: S | AL6: IC40S 30S | AM6: Flat | AN6: Non
AL7: IC40 30S inverse MM | AM7: Opposé
AL8: Contretendance impulsion
AL9: Trading de Niveau 30S
AL10: Trading de Niveau M2
AL11: Trading de Niveau H1
AL12: Trading de Niveau D
AL13: Sur chiffres
AL14: Range
AL15: IC40 M2
AL16: IC40 S M2
AL17: IC40 M2 inverse MM
AL18: Cassure S/R M2
AL19: Cassure S/R H1
AL20: Cassure S/R D
C25: Underlying | D25: Quantity | E25: Contract | F25: Price | G25: Time | H25: Date | I25: Commission | J25: Realized P&L | L25: Cumul P&L | M25: Strat | N25: Sell/Buy | O25: TDCE M2 | P25: Conviction sur le marché | Q25: Pts | R25: Erreur
C26: IBDE30 | D26: 1 | E26: SLD | F26: 9564.24 | G26: 09:15:43 | H26: 20160614 | I26: 1 | J26: 0 | L26: =+J26 -> 0 | Q26: =IF(C26=0,"",IF(ISERROR(J26/D26),"",(J26/D26))/IF(C26="DAX",25,IF(C26="CAC40",10,1))) -> 0
C27: IBDE30 | D27: 1 | E27: SLD | F27: 9568.24 | G27: 09:18:31 | H27: 20160614 | I27: 1 | J27: 0 | L27: =+J27+L26 -> 0 | N27: =IF(E27=0,"",IF(E27="SLD","BUY","SLD")) -> BUY | Q27: 0
C28: IBDE30 | D28: 1 | E28: BOT | F28: 9552.24 | G28: 09:23:57 | H28: 20160614 | I28: 1 | J28: 12 | L28: =+J28+L27 -> 12 | M28: IC40S 30S | N28: =IF(E28=0,"",IF(E28="SLD","BUY","SLD")) -> SLD | O28: Même sens | Q28: 12
C29: IBDE30 | D29: 1 | E29: SLD | F29: 9575.24 | G29: 09:34:04 | H29: 20160614 | I29: 1 | J29: 0 | L29: 12 | N29: BUY | Q29: 0
C30: IBDE30 | D30: 1 | E30: SLD | F30: 9585.24 | G30: 09:37:36 | H30: 20160614 | I30: 1 | J30: 0 | L30: =+J30+L29 -> 12 | N30: BUY | Q30: 0
C31: IBDE30 | D31: 1 | E31: BOT | F31: 9568.74 | G31: 09:52:32 | H31: 20160614 | I31: 1 | J31: 4.83 | L31: 16.83 | M31: IC40S 30S | N31: SLD | O31: Même sens | Q31: 4.83
C32: IBDE30 | D32: 1 | E32: BOT | F32: 9569.74 | G32: 09:52:57 | H32: 20160614 | I32: 1 | J32: 3.83 | L32: 20.66 | M32: IC40S 30S | N32: SLD | O32: Même sens | Q32: 3.83
C33: IBDE30 | D33: 1 | E33: BOT | F33: 9551.05 | G33: 09:59:35 | H33: 20160614 | I33: 1 | J33: 22.52 | L33: 43.18 | M33: IC40S 30S | N33: SLD | O33: Même sens | Q33: 22.52
C34: IBDE30 | D34: 1 | E34: SLD | F34: 9559.74 | G34: 10:00:33 | H34: 20160614 | I34: 1 | J34: 0 | L34: 43.18 | N34: BUY | Q34: 0
C35: IBDE30 | D35: 1 | E35: BOT | F35: 9559.24 | G35: 10:13:44 | H35: 20160614 | I35: 1 | J35: -1.5 | L35: 41.68 | M35: IC40S 30S | N35: SLD | O35: Même sens | Q35: -1.5
C36: IBDE30 | D36: 1 | E36: SLD | F36: 9526.24 | G36: 10:41:21 | H36: 20160614 | I36: 1 | J36: 0 | L36: 41.68 | N36: BUY | Q36: 0
C37: IBDE30 | D37: 1 | E37: BOT | F37: 9516.74 | G37: 10:41:59 | H37: 20160614 | I37: 1 | J37: 7.5 | L37: 49.18 | M37: Cassure S/R M2 | N37: SLD | O37: Même sens | Q37: =IF(C37=0,"",IF(ISERROR(J37/D37),"",(J37/D37))/IF(C37="DAX",25,IF(C37="CAC40",10,1))) -> 7.5
C38: IBDE30 | D38: 1 | E38: SLD | F38: 9536.97 | G38: 11:00:15 | H38: 20160614 | I38: 1 | J38: 0 | L38: 49.18 | N38: BUY | Q38: 0
C39: IBDE30 | D39: 1 | E39: BOT | F39: 9528.74 | G39: 11:02:46 | H39: 20160614 | I39: 1 | J39: 6.23 | L39: 55.41 | M39: IC40S 30S | N39: SLD | O39: Même sens | Q39: 6.23
C40: IBDE30 | D40: 1 | E40: SLD | F40: 9583.74 | G40: 12:04:32 | H40: 20160614 | I40: 1 | J40: 0 | L40: 55.41 | N40: BUY | Q40: 0
C41: IBDE30 | D41: 1 | E41: SLD | F41: 9596.24 | G41: 12:09:25 | H41: 20160614 | I41: 1 | J41: 0 | L41: 55.41 | N41: BUY | Q41: =IF(C41=0,"",IF(ISERROR(J41/D41),"",(J41/D41))/IF(C41="DAX",25,IF(C41="CAC40",10,1))) -> 0
C42: IBDE30 | D42: 1 | E42: BOT | F42: 9573.74 | G42: 13:16:39 | H42: 20160614 | I42: 1 | J42: 14.25 | L42: 69.66 | M42: Trading de Niveau M2 | N42: SLD | Q42: =IF(C42=0,"",IF(ISERROR(J42/D42),"",(J42/D42))/IF(C42="DAX",25,IF(C42="CAC40",10,1))) -> 14.25
C43: IBDE30 | D43: 1 | E43: BOT | F43: 9588.24 | G43: 13:22:13 | H43: 20160614 | I43: 1 | J43: -0.25 | L43: 69.41 | M43: Trading de Niveau M2 | N43: SLD | Q43: -0.25
C44: IBDE30 | D44: 1 | E44: SLD | F44: 9618.24 | G44: 15:43:01 | H44: 20160614 | I44: 1 | J44: 0 | L44: 69.41 | N44: BUY | Q44: 0
C45: IBDE30 | D45: 1 | E45: SLD | F45: 9615.75 | G45: 15:45:13 | H45: 20160614 | I45: 1 | J45: 0 | L45: 69.41 | N45: BUY | Q45: 0
C46: IBDE30 | D46: 1 | E46: BOT | F46: 9603.74 | G46: 15:45:49 | H46: 20160614 | I46: 1 | J46: 11.26 | L46: 80.67 | M46: Trading de Niveau M2 | N46: SLD | Q46: 11.26
C47: IBDE30 | D47: 1 | E47: BOT | F47: 9593.24 | G47: 15:51:30 | H47: 20160614 | I47: 1 | J47: 21.75 | L47: 102.42 | M47: Trading de Niveau M2 | N47: SLD | Q47: 21.75
C48: IBDE30 | D48: 1 | E48: SLD | F48: 9554.74 | G48: 16:16:04 | H48: 20160614 | I48: 1 | J48: 0 | L48: 102.42 | N48: BUY | Q48: 0
C49: IBDE30 | D49: 1 | E49: SLD | F49: 9555.74 | G49: 16:16:18 | H49: 20160614 | I49: 1 | J49: 0 | L49: 102.42 | N49: BUY | Q49: 0
C50: IBDE30 | D50: 1 | E50: BOT | F50: 9547.74 | G50: 16:24:11 | H50: 20160614 | I50: 1 | J50: 5.5 | L50: 107.92 | M50: Cassure S/R M2 | N50: SLD | Q50: 5.5
C51: IBDE30 | D51: 1 | E51: BOT | F51: 9558.04 | G51: 16:30:38 | H51: 20160614 | I51: 1 | J51: -4.8 | L51: 103.12 | M51: Cassure S/R M2 | N51: SLD | Q51: -4.8
C52: 0 | D52: 0 | E52: 0 | F52: 0 | G52: 00:00:00 | H52: 0 | I52: 0 | J52: 0 | L52: 103.12
C53: 0 | D53: 0 | E53: 0 | F53: 0 | G53: 00:00:00 | H53: 0 | I53: 0 | J53: 0 | L53: 103.12
C54: 0 | D54: 0 | E54: 0 | F54: 0 | G54: 00:00:00 | H54: 0 | I54: 0 | J54: 0 | L54: 103.12
C55: 0 | D55: 0 | E55: 0 | F55: 0 | G55: 00:00:00 | H55: 0 | I55: 0 | J55: 0 | L55: 103.12
C56: 0 | D56: 0 | E56: 0 | F56: 0 | G56: 00:00:00 | H56: 0 | I56: 0 | J56: 0 | L56: 103.12
C57: 0 | D57: 0 | E57: 0 | F57: 0 | G57: 00:00:00 | H57: 0 | I57: 0 | J57: 0 | L57: 103.12
C58: 0 | D58: 0 | E58: 0 | F58: 0 | G58: 00:00:00 | H58: 0 | I58: 0 | J58: 0 | L58: 103.12
C59: 0 | D59: 0 | E59: 0 | F59: 0 | G59: 00:00:00 | H59: 0 | I59: 0 | J59: 0 | L59: 103.12
C60: 0 | D60: 0 | E60: 0 | F60: 0 | G60: 00:00:00 | H60: 0 | I60: 0 | J60: 0 | L60: 103.12
C61: 0 | D61: 0 | E61: 0 | F61: 0 | G61: 00:00:00 | H61: 0 | I61: 0 | J61: 0 | L61: 103.12
C62: 0 | D62: 0 | E62: 0 | F62: 0 | G62: 00:00:00 | H62: 0 | I62: 0 | J62: 0 | L62: 103.12
C63: 0 | D63: 0 | E63: 0 | F63: 0 | G63: 00:00:00 | H63: 0 | I63: 0 | J63: 0 | L63: 103.12
C64: 0 | D64: 0 | E64: 0 | F64: 0 | G64: 00:00:00 | H64: 0 | I64: 0 | J64: 0 | L64: 103.12
C65: 0 | D65: 0 | E65: 0 | F65: 0 | G65: 00:00:00 | H65: 0 | I65: 0 | J65: 0 | L65: 103.12
C66: 0 | D66: 0 | E66: 0 | F66: 0 | G66: 00:00:00 | H66: 0 | I66: 0 | J66: 0 | L66: 103.12
C67: 0 | D67: 0 | E67: 0 | F67: 0 | G67: 00:00:00 | H67: 0 | I67: 0 | J67: 0 | L67: 103.12
C68: 0 | D68: 0 | E68: 0 | F68: 0 | G68: 00:00:00 | H68: 0 | I68: 0 | J68: 0 | L68: 103.12
C69: 0 | D69: 0 | E69: 0 | F69: 0 | G69: 00:00:00 | H69: 0 | I69: 0 | J69: 0 | L69: 103.12
C70: 0 | D70: 0 | E70: 0 | F70: 0 | G70: 00:00:00 | H70: 0 | I70: 0 | J70: 0 | L70: 103.12
C71: 0 | D71: 0 | E71: 0 | F71: 0 | G71: 00:00:00 | H71: 0 | I71: 0 | J71: 0 | L71: 103.12
C72: 0 | D72: 0 | E72: 0 | F72: 0 | G72: 00:00:00 | H72: 0 | I72: 0 | J72: 0 | L72: 103.12
C73: 0 | D73: 0 | E73: 0 | F73: 0 | G73: 00:00:00 | H73: 0 | I73: 0 | J73: 0 | L73: 103.12
C74: 0 | D74: 0 | E74: 0 | F74: 0 | G74: 00:00:00 | H74: 0 | I74: 0 | J74: 0 | L74: 103.12
C75: 0 | D75: 0 | E75: 0 | F75: 0 | G75: 00:00:00 | H75: 0 | I75: 0 | J75: 0 | L75: 103.12
C76: 0 | D76: 0 | E76: 0 | F76: 0 | G76: 00:00:00 | H76: 0 | I76: 0 | J76: 0 | L76: 103.12 | N76: =IF(E76=0,"",IF(E76="SLD","BUY","SLD")) -> 
C77: 0 | D77: 0 | E77: 0 | F77: 0 | G77: 00:00:00 | H77: 0 | I77: 0 | J77: 0 | L77: 103.12
C78: 0 | D78: 0 | E78: 0 | F78: 0 | G78: 00:00:00 | H78: 0 | I78: 0 | J78: 0 | L78: 103.12
C79: 0 | D79: 0 | E79: 0 | F79: 0 | G79: 00:00:00 | H79: 0 | I79: 0 | J79: 0 | L79: 103.12
C80: 0 | D80: 0 | E80: 0 | F80: 0 | G80: 00:00:00 | H80: 0 | I80: 0 | J80: 0 | L80: 103.12
C81: 0 | D81: 0 | E81: 0 | F81: 0 | G81: 00:00:00 | H81: 0 | I81: 0 | J81: 0 | L81: 103.12
C82: 0 | D82: 0 | E82: 0 | F82: 0 | G82: 00:00:00 | H82: 0 | I82: 0 | J82: 0 | L82: 103.12
C83: 0 | D83: 0 | E83: 0 | F83: 0 | G83: 00:00:00 | H83: 0 | I83: 0 | J83: 0 | L83: 103.12
C84: 0 | D84: 0 | E84: 0 | F84: 0 | G84: 00:00:00 | H84: 0 | I84: 0 | J84: 0 | L84: 103.12
C85: 0 | D85: 0 | E85: 0 | F85: 0 | G85: 00:00:00 | H85: 0 | I85: 0 | J85: 0 | L85: 103.12
C86: 0 | D86: 0 | E86: 0 | F86: 0 | G86: 00:00:00 | H86: 0 | I86: 0 | J86: 0 | L86: 103.12
C87: 0 | D87: 0 | E87: 0 | F87: 0 | G87: 00:00:00 | H87: 0 | I87: 0 | J87: 0 | L87: 103.12
C88: 0 | D88: 0 | E88: 0 | F88: 0 | G88: 00:00:00 | H88: 0 | I88: 0 | J88: 0 | L88: 103.12
C89: 0 | D89: 0 | E89: 0 | F89: 0 | G89: 00:00:00 | H89: 0 | I89: 0 | J89: 0 | L89: 103.12
C90: 0 | D90: 0 | E90: 0 | F90: 0 | G90: 00:00:00 | H90: 0 | I90: 0 | J90: 0 | L90: 103.12
C91: 0 | D91: 0 | E91: 0 | F91: 0 | G91: 00:00:00 | H91: 0 | I91: 0 | J91: 0 | L91: 103.12
C92: 0 | D92: 0 | E92: 0 | F92: 0 | G92: 00:00:00 | H92: 0 | I92: 0 | J92: 0 | L92: =+J92+L91 -> 103.12
C93: 0 | D93: 0 | E93: 0 | F93: 0 | G93: 00:00:00 | H93: 0 | I93: 0 | J93: 0 | L93: 103.12
C94: 0 | D94: 0 | E94: 0 | F94: 0 | G94: 00:00:00 | H94: 0 | I94: 0 | J94: 0 | L94: 103.12
C95: 0 | D95: 0 | E95: 0 | F95: 0 | G95: 00:00:00 | H95: 0 | I95: 0 | J95: 0 | L95: 103.12
C96: 0 | D96: 0 | E96: 0 | F96: 0 | G96: 00:00:00 | H96: 0 | I96: 0 | J96: 0 | L96: 103.12
C97: 0 | D97: 0 | E97: 0 | F97: 0 | G97: 00:00:00 | H97: 0 | I97: 0 | J97: 0 | L97: 103.12
C98: 0 | D98: 0 | E98: 0 | F98: 0 | G98: 00:00:00 | H98: 0 | I98: 0 | J98: 0 | L98: 103.12
C99: 0 | D99: 0 | E99: 0 | F99: 0 | G99: 00:00:00 | H99: 0 | I99: 0 | J99: 0 | L99: 103.12
C100: 0 | D100: 0 | E100: 0 | F100: 0 | G100: 00:00:00 | H100: 0 | I100: 0 | J100: 0 | L100: 103.12
C101: 0 | D101: 0 | E101: 0 | F101: 0 | G101: 00:00:00 | H101: 0 | I101: 0 | J101: 0 | L101: 103.12
C102: 0 | D102: 0 | E102: 0 | F102: 0 | G102: 00:00:00 | H102: 0 | I102: 0 | J102: 0 | L102: 103.12
C103: 0 | D103: 0 | E103: 0 | F103: 0 | G103: 00:00:00 | H103: 0 | I103: 0 | J103: 0 | L103: 103.12
C104: 0 | D104: 0 | E104: 0 | F104: 0 | G104: 00:00:00 | H104: 0 | I104: 0 | J104: 0 | L104: 103.12
C105: 0 | D105: 0 | E105: 0 | F105: 0 | G105: 00:00:00 | H105: 0 | I105: 0 | J105: 0 | L105: 103.12
C106: 0 | D106: 0 | E106: 0 | F106: 0 | G106: 00:00:00 | H106: 0 | I106: 0 | J106: 0 | L106: 103.12 | Q106: =IF(C106=0,"",IF(ISERROR(J106/D106),"",(J106/D106))/IF(C106="DAX",25,IF(C106="CAC40",10,1))) -> 
C107: 0 | D107: 0 | E107: 0 | F107: 0 | G107: 00:00:00 | H107: 0 | I107: 0 | J107: 0 | L107: 103.12
C108: 0 | D108: 0 | E108: 0 | F108: 0 | G108: 00:00:00 | H108: 0 | I108: 0 | J108: 0 | L108: 103.12
C109: 0 | D109: 0 | E109: 0 | F109: 0 | G109: 00:00:00 | H109: 0 | I109: 0 | J109: 0 | L109: 103.12
C110: 0 | D110: 0 | E110: 0 | F110: 0 | G110: 00:00:00 | H110: 0 | I110: 0 | J110: 0 | L110: 103.12
C111: 0 | D111: 0 | E111: 0 | F111: 0 | G111: 00:00:00 | H111: 0 | I111: 0 | J111: 0 | L111: 103.12
C112: 0 | D112: 0 | E112: 0 | F112: 0 | G112: 00:00:00 | H112: 0 | I112: 0 | J112: 0 | L112: 103.12
C113: 0 | D113: 0 | E113: 0 | F113: 0 | G113: 00:00:00 | H113: 0 | I113: 0 | J113: 0 | L113: 103.12
C114: 0 | D114: 0 | E114: 0 | F114: 0 | G114: 00:00:00 | H114: 0 | I114: 0 | J114: 0 | L114: 103.12
C115: 0 | D115: 0 | E115: 0 | F115: 0 | G115: 00:00:00 | H115: 0 | I115: 0 | J115: 0 | L115: 103.12
C116: 0 | D116: 0 | E116: 0 | F116: 0 | G116: 00:00:00 | H116: 0 | I116: 0 | J116: 0 | L116: 103.12
C117: 0 | D117: 0 | E117: 0 | F117: 0 | G117: 00:00:00 | H117: 0 | I117: 0 | J117: 0 | L117: 103.12
C118: 0 | D118: 0 | E118: 0 | F118: 0 | G118: 00:00:00 | H118: 0 | I118: 0 | J118: 0 | L118: 103.12
C119: 0 | D119: 0 | E119: 0 | F119: 0 | G119: 00:00:00 | H119: 0 | I119: 0 | J119: 0 | L119: 103.12
C120: 0 | D120: 0 | E120: 0 | F120: 0 | G120: 00:00:00 | H120: 0 | I120: 0 | J120: 0 | L120: 103.12
C121: 0 | D121: 0 | E121: 0 | F121: 0 | G121: 00:00:00 | H121: 0 | I121: 0 | J121: 0 | L121: 103.12
C122: 0 | D122: 0 | E122: 0 | F122: 0 | G122: 00:00:00 | H122: 0 | I122: 0 | J122: 0 | L122: 103.12
C123: 0 | D123: 0 | E123: 0 | F123: 0 | G123: 00:00:00 | H123: 0 | I123: 0 | J123: 0 | L123: 103.12
C124: 0 | D124: 0 | E124: 0 | F124: 0 | G124: 00:00:00 | H124: 0 | I124: 0 | J124: 0 | L124: 103.12
C125: 0 | D125: 0 | E125: 0 | F125: 0 | G125: 00:00:00 | H125: 0 | I125: 0 | J125: 0 | L125: 103.12
C126: 0 | D126: 0 | E126: 0 | F126: 0 | G126: 00:00:00 | H126: 0 | I126: 0 | J126: 0 | L126: 103.12
C127: 0 | D127: 0 | E127: 0 | F127: 0 | G127: 00:00:00 | H127: 0 | I127: 0 | J127: 0 | L127: 103.12
C128: 0 | D128: 0 | E128: 0 | F128: 0 | G128: 00:00:00 | H128: 0 | I128: 0 | J128: 0 | L128: 103.12
C129: 0 | D129: 0 | E129: 0 | F129: 0 | G129: 00:00:00 | H129: 0 | I129: 0 | J129: 0 | L129: 103.12
C130: 0 | D130: 0 | E130: 0 | F130: 0 | G130: 00:00:00 | H130: 0 | I130: 0 | J130: 0 | L130: 103.12
C131: 0 | D131: 0 | E131: 0 | F131: 0 | G131: 00:00:00 | H131: 0 | I131: 0 | J131: 0 | L131: 103.12
C132: 0 | D132: 0 | E132: 0 | F132: 0 | G132: 00:00:00 | H132: 0 | I132: 0 | J132: 0 | L132: 103.12
C133: 0 | D133: 0 | E133: 0 | F133: 0 | G133: 00:00:00 | H133: 0 | I133: 0 | J133: 0 | L133: 103.12
C134: 0 | D134: 0 | E134: 0 | F134: 0 | G134: 00:00:00 | H134: 0 | I134: 0 | J134: 0 | L134: 103.12
C135: 0 | D135: 0 | E135: 0 | F135: 0 | G135: 00:00:00 | H135: 0 | I135: 0 | J135: 0 | L135: 103.12
C136: 0 | D136: 0 | E136: 0 | F136: 0 | G136: 00:00:00 | H136: 0 | I136: 0 | J136: 0 | L136: 103.12
C137: 0 | D137: 0 | E137: 0 | F137: 0 | G137: 00:00:00 | H137: 0 | I137: 0 | J137: 0 | L137: 103.12
C138: 0 | D138: 0 | E138: 0 | F138: 0 | G138: 00:00:00 | H138: 0 | I138: 0 | J138: 0 | L138: 103.12
C139: 0 | D139: 0 | E139: 0 | F139: 0 | G139: 00:00:00 | H139: 0 | I139: 0 | J139: 0 | L139: 103.12
C140: 0 | D140: 0 | E140: 0 | F140: 0 | G140: 00:00:00 | H140: 0 | I140: 0 | J140: 0 | L140: 103.12 | N140: =IF(E140=0,"",IF(E140="SLD","BUY","SLD")) -> 
C141: 0 | D141: 0 | E141: 0 | F141: 0 | G141: 00:00:00 | H141: 0 | I141: 0 | J141: 0 | L141: 103.12
C142: 0 | D142: 0 | E142: 0 | F142: 0 | G142: 00:00:00 | H142: 0 | I142: 0 | J142: 0 | L142: 103.12
C143: 0 | D143: 0 | E143: 0 | F143: 0 | G143: 00:00:00 | H143: 0 | I143: 0 | J143: 0 | L143: 103.12
C144: 0 | D144: 0 | E144: 0 | F144: 0 | G144: 00:00:00 | H144: 0 | I144: 0 | J144: 0 | L144: 103.12
C145: 0 | D145: 0 | E145: 0 | F145: 0 | G145: 00:00:00 | H145: 0 | I145: 0 | J145: 0 | L145: 103.12
C146: 0 | D146: 0 | E146: 0 | F146: 0 | G146: 00:00:00 | H146: 0 | I146: 0 | J146: 0 | L146: 103.12
C147: 0 | D147: 0 | E147: 0 | F147: 0 | G147: 00:00:00 | H147: 0 | I147: 0 | J147: 0 | L147: 103.12
C148: 0 | D148: 0 | E148: 0 | F148: 0 | G148: 00:00:00 | H148: 0 | I148: 0 | J148: 0 | L148: 103.12
C149: 0 | D149: 0 | E149: 0 | F149: 0 | G149: 00:00:00 | H149: 0 | I149: 0 | J149: 0 | L149: 103.12
C150: 0 | D150: 0 | E150: 0 | F150: 0 | G150: 00:00:00 | H150: 0 | I150: 0 | J150: 0 | L150: 103.12
C151: 0 | D151: 0 | E151: 0 | F151: 0 | G151: 00:00:00 | H151: 0 | I151: 0 | J151: 0 | L151: 103.12
C152: 0 | D152: 0 | E152: 0 | F152: 0 | G152: 00:00:00 | H152: 0 | I152: 0 | J152: 0 | L152: 103.12
C153: 0 | D153: 0 | E153: 0 | F153: 0 | G153: 00:00:00 | H153: 0 | I153: 0 | J153: 0 | L153: 103.12
C154: 0 | D154: 0 | E154: 0 | F154: 0 | G154: 00:00:00 | H154: 0 | I154: 0 | J154: 0 | L154: 103.12
C155: 0 | D155: 0 | E155: 0 | F155: 0 | G155: 00:00:00 | H155: 0 | I155: 0 | J155: 0 | L155: 103.12
C156: 0 | D156: 0 | E156: 0 | F156: 0 | G156: 00:00:00 | H156: 0 | I156: 0 | J156: 0 | L156: =+J156+L155 -> 103.12
C157: 0 | D157: 0 | E157: 0 | F157: 0 | G157: 00:00:00 | H157: 0 | I157: 0 | J157: 0 | L157: 103.12
C158: 0 | D158: 0 | E158: 0 | F158: 0 | G158: 00:00:00 | H158: 0 | I158: 0 | J158: 0 | L158: 103.12
C159: 0 | D159: 0 | E159: 0 | F159: 0 | G159: 00:00:00 | H159: 0 | I159: 0 | J159: 0 | L159: 103.12
C160: 0 | D160: 0 | E160: 0 | F160: 0 | G160: 00:00:00 | H160: 0 | I160: 0 | J160: 0 | L160: 103.12
C161: 0 | D161: 0 | E161: 0 | F161: 0 | G161: 00:00:00 | H161: 0 | I161: 0 | J161: 0 | L161: 103.12
C162: 0 | D162: 0 | E162: 0 | F162: 0 | G162: 00:00:00 | H162: 0 | I162: 0 | J162: 0 | L162: 103.12
C163: 0 | D163: 0 | E163: 0 | F163: 0 | G163: 00:00:00 | H163: 0 | I163: 0 | J163: 0 | L163: 103.12
C164: 0 | D164: 0 | E164: 0 | F164: 0 | G164: 00:00:00 | H164: 0 | I164: 0 | J164: 0 | L164: 103.12
C165: 0 | D165: 0 | E165: 0 | F165: 0 | G165: 00:00:00 | H165: 0 | I165: 0 | J165: 0 | L165: 103.12
C166: 0 | D166: 0 | E166: 0 | F166: 0 | G166: 00:00:00 | H166: 0 | I166: 0 | J166: 0 | L166: 103.12
C167: 0 | D167: 0 | E167: 0 | F167: 0 | G167: 00:00:00 | H167: 0 | I167: 0 | J167: 0 | L167: 103.12
C168: 0 | D168: 0 | E168: 0 | F168: 0 | G168: 00:00:00 | H168: 0 | I168: 0 | J168: 0 | L168: 103.12
C169: 0 | D169: 0 | E169: 0 | F169: 0 | G169: 00:00:00 | H169: 0 | I169: 0 | J169: 0 | L169: 103.12
C170: 0 | D170: 0 | E170: 0 | F170: 0 | G170: 00:00:00 | H170: 0 | I170: 0 | J170: 0 | L170: 103.12 | Q170: =IF(C170=0,"",IF(ISERROR(J170/D170),"",(J170/D170))/IF(C170="DAX",25,IF(C170="CAC40",10,1))) -> 
C171: 0 | D171: 0 | E171: 0 | F171: 0 | G171: 00:00:00 | H171: 0 | I171: 0 | J171: 0 | L171: 103.12
C172: 0 | D172: 0 | E172: 0 | F172: 0 | G172: 00:00:00 | H172: 0 | I172: 0 | J172: 0 | L172: 103.12
C173: 0 | D173: 0 | E173: 0 | F173: 0 | G173: 00:00:00 | H173: 0 | I173: 0 | J173: 0 | L173: 103.12
C174: 0 | D174: 0 | E174: 0 | F174: 0 | G174: 00:00:00 | H174: 0 | I174: 0 | J174: 0 | L174: 103.12
C175: 0 | D175: 0 | E175: 0 | F175: 0 | G175: 00:00:00 | H175: 0 | I175: 0 | J175: 0 | L175: 103.12
C176: 0 | D176: 0 | E176: 0 | F176: 0 | G176: 00:00:00 | H176: 0 | I176: 0 | J176: 0 | L176: 103.12
C177: 0 | D177: 0 | E177: 0 | F177: 0 | G177: 00:00:00 | H177: 0 | I177: 0 | J177: 0 | L177: 103.12
C178: 0 | D178: 0 | E178: 0 | F178: 0 | G178: 00:00:00 | H178: 0 | I178: 0 | J178: 0 | L178: 103.12
C179: 0 | D179: 0 | E179: 0 | F179: 0 | G179: 00:00:00 | H179: 0 | I179: 0 | J179: 0 | L179: 103.12
C180: 0 | D180: 0 | E180: 0 | F180: 0 | G180: 00:00:00 | H180: 0 | I180: 0 | J180: 0 | L180: 103.12
C181: 0 | D181: 0 | E181: 0 | F181: 0 | G181: 00:00:00 | H181: 0 | I181: 0 | J181: 0 | L181: 103.12
C182: 0 | D182: 0 | E182: 0 | F182: 0 | G182: 00:00:00 | H182: 0 | I182: 0 | J182: 0 | L182: 103.12
C183: 0 | D183: 0 | E183: 0 | F183: 0 | G183: 00:00:00 | H183: 0 | I183: 0 | J183: 0 | L183: 103.12
C184: 0 | D184: 0 | E184: 0 | F184: 0 | G184: 00:00:00 | H184: 0 | I184: 0 | J184: 0 | L184: 103.12
C185: 0 | D185: 0 | E185: 0 | F185: 0 | G185: 00:00:00 | H185: 0 | I185: 0 | J185: 0 | L185: 103.12
C186: 0 | D186: 0 | E186: 0 | F186: 0 | G186: 00:00:00 | H186: 0 | I186: 0 | J186: 0 | L186: 103.12
C187: 0 | D187: 0 | E187: 0 | F187: 0 | G187: 00:00:00 | H187: 0 | I187: 0 | J187: 0 | L187: 103.12
C188: 0 | D188: 0 | E188: 0 | F188: 0 | G188: 00:00:00 | H188: 0 | I188: 0 | J188: 0 | L188: 103.12
C189: 0 | D189: 0 | E189: 0 | F189: 0 | G189: 00:00:00 | H189: 0 | I189: 0 | J189: 0 | L189: 103.12
C190: 0 | D190: 0 | E190: 0 | F190: 0 | G190: 00:00:00 | H190: 0 | I190: 0 | J190: 0 | L190: 103.12
C191: 0 | D191: 0 | E191: 0 | F191: 0 | G191: 00:00:00 | H191: 0 | I191: 0 | J191: 0 | L191: 103.12
C192: 0 | D192: 0 | E192: 0 | F192: 0 | G192: 00:00:00 | H192: 0 | I192: 0 | J192: 0 | L192: 103.12
C193: 0 | D193: 0 | E193: 0 | F193: 0 | G193: 00:00:00 | H193: 0 | I193: 0 | J193: 0 | L193: 103.12
C194: 0 | D194: 0 | E194: 0 | F194: 0 | G194: 00:00:00 | H194: 0 | I194: 0 | J194: 0 | L194: 103.12
C195: 0 | D195: 0 | E195: 0 | F195: 0 | G195: 00:00:00 | H195: 0 | I195: 0 | J195: 0 | L195: 103.12
C196: 0 | D196: 0 | E196: 0 | F196: 0 | G196: 00:00:00 | H196: 0 | I196: 0 | J196: 0 | L196: 103.12
C197: 0 | D197: 0 | E197: 0 | F197: 0 | G197: 00:00:00 | H197: 0 | I197: 0 | J197: 0 | L197: 103.12
C198: 0 | D198: 0 | E198: 0 | F198: 0 | G198: 00:00:00 | H198: 0 | I198: 0 | J198: 0 | L198: 103.12
C199: 0 | D199: 0 | E199: 0 | F199: 0 | G199: 00:00:00 | H199: 0 | I199: 0 | J199: 0 | L199: 103.12
C200: 0 | D200: 0 | E200: 0 | F200: 0 | G200: 00:00:00 | H200: 0 | I200: 0 | J200: 0 | L200: 103.12
C201: 0 | D201: 0 | E201: 0 | F201: 0 | G201: 00:00:00 | H201: 0 | I201: 0 | J201: 0 | L201: 103.12
C202: 0 | D202: 0 | E202: 0 | F202: 0 | G202: 00:00:00 | H202: 0 | I202: 0 | J202: 0 | L202: 103.12
C203: 0 | D203: 0 | E203: 0 | F203: 0 | G203: 00:00:00 | H203: 0 | I203: 0 | J203: 0 | L203: 103.12
C204: 0 | D204: 0 | E204: 0 | F204: 0 | G204: 00:00:00 | H204: 0 | I204: 0 | J204: 0 | L204: 103.12 | N204: =IF(E204=0,"",IF(E204="SLD","BUY","SLD")) -> 
C205: 0 | D205: 0 | E205: 0 | F205: 0 | G205: 00:00:00 | H205: 0 | I205: 0 | J205: 0 | L205: 103.12
C206: 0 | D206: 0 | E206: 0 | F206: 0 | G206: 00:00:00 | H206: 0 | I206: 0 | J206: 0 | L206: 103.12
C207: 0 | D207: 0 | E207: 0 | F207: 0 | G207: 00:00:00 | H207: 0 | I207: 0 | J207: 0 | L207: 103.12
... 300 more rows

Sheet 15-06
AK4: B/S | AL4: Strat | AM4: M2 | AN4: Erreur
AK5: B | AL5: Trading de Niveau 30S | AM5: Même sens | AN5: Oui
AK6: S | AL6: Trading de Niveau M2 | AM6: Flat | AN6: Non
AL7: Trading de Niveau H1 | AM7: Opposé
AL8: Trading de Niveau D
AL9: IC40 30S
AL10: IC40 M2
AL11: IC40S 30S
AL12: IC40 S M2
AL13: IC40 30S inverse MM
AL14: AI contrtdce 30S
AL15: AI contrtdce M2
AL16: AI contrtdce M5
AL17: AI Divergce 30S
AL18: AI Divergce M2
AL19: AI Divergce M5
AL20: AI Divergce H1
AL21: AI impulsion S30
AL22: Ai Impulsion M2
AL23: Sur chiffres
AL24: Range m2
C25: Underlying | D25: Quantity | E25: Contract | F25: Price | G25: Time | H25: Date | I25: Commission | J25: Realized P&L | L25: Cumul P&L | M25: Strat | N25: Sell/Buy | O25: TDCE M2 | P25: Conviction sur le marché | Q25: Pts | R25: Erreur | AL25: IC40 M2 inverse MM
C26: IBDE30 | D26: 3 | E26: SLD | F26: 9600.81 | G26: 09:18:39 | H26: 20160615 | I26: 1.44 | J26: 0 | L26: =+J26 -> 0 | Q26: =IF(C26=0,"",IF(ISERROR(J26/D26),"",(J26/D26))/IF(C26="DAX",25,IF(C26="CAC40",10,1))) -> 0 | AL26: Cassure S/R M2
C27: IBDE30 | D27: 1 | E27: BOT | F27: 9592.81 | G27: 09:28:45 | H27: 20160615 | I27: 1 | J27: 6.52 | L27: =+J27+L26 -> 6.52 | M27: Trading de Niveau H1 | N27: =IF(E27=0,"",IF(E27="SLD","BUY","SLD")) -> SLD | Q27: 6.52 | AL27: Cassure S/R H1
C28: IBDE30 | D28: 1 | E28: BOT | F28: 9584.81 | G28: 09:48:54 | H28: 20160615 | I28: 1 | J28: 14.52 | L28: =+J28+L27 -> 21.04 | M28: Trading de Niveau H1 | N28: =IF(E28=0,"",IF(E28="SLD","BUY","SLD")) -> SLD | Q28: 14.52 | AL28: Cassure S/R D
C29: IBDE30 | D29: 1 | E29: BOT | F29: 9577.31 | G29: 09:50:04 | H29: 20160615 | I29: 1 | J29: 22.02 | L29: 43.06 | M29: Trading de Niveau H1 | N29: SLD | Q29: 22.02 | AL29: Contretendance impulsion
C30: CAC40 | D30: 1 | E30: SLD | F30: 4172 | G30: 10:14:56 | H30: 20160615 | I30: 1.18 | J30: 0 | L30: =+J30+L29 -> 43.06 | N30: BUY | Q30: 0
C31: IBDE30 | D31: 1 | E31: SLD | F31: 9635.81 | G31: 10:48:29 | H31: 20160615 | I31: 1 | J31: 0 | L31: 43.06 | M31: IC40S 30S | N31: BUY | O31: Même sens | Q31: 0
C32: IBDE30 | D32: 1 | E32: BOT | F32: 9626.31 | G32: 10:57:05 | H32: 20160615 | I32: 1 | J32: 7.5 | L32: 50.56 | M32: Contretendance impulsion | N32: SLD | Q32: 7.5
C33: IBDE30 | D33: 2 | E33: BOT | F33: 9642.81 | G33: 11:00:10 | H33: 20160615 | I33: 1 | J33: 0 | L33: 50.56 | M33: IC40S 30S | N33: SLD | O33: Même sens | Q33: 0
C34: IBDE30 | D34: 1 | E34: BOT | F34: 9640.89 | G34: 11:00:28 | H34: 20160615 | I34: 1 | J34: 0 | L34: 50.56 | N34: SLD | Q34: 0
C35: IBDE30 | D35: 1 | E35: SLD | F35: 9648.98 | G35: 11:02:05 | H35: 20160615 | I35: 1 | J35: 5.14 | L35: 55.7 | M35: IC40 30S | N35: BUY | O35: Même sens | Q35: 5.14
C36: IBDE30 | D36: 1 | E36: SLD | F36: 9658.82 | G36: 11:02:59 | H36: 20160615 | I36: 1 | J36: 14.98 | L36: 70.68 | M36: IC40 30S | N36: BUY | O36: Même sens | Q36: 14.98
C37: IBDE30 | D37: 1 | E37: SLD | F37: 9651.31 | G37: 11:04:49 | H37: 20160615 | I37: 1 | J37: 7.47 | L37: 78.15 | M37: IC40 30S | N37: BUY | O37: Même sens | Q37: =IF(C37=0,"",IF(ISERROR(J37/D37),"",(J37/D37))/IF(C37="DAX",25,IF(C37="CAC40",10,1))) -> 7.47
C38: CAC40 | D38: 1 | E38: SLD | F38: 4182 | G38: 12:19:03 | H38: 20160615 | I38: 1.18 | J38: 0 | L38: 78.15 | N38: BUY | Q38: 0
C39: CAC40 | D39: 1 | E39: BOT | F39: 4175 | G39: 13:04:31 | H39: 20160615 | I39: 1.18 | J39: 17.64 | L39: 95.79 | M39: Trading de Niveau H1 | N39: SLD | Q39: 1.764
C40: CAC40 | D40: 1 | E40: BOT | F40: 4168.5 | G40: 13:05:47 | H40: 20160615 | I40: 1.18 | J40: 82.64 | L40: 178.43 | M40: Trading de Niveau H1 | N40: SLD | Q40: 8.264
C41: IBDE30 | D41: 1 | E41: BOT | F41: 9636.31 | G41: 15:57:33 | H41: 20160615 | I41: 1 | J41: 0 | L41: 178.43 | N41: SLD | Q41: =IF(C41=0,"",IF(ISERROR(J41/D41),"",(J41/D41))/IF(C41="DAX",25,IF(C41="CAC40",10,1))) -> 0
C42: IBDE30 | D42: 1 | E42: BOT | F42: 9634.81 | G42: 15:58:17 | H42: 20160615 | I42: 1 | J42: 0 | L42: 178.43 | N42: SLD | Q42: =IF(C42=0,"",IF(ISERROR(J42/D42),"",(J42/D42))/IF(C42="DAX",25,IF(C42="CAC40",10,1))) -> 0
C43: IBDE30 | D43: 1 | E43: BOT | F43: 9632.81 | G43: 15:58:31 | H43: 20160615 | I43: 1 | J43: 0 | L43: 178.43 | N43: SLD | Q43: 0
C44: IBDE30 | D44: 1 | E44: SLD | F44: 9639.31 | G44: 16:00:04 | H44: 20160615 | I44: 1 | J44: 2.67 | L44: 181.1 | M44: AI impulsion S30 | N44: BUY | Q44: 2.67
C45: IBDE30 | D45: 1 | E45: SLD | F45: 9638.81 | G45: 16:00:14 | H45: 20160615 | I45: 1 | J45: 2.17 | L45: 183.27 | M45: AI impulsion S30 | N45: BUY | Q45: 2.17
C46: IBDE30 | D46: 1 | E46: SLD | F46: 9639.31 | G46: 16:00:17 | H46: 20160615 | I46: 1 | J46: 2.67 | L46: 185.94 | M46: AI impulsion S30 | N46: BUY | Q46: 2.67
C47: IBDE30 | D47: 2 | E47: SLD | F47: 9644.82 | G47: 16:18:00 | H47: 20160615 | I47: 1 | J47: 0 | L47: 185.94 | N47: BUY | Q47: 0
C48: IBDE30 | D48: 1 | E48: BOT | F48: 9636.81 | G48: 16:23:33 | H48: 20160615 | I48: 1 | J48: 6.51 | L48: 192.45 | M48: AI contrtdce 30S | N48: SLD | Q48: 6.51
C49: IBDE30 | D49: 1 | E49: BOT | F49: 9631.31 | G49: 16:27:54 | H49: 20160615 | I49: 1 | J49: 12.01 | L49: 204.46 | M49: AI contrtdce 30S | N49: SLD | Q49: 12.01
C50: IBDE30 | D50: 1 | E50: SLD | F50: 9656.34 | G50: 17:15:07 | H50: 20160615 | I50: 1 | J50: 0 | L50: 204.46 | N50: BUY | Q50: 0
C51: IBDE30 | D51: 1 | E51: BOT | F51: 9650.31 | G51: 17:17:21 | H51: 20160615 | I51: 1 | J51: 4.03 | L51: 208.49 | M51: AI contrtdce 30S | N51: SLD | Q51: 4.03
C52: 0 | D52: 0 | E52: 0 | F52: 0 | G52: 00:00:00 | H52: 0 | I52: 0 | J52: 0 | L52: 208.49
C53: 0 | D53: 0 | E53: 0 | F53: 0 | G53: 00:00:00 | H53: 0 | I53: 0 | J53: 0 | L53: 208.49
C54: 0 | D54: 0 | E54: 0 | F54: 0 | G54: 00:00:00 | H54: 0 | I54: 0 | J54: 0 | L54: 208.49
C55: 0 | D55: 0 | E55: 0 | F55: 0 | G55: 00:00:00 | H55: 0 | I55: 0 | J55: 0 | L55: 208.49
C56: 0 | D56: 0 | E56: 0 | F56: 0 | G56: 00:00:00 | H56: 0 | I56: 0 | J56: 0 | L56: 208.49
C57: 0 | D57: 0 | E57: 0 | F57: 0 | G57: 00:00:00 | H57: 0 | I57: 0 | J57: 0 | L57: 208.49
C58: 0 | D58: 0 | E58: 0 | F58: 0 | G58: 00:00:00 | H58: 0 | I58: 0 | J58: 0 | L58: 208.49
C59: 0 | D59: 0 | E59: 0 | F59: 0 | G59: 00:00:00 | H59: 0 | I59: 0 | J59: 0 | L59: 208.49
C60: 0 | D60: 0 | E60: 0 | F60: 0 | G60: 00:00:00 | H60: 0 | I60: 0 | J60: 0 | L60: 208.49
C61: 0 | D61: 0 | E61: 0 | F61: 0 | G61: 00:00:00 | H61: 0 | I61: 0 | J61: 0 | L61: 208.49
C62: 0 | D62: 0 | E62: 0 | F62: 0 | G62: 00:00:00 | H62: 0 | I62: 0 | J62: 0 | L62: 208.49
C63: 0 | D63: 0 | E63: 0 | F63: 0 | G63: 00:00:00 | H63: 0 | I63: 0 | J63: 0 | L63: 208.49
C64: 0 | D64: 0 | E64: 0 | F64: 0 | G64: 00:00:00 | H64: 0 | I64: 0 | J64: 0 | L64: 208.49
C65: 0 | D65: 0 | E65: 0 | F65: 0 | G65: 00:00:00 | H65: 0 | I65: 0 | J65: 0 | L65: 208.49
C66: 0 | D66: 0 | E66: 0 | F66: 0 | G66: 00:00:00 | H66: 0 | I66: 0 | J66: 0 | L66: 208.49
C67: 0 | D67: 0 | E67: 0 | F67: 0 | G67: 00:00:00 | H67: 0 | I67: 0 | J67: 0 | L67: 208.49
C68: 0 | D68: 0 | E68: 0 | F68: 0 | G68: 00:00:00 | H68: 0 | I68: 0 | J68: 0 | L68: 208.49
C69: 0 | D69: 0 | E69: 0 | F69: 0 | G69: 00:00:00 | H69: 0 | I69: 0 | J69: 0 | L69: 208.49
C70: 0 | D70: 0 | E70: 0 | F70: 0 | G70: 00:00:00 | H70: 0 | I70: 0 | J70: 0 | L70: 208.49
C71: 0 | D71: 0 | E71: 0 | F71: 0 | G71: 00:00:00 | H71: 0 | I71: 0 | J71: 0 | L71: 208.49
C72: 0 | D72: 0 | E72: 0 | F72: 0 | G72: 00:00:00 | H72: 0 | I72: 0 | J72: 0 | L72: 208.49
C73: 0 | D73: 0 | E73: 0 | F73: 0 | G73: 00:00:00 | H73: 0 | I73: 0 | J73: 0 | L73: 208.49
C74: 0 | D74: 0 | E74: 0 | F74: 0 | G74: 00:00:00 | H74: 0 | I74: 0 | J74: 0 | L74: 208.49
C75: 0 | D75: 0 | E75: 0 | F75: 0 | G75: 00:00:00 | H75: 0 | I75: 0 | J75: 0 | L75: 208.49
C76: 0 | D76: 0 | E76: 0 | F76: 0 | G76: 00:00:00 | H76: 0 | I76: 0 | J76: 0 | L76: 208.49 | N76: =IF(E76=0,"",IF(E76="SLD","BUY","SLD")) -> 
C77: 0 | D77: 0 | E77: 0 | F77: 0 | G77: 00:00:00 | H77: 0 | I77: 0 | J77: 0 | L77: 208.49
C78: 0 | D78: 0 | E78: 0 | F78: 0 | G78: 00:00:00 | H78: 0 | I78: 0 | J78: 0 | L78: 208.49
C79: 0 | D79: 0 | E79: 0 | F79: 0 | G79: 00:00:00 | H79: 0 | I79: 0 | J79: 0 | L79: 208.49
C80: 0 | D80: 0 | E80: 0 | F80: 0 | G80: 00:00:00 | H80: 0 | I80: 0 | J80: 0 | L80: 208.49
C81: 0 | D81: 0 | E81: 0 | F81: 0 | G81: 00:00:00 | H81: 0 | I81: 0 | J81: 0 | L81: 208.49
C82: 0 | D82: 0 | E82: 0 | F82: 0 | G82: 00:00:00 | H82: 0 | I82: 0 | J82: 0 | L82: 208.49
C83: 0 | D83: 0 | E83: 0 | F83: 0 | G83: 00:00:00 | H83: 0 | I83: 0 | J83: 0 | L83: 208.49
C84: 0 | D84: 0 | E84: 0 | F84: 0 | G84: 00:00:00 | H84: 0 | I84: 0 | J84: 0 | L84: 208.49
C85: 0 | D85: 0 | E85: 0 | F85: 0 | G85: 00:00:00 | H85: 0 | I85: 0 | J85: 0 | L85: 208.49
C86: 0 | D86: 0 | E86: 0 | F86: 0 | G86: 00:00:00 | H86: 0 | I86: 0 | J86: 0 | L86: 208.49
C87: 0 | D87: 0 | E87: 0 | F87: 0 | G87: 00:00:00 | H87: 0 | I87: 0 | J87: 0 | L87: 208.49
C88: 0 | D88: 0 | E88: 0 | F88: 0 | G88: 00:00:00 | H88: 0 | I88: 0 | J88: 0 | L88: 208.49
C89: 0 | D89: 0 | E89: 0 | F89: 0 | G89: 00:00:00 | H89: 0 | I89: 0 | J89: 0 | L89: 208.49
C90: 0 | D90: 0 | E90: 0 | F90: 0 | G90: 00:00:00 | H90: 0 | I90: 0 | J90: 0 | L90: 208.49
C91: 0 | D91: 0 | E91: 0 | F91: 0 | G91: 00:00:00 | H91: 0 | I91: 0 | J91: 0 | L91: 208.49
C92: 0 | D92: 0 | E92: 0 | F92: 0 | G92: 00:00:00 | H92: 0 | I92: 0 | J92: 0 | L92: =+J92+L91 -> 208.49
C93: 0 | D93: 0 | E93: 0 | F93: 0 | G93: 00:00:00 | H93: 0 | I93: 0 | J93: 0 | L93: 208.49
C94: 0 | D94: 0 | E94: 0 | F94: 0 | G94: 00:00:00 | H94: 0 | I94: 0 | J94: 0 | L94: 208.49
C95: 0 | D95: 0 | E95: 0 | F95: 0 | G95: 00:00:00 | H95: 0 | I95: 0 | J95: 0 | L95: 208.49
C96: 0 | D96: 0 | E96: 0 | F96: 0 | G96: 00:00:00 | H96: 0 | I96: 0 | J96: 0 | L96: 208.49
C97: 0 | D97: 0 | E97: 0 | F97: 0 | G97: 00:00:00 | H97: 0 | I97: 0 | J97: 0 | L97: 208.49
C98: 0 | D98: 0 | E98: 0 | F98: 0 | G98: 00:00:00 | H98: 0 | I98: 0 | J98: 0 | L98: 208.49
C99: 0 | D99: 0 | E99: 0 | F99: 0 | G99: 00:00:00 | H99: 0 | I99: 0 | J99: 0 | L99: 208.49
C100: 0 | D100: 0 | E100: 0 | F100: 0 | G100: 00:00:00 | H100: 0 | I100: 0 | J100: 0 | L100: 208.49
C101: 0 | D101: 0 | E101: 0 | F101: 0 | G101: 00:00:00 | H101: 0 | I101: 0 | J101: 0 | L101: 208.49
C102: 0 | D102: 0 | E102: 0 | F102: 0 | G102: 00:00:00 | H102: 0 | I102: 0 | J102: 0 | L102: 208.49
C103: 0 | D103: 0 | E103: 0 | F103: 0 | G103: 00:00:00 | H103: 0 | I103: 0 | J103: 0 | L103: 208.49
C104: 0 | D104: 0 | E104: 0 | F104: 0 | G104: 00:00:00 | H104: 0 | I104: 0 | J104: 0 | L104: 208.49
C105: 0 | D105: 0 | E105: 0 | F105: 0 | G105: 00:00:00 | H105: 0 | I105: 0 | J105: 0 | L105: 208.49
C106: 0 | D106: 0 | E106: 0 | F106: 0 | G106: 00:00:00 | H106: 0 | I106: 0 | J106: 0 | L106: 208.49 | Q106: =IF(C106=0,"",IF(ISERROR(J106/D106),"",(J106/D106))/IF(C106="DAX",25,IF(C106="CAC40",10,1))) -> 
C107: 0 | D107: 0 | E107: 0 | F107: 0 | G107: 00:00:00 | H107: 0 | I107: 0 | J107: 0 | L107: 208.49
C108: 0 | D108: 0 | E108: 0 | F108: 0 | G108: 00:00:00 | H108: 0 | I108: 0 | J108: 0 | L108: 208.49
C109: 0 | D109: 0 | E109: 0 | F109: 0 | G109: 00:00:00 | H109: 0 | I109: 0 | J109: 0 | L109: 208.49
C110: 0 | D110: 0 | E110: 0 | F110: 0 | G110: 00:00:00 | H110: 0 | I110: 0 | J110: 0 | L110: 208.49
C111: 0 | D111: 0 | E111: 0 | F111: 0 | G111: 00:00:00 | H111: 0 | I111: 0 | J111: 0 | L111: 208.49
C112: 0 | D112: 0 | E112: 0 | F112: 0 | G112: 00:00:00 | H112: 0 | I112: 0 | J112: 0 | L112: 208.49
C113: 0 | D113: 0 | E113: 0 | F113: 0 | G113: 00:00:00 | H113: 0 | I113: 0 | J113: 0 | L113: 208.49
C114: 0 | D114: 0 | E114: 0 | F114: 0 | G114: 00:00:00 | H114: 0 | I114: 0 | J114: 0 | L114: 208.49
C115: 0 | D115: 0 | E115: 0 | F115: 0 | G115: 00:00:00 | H115: 0 | I115: 0 | J115: 0 | L115: 208.49
C116: 0 | D116: 0 | E116: 0 | F116: 0 | G116: 00:00:00 | H116: 0 | I116: 0 | J116: 0 | L116: 208.49
C117: 0 | D117: 0 | E117: 0 | F117: 0 | G117: 00:00:00 | H117: 0 | I117: 0 | J117: 0 | L117: 208.49
C118: 0 | D118: 0 | E118: 0 | F118: 0 | G118: 00:00:00 | H118: 0 | I118: 0 | J118: 0 | L118: 208.49
C119: 0 | D119: 0 | E119: 0 | F119: 0 | G119: 00:00:00 | H119: 0 | I119: 0 | J119: 0 | L119: 208.49
C120: 0 | D120: 0 | E120: 0 | F120: 0 | G120: 00:00:00 | H120: 0 | I120: 0 | J120: 0 | L120: 208.49
C121: 0 | D121: 0 | E121: 0 | F121: 0 | G121: 00:00:00 | H121: 0 | I121: 0 | J121: 0 | L121: 208.49
C122: 0 | D122: 0 | E122: 0 | F122: 0 | G122: 00:00:00 | H122: 0 | I122: 0 | J122: 0 | L122: 208.49
C123: 0 | D123: 0 | E123: 0 | F123: 0 | G123: 00:00:00 | H123: 0 | I123: 0 | J123: 0 | L123: 208.49
C124: 0 | D124: 0 | E124: 0 | F124: 0 | G124: 00:00:00 | H124: 0 | I124: 0 | J124: 0 | L124: 208.49
C125: 0 | D125: 0 | E125: 0 | F125: 0 | G125: 00:00:00 | H125: 0 | I125: 0 | J125: 0 | L125: 208.49
C126: 0 | D126: 0 | E126: 0 | F126: 0 | G126: 00:00:00 | H126: 0 | I126: 0 | J126: 0 | L126: 208.49
C127: 0 | D127: 0 | E127: 0 | F127: 0 | G127: 00:00:00 | H127: 0 | I127: 0 | J127: 0 | L127: 208.49
C128: 0 | D128: 0 | E128: 0 | F128: 0 | G128: 00:00:00 | H128: 0 | I128: 0 | J128: 0 | L128: 208.49
C129: 0 | D129: 0 | E129: 0 | F129: 0 | G129: 00:00:00 | H129: 0 | I129: 0 | J129: 0 | L129: 208.49
C130: 0 | D130: 0 | E130: 0 | F130: 0 | G130: 00:00:00 | H130: 0 | I130: 0 | J130: 0 | L130: 208.49
C131: 0 | D131: 0 | E131: 0 | F131: 0 | G131: 00:00:00 | H131: 0 | I131: 0 | J131: 0 | L131: 208.49
C132: 0 | D132: 0 | E132: 0 | F132: 0 | G132: 00:00:00 | H132: 0 | I132: 0 | J132: 0 | L132: 208.49
C133: 0 | D133: 0 | E133: 0 | F133: 0 | G133: 00:00:00 | H133: 0 | I133: 0 | J133: 0 | L133: 208.49
C134: 0 | D134: 0 | E134: 0 | F134: 0 | G134: 00:00:00 | H134: 0 | I134: 0 | J134: 0 | L134: 208.49
C135: 0 | D135: 0 | E135: 0 | F135: 0 | G135: 00:00:00 | H135: 0 | I135: 0 | J135: 0 | L135: 208.49
C136: 0 | D136: 0 | E136: 0 | F136: 0 | G136: 00:00:00 | H136: 0 | I136: 0 | J136: 0 | L136: 208.49
C137: 0 | D137: 0 | E137: 0 | F137: 0 | G137: 00:00:00 | H137: 0 | I137: 0 | J137: 0 | L137: 208.49
C138: 0 | D138: 0 | E138: 0 | F138: 0 | G138: 00:00:00 | H138: 0 | I138: 0 | J138: 0 | L138: 208.49
C139: 0 | D139: 0 | E139: 0 | F139: 0 | G139: 00:00:00 | H139: 0 | I139: 0 | J139: 0 | L139: 208.49
C140: 0 | D140: 0 | E140: 0 | F140: 0 | G140: 00:00:00 | H140: 0 | I140: 0 | J140: 0 | L140: 208.49 | N140: =IF(E140=0,"",IF(E140="SLD","BUY","SLD")) -> 
C141: 0 | D141: 0 | E141: 0 | F141: 0 | G141: 00:00:00 | H141: 0 | I141: 0 | J141: 0 | L141: 208.49
C142: 0 | D142: 0 | E142: 0 | F142: 0 | G142: 00:00:00 | H142: 0 | I142: 0 | J142: 0 | L142: 208.49
C143: 0 | D143: 0 | E143: 0 | F143: 0 | G143: 00:00:00 | H143: 0 | I143: 0 | J143: 0 | L143: 208.49
C144: 0 | D144: 0 | E144: 0 | F144: 0 | G144: 00:00:00 | H144: 0 | I144: 0 | J144: 0 | L144: 208.49
C145: 0 | D145: 0 | E145: 0 | F145: 0 | G145: 00:00:00 | H145: 0 | I145: 0 | J145: 0 | L145: 208.49
C146: 0 | D146: 0 | E146: 0 | F146: 0 | G146: 00:00:00 | H146: 0 | I146: 0 | J146: 0 | L146: 208.49
C147: 0 | D147: 0 | E147: 0 | F147: 0 | G147: 00:00:00 | H147: 0 | I147: 0 | J147: 0 | L147: 208.49
C148: 0 | D148: 0 | E148: 0 | F148: 0 | G148: 00:00:00 | H148: 0 | I148: 0 | J148: 0 | L148: 208.49
C149: 0 | D149: 0 | E149: 0 | F149: 0 | G149: 00:00:00 | H149: 0 | I149: 0 | J149: 0 | L149: 208.49
C150: 0 | D150: 0 | E150: 0 | F150: 0 | G150: 00:00:00 | H150: 0 | I150: 0 | J150: 0 | L150: 208.49
C151: 0 | D151: 0 | E151: 0 | F151: 0 | G151: 00:00:00 | H151: 0 | I151: 0 | J151: 0 | L151: 208.49
C152: 0 | D152: 0 | E152: 0 | F152: 0 | G152: 00:00:00 | H152: 0 | I152: 0 | J152: 0 | L152: 208.49
C153: 0 | D153: 0 | E153: 0 | F153: 0 | G153: 00:00:00 | H153: 0 | I153: 0 | J153: 0 | L153: 208.49
C154: 0 | D154: 0 | E154: 0 | F154: 0 | G154: 00:00:00 | H154: 0 | I154: 0 | J154: 0 | L154: 208.49
C155: 0 | D155: 0 | E155: 0 | F155: 0 | G155: 00:00:00 | H155: 0 | I155: 0 | J155: 0 | L155: 208.49
C156: 0 | D156: 0 | E156: 0 | F156: 0 | G156: 00:00:00 | H156: 0 | I156: 0 | J156: 0 | L156: =+J156+L155 -> 208.49
C157: 0 | D157: 0 | E157: 0 | F157: 0 | G157: 00:00:00 | H157: 0 | I157: 0 | J157: 0 | L157: 208.49
C158: 0 | D158: 0 | E158: 0 | F158: 0 | G158: 00:00:00 | H158: 0 | I158: 0 | J158: 0 | L158: 208.49
C159: 0 | D159: 0 | E159: 0 | F159: 0 | G159: 00:00:00 | H159: 0 | I159: 0 | J159: 0 | L159: 208.49
C160: 0 | D160: 0 | E160: 0 | F160: 0 | G160: 00:00:00 | H160: 0 | I160: 0 | J160: 0 | L160: 208.49
C161: 0 | D161: 0 | E161: 0 | F161: 0 | G161: 00:00:00 | H161: 0 | I161: 0 | J161: 0 | L161: 208.49
C162: 0 | D162: 0 | E162: 0 | F162: 0 | G162: 00:00:00 | H162: 0 | I162: 0 | J162: 0 | L162: 208.49
C163: 0 | D163: 0 | E163: 0 | F163: 0 | G163: 00:00:00 | H163: 0 | I163: 0 | J163: 0 | L163: 208.49
C164: 0 | D164: 0 | E164: 0 | F164: 0 | G164: 00:00:00 | H164: 0 | I164: 0 | J164: 0 | L164: 208.49
C165: 0 | D165: 0 | E165: 0 | F165: 0 | G165: 00:00:00 | H165: 0 | I165: 0 | J165: 0 | L165: 208.49
C166: 0 | D166: 0 | E166: 0 | F166: 0 | G166: 00:00:00 | H166: 0 | I166: 0 | J166: 0 | L166: 208.49
C167: 0 | D167: 0 | E167: 0 | F167: 0 | G167: 00:00:00 | H167: 0 | I167: 0 | J167: 0 | L167: 208.49
C168: 0 | D168: 0 | E168: 0 | F168: 0 | G168: 00:00:00 | H168: 0 | I168: 0 | J168: 0 | L168: 208.49
C169: 0 | D169: 0 | E169: 0 | F169: 0 | G169: 00:00:00 | H169: 0 | I169: 0 | J169: 0 | L169: 208.49
C170: 0 | D170: 0 | E170: 0 | F170: 0 | G170: 00:00:00 | H170: 0 | I170: 0 | J170: 0 | L170: 208.49 | Q170: =IF(C170=0,"",IF(ISERROR(J170/D170),"",(J170/D170))/IF(C170="DAX",25,IF(C170="CAC40",10,1))) -> 
C171: 0 | D171: 0 | E171: 0 | F171: 0 | G171: 00:00:00 | H171: 0 | I171: 0 | J171: 0 | L171: 208.49
C172: 0 | D172: 0 | E172: 0 | F172: 0 | G172: 00:00:00 | H172: 0 | I172: 0 | J172: 0 | L172: 208.49
C173: 0 | D173: 0 | E173: 0 | F173: 0 | G173: 00:00:00 | H173: 0 | I173: 0 | J173: 0 | L173: 208.49
C174: 0 | D174: 0 | E174: 0 | F174: 0 | G174: 00:00:00 | H174: 0 | I174: 0 | J174: 0 | L174: 208.49
C175: 0 | D175: 0 | E175: 0 | F175: 0 | G175: 00:00:00 | H175: 0 | I175: 0 | J175: 0 | L175: 208.49
C176: 0 | D176: 0 | E176: 0 | F176: 0 | G176: 00:00:00 | H176: 0 | I176: 0 | J176: 0 | L176: 208.49
C177: 0 | D177: 0 | E177: 0 | F177: 0 | G177: 00:00:00 | H177: 0 | I177: 0 | J177: 0 | L177: 208.49
C178: 0 | D178: 0 | E178: 0 | F178: 0 | G178: 00:00:00 | H178: 0 | I178: 0 | J178: 0 | L178: 208.49
C179: 0 | D179: 0 | E179: 0 | F179: 0 | G179: 00:00:00 | H179: 0 | I179: 0 | J179: 0 | L179: 208.49
C180: 0 | D180: 0 | E180: 0 | F180: 0 | G180: 00:00:00 | H180: 0 | I180: 0 | J180: 0 | L180: 208.49
C181: 0 | D181: 0 | E181: 0 | F181: 0 | G181: 00:00:00 | H181: 0 | I181: 0 | J181: 0 | L181: 208.49
C182: 0 | D182: 0 | E182: 0 | F182: 0 | G182: 00:00:00 | H182: 0 | I182: 0 | J182: 0 | L182: 208.49
C183: 0 | D183: 0 | E183: 0 | F183: 0 | G183: 00:00:00 | H183: 0 | I183: 0 | J183: 0 | L183: 208.49
C184: 0 | D184: 0 | E184: 0 | F184: 0 | G184: 00:00:00 | H184: 0 | I184: 0 | J184: 0 | L184: 208.49
C185: 0 | D185: 0 | E185: 0 | F185: 0 | G185: 00:00:00 | H185: 0 | I185: 0 | J185: 0 | L185: 208.49
C186: 0 | D186: 0 | E186: 0 | F186: 0 | G186: 00:00:00 | H186: 0 | I186: 0 | J186: 0 | L186: 208.49
C187: 0 | D187: 0 | E187: 0 | F187: 0 | G187: 00:00:00 | H187: 0 | I187: 0 | J187: 0 | L187: 208.49
C188: 0 | D188: 0 | E188: 0 | F188: 0 | G188: 00:00:00 | H188: 0 | I188: 0 | J188: 0 | L188: 208.49
C189: 0 | D189: 0 | E189: 0 | F189: 0 | G189: 00:00:00 | H189: 0 | I189: 0 | J189: 0 | L189: 208.49
C190: 0 | D190: 0 | E190: 0 | F190: 0 | G190: 00:00:00 | H190: 0 | I190: 0 | J190: 0 | L190: 208.49
C191: 0 | D191: 0 | E191: 0 | F191: 0 | G191: 00:00:00 | H191: 0 | I191: 0 | J191: 0 | L191: 208.49
C192: 0 | D192: 0 | E192: 0 | F192: 0 | G192: 00:00:00 | H192: 0 | I192: 0 | J192: 0 | L192: 208.49
C193: 0 | D193: 0 | E193: 0 | F193: 0 | G193: 00:00:00 | H193: 0 | I193: 0 | J193: 0 | L193: 208.49
C194: 0 | D194: 0 | E194: 0 | F194: 0 | G194: 00:00:00 | H194: 0 | I194: 0 | J194: 0 | L194: 208.49
C195: 0 | D195: 0 | E195: 0 | F195: 0 | G195: 00:00:00 | H195: 0 | I195: 0 | J195: 0 | L195: 208.49
C196: 0 | D196: 0 | E196: 0 | F196: 0 | G196: 00:00:00 | H196: 0 | I196: 0 | J196: 0 | L196: 208.49
C197: 0 | D197: 0 | E197: 0 | F197: 0 | G197: 00:00:00 | H197: 0 | I197: 0 | J197: 0 | L197: 208.49
C198: 0 | D198: 0 | E198: 0 | F198: 0 | G198: 00:00:00 | H198: 0 | I198: 0 | J198: 0 | L198: 208.49
C199: 0 | D199: 0 | E199: 0 | F199: 0 | G199: 00:00:00 | H199: 0 | I199: 0 | J199: 0 | L199: 208.49
C200: 0 | D200: 0 | E200: 0 | F200: 0 | G200: 00:00:00 | H200: 0 | I200: 0 | J200: 0 | L200: 208.49
C201: 0 | D201: 0 | E201: 0 | F201: 0 | G201: 00:00:00 | H201: 0 | I201: 0 | J201: 0 | L201: 208.49
C202: 0 | D202: 0 | E202: 0 | F202: 0 | G202: 00:00:00 | H202: 0 | I202: 0 | J202: 0 | L202: 208.49
C203: 0 | D203: 0 | E203: 0 | F203: 0 | G203: 00:00:00 | H203: 0 | I203: 0 | J203: 0 | L203: 208.49
... 304 more rows

Sheet 16-06
AK4: B/S | AL4: Strat | AM4: M2 | AN4: Erreur
AK5: B | AL5: Trading de Niveau 30S | AM5: Même sens | AN5: Oui
AK6: S | AL6: Trading de Niveau M2 | AM6: Flat | AN6: Non
AL7: Trading de Niveau H1 | AM7: Opposé
AL8: Trading de Niveau D
AL9: IC40 30S
AL10: IC40 M2
AL11: IC40S 30S
AL12: IC40 S M2
AL13: IC40 30S inverse MM
AL14: AI contrtdce 30S
AL15: AI contrtdce M2
AL16: AI contrtdce M5
AL17: AI Divergce 30S
AL18: AI Divergce M2
AL19: AI Divergce M5
AL20: AI Divergce H1
AL21: AI impulsion S30
AL22: Ai Impulsion M2
AL23: Sur chiffres
AL24: Range m2
C25: Underlying | D25: Quantity | E25: Contract | F25: Price | G25: Time | H25: Date | I25: Commission | J25: Realized P&L | L25: Cumul P&L | M25: Strat | N25: Sell/Buy | O25: TDCE M2 | P25: Conviction sur le marché | Q25: Pts | R25: Erreur | AL25: IC40 M2 inverse MM
C26: IBDE30 | D26: 2 | E26: BOT | F26: 9531.68 | G26: 0.3961574074 | H26: 20160616 | I26: 1 | J26: 0 | L26: =+J26 -> 0 | Q26: =IF(C26=0,"",IF(ISERROR(J26/D26),"",(J26/D26))/IF(C26="DAX",25,IF(C26="CAC40",10,1))) -> 0 | AL26: Cassure S/R M2
C27: IBDE30 | D27: 1 | E27: SLD | F27: 9540.18 | G27: 09:31:03 | H27: 20160616 | I27: 1 | J27: 7 | L27: =+J27+L26 -> 7 | N27: =IF(E27=0,"",IF(E27="SLD","BUY","SLD")) -> BUY | Q27: 7 | AL27: Cassure S/R H1
C28: IBDE30 | D28: 1 | E28: SLD | F28: 9530.68 | G28: 09:31:36 | H28: 20160616 | I28: 1 | J28: -2.5 | L28: =+J28+L27 -> 4.5 | N28: =IF(E28=0,"",IF(E28="SLD","BUY","SLD")) -> BUY | Q28: -2.5 | AL28: Cassure S/R D
C29: DAX | D29: 2 | E29: BOT | F29: 9541 | G29: 0.4027662037 | H29: 20160616 | I29: 2.82 | J29: 0 | L29: 4.5 | N29: SLD | Q29: 0 | AL29: Contretendance impulsion
C30: DAX | D30: 1 | E30: SLD | F30: 9541 | G30: 09:45:30 | H30: 20160616 | I30: 1.41 | J30: -2.82 | L30: =+J30+L29 -> 1.68 | N30: BUY | Q30: -0.1128
C31: DAX | D31: 1 | E31: SLD | F31: 9542.5 | G31: 09:45:31 | H31: 20160616 | I31: 1.41 | J31: 34.68 | L31: 36.36 | N31: BUY | Q31: 1.3872
C32: IBDE30 | D32: 1 | E32: BOT | F32: 9546.18 | G32: 0.4115162037 | H32: 20160616 | I32: 1 | J32: 0 | L32: 36.36 | N32: SLD | Q32: 0
C33: IBDE30 | D33: 2 | E33: BOT | F33: 9547.68 | G33: 0.4117708333 | H33: 20160616 | I33: 1 | J33: 0 | L33: 36.36 | N33: SLD | Q33: 0
C34: IBDE30 | D34: 2 | E34: BOT | F34: 9547.68 | G34: 0.4119328704 | H34: 20160616 | I34: 1 | J34: 0 | L34: 36.36 | N34: SLD | Q34: 0
C35: IBDE30 | D35: 1 | E35: SLD | F35: 9554.68 | G35: 09:53:34 | H35: 20160616 | I35: 1 | J35: 5.7 | L35: 42.06 | M35: IC40 30S | N35: BUY | O35: Opposé | Q35: 5.7
C36: IBDE30 | D36: 1 | E36: SLD | F36: 9555.68 | G36: 09:53:34 | H36: 20160616 | I36: 1 | J36: 6.7 | L36: 48.76 | M36: IC40 30S | N36: BUY | O36: Opposé | Q36: 6.7
C37: IBDE30 | D37: 1 | E37: SLD | F37: 9552.18 | G37: 09:54:09 | H37: 20160616 | I37: 1 | J37: 3.2 | L37: 51.96 | M37: IC40 30S | N37: BUY | O37: Opposé | Q37: =IF(C37=0,"",IF(ISERROR(J37/D37),"",(J37/D37))/IF(C37="DAX",25,IF(C37="CAC40",10,1))) -> 3.2
C38: IBDE30 | D38: 1 | E38: SLD | F38: 9552.18 | G38: 09:54:09 | H38: 20160616 | I38: 1 | J38: 3.2 | L38: 55.16 | M38: IC40 30S | N38: BUY | O38: Opposé | Q38: 3.2
C39: IBDE30 | D39: 1 | E39: SLD | F39: 9554.18 | G39: 09:57:40 | H39: 20160616 | I39: 1 | J39: 5.2 | L39: 60.36 | M39: IC40 30S | N39: BUY | O39: Opposé | Q39: 5.2
C40: IBFR40 | D40: 3 | E40: SLD | F40: 4145.3 | G40: 0.4666087963 | H40: 20160616 | I40: 1.24 | J40: 0 | L40: 60.36 | N40: BUY | Q40: 0
C41: IBFR40 | D41: 3 | E41: SLD | F41: 4149.31 | G41: 0.4958912037 | H41: 20160616 | I41: 1.24 | J41: 0 | L41: 60.36 | N41: BUY | Q41: =IF(C41=0,"",IF(ISERROR(J41/D41),"",(J41/D41))/IF(C41="DAX",25,IF(C41="CAC40",10,1))) -> 0
C42: IBFR40 | D42: 3 | E42: BOT | F42: 4143.8 | G42: 13:16:48 | H42: 20160616 | I42: 1.24 | J42: 8.03 | L42: 68.39 | M42: Trading de Niveau H1 | N42: SLD | Q42: =IF(C42=0,"",IF(ISERROR(J42/D42),"",(J42/D42))/IF(C42="DAX",25,IF(C42="CAC40",10,1))) -> 2.676666667
C43: IBFR40 | D43: 3 | E43: BOT | F43: 4136.81 | G43: 14:25:32 | H43: 20160616 | I43: 1.24 | J43: 29 | L43: 97.39 | M43: Trading de Niveau H1 | N43: SLD | Q43: 9.666666667
C44: IBDE30 | D44: 1 | E44: SLD | F44: 9463.18 | G44: 16:12:18 | H44: 20160616 | I44: 1 | J44: 0 | L44: 97.39 | N44: BUY | Q44: 0
C45: IBDE30 | D45: 1 | E45: BOT | F45: 9450.68 | G45: 16:24:50 | H45: 20160616 | I45: 1 | J45: 10.5 | L45: 107.89 | M45: Trading de Niveau M2 | N45: SLD | Q45: 10.5
C46: IBDE30 | D46: 2 | E46: SLD | F46: 9526.68 | G46: 17:13:49 | H46: 20160616 | I46: 1 | J46: 0 | L46: 107.89 | N46: BUY | Q46: 0
C47: IBDE30 | D47: 1 | E47: BOT | F47: 9542.68 | G47: 17:14:25 | H47: 20160616 | I47: 1 | J47: -17.5 | L47: 90.39 | M47: Trading de Niveau M2 | N47: SLD | Q47: -17.5
C48: IBDE30 | D48: 1 | E48: SLD | F48: 9530.18 | G48: 17:15:59 | H48: 20160616 | I48: 1 | J48: 0 | L48: 90.39 | N48: BUY | Q48: 0
C49: IBDE30 | D49: 2 | E49: BOT | F49: 9542.18 | G49: 17:21:33 | H49: 20160616 | I49: 1 | J49: -30 | L49: 60.39 | M49: Trading de Niveau M2 | N49: SLD | Q49: -15
C50: IBDE30 | D50: 2 | E50: SLD | F50: 9538.68 | G50: 17:22:06 | H50: 20160616 | I50: 1 | J50: 0 | L50: 60.39 | N50: BUY | Q50: 0
C51: IBDE30 | D51: 2 | E51: SLD | F51: 9536.18 | G51: 17:22:12 | H51: 20160616 | I51: 1 | J51: 0 | L51: 60.39 | N51: BUY | Q51: 0
C52: IBDE30 | D52: 1 | E52: BOT | F52: 9547.18 | G52: 17:26:07 | H52: 20160616 | I52: 1 | J52: -11.25 | L52: 49.14 | M52: Trading de Niveau M2 | N52: SLD | Q52: -11.25
C53: IBDE30 | D53: 1 | E53: BOT | F53: 9549.68 | G53: 17:26:10 | H53: 20160616 | I53: 1 | J53: -13.75 | L53: 35.39 | M53: Trading de Niveau M2 | N53: SLD | Q53: -13.75
C54: IBDE30 | D54: 1 | E54: BOT | F54: 9552.68 | G54: 17:26:19 | H54: 20160616 | I54: 1 | J54: -16.75 | L54: 18.64 | M54: Trading de Niveau M2 | N54: SLD | Q54: -16.75
C55: IBDE30 | D55: 1 | E55: BOT | F55: 9551.68 | G55: 17:26:41 | H55: 20160616 | I55: 1 | J55: -15.75 | L55: 2.89 | M55: Trading de Niveau M2 | N55: SLD | Q55: -15.75
C56: 0 | D56: 0 | E56: 0 | F56: 0 | G56: 0 | H56: 0 | I56: 0 | J56: 0 | L56: 2.89
C57: 0 | D57: 0 | E57: 0 | F57: 0 | G57: 0 | H57: 0 | I57: 0 | J57: 0 | L57: 2.89
C58: 0 | D58: 0 | E58: 0 | F58: 0 | G58: 0 | H58: 0 | I58: 0 | J58: 0 | L58: 2.89
C59: 0 | D59: 0 | E59: 0 | F59: 0 | G59: 0 | H59: 0 | I59: 0 | J59: 0 | L59: 2.89
C60: 0 | D60: 0 | E60: 0 | F60: 0 | G60: 0 | H60: 0 | I60: 0 | J60: 0 | L60: 2.89
C61: 0 | D61: 0 | E61: 0 | F61: 0 | G61: 0 | H61: 0 | I61: 0 | J61: 0 | L61: 2.89
C62: 0 | D62: 0 | E62: 0 | F62: 0 | G62: 0 | H62: 0 | I62: 0 | J62: 0 | L62: 2.89
C63: 0 | D63: 0 | E63: 0 | F63: 0 | G63: 0 | H63: 0 | I63: 0 | J63: 0 | L63: 2.89
C64: 0 | D64: 0 | E64: 0 | F64: 0 | G64: 0 | H64: 0 | I64: 0 | J64: 0 | L64: 2.89
C65: 0 | D65: 0 | E65: 0 | F65: 0 | G65: 0 | H65: 0 | I65: 0 | J65: 0 | L65: 2.89
C66: 0 | D66: 0 | E66: 0 | F66: 0 | G66: 0 | H66: 0 | I66: 0 | J66: 0 | L66: 2.89
C67: 0 | D67: 0 | E67: 0 | F67: 0 | G67: 0 | H67: 0 | I67: 0 | J67: 0 | L67: 2.89
C68: 0 | D68: 0 | E68: 0 | F68: 0 | G68: 0 | H68: 0 | I68: 0 | J68: 0 | L68: 2.89
C69: 0 | D69: 0 | E69: 0 | F69: 0 | G69: 0 | H69: 0 | I69: 0 | J69: 0 | L69: 2.89
C70: 0 | D70: 0 | E70: 0 | F70: 0 | G70: 0 | H70: 0 | I70: 0 | J70: 0 | L70: 2.89
C71: 0 | D71: 0 | E71: 0 | F71: 0 | G71: 0 | H71: 0 | I71: 0 | J71: 0 | L71: 2.89
C72: 0 | D72: 0 | E72: 0 | F72: 0 | G72: 0 | H72: 0 | I72: 0 | J72: 0 | L72: 2.89
C73: 0 | D73: 0 | E73: 0 | F73: 0 | G73: 0 | H73: 0 | I73: 0 | J73: 0 | L73: 2.89
C74: 0 | D74: 0 | E74: 0 | F74: 0 | G74: 0 | H74: 0 | I74: 0 | J74: 0 | L74: 2.89
C75: 0 | D75: 0 | E75: 0 | F75: 0 | G75: 0 | H75: 0 | I75: 0 | J75: 0 | L75: 2.89
C76: 0 | D76: 0 | E76: 0 | F76: 0 | G76: 0 | H76: 0 | I76: 0 | J76: 0 | L76: 2.89 | N76: =IF(E76=0,"",IF(E76="SLD","BUY","SLD")) -> 
C77: 0 | D77: 0 | E77: 0 | F77: 0 | G77: 0 | H77: 0 | I77: 0 | J77: 0 | L77: 2.89
C78: 0 | D78: 0 | E78: 0 | F78: 0 | G78: 0 | H78: 0 | I78: 0 | J78: 0 | L78: 2.89
C79: 0 | D79: 0 | E79: 0 | F79: 0 | G79: 0 | H79: 0 | I79: 0 | J79: 0 | L79: 2.89
C80: 0 | D80: 0 | E80: 0 | F80: 0 | G80: 0 | H80: 0 | I80: 0 | J80: 0 | L80: 2.89
C81: 0 | D81: 0 | E81: 0 | F81: 0 | G81: 0 | H81: 0 | I81: 0 | J81: 0 | L81: 2.89
C82: 0 | D82: 0 | E82: 0 | F82: 0 | G82: 0 | H82: 0 | I82: 0 | J82: 0 | L82: 2.89
C83: 0 | D83: 0 | E83: 0 | F83: 0 | G83: 0 | H83: 0 | I83: 0 | J83: 0 | L83: 2.89
C84: 0 | D84: 0 | E84: 0 | F84: 0 | G84: 0 | H84: 0 | I84: 0 | J84: 0 | L84: 2.89
C85: 0 | D85: 0 | E85: 0 | F85: 0 | G85: 0 | H85: 0 | I85: 0 | J85: 0 | L85: 2.89
C86: 0 | D86: 0 | E86: 0 | F86: 0 | G86: 0 | H86: 0 | I86: 0 | J86: 0 | L86: 2.89
C87: 0 | D87: 0 | E87: 0 | F87: 0 | G87: 0 | H87: 0 | I87: 0 | J87: 0 | L87: 2.89
C88: 0 | D88: 0 | E88: 0 | F88: 0 | G88: 0 | H88: 0 | I88: 0 | J88: 0 | L88: 2.89
C89: 0 | D89: 0 | E89: 0 | F89: 0 | G89: 0 | H89: 0 | I89: 0 | J89: 0 | L89: 2.89
C90: 0 | D90: 0 | E90: 0 | F90: 0 | G90: 0 | H90: 0 | I90: 0 | J90: 0 | L90: 2.89
C91: 0 | D91: 0 | E91: 0 | F91: 0 | G91: 0 | H91: 0 | I91: 0 | J91: 0 | L91: 2.89
C92: 0 | D92: 0 | E92: 0 | F92: 0 | G92: 0 | H92: 0 | I92: 0 | J92: 0 | L92: =+J92+L91 -> 2.89
C93: 0 | D93: 0 | E93: 0 | F93: 0 | G93: 0 | H93: 0 | I93: 0 | J93: 0 | L93: 2.89
C94: 0 | D94: 0 | E94: 0 | F94: 0 | G94: 0 | H94: 0 | I94: 0 | J94: 0 | L94: 2.89
C95: 0 | D95: 0 | E95: 0 | F95: 0 | G95: 0 | H95: 0 | I95: 0 | J95: 0 | L95: 2.89
C96: 0 | D96: 0 | E96: 0 | F96: 0 | G96: 0 | H96: 0 | I96: 0 | J96: 0 | L96: 2.89
C97: 0 | D97: 0 | E97: 0 | F97: 0 | G97: 0 | H97: 0 | I97: 0 | J97: 0 | L97: 2.89
C98: 0 | D98: 0 | E98: 0 | F98: 0 | G98: 0 | H98: 0 | I98: 0 | J98: 0 | L98: 2.89
C99: 0 | D99: 0 | E99: 0 | F99: 0 | G99: 0 | H99: 0 | I99: 0 | J99: 0 | L99: 2.89
C100: 0 | D100: 0 | E100: 0 | F100: 0 | G100: 0 | H100: 0 | I100: 0 | J100: 0 | L100: 2.89
C101: 0 | D101: 0 | E101: 0 | F101: 0 | G101: 0 | H101: 0 | I101: 0 | J101: 0 | L101: 2.89
C102: 0 | D102: 0 | E102: 0 | F102: 0 | G102: 0 | H102: 0 | I102: 0 | J102: 0 | L102: 2.89
C103: 0 | D103: 0 | E103: 0 | F103: 0 | G103: 0 | H103: 0 | I103: 0 | J103: 0 | L103: 2.89
C104: 0 | D104: 0 | E104: 0 | F104: 0 | G104: 0 | H104: 0 | I104: 0 | J104: 0 | L104: 2.89
C105: 0 | D105: 0 | E105: 0 | F105: 0 | G105: 0 | H105: 0 | I105: 0 | J105: 0 | L105: 2.89
C106: 0 | D106: 0 | E106: 0 | F106: 0 | G106: 0 | H106: 0 | I106: 0 | J106: 0 | L106: 2.89 | Q106: =IF(C106=0,"",IF(ISERROR(J106/D106),"",(J106/D106))/IF(C106="DAX",25,IF(C106="CAC40",10,1))) -> 
C107: 0 | D107: 0 | E107: 0 | F107: 0 | G107: 0 | H107: 0 | I107: 0 | J107: 0 | L107: 2.89
C108: 0 | D108: 0 | E108: 0 | F108: 0 | G108: 0 | H108: 0 | I108: 0 | J108: 0 | L108: 2.89
C109: 0 | D109: 0 | E109: 0 | F109: 0 | G109: 0 | H109: 0 | I109: 0 | J109: 0 | L109: 2.89
C110: 0 | D110: 0 | E110: 0 | F110: 0 | G110: 0 | H110: 0 | I110: 0 | J110: 0 | L110: 2.89
C111: 0 | D111: 0 | E111: 0 | F111: 0 | G111: 0 | H111: 0 | I111: 0 | J111: 0 | L111: 2.89
C112: 0 | D112: 0 | E112: 0 | F112: 0 | G112: 0 | H112: 0 | I112: 0 | J112: 0 | L112: 2.89
C113: 0 | D113: 0 | E113: 0 | F113: 0 | G113: 0 | H113: 0 | I113: 0 | J113: 0 | L113: 2.89
C114: 0 | D114: 0 | E114: 0 | F114: 0 | G114: 0 | H114: 0 | I114: 0 | J114: 0 | L114: 2.89
C115: 0 | D115: 0 | E115: 0 | F115: 0 | G115: 0 | H115: 0 | I115: 0 | J115: 0 | L115: 2.89
C116: 0 | D116: 0 | E116: 0 | F116: 0 | G116: 0 | H116: 0 | I116: 0 | J116: 0 | L116: 2.89
C117: 0 | D117: 0 | E117: 0 | F117: 0 | G117: 0 | H117: 0 | I117: 0 | J117: 0 | L117: 2.89
C118: 0 | D118: 0 | E118: 0 | F118: 0 | G118: 0 | H118: 0 | I118: 0 | J118: 0 | L118: 2.89
C119: 0 | D119: 0 | E119: 0 | F119: 0 | G119: 0 | H119: 0 | I119: 0 | J119: 0 | L119: 2.89
C120: 0 | D120: 0 | E120: 0 | F120: 0 | G120: 0 | H120: 0 | I120: 0 | J120: 0 | L120: 2.89
C121: 0 | D121: 0 | E121: 0 | F121: 0 | G121: 0 | H121: 0 | I121: 0 | J121: 0 | L121: 2.89
C122: 0 | D122: 0 | E122: 0 | F122: 0 | G122: 0 | H122: 0 | I122: 0 | J122: 0 | L122: 2.89
C123: 0 | D123: 0 | E123: 0 | F123: 0 | G123: 0 | H123: 0 | I123: 0 | J123: 0 | L123: 2.89
C124: 0 | D124: 0 | E124: 0 | F124: 0 | G124: 0 | H124: 0 | I124: 0 | J124: 0 | L124: 2.89
C125: 0 | D125: 0 | E125: 0 | F125: 0 | G125: 0 | H125: 0 | I125: 0 | J125: 0 | L125: 2.89
C126: 0 | D126: 0 | E126: 0 | F126: 0 | G126: 0 | H126: 0 | I126: 0 | J126: 0 | L126: 2.89
C127: 0 | D127: 0 | E127: 0 | F127: 0 | G127: 0 | H127: 0 | I127: 0 | J127: 0 | L127: 2.89
C128: 0 | D128: 0 | E128: 0 | F128: 0 | G128: 0 | H128: 0 | I128: 0 | J128: 0 | L128: 2.89
C129: 0 | D129: 0 | E129: 0 | F129: 0 | G129: 0 | H129: 0 | I129: 0 | J129: 0 | L129: 2.89
C130: 0 | D130: 0 | E130: 0 | F130: 0 | G130: 0 | H130: 0 | I130: 0 | J130: 0 | L130: 2.89
C131: 0 | D131: 0 | E131: 0 | F131: 0 | G131: 0 | H131: 0 | I131: 0 | J131: 0 | L131: 2.89
C132: 0 | D132: 0 | E132: 0 | F132: 0 | G132: 0 | H132: 0 | I132: 0 | J132: 0 | L132: 2.89
C133: 0 | D133: 0 | E133: 0 | F133: 0 | G133: 0 | H133: 0 | I133: 0 | J133: 0 | L133: 2.89
C134: 0 | D134: 0 | E134: 0 | F134: 0 | G134: 0 | H134: 0 | I134: 0 | J134: 0 | L134: 2.89
C135: 0 | D135: 0 | E135: 0 | F135: 0 | G135: 0 | H135: 0 | I135: 0 | J135: 0 | L135: 2.89
C136: 0 | D136: 0 | E136: 0 | F136: 0 | G136: 0 | H136: 0 | I136: 0 | J136: 0 | L136: 2.89
C137: 0 | D137: 0 | E137: 0 | F137: 0 | G137: 0 | H137: 0 | I137: 0 | J137: 0 | L137: 2.89
C138: 0 | D138: 0 | E138: 0 | F138: 0 | G138: 0 | H138: 0 | I138: 0 | J138: 0 | L138: 2.89
C139: 0 | D139: 0 | E139: 0 | F139: 0 | G139: 0 | H139: 0 | I139: 0 | J139: 0 | L139: 2.89
C140: 0 | D140: 0 | E140: 0 | F140: 0 | G140: 0 | H140: 0 | I140: 0 | J140: 0 | L140: 2.89 | N140: =IF(E140=0,"",IF(E140="SLD","BUY","SLD")) -> 
C141: 0 | D141: 0 | E141: 0 | F141: 0 | G141: 0 | H141: 0 | I141: 0 | J141: 0 | L141: 2.89
C142: 0 | D142: 0 | E142: 0 | F142: 0 | G142: 0 | H142: 0 | I142: 0 | J142: 0 | L142: 2.89
C143: 0 | D143: 0 | E143: 0 | F143: 0 | G143: 0 | H143: 0 | I143: 0 | J143: 0 | L143: 2.89
C144: 0 | D144: 0 | E144: 0 | F144: 0 | G144: 0 | H144: 0 | I144: 0 | J144: 0 | L144: 2.89
C145: 0 | D145: 0 | E145: 0 | F145: 0 | G145: 0 | H145: 0 | I145: 0 | J145: 0 | L145: 2.89
C146: 0 | D146: 0 | E146: 0 | F146: 0 | G146: 0 | H146: 0 | I146: 0 | J146: 0 | L146: 2.89
C147: 0 | D147: 0 | E147: 0 | F147: 0 | G147: 0 | H147: 0 | I147: 0 | J147: 0 | L147: 2.89
C148: 0 | D148: 0 | E148: 0 | F148: 0 | G148: 0 | H148: 0 | I148: 0 | J148: 0 | L148: 2.89
C149: 0 | D149: 0 | E149: 0 | F149: 0 | G149: 0 | H149: 0 | I149: 0 | J149: 0 | L149: 2.89
C150: 0 | D150: 0 | E150: 0 | F150: 0 | G150: 0 | H150: 0 | I150: 0 | J150: 0 | L150: 2.89
C151: 0 | D151: 0 | E151: 0 | F151: 0 | G151: 0 | H151: 0 | I151: 0 | J151: 0 | L151: 2.89
C152: 0 | D152: 0 | E152: 0 | F152: 0 | G152: 0 | H152: 0 | I152: 0 | J152: 0 | L152: 2.89
C153: 0 | D153: 0 | E153: 0 | F153: 0 | G153: 0 | H153: 0 | I153: 0 | J153: 0 | L153: 2.89
C154: 0 | D154: 0 | E154: 0 | F154: 0 | G154: 0 | H154: 0 | I154: 0 | J154: 0 | L154: 2.89
C155: 0 | D155: 0 | E155: 0 | F155: 0 | G155: 0 | H155: 0 | I155: 0 | J155: 0 | L155: 2.89
C156: 0 | D156: 0 | E156: 0 | F156: 0 | G156: 0 | H156: 0 | I156: 0 | J156: 0 | L156: =+J156+L155 -> 2.89
C157: 0 | D157: 0 | E157: 0 | F157: 0 | G157: 0 | H157: 0 | I157: 0 | J157: 0 | L157: 2.89
C158: 0 | D158: 0 | E158: 0 | F158: 0 | G158: 0 | H158: 0 | I158: 0 | J158: 0 | L158: 2.89
C159: 0 | D159: 0 | E159: 0 | F159: 0 | G159: 0 | H159: 0 | I159: 0 | J159: 0 | L159: 2.89
C160: 0 | D160: 0 | E160: 0 | F160: 0 | G160: 0 | H160: 0 | I160: 0 | J160: 0 | L160: 2.89
C161: 0 | D161: 0 | E161: 0 | F161: 0 | G161: 0 | H161: 0 | I161: 0 | J161: 0 | L161: 2.89
C162: 0 | D162: 0 | E162: 0 | F162: 0 | G162: 0 | H162: 0 | I162: 0 | J162: 0 | L162: 2.89
C163: 0 | D163: 0 | E163: 0 | F163: 0 | G163: 0 | H163: 0 | I163: 0 | J163: 0 | L163: 2.89
C164: 0 | D164: 0 | E164: 0 | F164: 0 | G164: 0 | H164: 0 | I164: 0 | J164: 0 | L164: 2.89
C165: 0 | D165: 0 | E165: 0 | F165: 0 | G165: 0 | H165: 0 | I165: 0 | J165: 0 | L165: 2.89
C166: 0 | D166: 0 | E166: 0 | F166: 0 | G166: 0 | H166: 0 | I166: 0 | J166: 0 | L166: 2.89
C167: 0 | D167: 0 | E167: 0 | F167: 0 | G167: 0 | H167: 0 | I167: 0 | J167: 0 | L167: 2.89
C168: 0 | D168: 0 | E168: 0 | F168: 0 | G168: 0 | H168: 0 | I168: 0 | J168: 0 | L168: 2.89
C169: 0 | D169: 0 | E169: 0 | F169: 0 | G169: 0 | H169: 0 | I169: 0 | J169: 0 | L169: 2.89
C170: 0 | D170: 0 | E170: 0 | F170: 0 | G170: 0 | H170: 0 | I170: 0 | J170: 0 | L170: 2.89 | Q170: =IF(C170=0,"",IF(ISERROR(J170/D170),"",(J170/D170))/IF(C170="DAX",25,IF(C170="CAC40",10,1))) -> 
C171: 0 | D171: 0 | E171: 0 | F171: 0 | G171: 0 | H171: 0 | I171: 0 | J171: 0 | L171: 2.89
C172: 0 | D172: 0 | E172: 0 | F172: 0 | G172: 0 | H172: 0 | I172: 0 | J172: 0 | L172: 2.89
C173: 0 | D173: 0 | E173: 0 | F173: 0 | G173: 0 | H173: 0 | I173: 0 | J173: 0 | L173: 2.89
C174: 0 | D174: 0 | E174: 0 | F174: 0 | G174: 0 | H174: 0 | I174: 0 | J174: 0 | L174: 2.89
C175: 0 | D175: 0 | E175: 0 | F175: 0 | G175: 0 | H175: 0 | I175: 0 | J175: 0 | L175: 2.89
C176: 0 | D176: 0 | E176: 0 | F176: 0 | G176: 0 | H176: 0 | I176: 0 | J176: 0 | L176: 2.89
C177: 0 | D177: 0 | E177: 0 | F177: 0 | G177: 0 | H177: 0 | I177: 0 | J177: 0 | L177: 2.89
C178: 0 | D178: 0 | E178: 0 | F178: 0 | G178: 0 | H178: 0 | I178: 0 | J178: 0 | L178: 2.89
C179: 0 | D179: 0 | E179: 0 | F179: 0 | G179: 0 | H179: 0 | I179: 0 | J179: 0 | L179: 2.89
C180: 0 | D180: 0 | E180: 0 | F180: 0 | G180: 0 | H180: 0 | I180: 0 | J180: 0 | L180: 2.89
C181: 0 | D181: 0 | E181: 0 | F181: 0 | G181: 0 | H181: 0 | I181: 0 | J181: 0 | L181: 2.89
C182: 0 | D182: 0 | E182: 0 | F182: 0 | G182: 0 | H182: 0 | I182: 0 | J182: 0 | L182: 2.89
C183: 0 | D183: 0 | E183: 0 | F183: 0 | G183: 0 | H183: 0 | I183: 0 | J183: 0 | L183: 2.89
C184: 0 | D184: 0 | E184: 0 | F184: 0 | G184: 0 | H184: 0 | I184: 0 | J184: 0 | L184: 2.89
C185: 0 | D185: 0 | E185: 0 | F185: 0 | G185: 0 | H185: 0 | I185: 0 | J185: 0 | L185: 2.89
C186: 0 | D186: 0 | E186: 0 | F186: 0 | G186: 0 | H186: 0 | I186: 0 | J186: 0 | L186: 2.89
C187: 0 | D187: 0 | E187: 0 | F187: 0 | G187: 0 | H187: 0 | I187: 0 | J187: 0 | L187: 2.89
C188: 0 | D188: 0 | E188: 0 | F188: 0 | G188: 0 | H188: 0 | I188: 0 | J188: 0 | L188: 2.89
C189: 0 | D189: 0 | E189: 0 | F189: 0 | G189: 0 | H189: 0 | I189: 0 | J189: 0 | L189: 2.89
C190: 0 | D190: 0 | E190: 0 | F190: 0 | G190: 0 | H190: 0 | I190: 0 | J190: 0 | L190: 2.89
C191: 0 | D191: 0 | E191: 0 | F191: 0 | G191: 0 | H191: 0 | I191: 0 | J191: 0 | L191: 2.89
C192: 0 | D192: 0 | E192: 0 | F192: 0 | G192: 0 | H192: 0 | I192: 0 | J192: 0 | L192: 2.89
C193: 0 | D193: 0 | E193: 0 | F193: 0 | G193: 0 | H193: 0 | I193: 0 | J193: 0 | L193: 2.89
C194: 0 | D194: 0 | E194: 0 | F194: 0 | G194: 0 | H194: 0 | I194: 0 | J194: 0 | L194: 2.89
C195: 0 | D195: 0 | E195: 0 | F195: 0 | G195: 0 | H195: 0 | I195: 0 | J195: 0 | L195: 2.89
C196: 0 | D196: 0 | E196: 0 | F196: 0 | G196: 0 | H196: 0 | I196: 0 | J196: 0 | L196: 2.89
C197: 0 | D197: 0 | E197: 0 | F197: 0 | G197: 0 | H197: 0 | I197: 0 | J197: 0 | L197: 2.89
C198: 0 | D198: 0 | E198: 0 | F198: 0 | G198: 0 | H198: 0 | I198: 0 | J198: 0 | L198: 2.89
C199: 0 | D199: 0 | E199: 0 | F199: 0 | G199: 0 | H199: 0 | I199: 0 | J199: 0 | L199: 2.89
C200: 0 | D200: 0 | E200: 0 | F200: 0 | G200: 0 | H200: 0 | I200: 0 | J200: 0 | L200: 2.89
C201: 0 | D201: 0 | E201: 0 | F201: 0 | G201: 0 | H201: 0 | I201: 0 | J201: 0 | L201: 2.89
C202: 0 | D202: 0 | E202: 0 | F202: 0 | G202: 0 | H202: 0 | I202: 0 | J202: 0 | L202: 2.89
C203: 0 | D203: 0 | E203: 0 | F203: 0 | G203: 0 | H203: 0 | I203: 0 | J203: 0 | L203: 2.89
... 304 more rows

Sheet 17-06
AK4: B/S | AL4: Strat | AM4: M2 | AN4: Erreur
AK5: B | AL5: Trading de Niveau 30S | AM5: Même sens | AN5: Oui
AK6: S | AL6: Trading de Niveau M2 | AM6: Flat | AN6: Non
AL7: Trading de Niveau H1 | AM7: Opposé
AL8: Trading de Niveau D
AL9: IC40 30S
AL10: IC40 M2
AL11: IC40S 30S
AL12: IC40 S M2
AL13: IC40 30S inverse MM
AL14: AI contrtdce 30S
AL15: AI contrtdce M2
AL16: AI contrtdce M5
AL17: AI Divergce 30S
AL18: AI Divergce M2
AL19: AI Divergce M5
AL20: AI Divergce H1
AL21: AI impulsion S30
AL22: Ai Impulsion M2
AL23: Sur chiffres
AL24: Range m2
C25: Underlying | D25: Quantity | E25: Contract | F25: Price | G25: Time | H25: Date | I25: Commission | J25: Realized P&L | L25: Cumul P&L | M25: Strat | N25: Sell/Buy | O25: TDCE M2 | P25: Conviction sur le marché | Q25: Pts | R25: Erreur | AL25: IC40 M2 inverse MM
C26: CAC40 | D26: 1 | E26: SLD | F26: 4185.5 | G26: 0.3427314815 | H26: 20160617 | I26: 1.18 | J26: 0 | L26: =+J26 -> 0 | Q26: =IF(C26=0,"",IF(ISERROR(J26/D26),"",(J26/D26))/IF(C26="DAX",25,IF(C26="CAC40",10,1))) -> 0 | AL26: Cassure S/R M2
L27: 0
C28: CAC40 | D28: 1 | E28: BOT | F28: 4166.5 | G28: 09:00:19 | H28: 20160617 | I28: 1.18 | J28: 187.64 | L28: =+J28+L26 -> 187.64 | M28: Trading de Niveau H1 | N28: =IF(E28=0,"",IF(E28="SLD","BUY","SLD")) -> SLD | Q28: 18.764 | AL28: Cassure S/R H1
C29: IBFR40 | D29: 3 | E29: SLD | F29: 4198.5 | G29: 0.3911921296 | H29: 20160617 | I29: 1.26 | J29: 0 | L29: =+J29+L28 -> 187.64 | N29: =IF(E29=0,"",IF(E29="SLD","BUY","SLD")) -> BUY | Q29: 0 | AL29: Cassure S/R D
C30: IBFR40 | D30: 2 | E30: SLD | F30: 4197 | G30: 0.3913425926 | H30: 20160617 | I30: 1 | J30: 0 | L30: 187.64 | N30: BUY | Q30: 0 | AL30: Contretendance impulsion
C31: IBFR40 | D31: 3 | E31: BOT | F31: 4207.5 | G31: 09:25:45 | H31: 20160617 | I31: 1.26 | J31: -31.42 | L31: =+J31+L30 -> 156.22 | M31: Trading de Niveau H1 | N31: SLD | Q31: -10.47333333
C32: IBFR40 | D32: 2 | E32: BOT | F32: 4208.51 | G32: 09:26:26 | H32: 20160617 | I32: 1 | J32: -23.12 | L32: 133.1 | M32: Trading de Niveau H1 | N32: SLD | Q32: -11.56
C33: IBDE30 | D33: 3 | E33: SLD | F33: 9691.87 | G33: 0.3982175926 | H33: 20160617 | I33: 1.45 | J33: 0 | L33: 133.1 | N33: BUY | Q33: 0
C34: IBDE30 | D34: 1 | E34: BOT | F34: 9684.86 | G34: 09:35:59 | H34: 20160617 | I34: 1 | J34: 5.53 | L34: 138.63 | M34: AI contrtdce 30S | N34: SLD | Q34: 5.53
C35: IBDE30 | D35: 1 | E35: BOT | F35: 9680.85 | G35: 09:36:29 | H35: 20160617 | I35: 1 | J35: 9.54 | L35: 148.17 | M35: AI contrtdce 30S | N35: SLD | Q35: 9.54
C36: IBDE30 | D36: 1 | E36: BOT | F36: 9675.85 | G36: 09:36:42 | H36: 20160617 | I36: 1 | J36: 14.54 | L36: 162.71 | M36: AI contrtdce 30S | N36: SLD | Q36: 14.54
C37: IBFR40 | D37: 2 | E37: SLD | F37: 4205.5 | G37: 0.4028356481 | H37: 20160617 | I37: 1 | J37: 0 | L37: 162.71 | N37: BUY | O37: Opposé | Q37: 0
C38: IBFR40 | D38: 1 | E38: SLD | F38: 4207.51 | G38: 0.4039814815 | H38: 20160617 | I38: 1 | J38: 0 | L38: 162.71 | N38: BUY | O38: Opposé | Q38: =IF(C38=0,"",IF(ISERROR(J38/D38),"",(J38/D38))/IF(C38="DAX",25,IF(C38="CAC40",10,1))) -> 0
C39: IBFR40 | D39: 1 | E39: SLD | F39: 4213.01 | G39: 0.4080555556 | H39: 20160617 | I39: 1 | J39: 0 | L39: 162.71 | N39: BUY | O39: Opposé | Q39: 0
C40: IBFR40 | D40: 1 | E40: BOT | F40: 4204.25 | G40: 09:49:33 | H40: 20160617 | I40: 1 | J40: 1.88 | L40: 164.59 | M40: Trading de Niveau H1 | N40: SLD | Q40: 1.88
C41: IBFR40 | D41: 1 | E41: BOT | F41: 4206.25 | G41: 09:49:55 | H41: 20160617 | I41: 1 | J41: -0.12 | L41: 164.47 | M41: Trading de Niveau H1 | N41: SLD | Q41: -0.12
C42: IBDE30 | D42: 1 | E42: BOT | F42: 9681.35 | G42: 0.414212963 | H42: 20160617 | I42: 1 | J42: 0 | L42: 164.47 | N42: SLD | Q42: =IF(C42=0,"",IF(ISERROR(J42/D42),"",(J42/D42))/IF(C42="DAX",25,IF(C42="CAC40",10,1))) -> 0
C43: IBDE30 | D43: 1 | E43: BOT | F43: 9672.84 | G43: 0.4149421296 | H43: 20160617 | I43: 1 | J43: 0 | L43: 164.47 | N43: SLD | Q43: =IF(C43=0,"",IF(ISERROR(J43/D43),"",(J43/D43))/IF(C43="DAX",25,IF(C43="CAC40",10,1))) -> 0
C44: CAC40 | D44: 1 | E44: SLD | F44: 4192 | G44: 0.4159259259 | H44: 20160617 | I44: 1.18 | J44: 0 | L44: 164.47 | N44: BUY | Q44: 0
C45: IBFR40 | D45: 1 | E45: BOT | F45: 4196.25 | G45: 10:01:24 | H45: 20160617 | I45: 1 | J45: 9.88 | L45: 174.35 | M45: Trading de Niveau H1 | N45: SLD | Q45: 9.88
C46: DAX | D46: 1 | E46: SLD | F46: 9646 | G46: 0.4190277778 | H46: 20160617 | I46: 1.41 | J46: 0 | L46: 174.35 | N46: BUY | Q46: 0
C47: DAX | D47: 1 | E47: BOT | F47: 9644.5 | G47: 10:03:34 | H47: 20160617 | I47: 1.41 | J47: 34.68 | L47: 209.03 | N47: SLD | Q47: 1.3872 | R47: Oui
C48: IBDE30 | D48: 6 | E48: SLD | F48: 9639.3 | G48: 10:10:35 | H48: 20160617 | I48: 2.89 | J48: -78.55 | L48: 130.48 | M48: Ai Impulsion M2 | N48: BUY | Q48: -13.09166667
C49: IBDE30 | D49: 1 | E49: SLD | F49: 9643.8 | G49: 0.424525463 | H49: 20160617 | I49: 1 | J49: 0 | L49: 130.48 | N49: BUY | Q49: 0
C50: IBDE30 | D50: 1 | E50: SLD | F50: 9642.3 | G50: 0.4247685185 | H50: 20160617 | I50: 1 | J50: 0 | L50: 130.48 | N50: BUY | Q50: 0
C51: IBDE30 | D51: 1 | E51: SLD | F51: 9643.3 | G51: 0.4248032407 | H51: 20160617 | I51: 1 | J51: 0 | L51: 130.48 | N51: BUY | Q51: 0
C52: IBDE30 | D52: 1 | E52: SLD | F52: 9644.8 | G52: 0.4249652778 | H52: 20160617 | I52: 1 | J52: 0 | L52: 130.48 | N52: BUY | Q52: 0
C53: IBDE30 | D53: 1 | E53: SLD | F53: 9650.31 | G53: 0.4253356481 | H53: 20160617 | I53: 1 | J53: 0 | L53: 130.48 | N53: BUY | Q53: 0
C54: IBDE30 | D54: 1 | E54: SLD | F54: 9654.32 | G54: 0.4262037037 | H54: 20160617 | I54: 1 | J54: 0 | L54: 130.48 | N54: BUY | Q54: 0
C55: IBDE30 | D55: 1 | E55: SLD | F55: 9653.32 | G55: 0.4267592593 | H55: 20160617 | I55: 1 | J55: 0 | L55: 130.48 | N55: BUY | Q55: 0
C56: IBDE30 | D56: 1 | E56: SLD | F56: 9657.82 | G56: 0.4302199074 | H56: 20160617 | I56: 1 | J56: 0 | L56: 130.48 | N56: BUY | Q56: 0
C57: IBDE30 | D57: 1 | E57: BOT | F57: 9642.3 | G57: 10:24:37 | H57: 20160617 | I57: 1 | J57: 1.47 | L57: 131.95 | M57: IC40 30S | N57: SLD | Q57: 1.47
C58: IBDE30 | D58: 1 | E58: BOT | F58: 9641.3 | G58: 10:24:46 | H58: 20160617 | I58: 1 | J58: 2.47 | L58: 134.42 | M58: IC40 30S | N58: SLD | Q58: 2.47
C59: IBDE30 | D59: 1 | E59: BOT | F59: 9649.31 | G59: 10:27:24 | H59: 20160617 | I59: 1 | J59: -5.54 | L59: 128.88 | M59: IC40 30S | N59: SLD | Q59: -5.54
C60: IBDE30 | D60: 1 | E60: BOT | F60: 9649.31 | G60: 10:27:43 | H60: 20160617 | I60: 1 | J60: -5.54 | L60: 123.34 | M60: IC40 30S | N60: SLD | Q60: -5.54
C61: IBFR40 | D61: 1 | E61: BOT | F61: 4199.25 | G61: 10:28:36 | H61: 20160617 | I61: 1 | J61: 6.88 | L61: 130.22 | M61: Trading de Niveau H1 | N61: SLD | Q61: 6.88
C62: IBDE30 | D62: 1 | E62: SLD | F62: 9669.84 | G62: 0.4478472222 | H62: 20160617 | I62: 1 | J62: 0 | L62: 130.22 | N62: BUY | Q62: 0
C63: IBFR40 | D63: 1 | E63: SLD | F63: 4202.75 | G63: 0.46 | H63: 20160617 | I63: 1 | J63: 0 | L63: 130.22 | N63: BUY | Q63: 0
C64: IBFR40 | D64: 2 | E64: SLD | F64: 4205.25 | G64: 0.4624074074 | H64: 20160617 | I64: 1 | J64: 0 | L64: 130.22 | N64: BUY | Q64: 0
C65: DAX | D65: 1 | E65: BOT | F65: 9679 | G65: 0.4640046296 | H65: 20160617 | I65: 1.41 | J65: 0 | L65: 130.22 | N65: SLD | Q65: 0
C66: IBDE30 | D66: 3 | E66: SLD | F66: 9676.87 | G66: 0.4736921296 | H66: 20160617 | I66: 1.45 | J66: 0 | L66: 130.22 | N66: BUY | Q66: 0
C67: DAX | D67: 1 | E67: SLD | F67: 9682.5 | G67: 11:25:33 | H67: 20160617 | I67: 1.41 | J67: 84.68 | L67: 214.9 | M67: IC40 M2 | N67: BUY | Q67: 3.3872
C68: IBFR40 | D68: 1 | E68: BOT | F68: 4203.25 | G68: 11:51:29 | H68: 20160617 | I68: 1 | J68: -0.5 | L68: 214.4 | M68: Trading de Niveau H1 | N68: SLD | Q68: -0.5
C69: IBFR40 | D69: 1 | E69: BOT | F69: 4201.25 | G69: 11:52:19 | H69: 20160617 | I69: 1 | J69: 1.5 | L69: 215.9 | M69: Trading de Niveau H1 | N69: SLD | Q69: 1.5
C70: IBFR40 | D70: 1 | E70: BOT | F70: 4200.25 | G70: 11:52:44 | H70: 20160617 | I70: 1 | J70: 2.5 | L70: 218.4 | M70: Trading de Niveau H1 | N70: SLD | Q70: 2.5
C71: CAC40 | D71: 1 | E71: BOT | F71: 4189.5 | G71: 11:58:53 | H71: 20160617 | I71: 1.18 | J71: 22.64 | L71: 241.04 | M71: Trading de Niveau H1 | N71: SLD | Q71: 2.264
C72: IBDE30 | D72: 1 | E72: BOT | F72: 9672.36 | G72: 12:01:37 | H72: 20160617 | I72: 1 | J72: -18.68 | L72: 222.36 | M72: IC40 30S | N72: SLD | Q72: -18.68
C73: IBDE30 | D73: 3 | E73: BOT | F73: 9667.36 | G73: 12:04:10 | H73: 20160617 | I73: 1.45 | J73: -39.49 | L73: 182.87 | M73: IC40 30S | N73: SLD | Q73: -13.16333333
C74: IBDE30 | D74: 1 | E74: BOT | F74: 9661.85 | G74: 12:10:58 | H74: 20160617 | I74: 1 | J74: -8.17 | L74: 174.7 | M74: IC40 30S | N74: SLD | Q74: -8.17
C75: IBDE30 | D75: 2 | E75: BOT | F75: 9661.85 | G75: 12:11:14 | H75: 20160617 | I75: 1 | J75: -15.34 | L75: 159.36 | M75: IC40 30S | N75: SLD | Q75: -7.67
C76: IBDE30 | D76: 2 | E76: BOT | F76: 9658.85 | G76: 12:12:07 | H76: 20160617 | I76: 1 | J76: -9.34 | L76: 150.02 | M76: IC40 30S | N76: SLD | Q76: -4.67
C77: IBDE30 | D77: 3 | E77: BOT | F77: 9656.85 | G77: 12:12:19 | H77: 20160617 | I77: 1.45 | J77: -7.96 | L77: 142.06 | M77: IC40 30S | N77: SLD | Q77: -2.653333333
C78: IBDE30 | D78: 1 | E78: SLD | F78: 9634.32 | G78: 0.5960648148 | H78: 20160617 | I78: 1 | J78: 0 | L78: 142.06 | N78: =IF(E78=0,"",IF(E78="SLD","BUY","SLD")) -> BUY | Q78: 0
C79: IBDE30 | D79: 1 | E79: BOT | F79: 9627.36 | G79: 0.603599537 | H79: 20160617 | I79: 1 | J79: 4.96 | L79: 147.02 | M79: AI impulsion S30 | N79: SLD | Q79: 4.96
C80: 0 | D80: 0 | E80: 0 | F80: 0 | G80: 0 | H80: 0 | I80: 0 | J80: 0 | L80: 147.02
C81: 0 | D81: 0 | E81: 0 | F81: 0 | G81: 0 | H81: 0 | I81: 0 | J81: 0 | L81: 147.02
C82: 0 | D82: 0 | E82: 0 | F82: 0 | G82: 0 | H82: 0 | I82: 0 | J82: 0 | L82: 147.02
C83: 0 | D83: 0 | E83: 0 | F83: 0 | G83: 0 | H83: 0 | I83: 0 | J83: 0 | L83: 147.02
C84: 0 | D84: 0 | E84: 0 | F84: 0 | G84: 0 | H84: 0 | I84: 0 | J84: 0 | L84: 147.02
C85: 0 | D85: 0 | E85: 0 | F85: 0 | G85: 0 | H85: 0 | I85: 0 | J85: 0 | L85: 147.02
C86: 0 | D86: 0 | E86: 0 | F86: 0 | G86: 0 | H86: 0 | I86: 0 | J86: 0 | L86: 147.02
C87: 0 | D87: 0 | E87: 0 | F87: 0 | G87: 0 | H87: 0 | I87: 0 | J87: 0 | L87: 147.02
C88: 0 | D88: 0 | E88: 0 | F88: 0 | G88: 0 | H88: 0 | I88: 0 | J88: 0 | L88: 147.02
C89: 0 | D89: 0 | E89: 0 | F89: 0 | G89: 0 | H89: 0 | I89: 0 | J89: 0 | L89: 147.02
C90: 0 | D90: 0 | E90: 0 | F90: 0 | G90: 0 | H90: 0 | I90: 0 | J90: 0 | L90: 147.02
C91: 0 | D91: 0 | E91: 0 | F91: 0 | G91: 0 | H91: 0 | I91: 0 | J91: 0 | L91: 147.02
C92: 0 | D92: 0 | E92: 0 | F92: 0 | G92: 0 | H92: 0 | I92: 0 | J92: 0 | L92: 147.02
C93: 0 | D93: 0 | E93: 0 | F93: 0 | G93: 0 | H93: 0 | I93: 0 | J93: 0 | L93: =+J93+L92 -> 147.02
C94: 0 | D94: 0 | E94: 0 | F94: 0 | G94: 0 | H94: 0 | I94: 0 | J94: 0 | L94: 147.02
C95: 0 | D95: 0 | E95: 0 | F95: 0 | G95: 0 | H95: 0 | I95: 0 | J95: 0 | L95: 147.02
C96: 0 | D96: 0 | E96: 0 | F96: 0 | G96: 0 | H96: 0 | I96: 0 | J96: 0 | L96: 147.02
C97: 0 | D97: 0 | E97: 0 | F97: 0 | G97: 0 | H97: 0 | I97: 0 | J97: 0 | L97: 147.02
C98: 0 | D98: 0 | E98: 0 | F98: 0 | G98: 0 | H98: 0 | I98: 0 | J98: 0 | L98: 147.02
C99: 0 | D99: 0 | E99: 0 | F99: 0 | G99: 0 | H99: 0 | I99: 0 | J99: 0 | L99: 147.02
C100: 0 | D100: 0 | E100: 0 | F100: 0 | G100: 0 | H100: 0 | I100: 0 | J100: 0 | L100: 147.02
C101: 0 | D101: 0 | E101: 0 | F101: 0 | G101: 0 | H101: 0 | I101: 0 | J101: 0 | L101: 147.02
C102: 0 | D102: 0 | E102: 0 | F102: 0 | G102: 0 | H102: 0 | I102: 0 | J102: 0 | L102: 147.02
C103: 0 | D103: 0 | E103: 0 | F103: 0 | G103: 0 | H103: 0 | I103: 0 | J103: 0 | L103: 147.02
C104: 0 | D104: 0 | E104: 0 | F104: 0 | G104: 0 | H104: 0 | I104: 0 | J104: 0 | L104: 147.02
C105: 0 | D105: 0 | E105: 0 | F105: 0 | G105: 0 | H105: 0 | I105: 0 | J105: 0 | L105: 147.02
C106: 0 | D106: 0 | E106: 0 | F106: 0 | G106: 0 | H106: 0 | I106: 0 | J106: 0 | L106: 147.02
C107: 0 | D107: 0 | E107: 0 | F107: 0 | G107: 0 | H107: 0 | I107: 0 | J107: 0 | L107: 147.02 | Q107: =IF(C107=0,"",IF(ISERROR(J107/D107),"",(J107/D107))/IF(C107="DAX",25,IF(C107="CAC40",10,1))) -> 
C108: 0 | D108: 0 | E108: 0 | F108: 0 | G108: 0 | H108: 0 | I108: 0 | J108: 0 | L108: 147.02
C109: 0 | D109: 0 | E109: 0 | F109: 0 | G109: 0 | H109: 0 | I109: 0 | J109: 0 | L109: 147.02
C110: 0 | D110: 0 | E110: 0 | F110: 0 | G110: 0 | H110: 0 | I110: 0 | J110: 0 | L110: 147.02
C111: 0 | D111: 0 | E111: 0 | F111: 0 | G111: 0 | H111: 0 | I111: 0 | J111: 0 | L111: 147.02
C112: 0 | D112: 0 | E112: 0 | F112: 0 | G112: 0 | H112: 0 | I112: 0 | J112: 0 | L112: 147.02
C113: 0 | D113: 0 | E113: 0 | F113: 0 | G113: 0 | H113: 0 | I113: 0 | J113: 0 | L113: 147.02
C114: 0 | D114: 0 | E114: 0 | F114: 0 | G114: 0 | H114: 0 | I114: 0 | J114: 0 | L114: 147.02
C115: 0 | D115: 0 | E115: 0 | F115: 0 | G115: 0 | H115: 0 | I115: 0 | J115: 0 | L115: 147.02
C116: 0 | D116: 0 | E116: 0 | F116: 0 | G116: 0 | H116: 0 | I116: 0 | J116: 0 | L116: 147.02
C117: 0 | D117: 0 | E117: 0 | F117: 0 | G117: 0 | H117: 0 | I117: 0 | J117: 0 | L117: 147.02
C118: 0 | D118: 0 | E118: 0 | F118: 0 | G118: 0 | H118: 0 | I118: 0 | J118: 0 | L118: 147.02
C119: 0 | D119: 0 | E119: 0 | F119: 0 | G119: 0 | H119: 0 | I119: 0 | J119: 0 | L119: 147.02
C120: 0 | D120: 0 | E120: 0 | F120: 0 | G120: 0 | H120: 0 | I120: 0 | J120: 0 | L120: 147.02
C121: 0 | D121: 0 | E121: 0 | F121: 0 | G121: 0 | H121: 0 | I121: 0 | J121: 0 | L121: 147.02
C122: 0 | D122: 0 | E122: 0 | F122: 0 | G122: 0 | H122: 0 | I122: 0 | J122: 0 | L122: 147.02
C123: 0 | D123: 0 | E123: 0 | F123: 0 | G123: 0 | H123: 0 | I123: 0 | J123: 0 | L123: 147.02
C124: 0 | D124: 0 | E124: 0 | F124: 0 | G124: 0 | H124: 0 | I124: 0 | J124: 0 | L124: 147.02
C125: 0 | D125: 0 | E125: 0 | F125: 0 | G125: 0 | H125: 0 | I125: 0 | J125: 0 | L125: 147.02
C126: 0 | D126: 0 | E126: 0 | F126: 0 | G126: 0 | H126: 0 | I126: 0 | J126: 0 | L126: 147.02
C127: 0 | D127: 0 | E127: 0 | F127: 0 | G127: 0 | H127: 0 | I127: 0 | J127: 0 | L127: 147.02
C128: 0 | D128: 0 | E128: 0 | F128: 0 | G128: 0 | H128: 0 | I128: 0 | J128: 0 | L128: 147.02
C129: 0 | D129: 0 | E129: 0 | F129: 0 | G129: 0 | H129: 0 | I129: 0 | J129: 0 | L129: 147.02
C130: 0 | D130: 0 | E130: 0 | F130: 0 | G130: 0 | H130: 0 | I130: 0 | J130: 0 | L130: 147.02
C131: 0 | D131: 0 | E131: 0 | F131: 0 | G131: 0 | H131: 0 | I131: 0 | J131: 0 | L131: 147.02
C132: 0 | D132: 0 | E132: 0 | F132: 0 | G132: 0 | H132: 0 | I132: 0 | J132: 0 | L132: 147.02
C133: 0 | D133: 0 | E133: 0 | F133: 0 | G133: 0 | H133: 0 | I133: 0 | J133: 0 | L133: 147.02
C134: 0 | D134: 0 | E134: 0 | F134: 0 | G134: 0 | H134: 0 | I134: 0 | J134: 0 | L134: 147.02
C135: 0 | D135: 0 | E135: 0 | F135: 0 | G135: 0 | H135: 0 | I135: 0 | J135: 0 | L135: 147.02
C136: 0 | D136: 0 | E136: 0 | F136: 0 | G136: 0 | H136: 0 | I136: 0 | J136: 0 | L136: 147.02
C137: 0 | D137: 0 | E137: 0 | F137: 0 | G137: 0 | H137: 0 | I137: 0 | J137: 0 | L137: 147.02
C138: 0 | D138: 0 | E138: 0 | F138: 0 | G138: 0 | H138: 0 | I138: 0 | J138: 0 | L138: 147.02
C139: 0 | D139: 0 | E139: 0 | F139: 0 | G139: 0 | H139: 0 | I139: 0 | J139: 0 | L139: 147.02
C140: 0 | D140: 0 | E140: 0 | F140: 0 | G140: 0 | H140: 0 | I140: 0 | J140: 0 | L140: 147.02
C141: 0 | D141: 0 | E141: 0 | F141: 0 | G141: 0 | H141: 0 | I141: 0 | J141: 0 | L141: 147.02 | N141: =IF(E141=0,"",IF(E141="SLD","BUY","SLD")) -> 
C142: 0 | D142: 0 | E142: 0 | F142: 0 | G142: 0 | H142: 0 | I142: 0 | J142: 0 | L142: 147.02
C143: 0 | D143: 0 | E143: 0 | F143: 0 | G143: 0 | H143: 0 | I143: 0 | J143: 0 | L143: 147.02
C144: 0 | D144: 0 | E144: 0 | F144: 0 | G144: 0 | H144: 0 | I144: 0 | J144: 0 | L144: 147.02
C145: 0 | D145: 0 | E145: 0 | F145: 0 | G145: 0 | H145: 0 | I145: 0 | J145: 0 | L145: 147.02
C146: 0 | D146: 0 | E146: 0 | F146: 0 | G146: 0 | H146: 0 | I146: 0 | J146: 0 | L146: 147.02
C147: 0 | D147: 0 | E147: 0 | F147: 0 | G147: 0 | H147: 0 | I147: 0 | J147: 0 | L147: 147.02
C148: 0 | D148: 0 | E148: 0 | F148: 0 | G148: 0 | H148: 0 | I148: 0 | J148: 0 | L148: 147.02
C149: 0 | D149: 0 | E149: 0 | F149: 0 | G149: 0 | H149: 0 | I149: 0 | J149: 0 | L149: 147.02
C150: 0 | D150: 0 | E150: 0 | F150: 0 | G150: 0 | H150: 0 | I150: 0 | J150: 0 | L150: 147.02
C151: 0 | D151: 0 | E151: 0 | F151: 0 | G151: 0 | H151: 0 | I151: 0 | J151: 0 | L151: 147.02
C152: 0 | D152: 0 | E152: 0 | F152: 0 | G152: 0 | H152: 0 | I152: 0 | J152: 0 | L152: 147.02
C153: 0 | D153: 0 | E153: 0 | F153: 0 | G153: 0 | H153: 0 | I153: 0 | J153: 0 | L153: 147.02
C154: 0 | D154: 0 | E154: 0 | F154: 0 | G154: 0 | H154: 0 | I154: 0 | J154: 0 | L154: 147.02
C155: 0 | D155: 0 | E155: 0 | F155: 0 | G155: 0 | H155: 0 | I155: 0 | J155: 0 | L155: 147.02
C156: 0 | D156: 0 | E156: 0 | F156: 0 | G156: 0 | H156: 0 | I156: 0 | J156: 0 | L156: 147.02
C157: 0 | D157: 0 | E157: 0 | F157: 0 | G157: 0 | H157: 0 | I157: 0 | J157: 0 | L157: =+J157+L156 -> 147.02
C158: 0 | D158: 0 | E158: 0 | F158: 0 | G158: 0 | H158: 0 | I158: 0 | J158: 0 | L158: 147.02
C159: 0 | D159: 0 | E159: 0 | F159: 0 | G159: 0 | H159: 0 | I159: 0 | J159: 0 | L159: 147.02
C160: 0 | D160: 0 | E160: 0 | F160: 0 | G160: 0 | H160: 0 | I160: 0 | J160: 0 | L160: 147.02
C161: 0 | D161: 0 | E161: 0 | F161: 0 | G161: 0 | H161: 0 | I161: 0 | J161: 0 | L161: 147.02
C162: 0 | D162: 0 | E162: 0 | F162: 0 | G162: 0 | H162: 0 | I162: 0 | J162: 0 | L162: 147.02
C163: 0 | D163: 0 | E163: 0 | F163: 0 | G163: 0 | H163: 0 | I163: 0 | J163: 0 | L163: 147.02
C164: 0 | D164: 0 | E164: 0 | F164: 0 | G164: 0 | H164: 0 | I164: 0 | J164: 0 | L164: 147.02
C165: 0 | D165: 0 | E165: 0 | F165: 0 | G165: 0 | H165: 0 | I165: 0 | J165: 0 | L165: 147.02
C166: 0 | D166: 0 | E166: 0 | F166: 0 | G166: 0 | H166: 0 | I166: 0 | J166: 0 | L166: 147.02
C167: 0 | D167: 0 | E167: 0 | F167: 0 | G167: 0 | H167: 0 | I167: 0 | J167: 0 | L167: 147.02
C168: 0 | D168: 0 | E168: 0 | F168: 0 | G168: 0 | H168: 0 | I168: 0 | J168: 0 | L168: 147.02
C169: 0 | D169: 0 | E169: 0 | F169: 0 | G169: 0 | H169: 0 | I169: 0 | J169: 0 | L169: 147.02
C170: 0 | D170: 0 | E170: 0 | F170: 0 | G170: 0 | H170: 0 | I170: 0 | J170: 0 | L170: 147.02
C171: 0 | D171: 0 | E171: 0 | F171: 0 | G171: 0 | H171: 0 | I171: 0 | J171: 0 | L171: 147.02 | Q171: =IF(C171=0,"",IF(ISERROR(J171/D171),"",(J171/D171))/IF(C171="DAX",25,IF(C171="CAC40",10,1))) -> 
C172: 0 | D172: 0 | E172: 0 | F172: 0 | G172: 0 | H172: 0 | I172: 0 | J172: 0 | L172: 147.02
C173: 0 | D173: 0 | E173: 0 | F173: 0 | G173: 0 | H173: 0 | I173: 0 | J173: 0 | L173: 147.02
C174: 0 | D174: 0 | E174: 0 | F174: 0 | G174: 0 | H174: 0 | I174: 0 | J174: 0 | L174: 147.02
C175: 0 | D175: 0 | E175: 0 | F175: 0 | G175: 0 | H175: 0 | I175: 0 | J175: 0 | L175: 147.02
C176: 0 | D176: 0 | E176: 0 | F176: 0 | G176: 0 | H176: 0 | I176: 0 | J176: 0 | L176: 147.02
C177: 0 | D177: 0 | E177: 0 | F177: 0 | G177: 0 | H177: 0 | I177: 0 | J177: 0 | L177: 147.02
C178: 0 | D178: 0 | E178: 0 | F178: 0 | G178: 0 | H178: 0 | I178: 0 | J178: 0 | L178: 147.02
C179: 0 | D179: 0 | E179: 0 | F179: 0 | G179: 0 | H179: 0 | I179: 0 | J179: 0 | L179: 147.02
C180: 0 | D180: 0 | E180: 0 | F180: 0 | G180: 0 | H180: 0 | I180: 0 | J180: 0 | L180: 147.02
C181: 0 | D181: 0 | E181: 0 | F181: 0 | G181: 0 | H181: 0 | I181: 0 | J181: 0 | L181: 147.02
C182: 0 | D182: 0 | E182: 0 | F182: 0 | G182: 0 | H182: 0 | I182: 0 | J182: 0 | L182: 147.02
C183: 0 | D183: 0 | E183: 0 | F183: 0 | G183: 0 | H183: 0 | I183: 0 | J183: 0 | L183: 147.02
C184: 0 | D184: 0 | E184: 0 | F184: 0 | G184: 0 | H184: 0 | I184: 0 | J184: 0 | L184: 147.02
C185: 0 | D185: 0 | E185: 0 | F185: 0 | G185: 0 | H185: 0 | I185: 0 | J185: 0 | L185: 147.02
C186: 0 | D186: 0 | E186: 0 | F186: 0 | G186: 0 | H186: 0 | I186: 0 | J186: 0 | L186: 147.02
C187: 0 | D187: 0 | E187: 0 | F187: 0 | G187: 0 | H187: 0 | I187: 0 | J187: 0 | L187: 147.02
C188: 0 | D188: 0 | E188: 0 | F188: 0 | G188: 0 | H188: 0 | I188: 0 | J188: 0 | L188: 147.02
C189: 0 | D189: 0 | E189: 0 | F189: 0 | G189: 0 | H189: 0 | I189: 0 | J189: 0 | L189: 147.02
C190: 0 | D190: 0 | E190: 0 | F190: 0 | G190: 0 | H190: 0 | I190: 0 | J190: 0 | L190: 147.02
C191: 0 | D191: 0 | E191: 0 | F191: 0 | G191: 0 | H191: 0 | I191: 0 | J191: 0 | L191: 147.02
C192: 0 | D192: 0 | E192: 0 | F192: 0 | G192: 0 | H192: 0 | I192: 0 | J192: 0 | L192: 147.02
C193: 0 | D193: 0 | E193: 0 | F193: 0 | G193: 0 | H193: 0 | I193: 0 | J193: 0 | L193: 147.02
C194: 0 | D194: 0 | E194: 0 | F194: 0 | G194: 0 | H194: 0 | I194: 0 | J194: 0 | L194: 147.02
C195: 0 | D195: 0 | E195: 0 | F195: 0 | G195: 0 | H195: 0 | I195: 0 | J195: 0 | L195: 147.02
C196: 0 | D196: 0 | E196: 0 | F196: 0 | G196: 0 | H196: 0 | I196: 0 | J196: 0 | L196: 147.02
C197: 0 | D197: 0 | E197: 0 | F197: 0 | G197: 0 | H197: 0 | I197: 0 | J197: 0 | L197: 147.02
C198: 0 | D198: 0 | E198: 0 | F198: 0 | G198: 0 | H198: 0 | I198: 0 | J198: 0 | L198: 147.02
C199: 0 | D199: 0 | E199: 0 | F199: 0 | G199: 0 | H199: 0 | I199: 0 | J199: 0 | L199: 147.02
C200: 0 | D200: 0 | E200: 0 | F200: 0 | G200: 0 | H200: 0 | I200: 0 | J200: 0 | L200: 147.02
C201: 0 | D201: 0 | E201: 0 | F201: 0 | G201: 0 | H201: 0 | I201: 0 | J201: 0 | L201: 147.02
C202: 0 | D202: 0 | E202: 0 | F202: 0 | G202: 0 | H202: 0 | I202: 0 | J202: 0 | L202: 147.02
C203: 0 | D203: 0 | E203: 0 | F203: 0 | G203: 0 | H203: 0 | I203: 0 | J203: 0 | L203: 147.02
... 305 more rows

Sheet 20-06
AK4: B/S | AL4: Strat | AM4: M2 | AN4: Erreur
AK5: B | AL5: Trading de Niveau 30S | AM5: Même sens | AN5: Oui
AK6: S | AL6: Trading de Niveau M2 | AM6: Flat | AN6: Non
AL7: Trading de Niveau H1 | AM7: Opposé
AL8: Trading de Niveau D
AL9: IC40 30S
AL10: IC40 M2
AL11: IC40S 30S
AL12: IC40 S M2
AL13: IC40 30S inverse MM
AL14: AI contrtdce 30S
AL15: AI contrtdce M2
AL16: AI contrtdce M5
AL17: AI Divergce 30S
AL18: AI Divergce M2
AL19: AI Divergce M5
AL20: AI Divergce H1
AL21: AI impulsion S30
AL22: Ai Impulsion M2
AL23: Sur chiffres
AL24: Range m2
C25: Underlying | D25: Quantity | E25: Contract | F25: Price | G25: Time | H25: Date | I25: Commission | J25: Realized P&L | L25: Cumul P&L | M25: Strat | N25: Sell/Buy | O25: TDCE M2 | P25: Conviction sur le marché | Q25: Pts | R25: Erreur | AL25: IC40 M2 inverse MM
C26: CAC40 | D26: 1 | E26: SLD | F26: 4292 | G26: 08:52:06 | H26: 20160620 | I26: 1.18 | J26: 0 | L26: =+J26 -> 0 | Q26: =IF(C26=0,"",IF(ISERROR(J26/D26),"",(J26/D26))/IF(C26="DAX",25,IF(C26="CAC40",10,1))) -> 0 | AL26: Cassure S/R M2
C27: CAC40 | D27: 1 | E27: SLD | F27: 4291.5 | G27: 08:52:13 | H27: 20160620 | I27: 1.18 | J27: 0 | L27: =+J27+L26 -> 0 | N27: =IF(E27=0,"",IF(E27="SLD","BUY","SLD")) -> BUY | Q27: 0 | AL27: Cassure S/R H1
C28: CAC40 | D28: 1 | E28: SLD | F28: 4329.5 | G28: 13:28:11 | H28: 20160620 | I28: 1.18 | J28: 0 | L28: =+J28+L27 -> 0 | N28: =IF(E28=0,"",IF(E28="SLD","BUY","SLD")) -> BUY | Q28: 0 | AL28: Cassure S/R D
C29: IBDE30 | D29: 1 | E29: SLD | F29: 9948.85 | G29: 15:35:29 | H29: 20160620 | I29: 1 | J29: 0 | L29: 0 | N29: BUY | Q29: 0 | AL29: Contretendance impulsion
C30: IBDE30 | D30: 1 | E30: SLD | F30: 9947.34 | G30: 15:35:32 | H30: 20160620 | I30: 1 | J30: 0 | L30: =+J30+L29 -> 0 | N30: BUY | Q30: 0
C31: IBDE30 | D31: 1 | E31: BOT | F31: 9944.25 | G31: 15:35:54 | H31: 20160620 | I31: 1 | J31: 1.84 | L31: 1.84 | M31: Cassure S/R M2 | N31: SLD | Q31: 1.84
C32: IBDE30 | D32: 1 | E32: BOT | F32: 9940.45 | G32: 15:36:58 | H32: 20160620 | I32: 1 | J32: 5.64 | L32: 7.48 | M32: Cassure S/R M2 | N32: SLD | Q32: 5.64
C33: IBDE30 | D33: 1 | E33: SLD | F33: 9945.84 | G33: 15:39:37 | H33: 20160620 | I33: 1 | J33: 0 | L33: 7.48 | N33: BUY | Q33: 0
C34: IBDE30 | D34: 1 | E34: SLD | F34: 9947.84 | G34: 15:39:39 | H34: 20160620 | I34: 1 | J34: 0 | L34: 7.48 | N34: BUY | Q34: 0
C35: IBDE30 | D35: 1 | E35: SLD | F35: 9953.85 | G35: 15:40:29 | H35: 20160620 | I35: 1 | J35: 0 | L35: 7.48 | N35: BUY | Q35: 0
C36: IBDE30 | D36: 1 | E36: SLD | F36: 9953.35 | G36: 15:40:29 | H36: 20160620 | I36: 1 | J36: 0 | L36: 7.48 | N36: BUY | Q36: 0
C37: IBDE30 | D37: 2 | E37: SLD | F37: 9955.35 | G37: 15:40:51 | H37: 20160620 | I37: 1 | J37: 0 | L37: 7.48 | N37: BUY | Q37: =IF(C37=0,"",IF(ISERROR(J37/D37),"",(J37/D37))/IF(C37="DAX",25,IF(C37="CAC40",10,1))) -> 0
C38: IBDE30 | D38: 1 | E38: SLD | F38: 9955.85 | G38: 15:42:57 | H38: 20160620 | I38: 1 | J38: 0 | L38: 7.48 | N38: BUY | Q38: 0
C39: IBDE30 | D39: 1 | E39: SLD | F39: 9957.36 | G39: 15:43:40 | H39: 20160620 | I39: 1 | J39: 0 | L39: 7.48 | N39: BUY | Q39: 0
C40: IBDE30 | D40: 1 | E40: SLD | F40: 9953.85 | G40: 15:44:25 | H40: 20160620 | I40: 1 | J40: 0 | L40: 7.48 | N40: BUY | Q40: 0
C41: IBDE30 | D41: 1 | E41: BOT | F41: 9950.35 | G41: 15:44:32 | H41: 20160620 | I41: 1 | J41: 0.94 | L41: 8.42 | M41: Cassure S/R M2 | N41: SLD | Q41: =IF(C41=0,"",IF(ISERROR(J41/D41),"",(J41/D41))/IF(C41="DAX",25,IF(C41="CAC40",10,1))) -> 0.94
C42: IBDE30 | D42: 1 | E42: BOT | F42: 9948.26 | G42: 15:44:53 | H42: 20160620 | I42: 1 | J42: 3.03 | L42: 11.45 | M42: Cassure S/R M2 | N42: SLD | Q42: =IF(C42=0,"",IF(ISERROR(J42/D42),"",(J42/D42))/IF(C42="DAX",25,IF(C42="CAC40",10,1))) -> 3.03
C43: IBDE30 | D43: 2 | E43: BOT | F43: 9944.34 | G43: 15:47:54 | H43: 20160620 | I43: 1 | J43: 14.91 | L43: 26.36 | M43: Cassure S/R M2 | N43: SLD | Q43: 7.455
C44: CAC40 | D44: 1 | E44: SLD | F44: 4325 | G44: 15:52:04 | H44: 20160620 | I44: 1.18 | J44: 0 | L44: 26.36 | N44: BUY | Q44: 0
C45: IBDE30 | D45: 1 | E45: BOT | F45: 9939.34 | G45: 15:54:09 | H45: 20160620 | I45: 1 | J45: 11.95 | L45: 38.31 | M45: Cassure S/R M2 | N45: SLD | Q45: 11.95
C46: IBDE30 | D46: 1 | E46: BOT | F46: 9936.83 | G46: 15:54:29 | H46: 20160620 | I46: 1 | J46: 14.46 | L46: 52.77 | M46: Cassure S/R M2 | N46: SLD | Q46: 14.46
C47: IBDE30 | D47: 1 | E47: BOT | F47: 9952.35 | G47: 15:58:45 | H47: 20160620 | I47: 1 | J47: -1.06 | L47: 51.71 | M47: Cassure S/R M2 | N47: SLD | Q47: -1.06
C48: IBDE30 | D48: 2 | E48: BOT | F48: 9952.85 | G48: 15:58:46 | H48: 20160620 | I48: 1 | J48: -2.11 | L48: 49.6 | M48: Cassure S/R M2 | N48: SLD | Q48: -1.055
C49: IBDE30 | D49: 1 | E49: SLD | F49: 9949.35 | G49: 16:00:00 | H49: 20160620 | I49: 1 | J49: 0 | L49: 49.6 | N49: BUY | Q49: 0
C50: IBDE30 | D50: 1 | E50: SLD | F50: 9953.35 | G50: 16:01:07 | H50: 20160620 | I50: 1 | J50: 0 | L50: 49.6 | N50: BUY | Q50: 0
C51: IBDE30 | D51: 1 | E51: SLD | F51: 9955.35 | G51: 16:04:20 | H51: 20160620 | I51: 1 | J51: 0 | L51: 49.6 | N51: BUY | Q51: 0
C52: IBDE30 | D52: 1 | E52: SLD | F52: 9958.36 | G52: 16:04:32 | H52: 20160620 | I52: 1 | J52: 0 | L52: 49.6 | N52: BUY | Q52: 0
C53: IBDE30 | D53: 1 | E53: SLD | F53: 9959.36 | G53: 16:05:15 | H53: 20160620 | I53: 1 | J53: 0 | L53: 49.6 | N53: BUY | Q53: 0
C54: IBDE30 | D54: 1 | E54: SLD | F54: 9960.36 | G54: 16:05:19 | H54: 20160620 | I54: 1 | J54: 0 | L54: 49.6 | N54: BUY | Q54: 0
C55: IBDE30 | D55: 1 | E55: BOT | F55: 9953.35 | G55: 16:14:46 | H55: 20160620 | I55: 1 | J55: 0.67 | L55: 50.27 | M55: Trading de Niveau M2 | N55: SLD | Q55: 0.67
C56: IBDE30 | D56: 1 | E56: BOT | F56: 9957.35 | G56: 16:15:51 | H56: 20160620 | I56: 1 | J56: -3.33 | L56: 46.94 | M56: Trading de Niveau M2 | N56: SLD | Q56: -3.33
C57: IBDE30 | D57: 2 | E57: SLD | F57: 9967.37 | G57: 16:27:50 | H57: 20160620 | I57: 1 | J57: 0 | L57: 46.94 | N57: BUY | Q57: 0
C58: IBDE30 | D58: 3 | E58: BOT | F58: 9958.36 | G58: 16:32:10 | H58: 20160620 | I58: 1.49 | J58: 0.34 | L58: 47.28 | M58: AI contrtdce 30S | N58: SLD | Q58: 0.1133333333
C59: IBDE30 | D59: 1 | E59: BOT | F59: 9956.85 | G59: 16:32:44 | H59: 20160620 | I59: 1 | J59: 1.12 | L59: 48.4 | M59: AI contrtdce 30S | N59: SLD | Q59: 1.12
C60: IBDE30 | D60: 1 | E60: BOT | F60: 9951.35 | G60: 16:33:53 | H60: 20160620 | I60: 1 | J60: 6.62 | L60: 55.02 | M60: AI contrtdce 30S | N60: SLD | Q60: 6.62
C61: IBDE30 | D61: 1 | E61: BOT | F61: 9947.34 | G61: 16:36:00 | H61: 20160620 | I61: 1 | J61: 10.63 | L61: 65.65 | M61: AI contrtdce 30S | N61: SLD | Q61: 10.63
C62: IBDE30 | D62: 1 | E62: SLD | F62: 9937.33 | G62: 16:50:17 | H62: 20160620 | I62: 1 | J62: 0 | L62: 65.65 | N62: BUY | Q62: 0
C63: IBDE30 | D63: 3 | E63: SLD | F63: 9934.33 | G63: 16:50:46 | H63: 20160620 | I63: 1.49 | J63: 0 | L63: 65.65 | N63: BUY | Q63: 0
C64: IBDE30 | D64: 6 | E64: SLD | F64: 9934.33 | G64: 16:50:58 | H64: 20160620 | I64: 2.98 | J64: 0 | L64: 65.65 | N64: BUY | Q64: 0
C65: IBDE30 | D65: 1 | E65: SLD | F65: 9937.33 | G65: 16:51:20 | H65: 20160620 | I65: 1 | J65: 0 | L65: 65.65 | N65: BUY | Q65: 0
C66: IBDE30 | D66: 1 | E66: SLD | F66: 9938.83 | G66: 16:51:37 | H66: 20160620 | I66: 1 | J66: 0 | L66: 65.65 | N66: BUY | Q66: 0
C67: IBDE30 | D67: 1 | E67: SLD | F67: 9940.84 | G67: 16:51:52 | H67: 20160620 | I67: 1 | J67: 0 | L67: 65.65 | N67: BUY | Q67: 0
C68: IBDE30 | D68: 1 | E68: SLD | F68: 9939.83 | G68: 16:52:56 | H68: 20160620 | I68: 1 | J68: 0 | L68: 65.65 | N68: BUY | Q68: 0
C69: IBDE30 | D69: 2 | E69: SLD | F69: 9943.84 | G69: 16:57:30 | H69: 20160620 | I69: 1 | J69: 0 | L69: 65.65 | N69: BUY | Q69: 0
C70: IBDE30 | D70: 3 | E70: BOT | F70: 9946.84 | G70: 16:57:37 | H70: 20160620 | I70: 1.49 | J70: -33.2 | L70: 32.45 | M70: IC40 30S | N70: SLD | Q70: -11.06666667
C71: IBDE30 | D71: 1 | E71: BOT | F71: 9933.83 | G71: 17:01:53 | H71: 20160620 | I71: 1 | J71: 1.44 | L71: 33.89 | M71: IC40 30S | N71: SLD | Q71: 1.44
C72: IBDE30 | D72: 1 | E72: BOT | F72: 9929.82 | G72: 17:02:38 | H72: 20160620 | I72: 1 | J72: 5.45 | L72: 39.34 | M72: IC40 30S | N72: SLD | Q72: 5.45
C73: IBDE30 | D73: 5 | E73: BOT | F73: 9926.82 | G73: 17:03:25 | H73: 20160620 | I73: 2.48 | J73: 44.77 | L73: 84.11 | M73: IC40 30S | N73: SLD | Q73: 8.954
C74: IBDE30 | D74: 1 | E74: BOT | F74: 9928.82 | G74: 17:03:44 | H74: 20160620 | I74: 1 | J74: 6.45 | L74: 90.56 | M74: IC40 30S | N74: SLD | Q74: 6.45
C75: IBDE30 | D75: 1 | E75: BOT | F75: 9935.83 | G75: 17:06:12 | H75: 20160620 | I75: 1 | J75: -0.56 | L75: 90 | M75: IC40 30S | N75: SLD | Q75: -0.56
C76: IBDE30 | D76: 1 | E76: BOT | F76: 9936.83 | G76: 17:06:21 | H76: 20160620 | I76: 1 | J76: -1.56 | L76: 88.44 | M76: IC40 30S | N76: SLD | Q76: -1.56
C77: IBDE30 | D77: 1 | E77: BOT | F77: 9937.33 | G77: 17:06:34 | H77: 20160620 | I77: 1 | J77: -2.06 | L77: 86.38 | M77: IC40 30S | N77: SLD | Q77: -2.06
C78: IBDE30 | D78: 1 | E78: SLD | F78: 9953.85 | G78: 17:13:07 | H78: 20160620 | I78: 1 | J78: 0 | L78: 86.38 | M78: IC40 30S | N78: BUY | Q78: 0
C79: IBDE30 CFD | D79: 1 | E79: BOT | F79: 9960.85 | G79: 19:25:11 | H79: 9960.85 | I79: 1 | J79: -20.05 | L79: 66.33 | M79: IC40 30S | N79: SLD | Q79: -20.05
C80: IBDE30 CFD | D80: 1 | E80: BOT | F80: 9949.34 | G80: 17:55:25 | H80: 9949.34 | I80: 1 | J80: -8.54 | L80: 57.79 | M80: IC40 30S | N80: SLD | Q80: -8.54
C82: 0 | D82: 0 | E82: 0 | F82: 0 | G82: 00:00:00 | H82: 0 | I82: 0 | J82: 0 | L82: 0
C83: 0 | D83: 0 | E83: 0 | F83: 0 | G83: 00:00:00 | H83: 0 | I83: 0 | J83: 0 | L83: 0
C84: 0 | D84: 0 | E84: 0 | F84: 0 | G84: 00:00:00 | H84: 0 | I84: 0 | J84: 0 | L84: 0
C85: 0 | D85: 0 | E85: 0 | F85: 0 | G85: 00:00:00 | H85: 0 | I85: 0 | J85: 0 | L85: 0
C86: 0 | D86: 0 | E86: 0 | F86: 0 | G86: 00:00:00 | H86: 0 | I86: 0 | J86: 0 | L86: 0
C87: 0 | D87: 0 | E87: 0 | F87: 0 | G87: 00:00:00 | H87: 0 | I87: 0 | J87: 0 | L87: 0
C88: 0 | D88: 0 | E88: 0 | F88: 0 | G88: 00:00:00 | H88: 0 | I88: 0 | J88: 0 | L88: 0
C89: 0 | D89: 0 | E89: 0 | F89: 0 | G89: 00:00:00 | H89: 0 | I89: 0 | J89: 0 | L89: 0
C90: 0 | D90: 0 | E90: 0 | F90: 0 | G90: 00:00:00 | H90: 0 | I90: 0 | J90: 0 | L90: 0
C91: 0 | D91: 0 | E91: 0 | F91: 0 | G91: 00:00:00 | H91: 0 | I91: 0 | J91: 0 | L91: 0
C92: 0 | D92: 0 | E92: 0 | F92: 0 | G92: 00:00:00 | H92: 0 | I92: 0 | J92: 0 | L92: =+J92+L91 -> 0 | N92: =IF(E92=0,"",IF(E92="SLD","BUY","SLD")) -> 
C93: 0 | D93: 0 | E93: 0 | F93: 0 | G93: 00:00:00 | H93: 0 | I93: 0 | J93: 0 | L93: 0
C94: 0 | D94: 0 | E94: 0 | F94: 0 | G94: 00:00:00 | H94: 0 | I94: 0 | J94: 0 | L94: 0
C95: 0 | D95: 0 | E95: 0 | F95: 0 | G95: 00:00:00 | H95: 0 | I95: 0 | J95: 0 | L95: 0
C96: 0 | D96: 0 | E96: 0 | F96: 0 | G96: 00:00:00 | H96: 0 | I96: 0 | J96: 0 | L96: 0
C97: 0 | D97: 0 | E97: 0 | F97: 0 | G97: 00:00:00 | H97: 0 | I97: 0 | J97: 0 | L97: 0
C98: 0 | D98: 0 | E98: 0 | F98: 0 | G98: 00:00:00 | H98: 0 | I98: 0 | J98: 0 | L98: 0
C99: 0 | D99: 0 | E99: 0 | F99: 0 | G99: 00:00:00 | H99: 0 | I99: 0 | J99: 0 | L99: 0
C100: 0 | D100: 0 | E100: 0 | F100: 0 | G100: 00:00:00 | H100: 0 | I100: 0 | J100: 0 | L100: 0
C101: 0 | D101: 0 | E101: 0 | F101: 0 | G101: 00:00:00 | H101: 0 | I101: 0 | J101: 0 | L101: 0
C102: 0 | D102: 0 | E102: 0 | F102: 0 | G102: 00:00:00 | H102: 0 | I102: 0 | J102: 0 | L102: 0
C103: 0 | D103: 0 | E103: 0 | F103: 0 | G103: 00:00:00 | H103: 0 | I103: 0 | J103: 0 | L103: 0
C104: 0 | D104: 0 | E104: 0 | F104: 0 | G104: 00:00:00 | H104: 0 | I104: 0 | J104: 0 | L104: 0
C105: 0 | D105: 0 | E105: 0 | F105: 0 | G105: 00:00:00 | H105: 0 | I105: 0 | J105: 0 | L105: 0
C106: 0 | D106: 0 | E106: 0 | F106: 0 | G106: 00:00:00 | H106: 0 | I106: 0 | J106: 0 | L106: 0 | Q106: =IF(C106=0,"",IF(ISERROR(J106/D106),"",(J106/D106))/IF(C106="DAX",25,IF(C106="CAC40",10,1))) -> 
C107: 0 | D107: 0 | E107: 0 | F107: 0 | G107: 00:00:00 | H107: 0 | I107: 0 | J107: 0 | L107: 0
C108: 0 | D108: 0 | E108: 0 | F108: 0 | G108: 00:00:00 | H108: 0 | I108: 0 | J108: 0 | L108: 0
C109: 0 | D109: 0 | E109: 0 | F109: 0 | G109: 00:00:00 | H109: 0 | I109: 0 | J109: 0 | L109: 0
C110: 0 | D110: 0 | E110: 0 | F110: 0 | G110: 00:00:00 | H110: 0 | I110: 0 | J110: 0 | L110: 0
C111: 0 | D111: 0 | E111: 0 | F111: 0 | G111: 00:00:00 | H111: 0 | I111: 0 | J111: 0 | L111: 0
C112: 0 | D112: 0 | E112: 0 | F112: 0 | G112: 00:00:00 | H112: 0 | I112: 0 | J112: 0 | L112: 0
C113: 0 | D113: 0 | E113: 0 | F113: 0 | G113: 00:00:00 | H113: 0 | I113: 0 | J113: 0 | L113: 0
C114: 0 | D114: 0 | E114: 0 | F114: 0 | G114: 00:00:00 | H114: 0 | I114: 0 | J114: 0 | L114: 0
C115: 0 | D115: 0 | E115: 0 | F115: 0 | G115: 00:00:00 | H115: 0 | I115: 0 | J115: 0 | L115: 0
C116: 0 | D116: 0 | E116: 0 | F116: 0 | G116: 00:00:00 | H116: 0 | I116: 0 | J116: 0 | L116: 0
C117: 0 | D117: 0 | E117: 0 | F117: 0 | G117: 00:00:00 | H117: 0 | I117: 0 | J117: 0 | L117: 0
C118: 0 | D118: 0 | E118: 0 | F118: 0 | G118: 00:00:00 | H118: 0 | I118: 0 | J118: 0 | L118: 0
C119: 0 | D119: 0 | E119: 0 | F119: 0 | G119: 00:00:00 | H119: 0 | I119: 0 | J119: 0 | L119: 0
C120: 0 | D120: 0 | E120: 0 | F120: 0 | G120: 00:00:00 | H120: 0 | I120: 0 | J120: 0 | L120: 0
C121: 0 | D121: 0 | E121: 0 | F121: 0 | G121: 00:00:00 | H121: 0 | I121: 0 | J121: 0 | L121: 0
C122: 0 | D122: 0 | E122: 0 | F122: 0 | G122: 00:00:00 | H122: 0 | I122: 0 | J122: 0 | L122: 0
C123: 0 | D123: 0 | E123: 0 | F123: 0 | G123: 00:00:00 | H123: 0 | I123: 0 | J123: 0 | L123: 0
C124: 0 | D124: 0 | E124: 0 | F124: 0 | G124: 00:00:00 | H124: 0 | I124: 0 | J124: 0 | L124: 0
C125: 0 | D125: 0 | E125: 0 | F125: 0 | G125: 00:00:00 | H125: 0 | I125: 0 | J125: 0 | L125: 0
C126: 0 | D126: 0 | E126: 0 | F126: 0 | G126: 00:00:00 | H126: 0 | I126: 0 | J126: 0 | L126: 0
C127: 0 | D127: 0 | E127: 0 | F127: 0 | G127: 00:00:00 | H127: 0 | I127: 0 | J127: 0 | L127: 0
C128: 0 | D128: 0 | E128: 0 | F128: 0 | G128: 00:00:00 | H128: 0 | I128: 0 | J128: 0 | L128: 0
C129: 0 | D129: 0 | E129: 0 | F129: 0 | G129: 00:00:00 | H129: 0 | I129: 0 | J129: 0 | L129: 0
C130: 0 | D130: 0 | E130: 0 | F130: 0 | G130: 00:00:00 | H130: 0 | I130: 0 | J130: 0 | L130: 0
C131: 0 | D131: 0 | E131: 0 | F131: 0 | G131: 00:00:00 | H131: 0 | I131: 0 | J131: 0 | L131: 0
C132: 0 | D132: 0 | E132: 0 | F132: 0 | G132: 00:00:00 | H132: 0 | I132: 0 | J132: 0 | L132: 0
C133: 0 | D133: 0 | E133: 0 | F133: 0 | G133: 00:00:00 | H133: 0 | I133: 0 | J133: 0 | L133: 0
C134: 0 | D134: 0 | E134: 0 | F134: 0 | G134: 00:00:00 | H134: 0 | I134: 0 | J134: 0 | L134: 0
C135: 0 | D135: 0 | E135: 0 | F135: 0 | G135: 00:00:00 | H135: 0 | I135: 0 | J135: 0 | L135: 0
C136: 0 | D136: 0 | E136: 0 | F136: 0 | G136: 00:00:00 | H136: 0 | I136: 0 | J136: 0 | L136: 0
C137: 0 | D137: 0 | E137: 0 | F137: 0 | G137: 00:00:00 | H137: 0 | I137: 0 | J137: 0 | L137: 0
C138: 0 | D138: 0 | E138: 0 | F138: 0 | G138: 00:00:00 | H138: 0 | I138: 0 | J138: 0 | L138: 0
C139: 0 | D139: 0 | E139: 0 | F139: 0 | G139: 00:00:00 | H139: 0 | I139: 0 | J139: 0 | L139: 0
C140: 0 | D140: 0 | E140: 0 | F140: 0 | G140: 00:00:00 | H140: 0 | I140: 0 | J140: 0 | L140: 0
C141: 0 | D141: 0 | E141: 0 | F141: 0 | G141: 00:00:00 | H141: 0 | I141: 0 | J141: 0 | L141: 0
C142: 0 | D142: 0 | E142: 0 | F142: 0 | G142: 00:00:00 | H142: 0 | I142: 0 | J142: 0 | L142: 0
C143: 0 | D143: 0 | E143: 0 | F143: 0 | G143: 00:00:00 | H143: 0 | I143: 0 | J143: 0 | L143: 0
C144: 0 | D144: 0 | E144: 0 | F144: 0 | G144: 00:00:00 | H144: 0 | I144: 0 | J144: 0 | L144: 0
C145: 0 | D145: 0 | E145: 0 | F145: 0 | G145: 00:00:00 | H145: 0 | I145: 0 | J145: 0 | L145: 0
C146: 0 | D146: 0 | E146: 0 | F146: 0 | G146: 00:00:00 | H146: 0 | I146: 0 | J146: 0 | L146: 0
C147: 0 | D147: 0 | E147: 0 | F147: 0 | G147: 00:00:00 | H147: 0 | I147: 0 | J147: 0 | L147: 0
C148: 0 | D148: 0 | E148: 0 | F148: 0 | G148: 00:00:00 | H148: 0 | I148: 0 | J148: 0 | L148: 0
C149: 0 | D149: 0 | E149: 0 | F149: 0 | G149: 00:00:00 | H149: 0 | I149: 0 | J149: 0 | L149: 0
C150: 0 | D150: 0 | E150: 0 | F150: 0 | G150: 00:00:00 | H150: 0 | I150: 0 | J150: 0 | L150: 0
C151: 0 | D151: 0 | E151: 0 | F151: 0 | G151: 00:00:00 | H151: 0 | I151: 0 | J151: 0 | L151: 0
C152: 0 | D152: 0 | E152: 0 | F152: 0 | G152: 00:00:00 | H152: 0 | I152: 0 | J152: 0 | L152: 0
C153: 0 | D153: 0 | E153: 0 | F153: 0 | G153: 00:00:00 | H153: 0 | I153: 0 | J153: 0 | L153: 0
C154: 0 | D154: 0 | E154: 0 | F154: 0 | G154: 00:00:00 | H154: 0 | I154: 0 | J154: 0 | L154: 0
C155: 0 | D155: 0 | E155: 0 | F155: 0 | G155: 00:00:00 | H155: 0 | I155: 0 | J155: 0 | L155: 0
C156: 0 | D156: 0 | E156: 0 | F156: 0 | G156: 00:00:00 | H156: 0 | I156: 0 | J156: 0 | L156: =+J156+L155 -> 0 | N156: =IF(E156=0,"",IF(E156="SLD","BUY","SLD")) -> 
C157: 0 | D157: 0 | E157: 0 | F157: 0 | G157: 00:00:00 | H157: 0 | I157: 0 | J157: 0 | L157: 0
C158: 0 | D158: 0 | E158: 0 | F158: 0 | G158: 00:00:00 | H158: 0 | I158: 0 | J158: 0 | L158: 0
C159: 0 | D159: 0 | E159: 0 | F159: 0 | G159: 00:00:00 | H159: 0 | I159: 0 | J159: 0 | L159: 0
C160: 0 | D160: 0 | E160: 0 | F160: 0 | G160: 00:00:00 | H160: 0 | I160: 0 | J160: 0 | L160: 0
C161: 0 | D161: 0 | E161: 0 | F161: 0 | G161: 00:00:00 | H161: 0 | I161: 0 | J161: 0 | L161: 0
C162: 0 | D162: 0 | E162: 0 | F162: 0 | G162: 00:00:00 | H162: 0 | I162: 0 | J162: 0 | L162: 0
C163: 0 | D163: 0 | E163: 0 | F163: 0 | G163: 00:00:00 | H163: 0 | I163: 0 | J163: 0 | L163: 0
C164: 0 | D164: 0 | E164: 0 | F164: 0 | G164: 00:00:00 | H164: 0 | I164: 0 | J164: 0 | L164: 0
C165: 0 | D165: 0 | E165: 0 | F165: 0 | G165: 00:00:00 | H165: 0 | I165: 0 | J165: 0 | L165: 0
C166: 0 | D166: 0 | E166: 0 | F166: 0 | G166: 00:00:00 | H166: 0 | I166: 0 | J166: 0 | L166: 0
C167: 0 | D167: 0 | E167: 0 | F167: 0 | G167: 00:00:00 | H167: 0 | I167: 0 | J167: 0 | L167: 0
C168: 0 | D168: 0 | E168: 0 | F168: 0 | G168: 00:00:00 | H168: 0 | I168: 0 | J168: 0 | L168: 0
C169: 0 | D169: 0 | E169: 0 | F169: 0 | G169: 00:00:00 | H169: 0 | I169: 0 | J169: 0 | L169: 0
C170: 0 | D170: 0 | E170: 0 | F170: 0 | G170: 00:00:00 | H170: 0 | I170: 0 | J170: 0 | L170: 0 | Q170: =IF(C170=0,"",IF(ISERROR(J170/D170),"",(J170/D170))/IF(C170="DAX",25,IF(C170="CAC40",10,1))) -> 
C171: 0 | D171: 0 | E171: 0 | F171: 0 | G171: 00:00:00 | H171: 0 | I171: 0 | J171: 0 | L171: 0
C172: 0 | D172: 0 | E172: 0 | F172: 0 | G172: 00:00:00 | H172: 0 | I172: 0 | J172: 0 | L172: 0
C173: 0 | D173: 0 | E173: 0 | F173: 0 | G173: 00:00:00 | H173: 0 | I173: 0 | J173: 0 | L173: 0
C174: 0 | D174: 0 | E174: 0 | F174: 0 | G174: 00:00:00 | H174: 0 | I174: 0 | J174: 0 | L174: 0
C175: 0 | D175: 0 | E175: 0 | F175: 0 | G175: 00:00:00 | H175: 0 | I175: 0 | J175: 0 | L175: 0
C176: 0 | D176: 0 | E176: 0 | F176: 0 | G176: 00:00:00 | H176: 0 | I176: 0 | J176: 0 | L176: 0
C177: 0 | D177: 0 | E177: 0 | F177: 0 | G177: 00:00:00 | H177: 0 | I177: 0 | J177: 0 | L177: 0
C178: 0 | D178: 0 | E178: 0 | F178: 0 | G178: 00:00:00 | H178: 0 | I178: 0 | J178: 0 | L178: 0
C179: 0 | D179: 0 | E179: 0 | F179: 0 | G179: 00:00:00 | H179: 0 | I179: 0 | J179: 0 | L179: 0
C180: 0 | D180: 0 | E180: 0 | F180: 0 | G180: 00:00:00 | H180: 0 | I180: 0 | J180: 0 | L180: 0
C181: 0 | D181: 0 | E181: 0 | F181: 0 | G181: 00:00:00 | H181: 0 | I181: 0 | J181: 0 | L181: 0
C182: 0 | D182: 0 | E182: 0 | F182: 0 | G182: 00:00:00 | H182: 0 | I182: 0 | J182: 0 | L182: 0
C183: 0 | D183: 0 | E183: 0 | F183: 0 | G183: 00:00:00 | H183: 0 | I183: 0 | J183: 0 | L183: 0
C184: 0 | D184: 0 | E184: 0 | F184: 0 | G184: 00:00:00 | H184: 0 | I184: 0 | J184: 0 | L184: 0
C185: 0 | D185: 0 | E185: 0 | F185: 0 | G185: 00:00:00 | H185: 0 | I185: 0 | J185: 0 | L185: 0
C186: 0 | D186: 0 | E186: 0 | F186: 0 | G186: 00:00:00 | H186: 0 | I186: 0 | J186: 0 | L186: 0
C187: 0 | D187: 0 | E187: 0 | F187: 0 | G187: 00:00:00 | H187: 0 | I187: 0 | J187: 0 | L187: 0
C188: 0 | D188: 0 | E188: 0 | F188: 0 | G188: 00:00:00 | H188: 0 | I188: 0 | J188: 0 | L188: 0
C189: 0 | D189: 0 | E189: 0 | F189: 0 | G189: 00:00:00 | H189: 0 | I189: 0 | J189: 0 | L189: 0
C190: 0 | D190: 0 | E190: 0 | F190: 0 | G190: 00:00:00 | H190: 0 | I190: 0 | J190: 0 | L190: 0
C191: 0 | D191: 0 | E191: 0 | F191: 0 | G191: 00:00:00 | H191: 0 | I191: 0 | J191: 0 | L191: 0
C192: 0 | D192: 0 | E192: 0 | F192: 0 | G192: 00:00:00 | H192: 0 | I192: 0 | J192: 0 | L192: 0
C193: 0 | D193: 0 | E193: 0 | F193: 0 | G193: 00:00:00 | H193: 0 | I193: 0 | J193: 0 | L193: 0
C194: 0 | D194: 0 | E194: 0 | F194: 0 | G194: 00:00:00 | H194: 0 | I194: 0 | J194: 0 | L194: 0
C195: 0 | D195: 0 | E195: 0 | F195: 0 | G195: 00:00:00 | H195: 0 | I195: 0 | J195: 0 | L195: 0
C196: 0 | D196: 0 | E196: 0 | F196: 0 | G196: 00:00:00 | H196: 0 | I196: 0 | J196: 0 | L196: 0
C197: 0 | D197: 0 | E197: 0 | F197: 0 | G197: 00:00:00 | H197: 0 | I197: 0 | J197: 0 | L197: 0
C198: 0 | D198: 0 | E198: 0 | F198: 0 | G198: 00:00:00 | H198: 0 | I198: 0 | J198: 0 | L198: 0
C199: 0 | D199: 0 | E199: 0 | F199: 0 | G199: 00:00:00 | H199: 0 | I199: 0 | J199: 0 | L199: 0
C200: 0 | D200: 0 | E200: 0 | F200: 0 | G200: 00:00:00 | H200: 0 | I200: 0 | J200: 0 | L200: 0
C201: 0 | D201: 0 | E201: 0 | F201: 0 | G201: 00:00:00 | H201: 0 | I201: 0 | J201: 0 | L201: 0
C202: 0 | D202: 0 | E202: 0 | F202: 0 | G202: 00:00:00 | H202: 0 | I202: 0 | J202: 0 | L202: 0
C203: 0 | D203: 0 | E203: 0 | F203: 0 | G203: 00:00:00 | H203: 0 | I203: 0 | J203: 0 | L203: 0
C204: 0 | D204: 0 | E204: 0 | F204: 0 | G204: 00:00:00 | H204: 0 | I204: 0 | J204: 0 | L204: 0
... 303 more rows

Sheet 21-06
AK4: B/S | AL4: Strat | AM4: M2 | AN4: Erreur
AK5: B | AL5: Trading de Niveau 30S | AM5: Même sens | AN5: Oui
AK6: S | AL6: Trading de Niveau M2 | AM6: Flat | AN6: Non
AL7: Trading de Niveau H1 | AM7: Opposé
AL8: Trading de Niveau D
AL9: IC40 30S
AL10: IC40 M2
AL11: IC40S 30S
AL12: IC40 S M2
AL13: IC40 30S inverse MM
AL14: AI contrtdce 30S
AL15: AI contrtdce M2
AL16: AI contrtdce M5
AL17: AI Divergce 30S
AL18: AI Divergce M2
AL19: AI Divergce M5
AL20: AI Divergce H1
AL21: AI impulsion S30
AL22: Ai Impulsion M2
AL23: Sur chiffres
AL24: Range m2
C25: Underlying | D25: Quantity | E25: Contract | F25: Price | G25: Time | H25: Date | I25: Commission | J25: Realized P&L | L25: Cumul P&L | M25: Strat | N25: Sell/Buy | O25: TDCE M2 | P25: Conviction sur le marché | Q25: Pts | R25: Erreur | AL25: IC40 M2 inverse MM
C26: IBDE30 | D26: 1 | E26: BOT | F26: 9958.71 | G26: 0.3930902778 | H26: 20160621 | I26: 1 | J26: 0 | L26: =+J26 -> 0 | Q26: =IF(C26=0,"",IF(ISERROR(J26/D26),"",(J26/D26))/IF(C26="DAX",25,IF(C26="CAC40",10,1))) -> 0 | AL26: Cassure S/R M2
C27: IBDE30 | D27: 1 | E27: SLD | F27: 9969.23 | G27: 09:29:09 | H27: 20160621 | I27: 1 | J27: 8.52 | L27: =+J27+L26 -> 8.52 | M27: Trading de Niveau 30S | N27: =IF(E27=0,"",IF(E27="SLD","BUY","SLD")) -> BUY | Q27: 8.52 | AL27: Cassure S/R H1
C28: IBDE30 | D28: 1 | E28: BOT | F28: 9992.25 | G28: 0.4342361111 | H28: 20160621 | I28: 1 | J28: 0 | L28: =+J28+L27 -> 8.52 | N28: =IF(E28=0,"",IF(E28="SLD","BUY","SLD")) -> SLD | Q28: 0 | AL28: Cassure S/R D
C29: IBDE30 | D29: 1 | E29: BOT | F29: 9992.25 | G29: 0.4345486111 | H29: 20160621 | I29: 1 | J29: 0 | L29: 8.52 | N29: SLD | Q29: 0 | AL29: Contretendance impulsion
C30: IBDE30 | D30: 1 | E30: SLD | F30: 9990.25 | G30: 10:26:50 | H30: 20160621 | I30: 1 | J30: -4 | L30: =+J30+L29 -> 4.52 | M30: Trading de Niveau 30S | N30: BUY | Q30: -4
C31: IBDE30 | D31: 1 | E31: SLD | F31: 9992.25 | G31: 10:32:15 | H31: 20160621 | I31: 1 | J31: -2 | L31: 2.52 | M31: Trading de Niveau 30S | N31: BUY | Q31: -2
C32: IBDE30 | D32: 3 | E32: BOT | F32: 9999.93 | G32: 0.4394675926 | H32: 20160621 | I32: 1.5 | J32: 0 | L32: 2.52 | N32: SLD | Q32: 0
C33: IBDE30 | D33: 1 | E33: BOT | F33: 9993.75 | G33: 0.4396875 | H33: 20160621 | I33: 1 | J33: 0 | L33: 2.52 | N33: SLD | Q33: 0
C34: IBDE30 | D34: 1 | E34: BOT | F34: 9993.25 | G34: 0.4397106481 | H34: 20160621 | I34: 1 | J34: 0 | L34: 2.52 | N34: SLD | Q34: 0
C35: IBDE30 | D35: 1 | E35: BOT | F35: 9985.24 | G35: 0.4404861111 | H35: 20160621 | I35: 1 | J35: 0 | L35: 2.52 | N35: SLD | Q35: 0
C36: IBDE30 | D36: 1 | E36: BOT | F36: 9986.24 | G36: 0.4408564815 | H36: 20160621 | I36: 1 | J36: 0 | L36: 2.52 | N36: SLD | Q36: 0
C37: IBDE30 | D37: 1 | E37: BOT | F37: 9986.74 | G37: 0.4419444444 | H37: 20160621 | I37: 1 | J37: 0 | L37: 2.52 | N37: SLD | Q37: =IF(C37=0,"",IF(ISERROR(J37/D37),"",(J37/D37))/IF(C37="DAX",25,IF(C37="CAC40",10,1))) -> 0
C38: IBDE30 | D38: 2 | E38: SLD | F38: 9995.25 | G38: 10:41:23 | H38: 20160621 | I38: 1 | J38: 1.62 | L38: 4.14 | M38: Cassure S/R H1 | N38: BUY | Q38: 0.81
C39: IBDE30 | D39: 4 | E39: SLD | F39: 9997.25 | G39: 10:41:41 | H39: 20160621 | I39: 2 | J39: 11.25 | L39: 15.39 | M39: Cassure S/R H1 | N39: BUY | Q39: 2.8125
C40: IBDE30 | D40: 2 | E40: SLD | F40: 9998.26 | G40: 10:41:44 | H40: 20160621 | I40: 1 | J40: 7.64 | L40: 23.03 | M40: Cassure S/R H1 | N40: BUY | Q40: 3.82
C41: IBDE30 | D41: 1 | E41: BOT | F41: 9989.25 | G41: 0.4589930556 | H41: 20160621 | I41: 1 | J41: 0 | L41: 23.03 | N41: SLD | Q41: =IF(C41=0,"",IF(ISERROR(J41/D41),"",(J41/D41))/IF(C41="DAX",25,IF(C41="CAC40",10,1))) -> 0
C42: IBDE30 | D42: 1 | E42: BOT | F42: 9990.25 | G42: 0.4590277778 | H42: 20160621 | I42: 1 | J42: 0 | L42: 23.03 | N42: SLD | Q42: =IF(C42=0,"",IF(ISERROR(J42/D42),"",(J42/D42))/IF(C42="DAX",25,IF(C42="CAC40",10,1))) -> 0
C43: IBDE30 | D43: 1 | E43: SLD | F43: 9970 | G43: 11:07:05 | H43: 20160621 | I43: 1 | J43: -21.75 | L43: 1.28 | M43: Sur chiffres | N43: BUY | Q43: -21.75
C44: IBDE30 | D44: 1 | E44: SLD | F44: 9970 | G44: 11:07:05 | H44: 20160621 | I44: 1 | J44: -21.75 | L44: -20.47 | M44: Sur chiffres | N44: BUY | Q44: -21.75
C45: IBDE30 | D45: 1 | E45: SLD | F45: 9969.73 | G45: 0.4695138889 | H45: 20160621 | I45: 1 | J45: 0 | L45: -20.47 | N45: BUY | Q45: 0
C46: IBDE30 | D46: 1 | E46: BOT | F46: 9968.22 | G46: 11:27:34 | H46: 20160621 | I46: 1 | J46: -0.49 | L46: -20.96 | M46: Sur chiffres | N46: SLD | Q46: -0.49
C47: IBDE30 | D47: 1 | E47: BOT | F47: 10011.77 | G47: 0.6084953704 | H47: 20160621 | I47: 1 | J47: 0 | L47: -20.96 | N47: SLD | Q47: 0
C48: IBDE30 | D48: 1 | E48: BOT | F48: 10009.27 | G48: 0.6087962963 | H48: 20160621 | I48: 1 | J48: 0 | L48: -20.96 | N48: SLD | Q48: 0
C49: IBDE30 | D49: 1 | E49: BOT | F49: 10003.26 | G49: 0.6091782407 | H49: 20160621 | I49: 1 | J49: 0 | L49: -20.96 | N49: SLD | Q49: 0
C50: IBDE30 | D50: 1 | E50: SLD | F50: 9994.76 | G50: 14:37:18 | H50: 20160621 | I50: 1 | J50: -15.34 | L50: -36.3 | M50: Trading de Niveau M2 | N50: BUY | Q50: -15.34
C51: IBDE30 | D51: 1 | E51: BOT | F51: 9992.75 | G51: 0.6096759259 | H51: 20160621 | I51: 1 | J51: 0 | L51: -36.3 | N51: SLD | Q51: 0
C52: IBDE30 | D52: 1 | E52: SLD | F52: 10004.26 | G52: 14:39:43 | H52: 20160621 | I52: 1 | J52: -0.72 | L52: -37.02 | M52: Trading de Niveau M2 | N52: BUY | Q52: -0.72
C53: IBDE30 | D53: 1 | E53: SLD | F53: 9995.26 | G53: 14:40:07 | H53: 20160621 | I53: 1 | J53: -9.72 | L53: -46.74 | M53: Trading de Niveau M2 | N53: BUY | Q53: -9.72
C54: IBDE30 | D54: 1 | E54: SLD | F54: 10002.26 | G54: 14:40:46 | H54: 20160621 | I54: 1 | J54: -2.72 | L54: -49.46 | M54: Trading de Niveau M2 | N54: BUY | Q54: -2.72
C55: IBDE30 | D55: 1 | E55: BOT | F55: 10008.26 | G55: 0.6601041667 | H55: 20160621 | I55: 1 | J55: 0 | L55: -49.46 | N55: SLD | Q55: 0
C56: IBDE30 | D56: 1 | E56: BOT | F56: 9998.26 | G56: 0.661875 | H56: 20160621 | I56: 1 | J56: 0 | L56: -49.46 | N56: SLD | Q56: 0
C57: IBDE30 | D57: 1 | E57: BOT | F57: 9990.25 | G57: 0.6684606481 | H57: 20160621 | I57: 1 | J57: 0 | L57: -49.46 | N57: SLD | Q57: 0
C58: IBDE30 | D58: 1 | E58: SLD | F58: 10001.26 | G58: 16:07:59 | H58: 20160621 | I58: 1 | J58: 0.34 | L58: -49.12 | M58: Trading de Niveau H1 | N58: BUY | Q58: 0.34
C59: IBDE30 | D59: 1 | E59: SLD | F59: 10006.76 | G59: 16:11:53 | H59: 20160621 | I59: 1 | J59: 5.84 | L59: -43.28 | M59: Trading de Niveau H1 | N59: BUY | Q59: 5.84
C60: IBDE30 | D60: 2 | E60: SLD | F60: 10019.78 | G60: 16:17:57 | H60: 20160621 | I60: 1 | J60: 19.36 | L60: -23.92 | M60: Trading de Niveau H1 | N60: BUY | Q60: 9.68
C61: IBDE30 | D61: 1 | E61: BOT | F61: 10018.78 | G61: 16:18:04 | H61: 20160621 | I61: 1 | J61: -0.5 | L61: -24.42 | M61: Trading de Niveau H1 | N61: SLD | Q61: -0.5
C62: 0 | D62: 0 | E62: 0 | F62: 0 | G62: 0 | H62: 0 | I62: 0 | J62: 0 | L62: -24.42
C63: 0 | D63: 0 | E63: 0 | F63: 0 | G63: 0 | H63: 0 | I63: 0 | J63: 0 | L63: -24.42
C64: 0 | D64: 0 | E64: 0 | F64: 0 | G64: 0 | H64: 0 | I64: 0 | J64: 0 | L64: -24.42
C65: 0 | D65: 0 | E65: 0 | F65: 0 | G65: 0 | H65: 0 | I65: 0 | J65: 0 | L65: -24.42
C66: 0 | D66: 0 | E66: 0 | F66: 0 | G66: 0 | H66: 0 | I66: 0 | J66: 0 | L66: -24.42
C67: 0 | D67: 0 | E67: 0 | F67: 0 | G67: 0 | H67: 0 | I67: 0 | J67: 0 | L67: -24.42
C68: 0 | D68: 0 | E68: 0 | F68: 0 | G68: 0 | H68: 0 | I68: 0 | J68: 0 | L68: -24.42
C69: 0 | D69: 0 | E69: 0 | F69: 0 | G69: 0 | H69: 0 | I69: 0 | J69: 0 | L69: -24.42
C70: 0 | D70: 0 | E70: 0 | F70: 0 | G70: 0 | H70: 0 | I70: 0 | J70: 0 | L70: -24.42
C71: 0 | D71: 0 | E71: 0 | F71: 0 | G71: 0 | H71: 0 | I71: 0 | J71: 0 | L71: -24.42
C72: 0 | D72: 0 | E72: 0 | F72: 0 | G72: 0 | H72: 0 | I72: 0 | J72: 0 | L72: -24.42
C73: 0 | D73: 0 | E73: 0 | F73: 0 | G73: 0 | H73: 0 | I73: 0 | J73: 0 | L73: -24.42
C74: 0 | D74: 0 | E74: 0 | F74: 0 | G74: 0 | H74: 0 | I74: 0 | J74: 0 | L74: -24.42
C75: 0 | D75: 0 | E75: 0 | F75: 0 | G75: 0 | H75: 0 | I75: 0 | J75: 0 | L75: -24.42
C76: 0 | D76: 0 | E76: 0 | F76: 0 | G76: 0 | H76: 0 | I76: 0 | J76: 0 | L76: -24.42
C77: 0 | D77: 0 | E77: 0 | F77: 0 | G77: 0 | H77: 0 | I77: 0 | J77: 0 | L77: -24.42
C78: 0 | D78: 0 | E78: 0 | F78: 0 | G78: 0 | H78: 0 | I78: 0 | J78: 0 | L78: -24.42
C79: 0 | D79: 0 | E79: 0 | F79: 0 | G79: 0 | H79: 0 | I79: 0 | J79: 0 | L79: -24.42
C80: 0 | D80: 0 | E80: 0 | F80: 0 | G80: 0 | H80: 0 | I80: 0 | J80: 0 | L80: -24.42
C81: 0 | D81: 0 | E81: 0 | F81: 0 | G81: 0 | H81: 0 | I81: 0 | J81: 0 | L81: -24.42
C82: 0 | D82: 0 | E82: 0 | F82: 0 | G82: 0 | H82: 0 | I82: 0 | J82: 0 | L82: -24.42
C83: 0 | D83: 0 | E83: 0 | F83: 0 | G83: 0 | H83: 0 | I83: 0 | J83: 0 | L83: -24.42
C84: 0 | D84: 0 | E84: 0 | F84: 0 | G84: 0 | H84: 0 | I84: 0 | J84: 0 | L84: -24.42
C85: 0 | D85: 0 | E85: 0 | F85: 0 | G85: 0 | H85: 0 | I85: 0 | J85: 0 | L85: -24.42
C86: 0 | D86: 0 | E86: 0 | F86: 0 | G86: 0 | H86: 0 | I86: 0 | J86: 0 | L86: -24.42
C87: 0 | D87: 0 | E87: 0 | F87: 0 | G87: 0 | H87: 0 | I87: 0 | J87: 0 | L87: -24.42
C88: 0 | D88: 0 | E88: 0 | F88: 0 | G88: 0 | H88: 0 | I88: 0 | J88: 0 | L88: -24.42
C89: 0 | D89: 0 | E89: 0 | F89: 0 | G89: 0 | H89: 0 | I89: 0 | J89: 0 | L89: -24.42
C90: 0 | D90: 0 | E90: 0 | F90: 0 | G90: 0 | H90: 0 | I90: 0 | J90: 0 | L90: -24.42
C91: 0 | D91: 0 | E91: 0 | F91: 0 | G91: 0 | H91: 0 | I91: 0 | J91: 0 | L91: -24.42
C92: 0 | D92: 0 | E92: 0 | F92: 0 | G92: 0 | H92: 0 | I92: 0 | J92: 0 | L92: =+J92+L91 -> -24.42 | N92: =IF(E92=0,"",IF(E92="SLD","BUY","SLD")) -> 
C93: 0 | D93: 0 | E93: 0 | F93: 0 | G93: 0 | H93: 0 | I93: 0 | J93: 0 | L93: -24.42
C94: 0 | D94: 0 | E94: 0 | F94: 0 | G94: 0 | H94: 0 | I94: 0 | J94: 0 | L94: -24.42
C95: 0 | D95: 0 | E95: 0 | F95: 0 | G95: 0 | H95: 0 | I95: 0 | J95: 0 | L95: -24.42
C96: 0 | D96: 0 | E96: 0 | F96: 0 | G96: 0 | H96: 0 | I96: 0 | J96: 0 | L96: -24.42
C97: 0 | D97: 0 | E97: 0 | F97: 0 | G97: 0 | H97: 0 | I97: 0 | J97: 0 | L97: -24.42
C98: 0 | D98: 0 | E98: 0 | F98: 0 | G98: 0 | H98: 0 | I98: 0 | J98: 0 | L98: -24.42
C99: 0 | D99: 0 | E99: 0 | F99: 0 | G99: 0 | H99: 0 | I99: 0 | J99: 0 | L99: -24.42
C100: 0 | D100: 0 | E100: 0 | F100: 0 | G100: 0 | H100: 0 | I100: 0 | J100: 0 | L100: -24.42
C101: 0 | D101: 0 | E101: 0 | F101: 0 | G101: 0 | H101: 0 | I101: 0 | J101: 0 | L101: -24.42
C102: 0 | D102: 0 | E102: 0 | F102: 0 | G102: 0 | H102: 0 | I102: 0 | J102: 0 | L102: -24.42
C103: 0 | D103: 0 | E103: 0 | F103: 0 | G103: 0 | H103: 0 | I103: 0 | J103: 0 | L103: -24.42
C104: 0 | D104: 0 | E104: 0 | F104: 0 | G104: 0 | H104: 0 | I104: 0 | J104: 0 | L104: -24.42
C105: 0 | D105: 0 | E105: 0 | F105: 0 | G105: 0 | H105: 0 | I105: 0 | J105: 0 | L105: -24.42
C106: 0 | D106: 0 | E106: 0 | F106: 0 | G106: 0 | H106: 0 | I106: 0 | J106: 0 | L106: -24.42 | Q106: =IF(C106=0,"",IF(ISERROR(J106/D106),"",(J106/D106))/IF(C106="DAX",25,IF(C106="CAC40",10,1))) -> 
C107: 0 | D107: 0 | E107: 0 | F107: 0 | G107: 0 | H107: 0 | I107: 0 | J107: 0 | L107: -24.42
C108: 0 | D108: 0 | E108: 0 | F108: 0 | G108: 0 | H108: 0 | I108: 0 | J108: 0 | L108: -24.42
C109: 0 | D109: 0 | E109: 0 | F109: 0 | G109: 0 | H109: 0 | I109: 0 | J109: 0 | L109: -24.42
C110: 0 | D110: 0 | E110: 0 | F110: 0 | G110: 0 | H110: 0 | I110: 0 | J110: 0 | L110: -24.42
C111: 0 | D111: 0 | E111: 0 | F111: 0 | G111: 0 | H111: 0 | I111: 0 | J111: 0 | L111: -24.42
C112: 0 | D112: 0 | E112: 0 | F112: 0 | G112: 0 | H112: 0 | I112: 0 | J112: 0 | L112: -24.42
C113: 0 | D113: 0 | E113: 0 | F113: 0 | G113: 0 | H113: 0 | I113: 0 | J113: 0 | L113: -24.42
C114: 0 | D114: 0 | E114: 0 | F114: 0 | G114: 0 | H114: 0 | I114: 0 | J114: 0 | L114: -24.42
C115: 0 | D115: 0 | E115: 0 | F115: 0 | G115: 0 | H115: 0 | I115: 0 | J115: 0 | L115: -24.42
C116: 0 | D116: 0 | E116: 0 | F116: 0 | G116: 0 | H116: 0 | I116: 0 | J116: 0 | L116: -24.42
C117: 0 | D117: 0 | E117: 0 | F117: 0 | G117: 0 | H117: 0 | I117: 0 | J117: 0 | L117: -24.42
C118: 0 | D118: 0 | E118: 0 | F118: 0 | G118: 0 | H118: 0 | I118: 0 | J118: 0 | L118: -24.42
C119: 0 | D119: 0 | E119: 0 | F119: 0 | G119: 0 | H119: 0 | I119: 0 | J119: 0 | L119: -24.42
C120: 0 | D120: 0 | E120: 0 | F120: 0 | G120: 0 | H120: 0 | I120: 0 | J120: 0 | L120: -24.42
C121: 0 | D121: 0 | E121: 0 | F121: 0 | G121: 0 | H121: 0 | I121: 0 | J121: 0 | L121: -24.42
C122: 0 | D122: 0 | E122: 0 | F122: 0 | G122: 0 | H122: 0 | I122: 0 | J122: 0 | L122: -24.42
C123: 0 | D123: 0 | E123: 0 | F123: 0 | G123: 0 | H123: 0 | I123: 0 | J123: 0 | L123: -24.42
C124: 0 | D124: 0 | E124: 0 | F124: 0 | G124: 0 | H124: 0 | I124: 0 | J124: 0 | L124: -24.42
C125: 0 | D125: 0 | E125: 0 | F125: 0 | G125: 0 | H125: 0 | I125: 0 | J125: 0 | L125: -24.42
C126: 0 | D126: 0 | E126: 0 | F126: 0 | G126: 0 | H126: 0 | I126: 0 | J126: 0 | L126: -24.42
C127: 0 | D127: 0 | E127: 0 | F127: 0 | G127: 0 | H127: 0 | I127: 0 | J127: 0 | L127: -24.42
C128: 0 | D128: 0 | E128: 0 | F128: 0 | G128: 0 | H128: 0 | I128: 0 | J128: 0 | L128: -24.42
C129: 0 | D129: 0 | E129: 0 | F129: 0 | G129: 0 | H129: 0 | I129: 0 | J129: 0 | L129: -24.42
C130: 0 | D130: 0 | E130: 0 | F130: 0 | G130: 0 | H130: 0 | I130: 0 | J130: 0 | L130: -24.42
C131: 0 | D131: 0 | E131: 0 | F131: 0 | G131: 0 | H131: 0 | I131: 0 | J131: 0 | L131: -24.42
C132: 0 | D132: 0 | E132: 0 | F132: 0 | G132: 0 | H132: 0 | I132: 0 | J132: 0 | L132: -24.42
C133: 0 | D133: 0 | E133: 0 | F133: 0 | G133: 0 | H133: 0 | I133: 0 | J133: 0 | L133: -24.42
C134: 0 | D134: 0 | E134: 0 | F134: 0 | G134: 0 | H134: 0 | I134: 0 | J134: 0 | L134: -24.42
C135: 0 | D135: 0 | E135: 0 | F135: 0 | G135: 0 | H135: 0 | I135: 0 | J135: 0 | L135: -24.42
C136: 0 | D136: 0 | E136: 0 | F136: 0 | G136: 0 | H136: 0 | I136: 0 | J136: 0 | L136: -24.42
C137: 0 | D137: 0 | E137: 0 | F137: 0 | G137: 0 | H137: 0 | I137: 0 | J137: 0 | L137: -24.42
C138: 0 | D138: 0 | E138: 0 | F138: 0 | G138: 0 | H138: 0 | I138: 0 | J138: 0 | L138: -24.42
C139: 0 | D139: 0 | E139: 0 | F139: 0 | G139: 0 | H139: 0 | I139: 0 | J139: 0 | L139: -24.42
C140: 0 | D140: 0 | E140: 0 | F140: 0 | G140: 0 | H140: 0 | I140: 0 | J140: 0 | L140: -24.42
C141: 0 | D141: 0 | E141: 0 | F141: 0 | G141: 0 | H141: 0 | I141: 0 | J141: 0 | L141: -24.42
C142: 0 | D142: 0 | E142: 0 | F142: 0 | G142: 0 | H142: 0 | I142: 0 | J142: 0 | L142: -24.42
C143: 0 | D143: 0 | E143: 0 | F143: 0 | G143: 0 | H143: 0 | I143: 0 | J143: 0 | L143: -24.42
C144: 0 | D144: 0 | E144: 0 | F144: 0 | G144: 0 | H144: 0 | I144: 0 | J144: 0 | L144: -24.42
C145: 0 | D145: 0 | E145: 0 | F145: 0 | G145: 0 | H145: 0 | I145: 0 | J145: 0 | L145: -24.42
C146: 0 | D146: 0 | E146: 0 | F146: 0 | G146: 0 | H146: 0 | I146: 0 | J146: 0 | L146: -24.42
C147: 0 | D147: 0 | E147: 0 | F147: 0 | G147: 0 | H147: 0 | I147: 0 | J147: 0 | L147: -24.42
C148: 0 | D148: 0 | E148: 0 | F148: 0 | G148: 0 | H148: 0 | I148: 0 | J148: 0 | L148: -24.42
C149: 0 | D149: 0 | E149: 0 | F149: 0 | G149: 0 | H149: 0 | I149: 0 | J149: 0 | L149: -24.42
C150: 0 | D150: 0 | E150: 0 | F150: 0 | G150: 0 | H150: 0 | I150: 0 | J150: 0 | L150: -24.42
C151: 0 | D151: 0 | E151: 0 | F151: 0 | G151: 0 | H151: 0 | I151: 0 | J151: 0 | L151: -24.42
C152: 0 | D152: 0 | E152: 0 | F152: 0 | G152: 0 | H152: 0 | I152: 0 | J152: 0 | L152: -24.42
C153: 0 | D153: 0 | E153: 0 | F153: 0 | G153: 0 | H153: 0 | I153: 0 | J153: 0 | L153: -24.42
C154: 0 | D154: 0 | E154: 0 | F154: 0 | G154: 0 | H154: 0 | I154: 0 | J154: 0 | L154: -24.42
C155: 0 | D155: 0 | E155: 0 | F155: 0 | G155: 0 | H155: 0 | I155: 0 | J155: 0 | L155: -24.42
C156: 0 | D156: 0 | E156: 0 | F156: 0 | G156: 0 | H156: 0 | I156: 0 | J156: 0 | L156: =+J156+L155 -> -24.42 | N156: =IF(E156=0,"",IF(E156="SLD","BUY","SLD")) -> 
C157: 0 | D157: 0 | E157: 0 | F157: 0 | G157: 0 | H157: 0 | I157: 0 | J157: 0 | L157: -24.42
C158: 0 | D158: 0 | E158: 0 | F158: 0 | G158: 0 | H158: 0 | I158: 0 | J158: 0 | L158: -24.42
C159: 0 | D159: 0 | E159: 0 | F159: 0 | G159: 0 | H159: 0 | I159: 0 | J159: 0 | L159: -24.42
C160: 0 | D160: 0 | E160: 0 | F160: 0 | G160: 0 | H160: 0 | I160: 0 | J160: 0 | L160: -24.42
C161: 0 | D161: 0 | E161: 0 | F161: 0 | G161: 0 | H161: 0 | I161: 0 | J161: 0 | L161: -24.42
C162: 0 | D162: 0 | E162: 0 | F162: 0 | G162: 0 | H162: 0 | I162: 0 | J162: 0 | L162: -24.42
C163: 0 | D163: 0 | E163: 0 | F163: 0 | G163: 0 | H163: 0 | I163: 0 | J163: 0 | L163: -24.42
C164: 0 | D164: 0 | E164: 0 | F164: 0 | G164: 0 | H164: 0 | I164: 0 | J164: 0 | L164: -24.42
C165: 0 | D165: 0 | E165: 0 | F165: 0 | G165: 0 | H165: 0 | I165: 0 | J165: 0 | L165: -24.42
C166: 0 | D166: 0 | E166: 0 | F166: 0 | G166: 0 | H166: 0 | I166: 0 | J166: 0 | L166: -24.42
C167: 0 | D167: 0 | E167: 0 | F167: 0 | G167: 0 | H167: 0 | I167: 0 | J167: 0 | L167: -24.42
C168: 0 | D168: 0 | E168: 0 | F168: 0 | G168: 0 | H168: 0 | I168: 0 | J168: 0 | L168: -24.42
C169: 0 | D169: 0 | E169: 0 | F169: 0 | G169: 0 | H169: 0 | I169: 0 | J169: 0 | L169: -24.42
C170: 0 | D170: 0 | E170: 0 | F170: 0 | G170: 0 | H170: 0 | I170: 0 | J170: 0 | L170: -24.42 | Q170: =IF(C170=0,"",IF(ISERROR(J170/D170),"",(J170/D170))/IF(C170="DAX",25,IF(C170="CAC40",10,1))) -> 
C171: 0 | D171: 0 | E171: 0 | F171: 0 | G171: 0 | H171: 0 | I171: 0 | J171: 0 | L171: -24.42
C172: 0 | D172: 0 | E172: 0 | F172: 0 | G172: 0 | H172: 0 | I172: 0 | J172: 0 | L172: -24.42
C173: 0 | D173: 0 | E173: 0 | F173: 0 | G173: 0 | H173: 0 | I173: 0 | J173: 0 | L173: -24.42
C174: 0 | D174: 0 | E174: 0 | F174: 0 | G174: 0 | H174: 0 | I174: 0 | J174: 0 | L174: -24.42
C175: 0 | D175: 0 | E175: 0 | F175: 0 | G175: 0 | H175: 0 | I175: 0 | J175: 0 | L175: -24.42
C176: 0 | D176: 0 | E176: 0 | F176: 0 | G176: 0 | H176: 0 | I176: 0 | J176: 0 | L176: -24.42
C177: 0 | D177: 0 | E177: 0 | F177: 0 | G177: 0 | H177: 0 | I177: 0 | J177: 0 | L177: -24.42
C178: 0 | D178: 0 | E178: 0 | F178: 0 | G178: 0 | H178: 0 | I178: 0 | J178: 0 | L178: -24.42
C179: 0 | D179: 0 | E179: 0 | F179: 0 | G179: 0 | H179: 0 | I179: 0 | J179: 0 | L179: -24.42
C180: 0 | D180: 0 | E180: 0 | F180: 0 | G180: 0 | H180: 0 | I180: 0 | J180: 0 | L180: -24.42
C181: 0 | D181: 0 | E181: 0 | F181: 0 | G181: 0 | H181: 0 | I181: 0 | J181: 0 | L181: -24.42
C182: 0 | D182: 0 | E182: 0 | F182: 0 | G182: 0 | H182: 0 | I182: 0 | J182: 0 | L182: -24.42
C183: 0 | D183: 0 | E183: 0 | F183: 0 | G183: 0 | H183: 0 | I183: 0 | J183: 0 | L183: -24.42
C184: 0 | D184: 0 | E184: 0 | F184: 0 | G184: 0 | H184: 0 | I184: 0 | J184: 0 | L184: -24.42
C185: 0 | D185: 0 | E185: 0 | F185: 0 | G185: 0 | H185: 0 | I185: 0 | J185: 0 | L185: -24.42
C186: 0 | D186: 0 | E186: 0 | F186: 0 | G186: 0 | H186: 0 | I186: 0 | J186: 0 | L186: -24.42
C187: 0 | D187: 0 | E187: 0 | F187: 0 | G187: 0 | H187: 0 | I187: 0 | J187: 0 | L187: -24.42
C188: 0 | D188: 0 | E188: 0 | F188: 0 | G188: 0 | H188: 0 | I188: 0 | J188: 0 | L188: -24.42
C189: 0 | D189: 0 | E189: 0 | F189: 0 | G189: 0 | H189: 0 | I189: 0 | J189: 0 | L189: -24.42
C190: 0 | D190: 0 | E190: 0 | F190: 0 | G190: 0 | H190: 0 | I190: 0 | J190: 0 | L190: -24.42
C191: 0 | D191: 0 | E191: 0 | F191: 0 | G191: 0 | H191: 0 | I191: 0 | J191: 0 | L191: -24.42
C192: 0 | D192: 0 | E192: 0 | F192: 0 | G192: 0 | H192: 0 | I192: 0 | J192: 0 | L192: -24.42
C193: 0 | D193: 0 | E193: 0 | F193: 0 | G193: 0 | H193: 0 | I193: 0 | J193: 0 | L193: -24.42
C194: 0 | D194: 0 | E194: 0 | F194: 0 | G194: 0 | H194: 0 | I194: 0 | J194: 0 | L194: -24.42
C195: 0 | D195: 0 | E195: 0 | F195: 0 | G195: 0 | H195: 0 | I195: 0 | J195: 0 | L195: -24.42
C196: 0 | D196: 0 | E196: 0 | F196: 0 | G196: 0 | H196: 0 | I196: 0 | J196: 0 | L196: -24.42
C197: 0 | D197: 0 | E197: 0 | F197: 0 | G197: 0 | H197: 0 | I197: 0 | J197: 0 | L197: -24.42
C198: 0 | D198: 0 | E198: 0 | F198: 0 | G198: 0 | H198: 0 | I198: 0 | J198: 0 | L198: -24.42
C199: 0 | D199: 0 | E199: 0 | F199: 0 | G199: 0 | H199: 0 | I199: 0 | J199: 0 | L199: -24.42
C200: 0 | D200: 0 | E200: 0 | F200: 0 | G200: 0 | H200: 0 | I200: 0 | J200: 0 | L200: -24.42
C201: 0 | D201: 0 | E201: 0 | F201: 0 | G201: 0 | H201: 0 | I201: 0 | J201: 0 | L201: -24.42
C202: 0 | D202: 0 | E202: 0 | F202: 0 | G202: 0 | H202: 0 | I202: 0 | J202: 0 | L202: -24.42
C203: 0 | D203: 0 | E203: 0 | F203: 0 | G203: 0 | H203: 0 | I203: 0 | J203: 0 | L203: -24.42
... 304 more rows

Sheet 22-06
AK4: B/S | AL4: Strat | AM4: M2 | AN4: Erreur
AK5: B | AL5: Trading de Niveau 30S | AM5: Même sens | AN5: Oui
AK6: S | AL6: Trading de Niveau M2 | AM6: Flat | AN6: Non
AL7: Trading de Niveau H1 | AM7: Opposé
AL8: Trading de Niveau D
AL9: IC40 30S
AL10: IC40 M2
AL11: IC40S 30S
AL12: IC40 S M2
AL13: IC40 30S inverse MM
AL14: AI contrtdce 30S
AL15: AI contrtdce M2
AL16: AI contrtdce M5
AL17: AI Divergce 30S
AL18: AI Divergce M2
AL19: AI Divergce M5
AL20: AI Divergce H1
AL21: AI impulsion S30
AL22: Ai Impulsion M2
AL23: Sur chiffres
AL24: Range m2
C25: Underlying | D25: Quantity | E25: Contract | F25: Price | G25: Time | H25: Date | I25: Commission | J25: Realized P&L | L25: Cumul P&L | M25: Strat | N25: Sell/Buy | O25: TDCE M2 | P25: Conviction sur le marché | Q25: Pts | R25: Erreur | AL25: IC40 M2 inverse MM
C26: CAC40 | D26: 1 | E26: BOT | F26: 4381 | G26: 09:15:35 | H26: 20160622 | I26: 1.18 | L26: =+J26 -> 0 | Q26: =IF(C26=0,"",IF(ISERROR(J26/D26),"",(J26/D26))/IF(C26="DAX",25,IF(C26="CAC40",10,1))) -> 0 | AL26: Cassure S/R M2
C27: CAC40 | D27: 3 | E27: BOT | F27: 4381 | G27: 09:15:35 | H27: 20160622 | I27: 3.54 | L27: =+J27+L26 -> 0 | N27: =IF(E27=0,"",IF(E27="SLD","BUY","SLD")) -> SLD | Q27: 0 | AL27: Cassure S/R H1
C28: DAX | D28: 3 | E28: BOT | F28: 10043 | G28: 0.4576736111 | H28: 20160622 | I28: 4.23 | J28: 0 | L28: =+J28+L27 -> 0 | N28: =IF(E28=0,"",IF(E28="SLD","BUY","SLD")) -> SLD | Q28: 0 | AL28: Cassure S/R D
C29: DAX | D29: 1 | E29: BOT | F29: 10040 | G29: 0.4582175926 | H29: 20160622 | I29: 1.41 | J29: 0 | L29: 0 | N29: SLD | Q29: 0 | AL29: Contretendance impulsion
C30: DAX | D30: 1 | E30: SLD | F30: 10048.5 | G30: 11:04:52 | H30: 20160622 | I30: 1.41 | L30: =+J30+L29 -> 0 | N30: BUY | Q30: 0
C31: DAX | D31: 1 | E31: SLD | F31: 10050 | G31: 11:05:11 | H31: 20160622 | I31: 1.41 | L31: 0 | N31: BUY | Q31: 0
C32: DAX | D32: 1 | E32: SLD | F32: 10051.5 | G32: 11:05:28 | H32: 20160622 | I32: 1.41 | L32: 0 | N32: BUY | Q32: 0
C33: DAX | D33: 1 | E33: SLD | F33: 10053 | G33: 11:05:45 | H33: 20160622 | I33: 1.41 | L33: 0 | N33: BUY | Q33: 0
C34: IBFR40 | D34: 3 | E34: BOT | F34: 4379.4 | G34: 0.4664699074 | H34: 20160622 | I34: 1.31 | J34: 0 | L34: 0 | N34: SLD | Q34: 0
C35: IBFR40 | D35: 1 | E35: BOT | F35: 4375.9 | G35: 0.4708564815 | H35: 20160622 | I35: 1 | J35: 0 | L35: 0 | N35: SLD | Q35: 0
C36: IBDE30 | D36: 9 | E36: SLD | F36: 10125.45 | G36: 0.5481018519 | H36: 20160622 | I36: 4.56 | J36: 0 | L36: 0 | N36: BUY | Q36: 0
C37: IBDE30 | D37: 3 | E37: BOT | F37: 10117.08 | G37: 13:10:36 | H37: 20160622 | I37: 1.52 | J37: 22.07 | L37: 22.07 | M37: AI contrtdce 30S | N37: SLD | Q37: =IF(C37=0,"",IF(ISERROR(J37/D37),"",(J37/D37))/IF(C37="DAX",25,IF(C37="CAC40",10,1))) -> 7.356666667
C38: IBDE30 | D38: 2 | E38: BOT | F38: 10115.07 | G38: 13:10:51 | H38: 20160622 | I38: 1.01 | J38: 18.74 | L38: 40.81 | M38: AI contrtdce 30S | N38: SLD | Q38: 9.37
C39: IBDE30 | D39: 1 | E39: BOT | F39: 10112.07 | G39: 13:11:27 | H39: 20160622 | I39: 1 | J39: 11.87 | L39: 52.68 | M39: AI contrtdce 30S | N39: SLD | Q39: 11.87
C40: IBDE30 | D40: 1 | E40: BOT | F40: 10108.56 | G40: 13:11:35 | H40: 20160622 | I40: 1 | J40: 15.38 | L40: 68.06 | M40: AI contrtdce 30S | N40: SLD | Q40: 15.38
C41: IBFR40 | D41: 2 | E41: SLD | F41: 4396.41 | G41: 13:12:39 | H41: 20160622 | I41: 1 | J41: 33.61 | L41: 101.67 | M41: Trading de Niveau M2 | N41: BUY | Q41: =IF(C41=0,"",IF(ISERROR(J41/D41),"",(J41/D41))/IF(C41="DAX",25,IF(C41="CAC40",10,1))) -> 16.805
C42: IBFR40 | D42: 2 | E42: SLD | F42: 4396.41 | G42: 13:12:43 | H42: 20160622 | I42: 1 | J42: 33.61 | L42: 135.28 | M42: Trading de Niveau M2 | N42: BUY | Q42: =IF(C42=0,"",IF(ISERROR(J42/D42),"",(J42/D42))/IF(C42="DAX",25,IF(C42="CAC40",10,1))) -> 16.805
C43: IBDE30 | D43: 1 | E43: BOT | F43: 10130.5 | G43: 13:20:13 | H43: 20160622 | I43: 1 | J43: -6.56 | L43: 128.72 | M43: AI contrtdce 30S | N43: SLD | Q43: -6.56
C44: IBDE30 | D44: 1 | E44: BOT | F44: 10126.08 | G44: 13:58:52 | H44: 20160622 | I44: 1 | J44: -2.14 | L44: 126.58 | M44: Trading de Niveau M2 | N44: SLD | Q44: -2.14
C45: IBDE30 | D45: 1 | E45: SLD | F45: 10115.57 | G45: 0.636875 | H45: 20160622 | I45: 1 | J45: 0 | L45: 126.58 | N45: BUY | Q45: 0
C46: IBDE30 | D46: 1 | E46: SLD | F46: 10117.07 | G46: 0.6373148148 | H46: 20160622 | I46: 1 | J46: 0 | L46: 126.58 | N46: BUY | Q46: 0
C47: IBDE30 | D47: 1 | E47: SLD | F47: 10122.58 | G47: 0.646099537 | H47: 20160622 | I47: 1 | J47: 0 | L47: 126.58 | N47: BUY | Q47: 0
C48: IBDE30 | D48: 1 | E48: BOT | F48: 10111.57 | G48: 16:23:48 | H48: 20160622 | I48: 1 | J48: 4.84 | L48: 131.42 | M48: Trading de Niveau M2 | N48: SLD | Q48: 4.84
C49: IBDE30 | D49: 1 | E49: BOT | F49: 10106.56 | G49: 16:24:55 | H49: 20160622 | I49: 1 | J49: 9.85 | L49: 141.27 | M49: Trading de Niveau M2 | N49: SLD | Q49: 9.85
C50: IBDE30 | D50: 1 | E50: BOT | F50: 10111.07 | G50: 16:25:39 | H50: 20160622 | I50: 1 | J50: 5.34 | L50: 146.61 | M50: Trading de Niveau M2 | N50: SLD | Q50: 5.34
C51: IBDE30 | D51: 6 | E51: BOT | F51: 10147.6 | G51: 0.6989236111 | H51: 20160622 | I51: 3.04 | J51: 0 | L51: 146.61 | N51: SLD | Q51: 0
C52: IBDE30 | D52: 1 | E52: BOT | F52: 10147.13 | G52: 0.6990509259 | H52: 20160622 | I52: 1 | J52: 0 | L52: 146.61 | N52: SLD | Q52: 0
C53: IBDE30 | D53: 1 | E53: BOT | F53: 10143.01 | G53: 0.6990972222 | H53: 20160622 | I53: 1 | J53: 0 | L53: 146.61 | N53: SLD | Q53: 0
C54: IBDE30 | D54: 1 | E54: BOT | F54: 10141.95 | G54: 0.6992013889 | H54: 20160622 | I54: 1 | J54: 0 | L54: 146.61 | N54: SLD | Q54: 0
C55: IBDE30 | D55: 1 | E55: BOT | F55: 10139.6 | G55: 0.7004050926 | H55: 20160622 | I55: 1 | J55: 0 | L55: 146.61 | N55: SLD | Q55: 0
C56: IBDE30 | D56: 3 | E56: SLD | F56: 10145.6 | G56: 16:51:09 | H56: 20160622 | I56: 1.52 | J56: -4.02 | L56: 142.59 | M56: Trading de Niveau M2 | N56: BUY | Q56: -1.34
C57: IBDE30 | D57: 1 | E57: SLD | F57: 10145.1 | G57: 16:55:38 | H57: 20160622 | I57: 1 | J57: -2.33 | L57: 140.26 | M57: Trading de Niveau M2 | N57: BUY | Q57: -2.33
C58: IBDE30 | D58: 1 | E58: SLD | F58: 10146.6 | G58: 16:55:55 | H58: 20160622 | I58: 1 | J58: -0.83 | L58: 139.43 | M58: Trading de Niveau M2 | N58: BUY | Q58: -0.83
C59: IBDE30 | D59: 2 | E59: SLD | F59: 10134.09 | G59: 16:58:57 | H59: 20160622 | I59: 1.01 | J59: -25.7 | L59: 113.73 | M59: Cassure S/R H1 | N59: BUY | Q59: -12.85
C60: IBDE30 | D60: 1 | E60: SLD | F60: 10140.1 | G60: 0.7107523148 | H60: 20160622 | I60: 1 | J60: -7.33 | L60: 106.4 | M60: Cassure S/R H1 | N60: BUY | Q60: -7.33
C61: IBDE30 | D61: 2 | E61: SLD | F61: 10138.59 | G61: 0.7124537037 | H61: 20160622 | I61: 1.01 | J61: -16.7 | L61: 89.7 | M61: Cassure S/R H1 | N61: BUY | Q61: -8.35
C62: 0 | D62: 0 | E62: 0 | F62: 0 | G62: 0 | H62: 0 | I62: 0 | J62: 0 | L62: 89.7
C63: 0 | D63: 0 | E63: 0 | F63: 0 | G63: 0 | H63: 0 | I63: 0 | J63: 0 | L63: 89.7
C64: 0 | D64: 0 | E64: 0 | F64: 0 | G64: 0 | H64: 0 | I64: 0 | J64: 0 | L64: 89.7
C65: 0 | D65: 0 | E65: 0 | F65: 0 | G65: 0 | H65: 0 | I65: 0 | J65: 0 | L65: 89.7
C66: 0 | D66: 0 | E66: 0 | F66: 0 | G66: 0 | H66: 0 | I66: 0 | J66: 0 | L66: 89.7
C67: 0 | D67: 0 | E67: 0 | F67: 0 | G67: 0 | H67: 0 | I67: 0 | J67: 0 | L67: 89.7
C68: 0 | D68: 0 | E68: 0 | F68: 0 | G68: 0 | H68: 0 | I68: 0 | J68: 0 | L68: 89.7
C69: 0 | D69: 0 | E69: 0 | F69: 0 | G69: 0 | H69: 0 | I69: 0 | J69: 0 | L69: 89.7
C70: 0 | D70: 0 | E70: 0 | F70: 0 | G70: 0 | H70: 0 | I70: 0 | J70: 0 | L70: 89.7
C71: 0 | D71: 0 | E71: 0 | F71: 0 | G71: 0 | H71: 0 | I71: 0 | J71: 0 | L71: 89.7
C72: 0 | D72: 0 | E72: 0 | F72: 0 | G72: 0 | H72: 0 | I72: 0 | J72: 0 | L72: 89.7
C73: 0 | D73: 0 | E73: 0 | F73: 0 | G73: 0 | H73: 0 | I73: 0 | J73: 0 | L73: 89.7
C74: 0 | D74: 0 | E74: 0 | F74: 0 | G74: 0 | H74: 0 | I74: 0 | J74: 0 | L74: 89.7
C75: 0 | D75: 0 | E75: 0 | F75: 0 | G75: 0 | H75: 0 | I75: 0 | J75: 0 | L75: 89.7
C76: 0 | D76: 0 | E76: 0 | F76: 0 | G76: 0 | H76: 0 | I76: 0 | J76: 0 | L76: 89.7
C77: 0 | D77: 0 | E77: 0 | F77: 0 | G77: 0 | H77: 0 | I77: 0 | J77: 0 | L77: 89.7
C78: 0 | D78: 0 | E78: 0 | F78: 0 | G78: 0 | H78: 0 | I78: 0 | J78: 0 | L78: 89.7
C79: 0 | D79: 0 | E79: 0 | F79: 0 | G79: 0 | H79: 0 | I79: 0 | J79: 0 | L79: 89.7
C80: 0 | D80: 0 | E80: 0 | F80: 0 | G80: 0 | H80: 0 | I80: 0 | J80: 0 | L80: 89.7
C81: 0 | D81: 0 | E81: 0 | F81: 0 | G81: 0 | H81: 0 | I81: 0 | J81: 0 | L81: 89.7
C82: 0 | D82: 0 | E82: 0 | F82: 0 | G82: 0 | H82: 0 | I82: 0 | J82: 0 | L82: 89.7
C83: 0 | D83: 0 | E83: 0 | F83: 0 | G83: 0 | H83: 0 | I83: 0 | J83: 0 | L83: 89.7
C84: 0 | D84: 0 | E84: 0 | F84: 0 | G84: 0 | H84: 0 | I84: 0 | J84: 0 | L84: 89.7
C85: 0 | D85: 0 | E85: 0 | F85: 0 | G85: 0 | H85: 0 | I85: 0 | J85: 0 | L85: 89.7
C86: 0 | D86: 0 | E86: 0 | F86: 0 | G86: 0 | H86: 0 | I86: 0 | J86: 0 | L86: 89.7
C87: 0 | D87: 0 | E87: 0 | F87: 0 | G87: 0 | H87: 0 | I87: 0 | J87: 0 | L87: 89.7
C88: 0 | D88: 0 | E88: 0 | F88: 0 | G88: 0 | H88: 0 | I88: 0 | J88: 0 | L88: 89.7
C89: 0 | D89: 0 | E89: 0 | F89: 0 | G89: 0 | H89: 0 | I89: 0 | J89: 0 | L89: 89.7
C90: 0 | D90: 0 | E90: 0 | F90: 0 | G90: 0 | H90: 0 | I90: 0 | J90: 0 | L90: 89.7
C91: 0 | D91: 0 | E91: 0 | F91: 0 | G91: 0 | H91: 0 | I91: 0 | J91: 0 | L91: 89.7
C92: 0 | D92: 0 | E92: 0 | F92: 0 | G92: 0 | H92: 0 | I92: 0 | J92: 0 | L92: =+J92+L91 -> 89.7 | N92: =IF(E92=0,"",IF(E92="SLD","BUY","SLD")) -> 
C93: 0 | D93: 0 | E93: 0 | F93: 0 | G93: 0 | H93: 0 | I93: 0 | J93: 0 | L93: 89.7
C94: 0 | D94: 0 | E94: 0 | F94: 0 | G94: 0 | H94: 0 | I94: 0 | J94: 0 | L94: 89.7
C95: 0 | D95: 0 | E95: 0 | F95: 0 | G95: 0 | H95: 0 | I95: 0 | J95: 0 | L95: 89.7
C96: 0 | D96: 0 | E96: 0 | F96: 0 | G96: 0 | H96: 0 | I96: 0 | J96: 0 | L96: 89.7
C97: 0 | D97: 0 | E97: 0 | F97: 0 | G97: 0 | H97: 0 | I97: 0 | J97: 0 | L97: 89.7
C98: 0 | D98: 0 | E98: 0 | F98: 0 | G98: 0 | H98: 0 | I98: 0 | J98: 0 | L98: 89.7
C99: 0 | D99: 0 | E99: 0 | F99: 0 | G99: 0 | H99: 0 | I99: 0 | J99: 0 | L99: 89.7
C100: 0 | D100: 0 | E100: 0 | F100: 0 | G100: 0 | H100: 0 | I100: 0 | J100: 0 | L100: 89.7
C101: 0 | D101: 0 | E101: 0 | F101: 0 | G101: 0 | H101: 0 | I101: 0 | J101: 0 | L101: 89.7
C102: 0 | D102: 0 | E102: 0 | F102: 0 | G102: 0 | H102: 0 | I102: 0 | J102: 0 | L102: 89.7
C103: 0 | D103: 0 | E103: 0 | F103: 0 | G103: 0 | H103: 0 | I103: 0 | J103: 0 | L103: 89.7
C104: 0 | D104: 0 | E104: 0 | F104: 0 | G104: 0 | H104: 0 | I104: 0 | J104: 0 | L104: 89.7
C105: 0 | D105: 0 | E105: 0 | F105: 0 | G105: 0 | H105: 0 | I105: 0 | J105: 0 | L105: 89.7
C106: 0 | D106: 0 | E106: 0 | F106: 0 | G106: 0 | H106: 0 | I106: 0 | J106: 0 | L106: 89.7 | Q106: =IF(C106=0,"",IF(ISERROR(J106/D106),"",(J106/D106))/IF(C106="DAX",25,IF(C106="CAC40",10,1))) -> 
C107: 0 | D107: 0 | E107: 0 | F107: 0 | G107: 0 | H107: 0 | I107: 0 | J107: 0 | L107: 89.7
C108: 0 | D108: 0 | E108: 0 | F108: 0 | G108: 0 | H108: 0 | I108: 0 | J108: 0 | L108: 89.7
C109: 0 | D109: 0 | E109: 0 | F109: 0 | G109: 0 | H109: 0 | I109: 0 | J109: 0 | L109: 89.7
C110: 0 | D110: 0 | E110: 0 | F110: 0 | G110: 0 | H110: 0 | I110: 0 | J110: 0 | L110: 89.7
C111: 0 | D111: 0 | E111: 0 | F111: 0 | G111: 0 | H111: 0 | I111: 0 | J111: 0 | L111: 89.7
C112: 0 | D112: 0 | E112: 0 | F112: 0 | G112: 0 | H112: 0 | I112: 0 | J112: 0 | L112: 89.7
C113: 0 | D113: 0 | E113: 0 | F113: 0 | G113: 0 | H113: 0 | I113: 0 | J113: 0 | L113: 89.7
C114: 0 | D114: 0 | E114: 0 | F114: 0 | G114: 0 | H114: 0 | I114: 0 | J114: 0 | L114: 89.7
C115: 0 | D115: 0 | E115: 0 | F115: 0 | G115: 0 | H115: 0 | I115: 0 | J115: 0 | L115: 89.7
C116: 0 | D116: 0 | E116: 0 | F116: 0 | G116: 0 | H116: 0 | I116: 0 | J116: 0 | L116: 89.7
C117: 0 | D117: 0 | E117: 0 | F117: 0 | G117: 0 | H117: 0 | I117: 0 | J117: 0 | L117: 89.7
C118: 0 | D118: 0 | E118: 0 | F118: 0 | G118: 0 | H118: 0 | I118: 0 | J118: 0 | L118: 89.7
